Workbook

Sheet Input
AY2: s | AZ2: βsc
AX3: rapid hardening high-strength cement | AY3: 0.2 | AZ3: 8
AX4: normal and rapid hardening cement | AY4: 0.25 | AZ4: 5
AX5: slowly hardening cement | AY5: 0.38 | AZ5: 4
E7: fck = | F7: =7*6.89476 -> 48.26332 | G7: MPa
E8: type of cement = | F8: normal and rapid hardening cement
E9: RH = | F9: 0.7
E10: h0 = 2Ac/u = | F10: =2*1058.58/278.57*25.4 -> 193.042553 | G10: mm
E11: t0 (creep) = | F11: 7 | G11: days
E12: ts (shrinkage) = | F12: 3 | G12: days

Sheet CEB-FIP (hidden)
P2: fcm0 = | Q2: 10 | R2: MPa
P3: fck0 = | Q3: 10 | R3: MPa
P4: href = | Q4: 100 | R4: mm
P7: fck = | Q7: characteristic compressive strength of cylinders
P8: fcm = | Q8: mean compressive strength of concrete at age of 28 days
D14: Step | E14: t | F14: Φ(t,t0) | G14: Γ(t,t0) | H14: Χ(t,t0) | I14: t-ts | J14: εcs(t-ts)
E15: (days) | I15: (days) | J15: (10-6) | P15: fcm = | Q15: =+Input!F7+8 -> 56.26332 | R15: MPa | S15: s = | T15: =+INDEX(Input!$AY$3:$AY$5,MATCH(Input!F8,Input!$AX$3:$AX$5,0)) -> 0.25 | X15: βsc = | Y15: =+INDEX(Input!$AZ$3:$AZ$5,MATCH(Input!F8,Input!$AX$3:$AX$5,0)) -> 5
D16: =+N28 -> 1 | E16: =+O28 -> 7 | F16: =+V28 -> 0 | G16: =+AL28 -> 33746.34702 | H16: =+AN28 -> 0 | I16: =+Y28 -> 0 | J16: =-AA28 -> 0 | P16: Ec(28) = | Q16: =21500*(Q15/Q2)^(1/3) -> 38239.62093 | R16: MPa | S16: ΦRH = | T16: =1+(1-Input!F9)/(0.46*(Input!F10/Q4)^(1/3)) -> 1.523776174 | X16: εs(fcm) = | Y16: =+(160+10*Y15*(9-Q15/Q2))*0.000001 -> 0.0003286834
D17: 2 | E17: =+O29 -> 7 | F17: =+V29 -> 0 | G17: =+AL29 -> 31448.84899 | H17: =+AN29 -> 0.8109076415 | I17: =+Y29 -> 0 | J17: =-AA29 -> 0 | P17: fctk, min = | Q17: =0.95*(Input!F7/Q3)^(2/3) -> 2.71311624 | R17: MPa | S17: β(fcm) = | T17: =5.3/SQRT(Q15/Q2) -> 2.234411675 | X17: βRH = | Y17: =+IF(AND(Input!F9>=0.4,Input!F9<0.99),-1.55*(1-Input!F9^3),IF(Input!F9>=0.99,0.25,"N/A")) -> -1.01835
D18: 3 | E18: 7.01 | F18: 0.07205963237 | G18: 31259.74599 | H18: 0.8418514329 | I18: 0.01 | J18: 0.9268001574 | P18: fctk, max = | Q18: =1.85*(Input!F7/Q3)^(2/3) -> 5.283436888 | R18: MPa | S18: β(t0) = | T18: =1/(0.1+Input!F11^0.2) -> 0.6346091077 | X18: εcs0 = | Y18: =+Y16*Y17 -> -0.0003347147404
D19: 4 | E19: 7.013335214 | F19: 0.07855815138 | G19: 31055.24253 | H19: 0.8635392765 | I19: 0.01333521432 | J19: 1.070250757 | S19: Φ0 = | T19: =+T16*T17*T18 -> 2.16068109
D20: 5 | E20: 7.017782794 | F20: 0.08564267142 | G20: 30834.28615 | H20: 0.8779400843 | I20: 0.0177827941 | J20: 1.235904186 | S20: βH = | T20: =+MIN(1500,150*Input!F10/Q4*(1+(0.012*(Input!F9*100))^18)+250) -> 552.1175213 | U20: mm
D21: 6 | E21: 7.023713737 | F21: 0.09336601139 | G21: 30596.05164 | H21: 0.8875626602 | I21: 0.02371373706 | J21: 1.427196644 | S21: βcc(t0) = | T21: =+EXP($T$15*(1-SQRT(28/Input!F11))) -> 0.7788007831
D22: 7 | E22: 7.031622777 | F22: 0.1017857403 | G22: 30339.6672 | H22: 0.8940513519 | I22: 0.0316227766 | J22: 1.648095976 | S22: βE(t0) = | T22: =+SQRT(T21) -> 0.8824969026
D23: 8 | E23: 7.04216965 | F23: 0.1109645998 | G23: 30064.2175 | H23: 0.8984528391 | I23: 0.04216965034 | J23: 1.903183848 | S23: Ec(t0) = | T23: =+T22*Q16 -> 33746.34702 | U23: MPa
D24: 9 | E24: 7.056234133 | F24: 0.1209709615 | G24: 29768.76081 | H24: 0.901437252 | I24: 0.05623413252 | J24: 2.197750572
D25: 10 | E25: 7.074989421 | F25: 0.1318793224 | G25: 29452.34447 | H25: 0.9034355433 | I25: 0.07498942093 | J25: 2.537904521 | AQ25: 1 | BA25: =+AQ25+1 -> 2 | BK25: =+BA25+1 -> 3 | BU25: =+BK25+1 -> 4 | CE25: 5 | CO25: 6 | CY25: 7 | DI25: 8 | DS25: =+DI25+1 -> 9 | EC25: 10 | EM25: 11 | EW25: 12 | FG25: 13 | FQ25: 14 | GA25: =+FQ25+1 -> 15 | GK25: 16 | GU25: =+GK25+1 -> 17 | HE25: =+GU25+1 -> 18 | HO25: =+HE25+1 -> 19 | HY25: =+HO25+1 -> 20 | II25: =+HY25+1 -> 21 | IS25: =+II25+1 -> 22 | JC25: =+IS25+1 -> 23 | JM25: =+JC25+1 -> 24 | JW25: =+JM25+1 -> 25 | KG25: =+JW25+1 -> 26 | KQ25: =+KG25+1 -> 27 | LA25: =+KQ25+1 -> 28 | LK25: =+LA25+1 -> 29 | LU25: =+LK25+1 -> 30 | ME25: =+LU25+1 -> 31 | MO25: =+ME25+1 -> 32 | MY25: =+MO25+1 -> 33 | NI25: =+MY25+1 -> 34 | NS25: =+NI25+1 -> 35 | OC25: =+NS25+1 -> 36 | OM25: =+OC25+1 -> 37 | OW25: =+OM25+1 -> 38 | PG25: =+OW25+1 -> 39 | PQ25: =+PG25+1 -> 40 | QA25: =+PQ25+1 -> 41 | QK25: =+QA25+1 -> 42 | QU25: =+QK25+1 -> 43 | RE25: =+QU25+1 -> 44 | RO25: =+RE25+1 -> 45 | RY25: =+RO25+1 -> 46 | SI25: =+RY25+1 -> 47 | SS25: =+SI25+1 -> 48 | TC25: =+SS25+1 -> 49 | TM25: =+TC25+1 -> 50 | TW25: =+TM25+1 -> 51 | UG25: =+TW25+1 -> 52 | UQ25: =+UG25+1 -> 53 | VA25: =+UQ25+1 -> 54
D26: 11 | E26: 7.1 | F26: 0.1437708387 | G26: 29114.01838 | H26: 0.9047232281 | I26: 0.1 | J26: 2.930698322 | N26: Step | O26: t | P26: βcc(t) | Q26: fcm(t) | R26: βE(t) | S26: Ec(t) | T26: t-t0 | U26: βc(t-t0) | V26: Φ(t,t0) | X26: t | Y26: t-ts | Z26: βs(t-ts) | AA26: εcs(t-ts) | AC26: ti | AD26: ti+1/2 | AE26: ti+1/2-ti | AF26: β(ti) | AG26: βc(ti+1/2-ti) | AH26: βE(ti) | AI26: Φ(ti+1/2,ti) | AJ26: Ec(ti) | AK26: (∆σc)i | AL26: ∑(∆σc)i | AM26: Γ(t,t0)/Ec(t0) | AN26: Χ(t,t0) | AQ26: (∆σc)j | AR26: tj | AS26: ti+1/2 | AT26: ti+1/2-tj | AU26: β(tj) | AV26: βc(ti+1/2-tj) | AW26: βE(tj) | AX26: Φ(ti+1/2,tj) | AY26: Ec(tj) | BA26: (∆σc)j | BB26: tj | BC26: ti+1/2 | BD26: ti+1/2-tj | BE26: β(tj) | BF26: βc(ti+1/2-tj) | BG26: βE(tj) | BH26: Φ(ti+1/2,tj) | BI26: Ec(tj) | BK26: (∆σc)j | BL26: tj | BM26: ti+1/2 | BN26: ti+1/2-tj | BO26: β(tj) | BP26: βc(ti+1/2-tj) | BQ26: βE(tj) | BR26: Φ(ti+1/2,tj) | BS26: Ec(tj) | BU26: (∆σc)j | BV26: tj | BW26: ti+1/2 | BX26: ti+1/2-tj | BY26: β(tj) | BZ26: βc(ti+1/2-tj) | CA26: βE(tj) | CB26: Φ(ti+1/2,tj) | CC26: Ec(tj) | CE26: (∆σc)j | CF26: tj | CG26: ti+1/2 | CH26: ti+1/2-tj | CI26: β(tj) | CJ26: βc(ti+1/2-tj) | CK26: βE(tj) | CL26: Φ(ti+1/2,tj) | CM26: Ec(tj) | CO26: (∆σc)j | CP26: tj | CQ26: ti+1/2 | CR26: ti+1/2-tj | CS26: β(tj) | CT26: βc(ti+1/2-tj) | CU26: βE(tj) | CV26: Φ(ti+1/2,tj) | CW26: Ec(tj) | CY26: (∆σc)j | CZ26: tj | DA26: ti+1/2 | DB26: ti+1/2-tj | DC26: β(tj) | DD26: βc(ti+1/2-tj) | DE26: βE(tj) | DF26: Φ(ti+1/2,tj) | DG26: Ec(tj) | DI26: (∆σc)j | DJ26: tj | DK26: ti+1/2 | DL26: ti+1/2-tj | DM26: β(tj) | DN26: βc(ti+1/2-tj) | DO26: βE(tj) | DP26: Φ(ti+1/2,tj) | DQ26: Ec(tj) | DS26: (∆σc)j | DT26: tj | DU26: ti+1/2 | DV26: ti+1/2-tj | DW26: β(tj) | DX26: βc(ti+1/2-tj) | DY26: βE(tj) | DZ26: Φ(ti+1/2,tj) | EA26: Ec(tj) | EC26: (∆σc)j | ED26: tj | EE26: ti+1/2 | EF26: ti+1/2-tj | EG26: β(tj) | EH26: βc(ti+1/2-tj) | EI26: βE(tj) | EJ26: Φ(ti+1/2,tj) | EK26: Ec(tj) | EM26: (∆σc)j | EN26: tj | EO26: ti+1/2 | EP26: ti+1/2-tj | EQ26: β(tj) | ER26: βc(ti+1/2-tj) | ES26: βE(tj) | ET26: Φ(ti+1/2,tj) | EU26: Ec(tj) | EW26: (∆σc)j | EX26: tj | EY26: ti+1/2 | EZ26: ti+1/2-tj | FA26: β(tj) | FB26: βc(ti+1/2-tj) | FC26: βE(tj) | FD26: Φ(ti+1/2,tj) | FE26: Ec(tj) | FG26: (∆σc)j | FH26: tj | FI26: ti+1/2 | FJ26: ti+1/2-tj | FK26: β(tj) | FL26: βc(ti+1/2-tj) | FM26: βE(tj) | FN26: Φ(ti+1/2,tj) | FO26: Ec(tj) | FQ26: (∆σc)j | FR26: tj | FS26: ti+1/2 | FT26: ti+1/2-tj | FU26: β(tj) | FV26: βc(ti+1/2-tj) | FW26: βE(tj) | FX26: Φ(ti+1/2,tj) | FY26: Ec(tj) | GA26: (∆σc)j | GB26: tj | GC26: ti+1/2 | GD26: ti+1/2-tj | GE26: β(tj) | GF26: βc(ti+1/2-tj) | GG26: βE(tj) | GH26: Φ(ti+1/2,tj) | GI26: Ec(tj) | GK26: (∆σc)j | GL26: tj | GM26: ti+1/2 | GN26: ti+1/2-tj | GO26: β(tj) | GP26: βc(ti+1/2-tj) | GQ26: βE(tj) | GR26: Φ(ti+1/2,tj) | GS26: Ec(tj) | GU26: (∆σc)j | GV26: tj | GW26: ti+1/2 | GX26: ti+1/2-tj | GY26: β(tj) | GZ26: βc(ti+1/2-tj) | HA26: βE(tj) | HB26: Φ(ti+1/2,tj) | HC26: Ec(tj) | HE26: (∆σc)j | HF26: tj | HG26: ti+1/2 | HH26: ti+1/2-tj | HI26: β(tj) | HJ26: βc(ti+1/2-tj) | HK26: βE(tj) | HL26: Φ(ti+1/2,tj) | HM26: Ec(tj) | HO26: (∆σc)j | HP26: tj | HQ26: ti+1/2 | HR26: ti+1/2-tj | HS26: β(tj) | HT26: βc(ti+1/2-tj) | HU26: βE(tj) | HV26: Φ(ti+1/2,tj) | HW26: Ec(tj) | HY26: (∆σc)j | HZ26: tj | IA26: ti+1/2 | IB26: ti+1/2-tj | IC26: β(tj) | ID26: βc(ti+1/2-tj) | IE26: βE(tj) | IF26: Φ(ti+1/2,tj) | IG26: Ec(tj) | II26: (∆σc)j | IJ26: tj | IK26: ti+1/2 | IL26: ti+1/2-tj | IM26: β(tj) | IN26: βc(ti+1/2-tj) | IO26: βE(tj) | IP26: Φ(ti+1/2,tj) | IQ26: Ec(tj) | IS26: (∆σc)j | IT26: tj | IU26: ti+1/2 | IV26: ti+1/2-tj | IW26: β(tj) | IX26: βc(ti+1/2-tj) | IY26: βE(tj) | IZ26: Φ(ti+1/2,tj) | JA26: Ec(tj) | JC26: (∆σc)j | JD26: tj | JE26: ti+1/2 | JF26: ti+1/2-tj | JG26: β(tj) | JH26: βc(ti+1/2-tj) | JI26: βE(tj) | JJ26: Φ(ti+1/2,tj) | JK26: Ec(tj) | JM26: (∆σc)j | JN26: tj | JO26: ti+1/2 | JP26: ti+1/2-tj | JQ26: β(tj) | JR26: βc(ti+1/2-tj) | JS26: βE(tj) | JT26: Φ(ti+1/2,tj) | JU26: Ec(tj) | JW26: (∆σc)j | JX26: tj | JY26: ti+1/2 | JZ26: ti+1/2-tj | KA26: β(tj) | KB26: βc(ti+1/2-tj) | KC26: βE(tj) | KD26: Φ(ti+1/2,tj) | KE26: Ec(tj) | KG26: (∆σc)j | KH26: tj | KI26: ti+1/2 | KJ26: ti+1/2-tj | KK26: β(tj) | KL26: βc(ti+1/2-tj) | KM26: βE(tj) | KN26: Φ(ti+1/2,tj) | KO26: Ec(tj) | KQ26: (∆σc)j | KR26: tj | KS26: ti+1/2 | KT26: ti+1/2-tj | KU26: β(tj) | KV26: βc(ti+1/2-tj) | KW26: βE(tj) | KX26: Φ(ti+1/2,tj) | KY26: Ec(tj) | LA26: (∆σc)j | LB26: tj | LC26: ti+1/2 | LD26: ti+1/2-tj | LE26: β(tj) | LF26: βc(ti+1/2-tj) | LG26: βE(tj) | LH26: Φ(ti+1/2,tj) | LI26: Ec(tj) | LK26: (∆σc)j | LL26: tj | LM26: ti+1/2 | LN26: ti+1/2-tj | LO26: β(tj) | LP26: βc(ti+1/2-tj) | LQ26: βE(tj) | LR26: Φ(ti+1/2,tj) | LS26: Ec(tj) | LU26: (∆σc)j | LV26: tj | LW26: ti+1/2 | LX26: ti+1/2-tj | LY26: β(tj) | LZ26: βc(ti+1/2-tj) | MA26: βE(tj) | MB26: Φ(ti+1/2,tj) | MC26: Ec(tj) | ME26: (∆σc)j | MF26: tj | MG26: ti+1/2 | MH26: ti+1/2-tj | MI26: β(tj) | MJ26: βc(ti+1/2-tj) | MK26: βE(tj) | ML26: Φ(ti+1/2,tj) | MM26: Ec(tj) | MO26: (∆σc)j | MP26: tj | MQ26: ti+1/2 | MR26: ti+1/2-tj | MS26: β(tj) | MT26: βc(ti+1/2-tj) | MU26: βE(tj) | MV26: Φ(ti+1/2,tj) | MW26: Ec(tj) | MY26: (∆σc)j | MZ26: tj | NA26: ti+1/2 | NB26: ti+1/2-tj | NC26: β(tj) | ND26: βc(ti+1/2-tj) | NE26: βE(tj) | NF26: Φ(ti+1/2,tj) | NG26: Ec(tj) | NI26: (∆σc)j | NJ26: tj | NK26: ti+1/2 | NL26: ti+1/2-tj | NM26: β(tj) | NN26: βc(ti+1/2-tj) | NO26: βE(tj) | NP26: Φ(ti+1/2,tj) | NQ26: Ec(tj) | NS26: (∆σc)j | NT26: tj | NU26: ti+1/2 | NV26: ti+1/2-tj | NW26: β(tj) | NX26: βc(ti+1/2-tj) | NY26: βE(tj) | NZ26: Φ(ti+1/2,tj) | OA26: Ec(tj) | OC26: (∆σc)j | OD26: tj | OE26: ti+1/2 | OF26: ti+1/2-tj | OG26: β(tj) | OH26: βc(ti+1/2-tj) | OI26: βE(tj) | OJ26: Φ(ti+1/2,tj) | OK26: Ec(tj) | OM26: (∆σc)j | ON26: tj | OO26: ti+1/2 | OP26: ti+1/2-tj | OQ26: β(tj) | OR26: βc(ti+1/2-tj) | OS26: βE(tj) | OT26: Φ(ti+1/2,tj) | OU26: Ec(tj) | OW26: (∆σc)j | OX26: tj | OY26: ti+1/2 | OZ26: ti+1/2-tj | PA26: β(tj) | PB26: βc(ti+1/2-tj) | PC26: βE(tj) | PD26: Φ(ti+1/2,tj) | PE26: Ec(tj) | PG26: (∆σc)j | PH26: tj | PI26: ti+1/2 | PJ26: ti+1/2-tj | PK26: β(tj) | PL26: βc(ti+1/2-tj) | PM26: βE(tj) | PN26: Φ(ti+1/2,tj) | PO26: Ec(tj) | PQ26: (∆σc)j | PR26: tj | PS26: ti+1/2 | PT26: ti+1/2-tj | PU26: β(tj) | PV26: βc(ti+1/2-tj) | PW26: βE(tj) | PX26: Φ(ti+1/2,tj) | PY26: Ec(tj) | QA26: (∆σc)j | QB26: tj | QC26: ti+1/2 | QD26: ti+1/2-tj | QE26: β(tj) | QF26: βc(ti+1/2-tj) | QG26: βE(tj) | QH26: Φ(ti+1/2,tj) | QI26: Ec(tj) | QK26: (∆σc)j | QL26: tj | QM26: ti+1/2 | QN26: ti+1/2-tj | QO26: β(tj) | QP26: βc(ti+1/2-tj) | QQ26: βE(tj) | QR26: Φ(ti+1/2,tj) | QS26: Ec(tj) | QU26: (∆σc)j | QV26: tj | QW26: ti+1/2 | QX26: ti+1/2-tj | QY26: β(tj) | QZ26: βc(ti+1/2-tj) | RA26: βE(tj) | RB26: Φ(ti+1/2,tj) | RC26: Ec(tj) | RE26: (∆σc)j | RF26: tj | RG26: ti+1/2 | RH26: ti+1/2-tj | RI26: β(tj) | RJ26: βc(ti+1/2-tj) | RK26: βE(tj) | RL26: Φ(ti+1/2,tj) | RM26: Ec(tj) | RO26: (∆σc)j | RP26: tj | RQ26: ti+1/2 | RR26: ti+1/2-tj | RS26: β(tj) | RT26: βc(ti+1/2-tj) | RU26: βE(tj) | RV26: Φ(ti+1/2,tj) | RW26: Ec(tj) | RY26: (∆σc)j | RZ26: tj | SA26: ti+1/2 | SB26: ti+1/2-tj | SC26: β(tj) | SD26: βc(ti+1/2-tj) | SE26: βE(tj) | SF26: Φ(ti+1/2,tj) | SG26: Ec(tj) | SI26: (∆σc)j | SJ26: tj | SK26: ti+1/2 | SL26: ti+1/2-tj | SM26: β(tj) | SN26: βc(ti+1/2-tj) | SO26: βE(tj) | SP26: Φ(ti+1/2,tj) | SQ26: Ec(tj) | SS26: (∆σc)j | ST26: tj | SU26: ti+1/2 | SV26: ti+1/2-tj | SW26: β(tj) | SX26: βc(ti+1/2-tj) | SY26: βE(tj) | SZ26: Φ(ti+1/2,tj) | TA26: Ec(tj) | TC26: (∆σc)j | TD26: tj | TE26: ti+1/2 | TF26: ti+1/2-tj | TG26: β(tj) | TH26: βc(ti+1/2-tj) | TI26: βE(tj) | TJ26: Φ(ti+1/2,tj) | TK26: Ec(tj) | TM26: (∆σc)j | TN26: tj | TO26: ti+1/2 | TP26: ti+1/2-tj | TQ26: β(tj) | TR26: βc(ti+1/2-tj) | TS26: βE(tj) | TT26: Φ(ti+1/2,tj) | TU26: Ec(tj) | TW26: (∆σc)j | TX26: tj | TY26: ti+1/2 | TZ26: ti+1/2-tj | UA26: β(tj) | UB26: βc(ti+1/2-tj) | UC26: βE(tj) | UD26: Φ(ti+1/2,tj) | UE26: Ec(tj) | UG26: (∆σc)j | UH26: tj | UI26: ti+1/2 | UJ26: ti+1/2-tj | UK26: β(tj) | UL26: βc(ti+1/2-tj) | UM26: βE(tj) | UN26: Φ(ti+1/2,tj) | UO26: Ec(tj) | UQ26: (∆σc)j | UR26: tj | US26: ti+1/2 | UT26: ti+1/2-tj | UU26: β(tj) | UV26: βc(ti+1/2-tj) | UW26: βE(tj) | UX26: Φ(ti+1/2,tj) | UY26: Ec(tj) | VA26: (∆σc)j | VB26: tj | VC26: ti+1/2 | VD26: ti+1/2-tj | VE26: β(tj) | VF26: βc(ti+1/2-tj) | VG26: βE(tj) | VH26: Φ(ti+1/2,tj) | VI26: Ec(tj)
D27: 12 | E27: 7.133352143 | F27: 0.156733899 | G27: 28752.84694 | H27: 0.9054721161 | I27: 0.1333521432 | J27: 3.384274359 | O27: (days) | Q27: (Mpa) | S27: (Mpa) | T27: (days) | X27: (days) | Y27: (days) | AA27: (10-6) | AC27: (days) | AD27: (days) | AE27: (days) | AJ27: (Mpa) | AR27: (days) | AS27: (days) | AT27: (days) | AY27: MPa | BB27: (days) | BC27: (days) | BD27: (days) | BI27: MPa | BL27: (days) | BM27: (days) | BN27: (days) | BS27: MPa | BV27: (days) | BW27: (days) | BX27: (days) | CC27: MPa | CF27: (days) | CG27: (days) | CH27: (days) | CM27: MPa | CP27: (days) | CQ27: (days) | CR27: (days) | CW27: MPa | CZ27: (days) | DA27: (days) | DB27: (days) | DG27: MPa | DJ27: (days) | DK27: (days) | DL27: (days) | DQ27: MPa | DT27: (days) | DU27: (days) | DV27: (days) | EA27: MPa | ED27: (days) | EE27: (days) | EF27: (days) | EK27: MPa | EN27: (days) | EO27: (days) | EP27: (days) | EU27: MPa | EX27: (days) | EY27: (days) | EZ27: (days) | FE27: MPa | FH27: (days) | FI27: (days) | FJ27: (days) | FO27: MPa | FR27: (days) | FS27: (days) | FT27: (days) | FY27: MPa | GB27: (days) | GC27: (days) | GD27: (days) | GI27: MPa | GL27: (days) | GM27: (days) | GN27: (days) | GS27: MPa | GV27: (days) | GW27: (days) | GX27: (days) | HC27: MPa | HF27: (days) | HG27: (days) | HH27: (days) | HM27: MPa | HP27: (days) | HQ27: (days) | HR27: (days) | HW27: MPa | HZ27: (days) | IA27: (days) | IB27: (days) | IG27: MPa | IJ27: (days) | IK27: (days) | IL27: (days) | IQ27: MPa | IT27: (days) | IU27: (days) | IV27: (days) | JA27: MPa | JD27: (days) | JE27: (days) | JF27: (days) | JK27: MPa | JN27: (days) | JO27: (days) | JP27: (days) | JU27: MPa | JX27: (days) | JY27: (days) | JZ27: (days) | KE27: MPa | KH27: (days) | KI27: (days) | KJ27: (days) | KO27: MPa | KR27: (days) | KS27: (days) | KT27: (days) | KY27: MPa | LB27: (days) | LC27: (days) | LD27: (days) | LI27: MPa | LL27: (days) | LM27: (days) | LN27: (days) | LS27: MPa | LV27: (days) | LW27: (days) | LX27: (days) | MC27: MPa | MF27: (days) | MG27: (days) | MH27: (days) | MM27: MPa | MP27: (days) | MQ27: (days) | MR27: (days) | MW27: MPa | MZ27: (days) | NA27: (days) | NB27: (days) | NG27: MPa | NJ27: (days) | NK27: (days) | NL27: (days) | NQ27: MPa | NT27: (days) | NU27: (days) | NV27: (days) | OA27: MPa | OD27: (days) | OE27: (days) | OF27: (days) | OK27: MPa | ON27: (days) | OO27: (days) | OP27: (days) | OU27: MPa | OX27: (days) | OY27: (days) | OZ27: (days) | PE27: MPa | PH27: (days) | PI27: (days) | PJ27: (days) | PO27: MPa | PR27: (days) | PS27: (days) | PT27: (days) | PY27: MPa | QB27: (days) | QC27: (days) | QD27: (days) | QI27: MPa | QL27: (days) | QM27: (days) | QN27: (days) | QS27: MPa | QV27: (days) | QW27: (days) | QX27: (days) | RC27: MPa | RF27: (days) | RG27: (days) | RH27: (days) | RM27: MPa | RP27: (days) | RQ27: (days) | RR27: (days) | RW27: MPa | RZ27: (days) | SA27: (days) | SB27: (days) | SG27: MPa | SJ27: (days) | SK27: (days) | SL27: (days) | SQ27: MPa | ST27: (days) | SU27: (days) | SV27: (days) | TA27: MPa | TD27: (days) | TE27: (days) | TF27: (days) | TK27: MPa | TN27: (days) | TO27: (days) | TP27: (days) | TU27: MPa | TX27: (days) | TY27: (days) | TZ27: (days) | UE27: MPa | UH27: (days) | UI27: (days) | UJ27: (days) | UO27: MPa | UR27: (days) | US27: (days) | UT27: (days) | UY27: MPa | VB27: (days) | VC27: (days) | VD27: (days) | VI27: MPa
D28: 13 | E28: 7.177827941 | F28: 0.170864738 | G28: 28367.91936 | H28: 0.9057827682 | I28: 0.177827941 | J28: 3.908032437 | N28: 1 | O28: =+Input!$F$11 -> 7 | P28: =+EXP($T$15*(1-SQRT(28/O28))) -> 0.7788007831 | Q28: =+P28*$Q$15 -> 43.81791767 | R28: =+SQRT(P28) -> 0.8824969026 | S28: =+R28*$Q$16 -> 33746.34702 | T28: =+O28-Input!$F$11 -> 0 | U28: =+(T28/($T$20+T28))^0.3 -> 0 | V28: =+$T$19*U28*$T$22 -> 0 | X28: =+Input!$F$12 -> 3 | Y28: =+X28-Input!$F$12 -> 0 | Z28: =+SQRT(Y28/(350*(Input!$F$10/$Q$4)^2+Y28)) -> 0 | AA28: =+$Y$18*Z28*1000000 -> 0 | AB28: 1 | AC28: =+(O28+O29)/2 -> 7 | AD28: =+O29 -> 7 | AH28: =+SQRT(EXP($T$15*(1-SQRT(28/AC28)))) -> 0.8824969026 | AJ28: =+AH28*$Q$16 -> 33746.34702 | AK28: =+T23 -> 33746.34702 | AL28: =+AK28 -> 33746.34702 | AM28: =+AL28/$T$23 -> 1 | AN28: 0 | AP28: 1
D29: 14 | E29: 7.237137371 | F29: 0.186268087 | G29: 27958.35823 | H29: 0.9057051054 | I29: 0.2371373706 | J29: 4.512822864 | N29: =+N28+1 -> 2 | O29: =+O28 -> 7 | P29: 0.7788007831 | Q29: =+P29*$Q$15 -> 43.81791767 | R29: 0.8824969026 | S29: =+R29*$Q$16 -> 33746.34702 | T29: =+O29-Input!$F$11 -> 0 | U29: 0 | V29: 0 | X29: =+X28 -> 3 | Y29: =+X29-Input!$F$12 -> 0 | Z29: =+SQRT(Y29/(350*(Input!$F$10/$Q$4)^2+Y29)) -> 0 | AA29: 0 | AB29: =+AB28+1 -> 2 | AC29: 7.005 | AD29: 7.01 | AE29: =+AD29-AC29 -> 0.005 | AF29: =1/(0.1+AC29^0.2) -> 0.6345242381 | AG29: =+(AE29/($T$20+AE29))^0.3 -> 0.03069589938 | AH29: =+SQRT(EXP($T$15*(1-SQRT(28/AC29)))) -> 0.8825756583 | AI29: =+$T$16*$T$17*AF29*AG29*AH29 -> 0.05852816316 | AJ29: =+AH29*$Q$16 -> 33749.35861 | AK29: =+AJ29/(1+AI29)*(1-(AZ29+BJ29+BT29+CD29+CN29+CX29+DH29+DR29+EB29+EL29+EV29+FF29+FP29+FZ29+GJ29+GT29+HD29+HN29+HX29+IH29+IR29+JB29+JL29+JV29+KF29+KP29+KZ29+LJ29+LT29+MD29+MN29+MX29+NH29+NR29+OB29+OL29+OV29+PF29+PP29+PZ29+QJ29+QT29+RD29+RN29+RX29+SH29+SR29+TB29+TL29+TV29+UF29+UP29+UZ29)) -> -2297.498035 | AL29: =+AL28+AK29 -> 31448.84899 | AM29: =+AL29/$T$23 -> 0.9319186153 | AN29: =1/(1-AM29)-1/V30 -> 0.8109076415 | AP29: =+AP28+1 -> 2 | AQ29: =+INDEX($AK$28:$AK$82,MATCH(AQ$25,$N$28:$N$82,0)) -> 33746.34702 | AR29: =+INDEX($AC$28:$AC$82,MATCH(AQ$25,$N$28:$N$82,0)) -> 7 | AS29: =+$AD29 -> 7.01 | AT29: =+AS29-AR29 -> 0.01 | AU29: =1/(0.1+AR29^0.2) -> 0.6346091077 | AV29: =+(AT29/($T$20+AT29))^0.3 -> 0.03779098236 | AW29: =+SQRT(EXP($T$15*(1-SQRT(28/AR29)))) -> 0.8824969026 | AX29: =+$T$16*$T$17*AU29*AV29*AW29 -> 0.07205963237 | AY29: =+INDEX($AJ$28:$AJ$82,MATCH(AQ$25,$N$28:$N$82,0)) -> 33746.34702 | AZ29: =+AQ29*(1+AX29)/AY29 -> 1.072059632
D30: 15 | E30: 7.316227766 | F30: 0.2030578577 | G30: 27523.32559 | H30: 0.9052516429 | I30: 0.316227766 | J30: 5.211168576 | N30: =+N29+1 -> 3 | O30: =+O29+0.01 -> 7.01 | P30: 0.7790786781 | Q30: 43.83355297 | R30: 0.8826543367 | S30: 33752.36725 | T30: =+O30-Input!$F$11 -> 0.01 | U30: 0.03779098236 | V30: 0.07205963237 | X30: =+X29+0.01 -> 3.01 | Y30: =+X30-Input!$F$12 -> 0.01 | Z30: =+SQRT(Y30/(350*(Input!$F$10/$Q$4)^2+Y30)) -> 0.002768925433 | AA30: -0.9268001574 | AB30: =+AB29+1 -> 3 | AC30: 7.011667607 | AD30: 7.013335214 | AE30: =+AD30-AC30 -> 0.001667607161 | AF30: =1/(0.1+AC30^0.2) -> 0.6344111734 | AG30: =+(AE30/($T$20+AE30))^0.3 -> 0.02208097637 | AH30: =+SQRT(EXP($T$15*(1-SQRT(28/AC30)))) -> 0.8826805605 | AI30: =+$T$16*$T$17*AF30*AG30*AH30 -> 0.04209950881 | AJ30: =+AH30*$Q$16 -> 33753.37003 | AK30: -189.1030035 | AL30: =+AL29+AK30 -> 31259.74599 | AM30: =+AL30/$T$23 -> 0.9263149568 | AN30: =1/(1-AM30)-1/V31 -> 0.8418514329 | AP30: =+AP29+1 -> 3 | AQ30: =+INDEX($AK$28:$AK$82,MATCH(AQ$25,$N$28:$N$82,0)) -> 33746.34702 | AR30: 7 | AS30: =+$AD30 -> 7.013335214 | AT30: =+AS30-AR30 -> 0.01333521432 | AU30: 0.6346091077 | AV30: 0.04119906826 | AW30: 0.8824969026 | AX30: 0.07855815138 | AY30: 33746.34702 | AZ30: =+AQ30*(1+AX30)/AY30 -> 1.078558151 | BA30: =+INDEX($AK$28:$AK$82,MATCH(BA$25,$N$28:$N$82,0)) -> -2297.498035 | BB30: =+INDEX($AC$28:$AC$82,MATCH(BA$25,$N$28:$N$82,0)) -> 7.005 | BC30: =+$AD30 -> 7.013335214 | BD30: =+BC30-BB30 -> 0.008335214322 | BE30: =1/(0.1+BB30^0.2) -> 0.6345242381 | BF30: =+(BD30/($T$20+BD30))^0.3 -> 0.03578191713 | BG30: =+SQRT(EXP($T$15*(1-SQRT(28/BB30)))) -> 0.8825756583 | BH30: =+$T$16*$T$17*BE30*BF30*BG30 -> 0.06822572157 | BI30: =+INDEX($AJ$28:$AJ$82,MATCH(BA$25,$N$28:$N$82,0)) -> 33749.35861 | BJ30: =+BA30*(1+BH30)/BI30 -> -0.07271979666
D31: 16 | E31: 7.421696503 | F31: 0.2213578501 | G31: 27062.02591 | H31: 0.9044061762 | I31: 0.4216965034 | J31: 6.017520357 | N31: 4 | O31: =MIN(30000,$O$28+(O30-$O$28)*10^(1/8)) -> 7.013335214 | P31: 0.7791712519 | Q31: 43.83876148 | R31: 0.8827067757 | S31: 33754.37249 | T31: =+O31-Input!$F$11 -> 0.01333521432 | U31: 0.04119906826 | V31: 0.07855815138 | X31: =MIN(30000,$X$28+(X30-$X$28)*10^(1/8)) -> 3.013335214 | Y31: =+X31-Input!$F$12 -> 0.01333521432 | Z31: =+SQRT(Y31/(350*(Input!$F$10/$Q$4)^2+Y31)) -> 0.003197501119 | AA31: -1.070250757 | AB31: 4 | AC31: 7.015559004 | AD31: 7.017782794 | AE31: 0.002223789889 | AF31: 0.634345244 | AG31: 0.02407233074 | AH31: 0.8827417209 | AI31: 0.04589462793 | AJ31: 33755.70879 | AK31: -204.5034576 | AL31: =+AL30+AK31 -> 31055.24253 | AM31: 0.9202549392 | AN31: 0.8635392765 | AP31: 4 | AQ31: 33746.34702 | AR31: 7 | AS31: 7.017782794 | AT31: 0.0177827941 | AU31: 0.6346091077 | AV31: 0.04491447678 | AW31: 0.8824969026 | AX31: 0.08564267142 | AY31: 33746.34702 | AZ31: 1.085642671 | BA31: -2297.498035 | BB31: 7.005 | BC31: 7.017782794 | BD31: 0.0127827941 | BE31: 0.6345242381 | BF31: 0.04067946782 | BG31: 0.8825756583 | BH31: 0.07756392803 | BI31: 33749.35861 | BJ31: -0.07335549796 | BK31: =+INDEX($AK$28:$AK$82,MATCH(BK$25,$N$28:$N$82,0)) -> -189.1030035 | BL31: =+INDEX($AC$28:$AC$82,MATCH(BK$25,$N$28:$N$82,0)) -> 7.011667607 | BM31: =+$AD31 -> 7.017782794 | BN31: =+BM31-BL31 -> 0.00611518694 | BO31: =1/(0.1+BL31^0.2) -> 0.6344111734 | BP31: =+(BN31/($T$20+BN31))^0.3 -> 0.03260708829 | BQ31: =+SQRT(EXP($T$15*(1-SQRT(28/BL31)))) -> 0.8826805605 | BR31: =+$T$16*$T$17*BO31*BP31*BQ31 -> 0.0621685553 | BS31: =+INDEX($AJ$28:$AJ$82,MATCH(BK$25,$N$28:$N$82,0)) -> 33753.37003 | BT31: =+BK31*(1+BR31)/BS31 -> -0.005950791397
D32: 17 | E32: 7.562341325 | F32: 0.2413024706 | G32: 26573.70535 | H32: 0.9031298334 | I32: 0.5623413252 | J32: 6.948549592 | N32: 5 | O32: 7.017782794 | P32: 0.7792946154 | Q32: 43.84570232 | R32: 0.8827766509 | S32: 33757.04449 | T32: =+O32-Input!$F$11 -> 0.0177827941 | U32: 0.04491447678 | V32: 0.08564267142 | X32: =MIN(30000,$X$28+(X31-$X$28)*10^(1/8)) -> 3.017782794 | Y32: =+X32-Input!$F$12 -> 0.0177827941 | Z32: =+SQRT(Y32/(350*(Input!$F$10/$Q$4)^2+Y32)) -> 0.003692410393 | AA32: -1.235904186 | AB32: 5 | AC32: 7.020748266 | AD32: 7.023713737 | AE32: 0.002965471478 | AF32: 0.6342573927 | AG32: 0.02624327109 | AH32: 0.8828232071 | AI32: 0.05003128024 | AJ32: 33758.82479 | AK32: -220.9563824 | AL32: 30834.28615 | AM32: 0.9137073747 | AN32: 0.8779400843 | AP32: 5 | AQ32: 33746.34702 | AR32: 7 | AS32: 7.023713737 | AT32: 0.02371373706 | AU32: 0.6346091077 | AV32: 0.04896490828 | AW32: 0.8824969026 | AX32: 0.09336601139 | AY32: 33746.34702 | AZ32: 1.093366011 | BA32: -2297.498035 | BB32: 7.005 | BC32: 7.023713737 | BD32: 0.01871373706 | BE32: 0.6345242381 | BF32: 0.04560729157 | BG32: 0.8825756583 | BH32: 0.08695985642 | BI32: 33749.35861 | BJ32: -0.07399512869 | BK32: -189.1030035 | BL32: 7.011667607 | BM32: 7.023713737 | BN32: 0.0120461299 | BO32: 0.6344111734 | BP32: 0.03996151652 | BQ32: 0.8826805605 | BR32: 0.07619048126 | BS32: 33753.37003 | BT32: -0.006029349133 | BU32: =+INDEX($AK$28:$AK$82,MATCH(BU$25,$N$28:$N$82,0)) -> -204.5034576 | BV32: =+INDEX($AC$28:$AC$82,MATCH(BU$25,$N$28:$N$82,0)) -> 7.015559004 | BW32: 7.023713737 | BX32: =+BW32-BV32 -> 0.008154732846 | BY32: =1/(0.1+BV32^0.2) -> 0.634345244 | BZ32: =+(BX32/($T$20+BX32))^0.3 -> 0.0355477026 | CA32: =+SQRT(EXP($T$15*(1-SQRT(28/BV32)))) -> 0.8827417209 | CB32: =+$T$16*$T$17*BY32*BZ32*CA32 -> 0.06777277207 | CC32: =+INDEX($AJ$28:$AJ$82,MATCH(BU$25,$N$28:$N$82,0)) -> 33755.70879 | CD32: =+BU32*(1+CB32)/CC32 -> -0.006468927232
D33: 18 | E33: 7.749894209 | F33: 0.2630374359 | G33: 26057.64759 | H33: 0.9013659075 | I33: 0.7498942093 | J33: 8.023483282 | N33: 6 | O33: 7.023713737 | P33: 0.7794589712 | Q33: 43.85494953 | R33: 0.8828697363 | S33: 33760.60404 | T33: =+O33-Input!$F$11 -> 0.02371373706 | U33: 0.04896490828 | V33: 0.09336601139 | X33: 3.023713737 | Y33: =+X33-Input!$F$12 -> 0.02371373706 | Z33: =+SQRT(Y33/(350*(Input!$F$10/$Q$4)^2+Y33)) -> 0.004263919307 | AA33: -1.427196644 | AB33: 6 | AC33: 7.027668257 | AD33: 7.031622777 | AE33: 0.003954519773 | AF33: 0.6341403596 | AG33: 0.0286099918 | AH33: 0.8829317419 | AI33: 0.05453993657 | AJ33: 33762.97512 | AK33: -238.2345017 | AL33: 30596.05164 | AM33: 0.9066478106 | AN33: 0.8875626602 | AP33: 6 | AQ33: 33746.34702 | AR33: 7 | AS33: 7.031622777 | AT33: 0.0316227766 | AU33: 0.6346091077 | AV33: 0.05338055428 | AW33: 0.8824969026 | AX33: 0.1017857403 | AY33: 33746.34702 | AZ33: 1.10178574 | BA33: -2297.498035 | BB33: 7.005 | BC33: 7.031622777 | BD33: 0.0266227766 | BE33: 0.6345242381 | BF33: 0.05069443221 | BG33: 0.8825756583 | BH33: 0.09665955585 | BI33: 33749.35861 | BJ33: -0.07465543873 | BK33: -189.1030035 | BL33: 7.011667607 | BM33: 7.031622777 | BN33: 0.01995516944 | BO33: 0.6344111734 | BP33: 0.04649459383 | BQ33: 0.8826805605 | BR33: 0.08864642258 | BS33: 33753.37003 | BT33: -0.006099133451 | BU33: -204.5034576 | BV33: 7.015559004 | BW33: 7.031622777 | BX33: 0.01606377239 | BY33: 0.634345244 | BZ33: 0.0435653305 | CA33: 0.8827417209 | CB33: 0.08305862258 | CC33: 33755.70879 | CD33: -0.006561534065 | CE33: =+INDEX($AK$28:$AK$82,MATCH(CE$25,$N$28:$N$82,0)) -> -220.9563824 | CF33: =+INDEX($AC$28:$AC$82,MATCH(CE$25,$N$28:$N$82,0)) -> 7.020748266 | CG33: 7.031622777 | CH33: =+CG33-CF33 -> 0.01087451102 | CI33: =1/(0.1+CF33^0.2) -> 0.6342573927 | CJ33: =+(CH33/($T$20+CH33))^0.3 -> 0.03875349685 | CK33: =+SQRT(EXP($T$15*(1-SQRT(28/CF33)))) -> 0.8828232071 | CL33: =+$T$16*$T$17*CI33*CJ33*CK33 -> 0.07388130292 | CM33: =+INDEX($AJ$28:$AJ$82,MATCH(CE$25,$N$28:$N$82,0)) -> 33758.82479 | CN33: =+CE33*(1+CL33)/CM33 -> -0.007028708177
D34: 19 | E34: 8 | F34: 0.2867204278 | G34: 25513.16715 | H34: 0.8990445993 | I34: 1 | J34: 9.26448624 | N34: 7 | O34: 7.031622777 | P34: 0.7796778735 | Q34: 43.86726569 | R34: 0.8829936996 | S34: 33765.34435 | T34: =+O34-Input!$F$11 -> 0.0316227766 | U34: 0.05338055428 | V34: 0.1017857403 | X34: 3.031622777 | Y34: =+X34-Input!$F$12 -> 0.0316227766 | Z34: =+SQRT(Y34/(350*(Input!$F$10/$Q$4)^2+Y34)) -> 0.004923882271 | AA34: -1.648095976 | AB34: 7 | AC34: 7.036896213 | AD34: 7.04216965 | AE34: 0.005273436871 | AF34: 0.6339845039 | AG34: 0.03119014704 | AH34: 0.8830762469 | AI34: 0.05945366594 | AJ34: 33768.50093 | AK34: -256.3844479 | AL34: 30339.6672 | AM34: 0.899050412 | AN34: 0.8940513519 | AP34: 7 | AQ34: 33746.34702 | AR34: 7 | AS34: 7.04216965 | AT34: 0.04216965034 | AU34: 0.6346091077 | AV34: 0.058194319 | AW34: 0.8824969026 | AX34: 0.1109645998 | AY34: 33746.34702 | AZ34: 1.1109646 | BA34: -2297.498035 | BB34: 7.005 | BC34: 7.04216965 | BD34: 0.03716965034 | BE34: 0.6345242381 | BF34: 0.05603228235 | BG34: 0.8825756583 | BH34: 0.1068372855 | BI34: 33749.35861 | BJ34: -0.07534829083 | BK34: -189.1030035 | BL34: 7.011667607 | BM34: 7.04216965 | BN34: 0.03050204318 | BO34: 0.6344111734 | BP34: 0.0528058482 | BQ34: 0.8826805605 | BR34: 0.1006794371 | BS34: 33753.37003 | BT34: -0.006166548325 | BU34: -204.5034576 | BV34: 7.015559004 | BW34: 7.04216965 | BX34: 0.02661064613 | BY34: 0.634345244 | BZ34: 0.05068750188 | CA34: 0.8827417209 | CB34: 0.09663725811 | CC34: 33755.70879 | CD34: -0.006643798014 | CE34: -220.9563824 | CF34: 7.020748266 | CG34: 7.04216965 | CH34: 0.02142138476 | CI34: 0.6342573927 | CJ34: 0.04749410946 | CK34: 0.8828232071 | CL34: 0.0905447759 | CM34: 33758.82479 | CN34: -0.007137773014 | CO34: =+INDEX($AK$28:$AK$82,MATCH(CO$25,$N$28:$N$82,0)) -> -238.2345017 | CP34: =+INDEX($AC$28:$AC$82,MATCH(CO$25,$N$28:$N$82,0)) -> 7.027668257 | CQ34: 7.04216965 | CR34: =+CQ34-CP34 -> 0.01450139351 | CS34: =1/(0.1+CP34^0.2) -> 0.6341403596 | CT34: =+(CR34/($T$20+CR34))^0.3 -> 0.04224837803 | CU34: =+SQRT(EXP($T$15*(1-SQRT(28/CP34)))) -> 0.8829317419 | CV34: =+$T$16*$T$17*CS34*CT34*CU34 -> 0.08053913032 | CW34: =+INDEX($AJ$28:$AJ$82,MATCH(CO$25,$N$28:$N$82,0)) -> 33762.97512 | CX34: =+CO34*(1+CV34)/CW34 -> -0.007624378491
D35: 20 | E35: 8.333521432 | F35: 0.3125216422 | G35: 24939.60338 | H35: 0.8960885845 | I35: 1.333521432 | J35: 10.69709526 | N35: 8 | O35: 7.04216965 | P35: 0.7799693057 | Q35: 43.88366264 | R35: 0.8831587092 | S35: 33771.65426 | T35: =+O35-Input!$F$11 -> 0.04216965034 | U35: 0.058194319 | V35: 0.1109645998 | X35: 3.04216965 | Y35: =+X35-Input!$F$12 -> 0.04216965034 | Z35: =+SQRT(Y35/(350*(Input!$F$10/$Q$4)^2+Y35)) -> 0.005685987553 | AA35: -1.903183848 | AB35: 8 | AC35: 7.049201891 | AD35: 7.056234133 | AE35: 0.007032241088 | AF35: 0.6337770402 | AG35: 0.03400298212 | AH35: 0.8832685425 | AI35: 0.06480830198 | AJ35: 33775.85424 | AK35: -275.4496978 | AL35: 30064.2175 | AM35: 0.890888056 | AN35: 0.8984528391 | AP35: 8 | AQ35: 33746.34702 | AR35: 7 | AS35: 7.056234133 | AT35: 0.05623413252 | AU35: 0.6346091077 | AV35: 0.06344205932 | AW35: 0.8824969026 | AX35: 0.1209709615 | AY35: 33746.34702 | AZ35: 1.120970961 | BA35: -2297.498035 | BB35: 7.005 | BC35: 7.056234133 | BD35: 0.05123413252 | BE35: 0.6345242381 | BF35: 0.06169447426 | BG35: 0.8825756583 | BH35: 0.1176334406 | BI35: 33749.35861 | BJ35: -0.07608324243 | BK35: -189.1030035 | BL35: 7.011667607 | BM35: 7.056234133 | BN35: 0.04456652536 | BO35: 0.6344111734 | BP35: 0.05916742343 | BQ35: 0.8826805605 | BR35: 0.1128083932 | BS35: 33753.37003 | BT35: -0.00623450071 | BU35: -204.5034576 | BV35: 7.015559004 | BW35: 7.056234133 | BX35: 0.04067512831 | BY35: 0.634345244 | BZ35: 0.05756779862 | CA35: 0.8827417209 | CB35: 0.1097547523 | CC35: 33755.70879 | CD35: -0.006723268214 | CE35: -220.9563824 | CF35: 7.020748266 | CG35: 7.056234133 | CH35: 0.03548586694 | CI35: 0.6342573927 | CJ35: 0.05525846204 | CK35: 0.8828232071 | CL35: 0.1053470655 | CM35: 33758.82479 | CN35: -0.007234656136 | CO35: -238.2345017 | CP35: 7.027668257 | CQ35: 7.056234133 | CR35: 0.02856587569 | CS35: 0.6341403596 | CT35: 0.05177714062 | CU35: 0.8829317419 | CV35: 0.09870404664 | CW35: 33762.97512 | CX35: -0.007752551727 | CY35: =+INDEX($AK$28:$AK$82,MATCH(CY$25,$N$28:$N$82,0)) -> -256.3844479 | CZ35: =+INDEX($AC$28:$AC$82,MATCH(CY$25,$N$28:$N$82,0)) -> 7.036896213 | DA35: 7.056234133 | DB35: =+DA35-CZ35 -> 0.01933791905 | DC35: =1/(0.1+CZ35^0.2) -> 0.6339845039 | DD35: =+(DB35/($T$20+DB35))^0.3 -> 0.04605840552 | DE35: =+SQRT(EXP($T$15*(1-SQRT(28/CZ35)))) -> 0.8830762469 | DF35: =+$T$16*$T$17*DC35*DD35*DE35 -> 0.08779506721 | DG35: =+INDEX($AJ$28:$AJ$82,MATCH(CY$25,$N$28:$N$82,0)) -> 33768.50093 | DH35: =+CY35*(1+DF35)/DG35 -> -0.008258990775
D36: 21 | E36: 8.77827941 | F36: 0.3406241525 | G36: 24336.32042 | H36: 0.8924200428 | I36: 1.77827941 | J36: 12.35070945 | N36: 9 | O36: 7.056234133 | P36: 0.7803570885 | Q36: 43.90548059 | R36: 0.8833782251 | S36: 33780.04846 | T36: =+O36-Input!$F$11 -> 0.05623413252 | U36: 0.06344205932 | V36: 0.1209709615 | X36: 3.056234133 | Y36: =+X36-Input!$F$12 -> 0.05623413252 | Z36: =+SQRT(Y36/(350*(Input!$F$10/$Q$4)^2+Y36)) -> 0.006566040591 | AA36: -2.197750572 | AB36: 9 | AC36: 7.065611777 | AD36: 7.074989421 | AE36: 0.009377644207 | AF36: 0.6335010438 | AG36: 0.03706947656 | AH36: 0.8835242555 | AI36: 0.07064259357 | AJ36: 33785.63261 | AK36: -295.4566903 | AL36: 29768.76081 | AM36: 0.8821328361 | AN36: 0.901437252 | AP36: 9 | AQ36: 33746.34702 | AR36: 7 | AS36: 7.074989421 | AT36: 0.07498942093 | AU36: 0.6346091077 | AV36: 0.06916284449 | AW36: 0.8824969026 | AX36: 0.1318793224 | AY36: 33746.34702 | AZ36: 1.131879322 | BA36: -2297.498035 | BB36: 7.005 | BC36: 7.074989421 | BD36: 0.06998942093 | BE36: 0.6345242381 | BF36: 0.06774601379 | BG36: 0.8825756583 | BH36: 0.1291719686 | BI36: 33749.35861 | BJ36: -0.07686873129 | BK36: -189.1030035 | BL36: 7.011667607 | BM36: 7.074989421 | BN36: 0.06332181377 | BO36: 0.6344111734 | BP36: 0.06574180187 | BQ36: 0.8826805605 | BR36: 0.1253430791 | BS36: 33753.37003 | BT36: -0.006304726195 | BU36: -204.5034576 | BV36: 7.015559004 | BW36: 7.074989421 | BX36: 0.05943041672 | BY36: 0.634345244 | BZ36: 0.06450288657 | CA36: 0.8827417209 | CB36: 0.1229767076 | CC36: 33755.70879 | CD36: -0.006803371274 | CE36: -220.9563824 | CF36: 7.020748266 | CG36: 7.074989421 | CH36: 0.05424115535 | CI36: 0.6342573927 | CJ36: 0.06275905874 | CK36: 0.8828232071 | CL36: 0.1196465198 | CM36: 33758.82479 | CN36: -0.007328248129 | CO36: -238.2345017 | CP36: 7.027668257 | CQ36: 7.074989421 | CR36: 0.0473211641 | CS36: 0.6341403596 | CT36: 0.06024153101 | CU36: 0.8829317419 | CV36: 0.1148399239 | CW36: 33762.97512 | CX36: -0.007866407887 | CY36: -256.3844479 | CZ36: 7.036896213 | DA36: 7.074989421 | DB36: 0.03809320746 | DC36: 0.6339845039 | DD36: 0.05644634357 | DE36: 0.8830762469 | DF36: 0.1075962242 | DG36: 33768.50093 | DH36: -0.008409329362 | DI36: =+INDEX($AK$28:$AK$82,MATCH(DI$25,$N$28:$N$82,0)) -> -275.4496978 | DJ36: =+INDEX($AC$28:$AC$82,MATCH(DI$25,$N$28:$N$82,0)) -> 7.049201891 | DK36: 7.074989421 | DL36: =+DK36-DJ36 -> 0.0257875295 | DM36: =1/(0.1+DJ36^0.2) -> 0.6337770402 | DN36: =+(DL36/($T$20+DL36))^0.3 -> 0.05021198348 | DO36: =+SQRT(EXP($T$15*(1-SQRT(28/DJ36)))) -> 0.8832685425 | DP36: =+$T$16*$T$17*DM36*DN36*DO36 -> 0.09570199982 | DQ36: =+INDEX($AJ$28:$AJ$82,MATCH(DI$25,$N$28:$N$82,0)) -> 33775.85424 | DR36: =+DI36*(1+DP36)/DQ36 -> -0.008935696566
D37: 22 | E37: 9.371373706 | F37: 0.3712239649 | G37: 23702.72068 | H37: 0.8879693247 | I37: 2.371373706 | J37: 14.25913955 | N37: 10 | O37: 7.074989421 | P37: 0.7808727034 | Q37: 43.93449079 | R37: 0.8836700195 | S37: 33791.20657 | T37: =+O37-Input!$F$11 -> 0.07498942093 | U37: 0.06916284449 | V37: 0.1318793224 | X37: 3.074989421 | Y37: =+X37-Input!$F$12 -> 0.07498942093 | Z37: =+SQRT(Y37/(350*(Input!$F$10/$Q$4)^2+Y37)) -> 0.007582290872 | AA37: -2.537904521 | AB37: 10 | AC37: 7.08749471 | AD37: 7.1 | AE37: 0.01250528953 | AF37: 0.633134166 | AG37: 0.04041249981 | AH37: 0.883863986 | AI37: 0.07699832442 | AJ37: 33798.62377 | AK37: -316.4163428 | AL37: 29452.34447 | AM37: 0.8727565222 | AN37: 0.9034355433 | AP37: 10 | AQ37: 33746.34702 | AR37: 7 | AS37: 7.1 | AT37: 0.1 | AU37: 0.6346091077 | AV37: 0.075399236 | AW37: 0.8824969026 | AX37: 0.1437708387 | AY37: 33746.34702 | AZ37: 1.143770839 | BA37: -2297.498035 | BB37: 7.005 | BC37: 7.1 | BD37: 0.095 | BE37: 0.6345242381 | BF37: 0.07424807641 | BG37: 0.8825756583 | BH37: 0.1415695132 | BI37: 33749.35861 | BJ37: -0.07771269798 | BK37: -189.1030035 | BL37: 7.011667607 | BM37: 7.1 | BN37: 0.08833239284 | BO37: 0.6344111734 | BP37: 0.07264499475 | BQ37: 0.8826805605 | BR37: 0.1385046814 | BS37: 33753.37003 | BT37: -0.006378463973 | BU37: -204.5034576 | BV37: 7.015559004 | BW37: 7.1 | BX37: 0.08444099579 | BY37: 0.634345244 | BZ37: 0.07166987057 | CA37: 0.8827417209 | CB37: 0.1366407798 | CC37: 33755.70879 | CD37: -0.006886152827 | CE37: -220.9563824 | CF37: 7.020748266 | CG37: 7.1 | CH37: 0.07925173442 | CI37: 0.6342573927 | CJ37: 0.07031928939 | CK37: 0.8828232071 | CL37: 0.1340596628 | CM37: 33758.82479 | CN37: -0.007422584231 | CO37: -238.2345017 | CP37: 7.027668257 | CQ37: 7.1 | CR37: 0.07233174317 | CS37: 0.6341403596 | CT37: 0.06841828014 | CU37: 0.8829317419 | CV37: 0.1304274634 | CW37: 33762.97512 | CX37: -0.007976394927 | CY37: -256.3844479 | CZ37: 7.036896213 | DA37: 7.1 | DB37: 0.06310378653 | DC37: 0.6339845039 | DD37: 0.06567381976 | DE37: 0.8830762469 | DF37: 0.1251853458 | DG37: 33768.50093 | DH37: -0.008542873259 | DI37: -275.4496978 | DJ37: 7.049201891 | DK37: 7.1 | DL37: 0.05079810857 | DM37: 0.6337770402 | DN37: 0.06153650363 | DO37: 0.8832685425 | DP37: 0.117286075 | DQ37: 33775.85424 | DR37: -0.009111719559 | DS37: =+INDEX($AK$28:$AK$82,MATCH(DS$25,$N$28:$N$82,0)) -> -295.4566903 | DT37: =+INDEX($AC$28:$AC$82,MATCH(DS$25,$N$28:$N$82,0)) -> 7.065611777 | DU37: 7.1 | DV37: =+DU37-DT37 -> 0.03438822327 | DW37: =1/(0.1+DT37^0.2) -> 0.6335010438 | DX37: =+(DV37/($T$20+DV37))^0.3 -> 0.05474006992 | DY37: =+SQRT(EXP($T$15*(1-SQRT(28/DT37)))) -> 0.8835242555 | DZ37: =+$T$16*$T$17*DW37*DX37*DY37 -> 0.1043171059 | EA37: =+INDEX($AJ$28:$AJ$82,MATCH(DS$25,$N$28:$N$82,0)) -> 33785.63261 | EB37: =+DS37*(1+DZ37)/EA37 -> -0.009657296667
D38: 23 | E38: 10.16227766 | F38: 0.4045295939 | G38: 23038.28101 | H38: 0.8826847487 | I38: 3.16227766 | J38: 16.46121636 | N38: 11 | O38: 7.1 | P38: 0.7815576317 | Q38: 43.97302713 | R38: 0.8840574821 | S38: 33806.023 | T38: =+O38-Input!$F$11 -> 0.1 | U38: 0.075399236 | V38: 0.1437708387 | X38: 3.1 | Y38: =+X38-Input!$F$12 -> 0.1 | Z38: =+SQRT(Y38/(350*(Input!$F$10/$Q$4)^2+Y38)) -> 0.008755808958 | AA38: -2.930698322 | AB38: 11 | AC38: 7.116676072 | AD38: 7.133352143 | AE38: 0.01667607161 | AF38: 0.6326469916 | AG38: 0.04405698075 | AH38: 0.8843147851 | AI38: 0.08392037872 | AJ38: 33815.86216 | AK38: -338.3260835 | AL38: 29114.01838 | AM38: 0.8627309605 | AN38: 0.9047232281 | AP38: 11 | AQ38: 33746.34702 | AR38: 7 | AS38: 7.133352143 | AT38: 0.1333521432 | AU38: 0.6346091077 | AV38: 0.08219758852 | AW38: 0.8824969026 | AX38: 0.156733899 | AY38: 33746.34702 | AZ38: 1.156733899 | BA38: -2297.498035 | BB38: 7.005 | BC38: 7.133352143 | BD38: 0.1283521432 | BE38: 0.6345242381 | BF38: 0.08126081873 | BG38: 0.8825756583 | BH38: 0.1549407756 | BI38: 33749.35861 | BJ38: -0.07862295081 | BK38: -189.1030035 | BL38: 7.011667607 | BM38: 7.133352143 | BN38: 0.1216845361 | BO38: 0.6344111734 | BP38: 0.07997098522 | BQ38: 0.8826805605 | BR38: 0.152472388 | BS38: 33753.37003 | BT38: -0.006456717945 | BU38: -204.5034576 | BV38: 7.015559004 | BW38: 7.133352143 | BX38: 0.117793139 | BY38: 0.634345244 | BZ38: 0.07919517921 | CA38: 0.8827417209 | CB38: 0.1509880087 | CC38: 33755.70879 | CD38: -0.006973073175 | CE38: -220.9563824 | CF38: 7.020748266 | CG38: 7.133352143 | CH38: 0.1126038776 | CI38: 0.6342573927 | CJ38: 0.07813218604 | CK38: 0.8828232071 | CL38: 0.1489544989 | CM38: 33758.82479 | CN38: -0.007520073084 | CO38: -238.2345017 | CP38: 7.027668257 | CQ38: 7.133352143 | CR38: 0.1056838864 | CS38: 0.6341403596 | CT38: 0.07665989798 | CU38: 0.8829317419 | CV38: 0.1461386638 | CW38: 33762.97512 | CX38: -0.00808725453 | CY38: -256.3844479 | CZ38: 7.036896213 | DA38: 7.133352143 | DB38: 0.09645592974 | DC38: 0.6339845039 | DD38: 0.07458757044 | DE38: 0.8830762469 | DF38: 0.1421764537 | DG38: 33768.50093 | DH38: -0.008671876789 | DI38: -275.4496978 | DJ38: 7.049201891 | DK38: 7.133352143 | DL38: 0.08415025179 | DM38: 0.6337770402 | DN38: 0.0715957612 | DO38: 0.8832685425 | DP38: 0.1364586111 | DQ38: 33775.85424 | DR38: -0.009268075909 | DS38: -295.4566903 | DT38: 7.065611777 | DU38: 7.133352143 | DV38: 0.06774036649 | DW38: 0.6335010438 | DX38: 0.06708552446 | DY38: 0.8835242555 | DZ38: 0.1278436028 | EA38: 33785.63261 | EB38: -0.009863036811 | EC38: =+INDEX($AK$28:$AK$82,MATCH(EC$25,$N$28:$N$82,0)) -> -316.4163428 | ED38: =+INDEX($AC$28:$AC$82,MATCH(EC$25,$N$28:$N$82,0)) -> 7.08749471 | EE38: =+$AD38 -> 7.133352143 | EF38: =+EE38-ED38 -> 0.04585743275 | EG38: =1/(0.1+ED38^0.2) -> 0.633134166 | EH38: =+(EF38/($T$20+EF38))^0.3 -> 0.05967640347 | EI38: =+SQRT(EXP($T$15*(1-SQRT(28/ED38)))) -> 0.883863986 | EJ38: =+$T$16*$T$17*EG38*EH38*EI38 -> 0.1137020253 | EK38: =+INDEX($AJ$28:$AJ$82,MATCH(EC$25,$N$28:$N$82,0)) -> 33798.62377 | EL38: =+EC38*(1+EJ38)/EK38 -> -0.01042626836
D39: 24 | E39: 11.21696503 | F39: 0.4407609051 | G39: 22342.61956 | H39: 0.8765422376 | I39: 4.216965034 | J39: 19.00145365 | N39: 12 | O39: 7.133352143 | P39: 0.7824663135 | Q39: 44.02415259 | R39: 0.8845712597 | S39: 33825.66966 | T39: =+O39-Input!$F$11 -> 0.1333521432 | U39: 0.08219758852 | V39: 0.156733899 | X39: 3.133352143 | Y39: =+X39-Input!$F$12 -> 0.1333521432 | Z39: =+SQRT(Y39/(350*(Input!$F$10/$Q$4)^2+Y39)) -> 0.01011092118 | AA39: -3.384274359 | AB39: 12 | AC39: 7.155590042 | AD39: 7.177827941 | AE39: 0.02223789889 | AF39: 0.6320009728 | AG39: 0.04803009205 | AH39: 0.8849119932 | AI39: 0.09145671903 | AJ39: 33838.69917 | AK39: -361.1714439 | AL39: 28752.84694 | AM39: 0.852028426 | AN39: 0.9054721161 | AP39: 12 | AQ39: 33746.34702 | AR39: 7 | AS39: 7.177827941 | AT39: 0.177827941 | AU39: 0.6346091077 | AV39: 0.08960837138 | AW39: 0.8824969026 | AX39: 0.170864738 | AY39: 33746.34702 | AZ39: 1.170864738 | BA39: -2297.498035 | BB39: 7.005 | BC39: 7.177827941 | BD39: 0.172827941 | BE39: 0.6345242381 | BF39: 0.08884519614 | BG39: 0.8825756583 | BH39: 0.1694019801 | BI39: 33749.35861 | BJ39: -0.07960740178 | BK39: -189.1030035 | BL39: 7.011667607 | BM39: 7.177827941 | BN39: 0.1661603338 | BO39: 0.6344111734 | BP39: 0.08780303812 | BQ39: 0.8826805605 | BR39: 0.1674049514 | BS39: 33753.37003 | BT39: -0.00654037752 | BU39: -204.5034576 | BV39: 7.015559004 | BW39: 7.177827941 | BX39: 0.1622689368 | BY39: 0.634345244 | BZ39: 0.08718120588 | CA39: 0.8827417209 | CB39: 0.1662136105 | CC39: 33755.70879 | CD39: -0.007065315 | CE39: -220.9563824 | CF39: 7.020748266 | CG39: 7.177827941 | CH39: 0.1570796754 | CI39: 0.6342573927 | CJ39: 0.08633551369 | CK39: 0.8828232071 | CL39: 0.1645936692 | CM39: 33758.82479 | CN39: -0.007622433711 | CO39: -238.2345017 | CP39: 7.027668257 | CQ39: 7.177827941 | CR39: 0.1501596842 | CS39: 0.6341403596 | CT39: 0.08517675982 | CU39: 0.8829317419 | CV39: 0.1623745687 | CW39: 33762.97512 | CX39: -0.008201816493 | CY39: -256.3844479 | CZ39: 7.036896213 | DA39: 7.177827941 | DB39: 0.1409317275 | DC39: 0.6339845039 | DD39: 0.08357183171 | DE39: 0.8830762469 | DF39: 0.1593019667 | DG39: 33768.50093 | DH39: -0.008801900778 | DI39: -275.4496978 | DJ39: 7.049201891 | DK39: 7.177827941 | DL39: 0.1286260496 | DM39: 0.6337770402 | DN39: 0.08131279154 | DO39: 0.8832685425 | DP39: 0.154978876 | DQ39: 33775.85424 | DR39: -0.00941911284 | DS39: -295.4566903 | DT39: 7.065611777 | DU39: 7.177827941 | DV39: 0.1122161643 | DW39: 0.6335010438 | DX39: 0.0780513985 | DY39: 0.8835242555 | DZ39: 0.1487410596 | EA39: 33785.63261 | EB39: -0.01004578589 | EC39: -316.4163428 | ED39: 7.08749471 | EE39: 7.177827941 | EF39: 0.09033323054 | EG39: 0.633134166 | EH39: 0.07313470075 | EI39: 0.883863986 | EJ39: 0.1393442485 | EK39: 33798.62377 | EL39: -0.01066632602 | EM39: =+INDEX($AK$28:$AK$82,MATCH(EM$25,$N$28:$N$82,0)) -> -338.3260835 | EN39: =+INDEX($AC$28:$AC$82,MATCH(EM$25,$N$28:$N$82,0)) -> 7.116676072 | EO39: 7.177827941 | EP39: =+EO39-EN39 -> 0.0611518694 | EQ39: =1/(0.1+EN39^0.2) -> 0.6326469916 | ER39: =+(EP39/($T$20+EP39))^0.3 -> 0.06505774901 | ES39: =+SQRT(EXP($T$15*(1-SQRT(28/EN39)))) -> 0.8843147851 | ET39: =+$T$16*$T$17*EQ39*ER39*ES39 -> 0.123922948 | EU39: =+INDEX($AJ$28:$AJ$82,MATCH(EM$25,$N$28:$N$82,0)) -> 33815.86216 | EV39: =+EM39*(1+ET39)/EU39 -> -0.01124479534
D40: 25 | E40: 12.62341325 | F40: 0.4801468729 | G40: 21615.59813 | H40: 0.8695529249 | I40: 5.623413252 | J40: 21.93075339 | N40: 13 | O40: 7.177827941 | P40: 0.7836698151 | Q40: 44.09186558 | R40: 0.8852512723 | S40: 33851.67308 | T40: =+O40-Input!$F$11 -> 0.177827941 | U40: 0.08960837138 | V40: 0.170864738 | X40: 3.177827941 | Y40: =+X40-Input!$F$12 -> 0.177827941 | Z40: =+SQRT(Y40/(350*(Input!$F$10/$Q$4)^2+Y40)) -> 0.01167571058 | AA40: -3.908032437 | AB40: 13 | AC40: 7.207482656 | AD40: 7.237137371 | AE40: 0.02965471478 | AF40: 0.6311458854 | AG40: 0.05236145051 | AH40: 0.8857014635 | AI40: 0.09965822707 | AJ40: 33868.88822 | AK40: -384.9275818 | AL40: 28367.91936 | AM40: 0.8406219297 | AN40: 0.9057827682 | AP40: 13 | AQ40: 33746.34702 | AR40: 7 | AS40: 7.237137371 | AT40: 0.2371373706 | AU40: 0.6346091077 | AV40: 0.0976865099 | AW40: 0.8824969026 | AX40: 0.186268087 | AY40: 33746.34702 | AZ40: 1.186268087 | BA40: -2297.498035 | BB40: 7.005 | BC40: 7.237137371 | BD40: 0.2321373706 | BE40: 0.6345242381 | BF40: 0.09706424734 | BG40: 0.8825756583 | BH40: 0.1850733232 | BI40: 33749.35861 | BJ40: -0.08067423331 | BK40: -189.1030035 | BL40: 7.011667607 | BM40: 7.237137371 | BN40: 0.2254697634 | BO40: 0.6344111734 | BP40: 0.09621966455 | BQ40: 0.8826805605 | BR40: 0.1834520606 | BS40: 33753.37003 | BT40: -0.00663028133 | BU40: -204.5034576 | BV40: 7.015559004 | BW40: 7.237137371 | BX40: 0.2215783664 | BY40: 0.634345244 | BZ40: 0.09571862923 | CA40: 0.8827417209 | CB40: 0.1824904668 | CC40: 33755.70879 | CD40: -0.00716392568 | CE40: -220.9563824 | CF40: 7.020748266 | CG40: 7.237137371 | CH40: 0.216389105 | CI40: 0.6342573927 | CJ40: 0.09504080474 | CK40: 0.8828232071 | CL40: 0.1811898036 | CM40: 33758.82479 | CN40: -0.007731057808 | CO40: -238.2345017 | CP40: 7.027668257 | CQ40: 7.237137371 | CR40: 0.2094691137 | CS40: 0.6341403596 | CT40: 0.09411895979 | CU40: 0.8829317419 | CV40: 0.1794213061 | CW40: 33762.97512 | CX40: -0.008322099761 | CY40: -256.3844479 | CZ40: 7.036896213 | DA40: 7.237137371 | DB40: 0.2002411571 | DC40: 0.6339845039 | DD40: 0.0928558566 | DE40: 0.8830762469 | DF40: 0.1769988796 | DG40: 33768.50093 | DH40: -0.008936263071 | DI40: -275.4496978 | DJ40: 7.049201891 | DK40: 7.237137371 | DL40: 0.1879354791 | DM40: 0.6337770402 | DN40: 0.09110638873 | DO40: 0.8832685425 | DP40: 0.1736450742 | DQ40: 33775.85424 | DR40: -0.00957133989 | DS40: -295.4566903 | DT40: 7.065611777 | DU40: 7.237137371 | DV40: 0.1715255938 | DW40: 0.6335010438 | DX40: 0.08864387862 | DY40: 0.8835242555 | DZ40: 0.1689269467 | EA40: 33785.63261 | EB40: -0.01022231227 | EC40: -316.4163428 | ED40: 7.08749471 | EE40: 7.237137371 | EF40: 0.1496426601 | EG40: 0.633134166 | EH40: 0.08508869427 | EI40: 0.883863986 | EJ40: 0.1621203073 | EK40: 33798.62377 | EL40: -0.01087955119 | EM40: -338.3260835 | EN40: 7.116676072 | EO40: 7.237137371 | EP40: 0.120461299 | EQ40: 0.6326469916 | ER40: 0.07972901164 | ES40: 0.8843147851 | ET40: 0.1518689828 | EU40: 33815.86216 | EV40: -0.01152439408 | EW40: =+INDEX($AK$28:$AK$82,MATCH(EW$25,$N$28:$N$82,0)) -> -361.1714439 | EX40: =+INDEX($AC$28:$AC$82,MATCH(EW$25,$N$28:$N$82,0)) -> 7.155590042 | EY40: 7.237137371 | EZ40: =+EY40-EX40 -> 0.08154732846 | FA40: =1/(0.1+EX40^0.2) -> 0.6320009728 | FB40: =+(EZ40/($T$20+EZ40))^0.3 -> 0.07092416319 | FC40: =+SQRT(EXP($T$15*(1-SQRT(28/EX40)))) -> 0.8849119932 | FD40: =+$T$16*$T$17*FA40*FB40*FC40 -> 0.1350505691 | FE40: =+INDEX($AJ$28:$AJ$82,MATCH(EW$25,$N$28:$N$82,0)) -> 33838.69917 | FF40: =+EW40*(1+FD40)/FE40 -> -0.01211476395
D41: 26 | E41: 14.49894209 | F41: 0.5229217622 | G41: 20857.45893 | H41: 0.8617669092 | I41: 7.498942093 | J41: 25.30712809 | N41: 14 | O41: 7.237137371 | P41: 0.7852602481 | Q41: 44.18134862 | R41: 0.8861491117 | S41: 33886.00612 | T41: =+O41-Input!$F$11 -> 0.2371373706 | U41: 0.0976865099 | V41: 0.186268087 | X41: 3.237137371 | Y41: =+X41-Input!$F$12 -> 0.2371373706 | Z41: =+SQRT(Y41/(350*(Input!$F$10/$Q$4)^2+Y41)) -> 0.01348259374 | AA41: -4.512822864 | AB41: 14 | AC41: 7.276682568 | AD41: 7.316227766 | AE41: 0.03954519773 | AF41: 0.6300167942 | AG41: 0.05708333459 | AH41: 0.8867421453 | AI41: 0.1085783361 | AJ41: 33908.6835 | AK41: -409.5611293 | AL41: 27958.35823 | AM41: 0.8284854715 | AN41: 0.9057051054 | AP41: 14 | AQ41: 33746.34702 | AR41: 7 | AS41: 7.316227766 | AT41: 0.316227766 | AU41: 0.6346091077 | AV41: 0.1064917439 | AW41: 0.8824969026 | AX41: 0.2030578577 | AY41: 33746.34702 | AZ41: 1.203057858 | BA41: -2297.498035 | BB41: 7.005 | BC41: 7.316227766 | BD41: 0.311227766 | BE41: 0.6345242381 | BF41: 0.1059840763 | BG41: 0.8825756583 | BH41: 0.2020808459 | BI41: 33749.35861 | BJ41: -0.08183202568 | BK41: -189.1030035 | BL41: 7.011667607 | BM41: 7.316227766 | BN41: 0.3045601589 | BO41: 0.6344111734 | BP41: 0.1052981202 | BQ41: 0.8826805605 | BR41: 0.2007610109 | BS41: 33753.37003 | BT41: -0.006727254595 | BU41: -204.5034576 | BV41: 7.015559004 | BW41: 7.316227766 | BX41: 0.3006687618 | BY41: 0.634345244 | BZ41: 0.1048929022 | CA41: 0.8827417209 | CB41: 0.1999814961 | CC41: 33755.70879 | CD41: -0.007269892229 | CE41: -220.9563824 | CF41: 7.020748266 | CG41: 7.316227766 | CH41: 0.2954795004 | CI41: 0.6342573927 | CJ41: 0.104346777 | CK41: 0.8828232071 | CL41: 0.1989311022 | CM41: 33758.82479 | CN41: -0.007847177168 | CO41: -238.2345017 | CP41: 7.027668257 | CQ41: 7.316227766 | CR41: 0.2885595092 | CS41: 0.6341403596 | CT41: 0.1036079503 | CU41: 0.8829317419 | CV41: 0.1975104039 | CW41: 33762.97512 | CX41: -0.008449738015 | CY41: -256.3844479 | CZ41: 7.036896213 | DA41: 7.316227766 | DB41: 0.2793315525 | DC41: 0.6339845039 | DD41: 0.1026031372 | DE41: 0.8830762469 | DF41: 0.1955788357 | DG41: 33768.50093 | DH41: -0.009077329795 | DI41: -275.4496978 | DJ41: 7.049201891 | DK41: 7.316227766 | DL41: 0.2670258746 | DM41: 0.6337770402 | DN41: 0.1012263431 | DO41: 0.8832685425 | DP41: 0.1929332958 | DQ41: 33775.85424 | DR41: -0.009728639682 | DS41: -295.4566903 | DT41: 7.065611777 | DU41: 7.316227766 | DV41: 0.2506159893 | DW41: 0.6335010438 | DX41: 0.09931939079 | DY41: 0.8835242555 | DZ41: 0.1892710663 | EA41: 33785.63261 | EB41: -0.0104002224 | EC41: -316.4163428 | ED41: 7.08749471 | EE41: 7.316227766 | EF41: 0.2287330556 | EG41: 0.633134166 | EH41: 0.09663517901 | EI41: 0.883863986 | EJ41: 0.1841199356 | EK41: 33798.62377 | EL41: -0.01108550756 | EM41: -338.3260835 | EN41: 7.116676072 | EO41: 7.316227766 | EP41: 0.1995516944 | EQ41: 0.6326469916 | ER41: 0.09275986021 | ES41: 0.8843147851 | ET41: 0.176690333 | EU41: 33815.86216 | EV41: -0.0117727305 | EW41: -361.1714439 | EX41: 7.155590042 | EY41: 7.316227766 | EZ41: 0.1606377239 | FA41: 0.6320009728 | FB41: 0.08691743511 | FC41: 0.8849119932 | FD41: 0.1655042308 | FE41: 33838.69917 | FF41: -0.01243980579 | FG41: =+INDEX($AK$28:$AK$82,MATCH(FG$25,$N$28:$N$82,0)) -> -384.9275818 | FH41: =+INDEX($AC$28:$AC$82,MATCH(FG$25,$N$28:$N$82,0)) -> 7.207482656 | FI41: 7.316227766 | FJ41: =+FI41-FH41 -> 0.1087451102 | FK41: =1/(0.1+FH41^0.2) -> 0.6311458854 | FL41: =+(FJ41/($T$20+FJ41))^0.3 -> 0.07731928039 | FM41: =+SQRT(EXP($T$15*(1-SQRT(28/FH41)))) -> 0.8857014635 | FN41: =+$T$16*$T$17*FK41*FL41*FM41 -> 0.1471598347 | FO41: =+INDEX($AJ$28:$AJ$82,MATCH(FG$25,$N$28:$N$82,0)) -> 33868.88822 | FP41: =+FG41*(1+FN41)/FO41 -> -0.01303773121
D42: 27 | E42: 17 | F42: 0.5693190605 | G42: 20068.9901 | H42: 0.8532721915 | I42: 10 | J42: 29.19639591 | N42: 15 | O42: 7.316227766 | P42: 0.787355871 | Q42: 44.29925532 | R42: 0.8873307562 | S42: 33931.19176 | T42: =+O42-Input!$F$11 -> 0.316227766 | U42: 0.1064917439 | V42: 0.2030578577 | X42: 3.316227766 | Y42: =+X42-Input!$F$12 -> 0.316227766 | Z42: =+SQRT(Y42/(350*(Input!$F$10/$Q$4)^2+Y42)) -> 0.01556898441 | AA42: -5.211168576 | AB42: 15 | AC42: 7.368962135 | AD42: 7.421696503 | AE42: 0.05273436871 | AF42: 0.6285306004 | AG42: 0.0622309202 | AH42: 0.8881088964 | AI42: 0.1182723539 | AJ42: 33960.94754 | AK42: -435.0326346 | AL42: 27523.32559 | AM42: 0.8155942204 | AN42: 0.9052516429 | AP42: 15 | AQ42: 33746.34702 | AR42: 7 | AS42: 7.421696503 | AT42: 0.4216965034 | AU42: 0.6346091077 | AV42: 0.1160889993 | AW42: 0.8824969026 | AX42: 0.2213578501 | AY42: 33746.34702 | AZ42: 1.22135785 | BA42: -2297.498035 | BB42: 7.005 | BC42: 7.421696503 | BD42: 0.4166965034 | BE42: 0.6345242381 | BF42: 0.1156746524 | BG42: 0.8825756583 | BH42: 0.2205579595 | BI42: 33749.35861 | BJ42: -0.08308986092 | BK42: -189.1030035 | BL42: 7.011667607 | BM42: 7.421696503 | BN42: 0.4100288963 | BO42: 0.6344111734 | BP42: 0.115116654 | BQ42: 0.8826805605 | BR42: 0.2194809916 | BS42: 33753.37003 | BT42: -0.006832133147 | BU42: -204.5034576 | BV42: 7.015559004 | BW42: 7.421696503 | BX42: 0.4061374992 | BY42: 0.634345244 | BZ42: 0.1147880461 | CA42: 0.8827417209 | CB42: 0.2188468878 | CC42: 33755.70879 | CD42: -0.007384185129 | CE42: -220.9563824 | CF42: 7.020748266 | CG42: 7.421696503 | CH42: 0.4009482379 | CI42: 0.6342573927 | CJ42: 0.1143463886 | CK42: 0.8828232071 | CL42: 0.2179947839 | CM42: 33758.82479 | CN42: -0.007971951717 | CO42: -238.2345017 | CP42: 7.027668257 | CQ42: 7.421696503 | CR42: 0.3940282466 | CS42: 0.6341403596 | CT42: 0.1137511507 | CU42: 0.8829317419 | CV42: 0.2168466383 | CW42: 33762.97512 | CX42: -0.008586176174 | CY42: -256.3844479 | CZ42: 7.036896213 | DA42: 7.421696503 | DB42: 0.38480029 | DC42: 0.6339845039 | DD42: 0.1129458778 | DE42: 0.8830762469 | DF42: 0.2152938388 | DG42: 33768.50093 | DH42: -0.009227014266 | DI42: -275.4496978 | DJ42: 7.049201891 | DK42: 7.421696503 | DL42: 0.372494612 | DM42: 0.6337770402 | DN42: 0.1118506902 | DO42: 0.8832685425 | DP42: 0.2131828697 | DQ42: 33775.85424 | DR42: -0.009893779517 | DS42: -295.4566903 | DT42: 7.065611777 | DU42: 7.421696503 | DV42: 0.3560847267 | DW42: 0.6335010438 | DX42: 0.1103500523 | DY42: 0.8835242555 | DZ42: 0.2102919874 | EA42: 33785.63261 | EB42: -0.01058405119 | EC42: -316.4163428 | ED42: 7.08749471 | EE42: 7.421696503 | EF42: 0.334201793 | EG42: 0.633134166 | EH42: 0.1082715447 | EI42: 0.883863986 | EJ42: 0.2062908151 | EK42: 33798.62377 | EL42: -0.01129306716 | EM42: -338.3260835 | EN42: 7.116676072 | EO42: 7.421696503 | EP42: 0.3050204318 | EQ42: 0.6326469916 | ER42: 0.1053458088 | ES42: 0.8843147851 | ET42: 0.2006642313 | EU42: 33815.86216 | EV42: -0.0120125882 | EW42: -361.1714439 | EX42: 7.155590042 | EY42: 7.421696503 | EZ42: 0.2661064613 | FA42: 0.6320009728 | FB42: 0.1011217057 | FC42: 0.8849119932 | FD42: 0.1925513575 | FE42: 33838.69917 | FF42: -0.01272848857 | FG42: -384.9275818 | FH42: 7.207482656 | FI42: 7.421696503 | FJ42: 0.2142138476 | FK42: 0.6311458854 | FL42: 0.09475328238 | FM42: 0.8857014635 | FN42: 0.1803415306 | FO42: 33868.88822 | FP42: -0.0134148487 | FQ42: =+INDEX($AK$28:$AK$82,MATCH(FQ$25,$N$28:$N$82,0)) -> -409.5611293 | FR42: =+INDEX($AC$28:$AC$82,MATCH(FQ$25,$N$28:$N$82,0)) -> 7.276682568 | FS42: 7.421696503 | FT42: =+FS42-FR42 -> 0.1450139351 | FU42: =1/(0.1+FR42^0.2) -> 0.6300167942 | FV42: =+(FT42/($T$20+FT42))^0.3 -> 0.08429061968 | FW42: =+SQRT(EXP($T$15*(1-SQRT(28/FR42)))) -> 0.8867421453 | FX42: =+$T$16*$T$17*FU42*FV42*FW42 -> 0.1603293728 | FY42: =+INDEX($AJ$28:$AJ$82,MATCH(FQ$25,$N$28:$N$82,0)) -> 33908.6835 | FZ42: =+FQ42*(1+FX42)/FY42 -> -0.01401487051
D43: 28 | E43: 20.33521432 | F43: 0.6195622781 | G43: 19251.71222 | H43: 0.8441892231 | I43: 13.33521432 | J43: 33.67277415 | N43: 16 | O43: 7.421696503 | P43: 0.7901065872 | Q43: 44.45401975 | R43: 0.8888793997 | S43: 33990.41129 | T43: =+O43-Input!$F$11 -> 0.4216965034 | U43: 0.1160889993 | V43: 0.2213578501 | X43: 3.421696503 | Y43: =+X43-Input!$F$12 -> 0.4216965034 | Z43: =+SQRT(Y43/(350*(Input!$F$10/$Q$4)^2+Y43)) -> 0.01797805603 | AA43: -6.017520357 | AB43: 16 | AC43: 7.492018914 | AD43: 7.562341325 | AE43: 0.07032241088 | AF43: 0.6265824014 | AG43: 0.06784253587 | AH43: 0.8898952177 | AI43: 0.1287963362 | AJ43: 34029.25579 | AK43: -461.299687 | AL43: 27062.02591 | AM43: 0.801924602 | AN43: 0.9044061762 | AP43: 16 | AQ43: 33746.34702 | AR43: 7 | AS43: 7.562341325 | AT43: 0.5623413252 | AU43: 0.6346091077 | AV43: 0.126548764 | AW43: 0.8824969026 | AX43: 0.2413024706 | AY43: 33746.34702 | AZ43: 1.241302471 | BA43: -2297.498035 | BB43: 7.005 | BC43: 7.562341325 | BD43: 0.5573413252 | BE43: 0.6345242381 | BF43: 0.1262104921 | BG43: 0.8825756583 | BH43: 0.2406467452 | BI43: 33749.35861 | BJ43: -0.08445741122 | BK43: -189.1030035 | BL43: 7.011667607 | BM43: 7.562341325 | BN43: 0.550673718 | BO43: 0.6344111734 | BP43: 0.1257560718 | BQ43: 0.8826805605 | BR43: 0.2397660667 | BS43: 33753.37003 | BT43: -0.006945780128 | BU43: -204.5034576 | BV43: 7.015559004 | BW43: 7.562341325 | BX43: 0.546782321 | BY43: 0.634345244 | BZ43: 0.1254890741 | CA43: 0.8827417209 | CB43: 0.2392487219 | CC43: 33755.70879 | CD43: -0.007507786314 | CE43: -220.9563824 | CF43: 7.020748266 | CG43: 7.562341325 | CH43: 0.5415930596 | CI43: 0.6342573927 | CJ43: 0.1251309455 | CK43: 0.8828232071 | CL43: 0.2385549186 | CM43: 33758.82479 | CN43: -0.008106520768 | CO43: -238.2345017 | CP43: 7.027668257 | CQ43: 7.562341325 | CR43: 0.5346730684 | CS43: 0.6341403596 | CT43: 0.1246496097 | CU43: 0.8829317419 | CV43: 0.2376226409 | CW43: 33762.97512 | CX43: -0.008732773464 | CY43: -256.3844479 | CZ43: 7.036896213 | DA43: 7.562341325 | DB43: 0.5254451117 | DC43: 0.6339845039 | DD43: 0.124000893 | DE43: 0.8830762469 | DF43: 0.236366557 | DG43: 33768.50093 | DH43: -0.009387007072 | DI43: -275.4496978 | DJ43: 7.049201891 | DK43: 7.562341325 | DL43: 0.5131394338 | DM43: 0.6337770402 | DN43: 0.1231232652 | DO43: 0.8832685425 | DP43: 0.2346679395 | DQ43: 33775.85424 | DR43: -0.0100689951 | DS43: -295.4566903 | DT43: 7.065611777 | DU43: 7.562341325 | DV43: 0.4967295485 | DW43: 0.6335010438 | DX43: 0.1219296633 | DY43: 0.8835242555 | DZ43: 0.2323590308 | EA43: 33785.63261 | EB43: -0.01077702835 | EC43: -316.4163428 | ED43: 7.08749471 | EE43: 7.562341325 | EF43: 0.4748466147 | EG43: 0.633134166 | EH43: 0.1202941587 | EI43: 0.883863986 | EJ43: 0.2291976171 | EK43: 33798.62377 | EL43: -0.01150751632 | EM43: -338.3260835 | EN43: 7.116676072 | EO43: 7.562341325 | EP43: 0.4456652536 | EQ43: 0.6326469916 | ER43: 0.1180288154 | ES43: 0.8843147851 | ET43: 0.224823007 | EU43: 33815.86216 | EV43: -0.0122542956 | EW43: -361.1714439 | EX43: 7.155590042 | EY43: 7.562341325 | EZ43: 0.4067512831 | FA43: 0.6320009728 | FB43: 0.1148400231 | FC43: 0.8849119932 | FD43: 0.2186731542 | FE43: 33838.69917 | FF43: -0.01300729501 | FG43: -384.9275818 | FH43: 7.207482656 | FI43: 7.562341325 | FJ43: 0.3548586694 | FK43: 0.6311458854 | FL43: 0.1102360022 | FM43: 0.8857014635 | FN43: 0.2098094004 | FO43: 33868.88822 | FP43: -0.01374975771 | FQ43: -409.5611293 | FR43: 7.276682568 | FS43: 7.562341325 | FT43: 0.2856587569 | FU43: 0.6300167942 | FV43: 0.1032945508 | FW43: 0.8867421453 | FX43: 0.196476792 | FY43: 33908.6835 | FZ43: -0.01445147188 | GA43: =+INDEX($AK$28:$AK$82,MATCH(GA$25,$N$28:$N$82,0)) -> -435.0326346 | GB43: =+INDEX($AC$28:$AC$82,MATCH(GA$25,$N$28:$N$82,0)) -> 7.368962135 | GC43: 7.562341325 | GD43: =+GC43-GB43 -> 0.1933791905 | GE43: =1/(0.1+GB43^0.2) -> 0.6285306004 | GF43: =+(GD43/($T$20+GD43))^0.3 -> 0.09188991229 | GG43: =+SQRT(EXP($T$15*(1-SQRT(28/GB43)))) -> 0.8881088964 | GH43: =+$T$16*$T$17*GE43*GF43*GG43 -> 0.174640455 | GI43: =+INDEX($AJ$28:$AJ$82,MATCH(GA$25,$N$28:$N$82,0)) -> 33960.94754 | GJ43: =+GA43*(1+GH43)/GI43 -> -0.01504689854
D44: 29 | E44: 24.7827941 | F44: 0.6738514878 | G44: 18408.07963 | H44: 0.8346627342 | I44: 17.7827941 | J44: 38.81925191 | N44: 17 | O44: 7.562341325 | P44: 0.793699193 | Q44: 44.65615168 | R44: 0.89089797 | S44: 34067.60066 | T44: =+O44-Input!$F$11 -> 0.5623413252 | U44: 0.126548764 | V44: 0.2413024706 | X44: 3.562341325 | Y44: =+X44-Input!$F$12 -> 0.5623413252 | Z44: =+SQRT(Y44/(350*(Input!$F$10/$Q$4)^2+Y44)) -> 0.02075961634 | AA44: -6.948549592 | AB44: 17 | AC44: 7.656117767 | AD44: 7.749894209 | AE44: 0.09377644207 | AF44: 0.6240421511 | AG44: 0.07395993812 | AH44: 0.8922153193 | AI44: 0.1402053256 | AJ44: 34117.9756 | AK44: -488.3205548 | AL44: 26573.70535 | AM44: 0.7874542786 | AN44: 0.9031298334 | AP44: 17 | AQ44: 33746.34702 | AR44: 7 | AS44: 7.749894209 | AT44: 0.7498942093 | AU44: 0.6346091077 | AV44: 0.1379474579 | AW44: 0.8824969026 | AX44: 0.2630374359 | AY44: 33746.34702 | AZ44: 1.263037436 | BA44: -2297.498035 | BB44: 7.005 | BC44: 7.749894209 | BD44: 0.7448942093 | BE44: 0.6345242381 | BF44: 0.1376712512 | BG44: 0.8825756583 | BH44: 0.2624990835 | BI44: 33749.35861 | BJ44: -0.08594501591 | BK44: -189.1030035 | BL44: 7.011667607 | BM44: 7.749894209 | BN44: 0.7382266022 | BO44: 0.6344111734 | BP44: 0.1373008919 | BQ44: 0.8826805605 | BR44: 0.2617773785 | BS44: 33753.37003 | BT44: -0.007069098338 | BU44: -204.5034576 | BV44: 7.015559004 | BW44: 7.749894209 | BX44: 0.7343352051 | BY44: 0.634345244 | BZ44: 0.1370836543 | CA44: 0.8827417209 | CB44: 0.2613541405 | CC44: 33755.70879 | CD44: -0.007641708388 | CE44: -220.9563824 | CF44: 7.020748266 | CG44: 7.749894209 | CH44: 0.7291459438 | CI44: 0.6342573927 | CJ44: 0.1367927028 | CK44: 0.8828232071 | CL44: 0.2607873852 | CM44: 33758.82479 | CN44: -0.008252035471 | CO44: -238.2345017 | CP44: 7.027668257 | CQ44: 7.749894209 | CR44: 0.7222259525 | CS44: 0.6341403596 | CT44: 0.1364024431 | CU44: 0.8829317419 | CV44: 0.2600273586 | CW44: 33762.97512 | CX44: -0.008890863109 | CY44: -256.3844479 | CZ44: 7.036896213 | DA44: 7.749894209 | DB44: 0.7129979959 | DC44: 0.6339845039 | DD44: 0.1358779198 | DE44: 0.8830762469 | DF44: 0.2590061677 | DG44: 33768.50093 | DH44: -0.009558896375 | DI44: -275.4496978 | DJ44: 7.049201891 | DK44: 7.749894209 | DL44: 0.7006923179 | DM44: 0.6337770402 | DN44: 0.1351709929 | DO44: 0.8832685425 | DP44: 0.2576304188 | DQ44: 33775.85424 | DR44: -0.01025625929 | DS44: -295.4566903 | DT44: 7.065611777 | DU44: 7.749894209 | DV44: 0.6842824326 | DW44: 0.6335010438 | DX44: 0.1342146063 | DY44: 0.8835242555 | DZ44: 0.2557702121 | EA44: 33785.63261 | EB44: -0.01098176006 | EC44: -316.4163428 | ED44: 7.08749471 | EE44: 7.749894209 | EF44: 0.6623994989 | EG44: 0.633134166 | EH44: 0.1329138753 | EI44: 0.883863986 | EJ44: 0.2532420845 | EK44: 33798.62377 | EL44: -0.01173261609 | EM44: -338.3260835 | EN44: 7.116676072 | EO44: 7.749894209 | EP44: 0.6332181377 | EQ44: 0.6326469916 | ER44: 0.1311315529 | ES44: 0.8843147851 | ET44: 0.2497812921 | EU44: 33815.86216 | EV44: -0.01250400205 | EW44: -361.1714439 | EX44: 7.155590042 | EY44: 7.749894209 | EZ44: 0.5943041672 | FA44: 0.6320009728 | FB44: 0.1286628022 | FC44: 0.8849119932 | FD44: 0.2449938621 | FE44: 33838.69917 | FF44: -0.01328822448 | FG44: -384.9275818 | FH44: 7.207482656 | FI44: 7.749894209 | FJ44: 0.5424115535 | FK44: 0.6311458854 | FL44: 0.1251875919 | FM44: 0.8857014635 | FN44: 0.2382663838 | FO44: 33868.88822 | FP44: -0.01407317777 | FQ44: -409.5611293 | FR44: 7.276682568 | FS44: 7.749894209 | FT44: 0.473211641 | FU44: 0.6300167942 | FV44: 0.1201698576 | FW44: 0.8867421453 | FX44: 0.2285753502 | FY44: 33908.6835 | FZ44: -0.01483916968 | GA44: -435.0326346 | GB44: 7.368962135 | GC44: 7.749894209 | GD44: 0.3809320746 | GE44: 0.6285306004 | GF44: 0.1126042916 | GG44: 0.8881088964 | GH44: 0.2140089617 | GI44: 33960.94754 | GJ44: -0.01555120087 | GK44: =+INDEX($AK$28:$AK$82,MATCH(GK$25,$N$28:$N$82,0)) -> -461.299687 | GL44: =+INDEX($AC$28:$AC$82,MATCH(GK$25,$N$28:$N$82,0)) -> 7.492018914 | GM44: 7.749894209 | GN44: =+GM44-GL44 -> 0.257875295 | GO44: =1/(0.1+GL44^0.2) -> 0.6265824014 | GP44: =+(GN44/($T$20+GN44))^0.3 -> 0.1001734482 | GQ44: =+SQRT(EXP($T$15*(1-SQRT(28/GL44)))) -> 0.8898952177 | GR44: =+$T$16*$T$17*GO44*GP44*GQ44 -> 0.1901752779 | GS44: =+INDEX($AJ$28:$AJ$82,MATCH(GK$25,$N$28:$N$82,0)) -> 34029.25579 | GT44: =+GK44*(1+GR44)/GS44 -> -0.01613398443
D45: 30 | E45: 30.71373706 | F45: 0.7323442733 | G45: 17541.69227 | H45: 0.824852966 | I45: 23.71373706 | J45: 44.72755901 | N45: 18 | O45: 7.749894209 | P45: 0.7983611567 | Q45: 44.91844923 | R45: 0.8935105801 | S45: 34167.50588 | T45: =+O45-Input!$F$11 -> 0.7498942093 | U45: 0.1379474579 | V45: 0.2630374359 | X45: 3.749894209 | Y45: =+X45-Input!$F$12 -> 0.7498942093 | Z45: =+SQRT(Y45/(350*(Input!$F$10/$Q$4)^2+Y45)) -> 0.02397110827 | AA45: -8.023483282 | AB45: 18 | AC45: 7.874947105 | AD45: 8 | AE45: 0.1250528953 | AF45: 0.6207524864 | AG45: 0.08062860761 | AH45: 0.8952045387 | AI45: 0.1525507241 | AJ45: 34232.28221 | AK45: -516.0577584 | AL45: 26057.64759 | AM45: 0.7721620232 | AN45: 0.9013659075 | AP45: 18 | AQ45: 33746.34702 | AR45: 7 | AS45: 8 | AT45: 1 | AU45: 0.6346091077 | AV45: 0.1503677756 | AW45: 0.8824969026 | AX45: 0.2867204278 | AY45: 33746.34702 | AZ45: 1.286720428 | BA45: -2297.498035 | BB45: 7.005 | BC45: 8 | BD45: 0.995 | BE45: 0.6345242381 | BF45: 0.1501422353 | BG45: 0.8825756583 | BH45: 0.2862776274 | BI45: 33749.35861 | BJ45: -0.08756374765 | BK45: -189.1030035 | BL45: 7.011667607 | BM45: 8 | BN45: 0.9883323928 | BO45: 0.6344111734 | BP45: 0.1498402305 | BQ45: 0.8826805605 | BR45: 0.2856848356 | BS45: 33753.37003 | BT45: -0.007203039688 | BU45: -204.5034576 | BV45: 7.015559004 | BW45: 8 | BX45: 0.9844409958 | BY45: 0.634345244 | BZ45: 0.1496633105 | CA45: 0.8827417209 | CB45: 0.2853376362 | CC45: 33755.70879 | CD45: -0.007787008486 | CE45: -220.9563824 | CF45: 7.020748266 | CG45: 8 | CH45: 0.9792517344 | CI45: 0.6342573927 | CJ45: 0.1494266181 | CK45: 0.8828232071 | CL45: 0.2848732149 | CM45: 33758.82479 | CN45: -0.008409680705 | CO45: -238.2345017 | CP45: 7.027668257 | CQ45: 8 | CR45: 0.9723317432 | CS45: 0.6341403596 | CT45: 0.1491096092 | CU45: 0.8829317419 | CV45: 0.2842513442 | CW45: 33762.97512 | CX45: -0.009061789667 | CY45: -256.3844479 | CZ45: 7.036896213 | DA45: 8 | DB45: 0.9631037865 | DC45: 0.6339845039 | DD45: 0.1486843962 | DE45: 0.8830762469 | DF45: 0.2834174655 | DG45: 33768.50093 | DH45: -0.009744237061 | DI45: -275.4496978 | DJ45: 7.049201891 | DK45: 8 | DL45: 0.9507981086 | DM45: 0.6337770402 | DN45: 0.1481128907 | DO45: 0.8832685425 | DP45: 0.2822971501 | DQ45: 33775.85424 | DR45: -0.01045742204 | DS45: -295.4566903 | DT45: 7.065611777 | DU45: 8 | DV45: 0.9343882233 | DW45: 0.6335010438 | DX45: 0.1473426369 | DY45: 0.8835242555 | DZ45: 0.2807880494 | EA45: 33785.63261 | EB45: -0.01120054203 | EC45: -316.4163428 | ED45: 7.08749471 | EE45: 8 | EF45: 0.9125052895 | EG45: 0.633134166 | EH45: 0.1463005651 | EI45: 0.883863986 | EJ45: 0.2787478733 | EK45: 33798.62377 | EL45: -0.01197139647 | EM45: -338.3260835 | EN45: 7.116676072 | EO45: 8 | EP45: 0.8833239284 | EQ45: 0.6326469916 | ER45: 0.1448832769 | ES45: 0.8843147851 | ET45: 0.2759757764 | EU45: 33815.86216 | EV45: -0.01276607661 | EW45: -361.1714439 | EX45: 7.155590042 | EY45: 8 | EZ45: 0.8444099579 | FA45: 0.6320009728 | FB45: 0.1429412033 | FC45: 0.8849119932 | FD45: 0.2721821449 | FE45: 33838.69917 | FF45: -0.01357841387 | FG45: -384.9275818 | FH45: 7.207482656 | FI45: 8 | FJ45: 0.7925173442 | FK45: 0.6311458854 | FL45: 0.1402511045 | FM45: 0.8857014635 | FN45: 0.2669363871 | FO45: 33868.88822 | FP45: -0.01439901885 | FQ45: -409.5611293 | FR45: 7.276682568 | FS45: 8 | FT45: 0.7233174317 | FU45: 0.6300167942 | FV45: 0.136464172 | FW45: 0.8867421453 | FX45: 0.2595688012 | FY45: 33908.6835 | FZ45: -0.01521351959 | GA45: -435.0326346 | GB45: 7.368962135 | GC45: 8 | GD45: 0.6310378653 | GE45: 0.6285306004 | GF45: 0.1309960922 | GG45: 0.8881088964 | GH45: 0.2489633147 | GI45: 33960.94754 | GJ45: -0.01599895882 | GK45: -461.299687 | GL45: 7.492018914 | GM45: 8 | GN45: 0.5079810857 | GO45: 0.6265824014 | GP45: 0.122750985 | GQ45: 0.8898952177 | GR45: 0.2330378269 | GS45: 34029.25579 | GT45: -0.01671502801 | GU45: =+INDEX($AK$28:$AK$82,MATCH(GU$25,$N$28:$N$82,0)) -> -488.3205548 | GV45: =+INDEX($AC$28:$AC$82,MATCH(GU$25,$N$28:$N$82,0)) -> 7.656117767 | GW45: =+$AD45 -> 8 | GX45: =+GW45-GV45 -> 0.3438822327 | GY45: =1/(0.1+GV45^0.2) -> 0.6240421511 | GZ45: =+(GX45/($T$20+GX45))^0.3 -> 0.1092024391 | HA45: =+SQRT(EXP($T$15*(1-SQRT(28/GV45)))) -> 0.8922153193 | HB45: =+$T$16*$T$17*GY45*GZ45*HA45 -> 0.2070142826 | HC45: =+INDEX($AJ$28:$AJ$82,MATCH(GU$25,$N$28:$N$82,0)) -> 34117.9756 | HD45: =+GU45*(1+HB45)/HC45 -> -0.01727564059
D46: 31 | E46: 38.6227766 | F46: 0.7951296679 | G46: 16657.51081 | H46: 0.8149279236 | I46: 31.6227766 | J46: 51.49745824 | N46: 19 | O46: 8 | P46: 0.8043609455 | Q46: 45.25601727 | R46: 0.8968617204 | S46: 34295.65221 | T46: =+O46-Input!$F$11 -> 1 | U46: 0.1503677756 | V46: 0.2867204278 | X46: 4 | Y46: =+X46-Input!$F$12 -> 1 | Z46: =+SQRT(Y46/(350*(Input!$F$10/$Q$4)^2+Y46)) -> 0.02767875185 | AA46: -9.26448624 | AB46: 19 | AC46: 8.166760716 | AD46: 8.333521432 | AE46: 0.1667607161 | AF46: 0.6165290538 | AG46: 0.08789806618 | AH46: 0.8990166787 | AI46: 0.1658765473 | AJ46: 34378.057 | AK46: -544.4804446 | AL46: 25513.16715 | AM46: 0.7560275229 | AN46: 0.8990445993 | AP46: 19 | AQ46: 33746.34702 | AR46: 7 | AS46: 8.333521432 | AT46: 1.333521432 | AU46: 0.6346091077 | AV46: 0.1638989748 | AW46: 0.8824969026 | AX46: 0.3125216422 | AY46: 33746.34702 | AZ46: 1.312521642 | BA46: -2297.498035 | BB46: 7.005 | BC46: 8.333521432 | BD46: 1.328521432 | BE46: 0.6345242381 | BF46: 0.1637148157 | BG46: 0.8825756583 | BH46: 0.3121565955 | BI46: 33749.35861 | BJ46: -0.08932546642 | BK46: -189.1030035 | BL46: 7.011667607 | BM46: 8.333521432 | BN46: 1.321853825 | BO46: 0.6344111734 | BP46: 0.1634684758 | BQ46: 0.8826805605 | BR46: 0.3116683983 | BS46: 33753.37003 | BT46: -0.007348612404 | BU46: -204.5034576 | BV46: 7.015559004 | BW46: 8.333521432 | BX46: 1.317962428 | BY46: 0.634345244 | BZ46: 0.1633243012 | CA46: 0.8827417209 | CB46: 0.3113827288 | CC46: 33755.70879 | CD46: -0.007944798433 | CE46: -220.9563824 | CF46: 7.020748266 | CG46: 8.333521432 | CH46: 1.312773167 | CI46: 0.6342573927 | CJ46: 0.1631315748 | CK46: 0.8828232071 | CL46: 0.3110009232 | CM46: 33758.82479 | CN46: -0.008580690327 | CO46: -238.2345017 | CP46: 7.027668257 | CQ46: 8.333521432 | CR46: 1.305853175 | CS46: 0.6341403596 | CT46: 0.1628737349 | CU46: 0.8829317419 | CV46: 0.3104902382 | CW46: 33762.97512 | CX46: -0.009246933595 | CY46: -256.3844479 | CZ46: 7.036896213 | DA46: 8.333521432 | DB46: 1.296625219 | DC46: 0.6339845039 | DD46: 0.1625284009 | DE46: 0.8830762469 | DF46: 0.3098064667 | DG46: 33768.50093 | DH46: -0.009944593289 | DI46: -275.4496978 | DJ46: 7.049201891 | DK46: 8.333521432 | DL46: 1.284319541 | DM46: 0.6337770402 | DN46: 0.1620651917 | DO46: 0.8832685425 | DP46: 0.3088896688 | DQ46: 33775.85424 | DR46: -0.01067429002 | DS46: -295.4566903 | DT46: 7.065611777 | DU46: 8.333521432 | DV46: 1.267909655 | DW46: 0.6335010438 | DX46: 0.1614426123 | DY46: 0.8835242555 | DZ46: 0.3076581033 | EA46: 33785.63261 | EB46: -0.01143552171 | EC46: -316.4163428 | ED46: 7.08749471 | EE46: 8.333521432 | EF46: 1.246026722 | EG46: 0.633134166 | EH46: 0.1606035137 | EI46: 0.883863986 | EJ46: 0.3059994188 | EK46: 33798.62377 | EL46: -0.0122265203 | EM46: -338.3260835 | EN46: 7.116676072 | EO46: 8.333521432 | EP46: 1.216845361 | EQ46: 0.6326469916 | ER46: 0.1594682851 | ES46: 0.8843147851 | ET46: 0.3037575125 | EU46: 33815.86216 | EV46: -0.01304403155 | EW46: -361.1714439 | EX46: 7.155590042 | EY46: 8.333521432 | EZ46: 1.17793139 | FA46: 0.6320009728 | FB46: 0.1579242664 | FC46: 0.8849119932 | FD46: 0.3007122129 | FE46: 33838.69917 | FF46: -0.01388292457 | FG46: -384.9275818 | FH46: 7.207482656 | FI46: 8.333521432 | FJ46: 1.126038776 | FK46: 0.6311458854 | FL46: 0.155808481 | FM46: 0.8857014635 | FN46: 0.2965463491 | FO46: 33868.88822 | FP46: -0.01473554277 | FQ46: -409.5611293 | FR46: 7.276682568 | FS46: 8.333521432 | FT46: 1.056838864 | FU46: 0.6300167942 | FV46: 0.1528776577 | FW46: 0.8867421453 | FX46: 0.2907889284 | FY46: 33908.6835 | FZ46: -0.01559060738 | GA46: -435.0326346 | GB46: 7.368962135 | GC46: 8.333521432 | GD46: 0.9645592974 | GE46: 0.6285306004 | GF46: 0.1487516539 | GG46: 0.8881088964 | GH46: 0.2827084701 | GI46: 33960.94754 | GJ46: -0.01643122721 | GK46: -461.299687 | GL46: 7.492018914 | GM46: 8.333521432 | GN46: 0.8415025179 | GO46: 0.6265824014 | GP46: 0.1427935994 | GQ46: 0.8898952177 | GR46: 0.2710879273 | GS46: 34029.25579 | GT46: -0.01723083416 | GU46: -488.3205548 | GV46: 7.656117767 | GW46: 8.333521432 | GX46: 0.6774036649 | GY46: 0.6240421511 | GZ46: 0.1338089148 | HA46: 0.8922153193 | HB46: 0.2536606026 | HC46: 34117.9756 | HD46: -0.01794327566 | HE46: =+INDEX($AK$28:$AK$82,MATCH(HE$25,$N$28:$N$82,0)) -> -516.0577584 | HF46: =+INDEX($AC$28:$AC$82,MATCH(HE$25,$N$28:$N$82,0)) -> 7.874947105 | HG46: 8.333521432 | HH46: =+HG46-HF46 -> 0.4585743275 | HI46: =1/(0.1+HF46^0.2) -> 0.6207524864 | HJ46: =+(HH46/($T$20+HH46))^0.3 -> 0.1190433921 | HK46: =+SQRT(EXP($T$15*(1-SQRT(28/HF46)))) -> 0.8952045387 | HL46: =+$T$16*$T$17*HI46*HJ46*HK46 -> 0.2252321626 | HM46: =+INDEX($AJ$28:$AJ$82,MATCH(HE$25,$N$28:$N$82,0)) -> 34232.28221 | HN46: =+HE46*(1+HL46)/HM46 -> -0.01847059333
D47: 32 | E47: 49.16965034 | F47: 0.8621939163 | G47: 15762.05671 | H47: 0.8050571718 | I47: 42.16965034 | J47: 59.23497018 | N47: 20 | O47: 8.333521432 | P47: 0.8120020634 | Q47: 45.68593193 | R47: 0.901111571 | S47: 34458.16489 | T47: =+O47-Input!$F$11 -> 1.333521432 | U47: 0.1638989748 | V47: 0.3125216422 | X47: 4.333521432 | Y47: =+X47-Input!$F$12 -> 1.333521432 | Z47: =+SQRT(Y47/(350*(Input!$F$10/$Q$4)^2+Y47)) -> 0.03195884127 | AA47: -10.69709526 | AB47: 20 | AC47: 8.555900421 | AD47: 8.77827941 | AE47: 0.2223789889 | AF47: 0.6111651153 | AG47: 0.0958222138 | AH47: 0.9038164774 | AI47: 0.1802143553 | AJ47: 34561.59948 | AK47: -573.5637696 | AL47: 24939.60338 | AM47: 0.7390312012 | AN47: 0.8960885845 | AP47: 20 | AQ47: 33746.34702 | AR47: 7 | AS47: 8.77827941 | AT47: 1.77827941 | AU47: 0.6346091077 | AV47: 0.1786370665 | AW47: 0.8824969026 | AX47: 0.3406241525 | AY47: 33746.34702 | AZ47: 1.340624152 | BA47: -2297.498035 | BB47: 7.005 | BC47: 8.77827941 | BD47: 1.77327941 | BE47: 0.6345242381 | BF47: 0.1784867188 | BG47: 0.8825756583 | BH47: 0.3403223236 | BI47: 33749.35861 | BJ47: -0.09124285707 | BK47: -189.1030035 | BL47: 7.011667607 | BM47: 8.77827941 | BN47: 1.766611803 | BO47: 0.6344111734 | BP47: 0.1782857618 | BQ47: 0.8826805605 | BR47: 0.3399189815 | BS47: 33753.37003 | BT47: -0.007506886085 | BU47: -204.5034576 | BV47: 7.015559004 | BW47: 8.77827941 | BX47: 1.762720406 | BY47: 0.634345244 | BZ47: 0.1781682309 | CA47: 0.8827417209 | CB47: 0.3396831305 | CC47: 33755.70879 | CD47: -0.008116251802 | CE47: -220.9563824 | CF47: 7.020748266 | CG47: 8.77827941 | CH47: 1.757531144 | CI47: 0.6342573927 | CJ47: 0.1780112163 | CK47: 0.8828232071 | CL47: 0.3393681 | CM47: 33758.82479 | CN47: -0.008766357596 | CO47: -238.2345017 | CP47: 7.027668257 | CQ47: 8.77827941 | CR47: 1.750611153 | CS47: 0.6341403596 | CT47: 0.1778013253 | CU47: 0.8829317419 | CV47: 0.3389470739 | CW47: 33762.97512 | CX47: -0.009447727514 | CY47: -256.3844479 | CZ47: 7.036896213 | DA47: 8.77827941 | DB47: 1.741383197 | DC47: 0.6339845039 | DD47: 0.1775205203 | DE47: 0.8830762469 | DF47: 0.3383839678 | DG47: 33768.50093 | DH47: -0.01016156552 | DI47: -275.4496978 | DJ47: 7.049201891 | DK47: 8.77827941 | DL47: 1.729077519 | DM47: 0.6337770402 | DN47: 0.177144426 | DO47: 0.8832685425 | DP47: 0.3376300764 | DQ47: 33775.85424 | DR47: -0.01090867451 | DS47: -295.4566903 | DT47: 7.065611777 | DU47: 8.77827941 | DV47: 1.712667633 | DW47: 0.6335010438 | DX47: 0.1766399526 | DY47: 0.8835242555 | DZ47: 0.3366193844 | EA47: 33785.63261 | EB47: -0.01168878926 | EC47: -316.4163428 | ED47: 7.08749471 | EE47: 8.77827941 | EF47: 1.6907847 | EG47: 0.633134166 | EH47: 0.1759619042 | EI47: 0.883863986 | EJ47: 0.3352619079 | EK47: 33798.62377 | EL47: -0.01250047021 | EM47: -338.3260835 | EN47: 7.116676072 | EO47: 8.77827941 | EP47: 1.661603338 | EQ47: 0.6326469916 | ER47: 0.1750480321 | ES47: 0.8843147851 | ET47: 0.3334340415 | EU47: 33815.86216 | EV47: -0.01334094381 | EW47: -361.1714439 | EX47: 7.155590042 | EY47: 8.77827941 | EZ47: 1.622689368 | FA47: 0.6320009728 | FB47: 0.1738116165 | FC47: 0.8849119932 | FD47: 0.330964183 | FE47: 33838.69917 | FF47: -0.01420581368 | FG47: -384.9275818 | FH47: 7.207482656 | FI47: 8.77827941 | FJ47: 1.570796754 | FK47: 0.6311458854 | FL47: 0.1721299293 | FM47: 0.8857014635 | FN47: 0.3276105496 | FO47: 33868.88822 | FP47: -0.01508859444 | FQ47: -409.5611293 | FR47: 7.276682568 | FS47: 8.77827941 | FT47: 1.501596842 | FU47: 0.6300167942 | FV47: 0.1698254133 | FW47: 0.8867421453 | FX47: 0.3230252916 | FY47: 33908.6835 | FZ47: -0.01597996963 | GA47: -435.0326346 | GB47: 7.368962135 | GC47: 8.77827941 | GD47: 1.409317275 | GE47: 0.6285306004 | GF47: 0.1666330055 | GG47: 0.8881088964 | GH47: 0.3166926944 | GI47: 33960.94754 | GJ47: -0.01686655801 | GK47: -461.299687 | GL47: 7.492018914 | GM47: 8.77827941 | GN47: 1.286260496 | GO47: 0.6265824014 | GP47: 0.1621384596 | GQ47: 0.8898952177 | GR47: 0.3078133694 | GS47: 34029.25579 | GT47: -0.01772868328 | GU47: -488.3205548 | GV47: 7.656117767 | GW47: 8.77827941 | GX47: 1.122161643 | GY47: 0.6240421511 | GZ47: 0.1556476718 | HA47: 0.8922153193 | HB47: 0.2950601781 | HC47: 34117.9756 | HD47: -0.01853581561 | HE47: -516.0577584 | HF47: 7.874947105 | HG47: 8.77827941 | HH47: 0.9033323054 | HI47: 0.6207524864 | HJ47: 0.1458585225 | HK47: 0.8952045387 | HL47: 0.2759668546 | HM47: 34232.28221 | HN47: -0.01923542785 | HO47: =+INDEX($AK$28:$AK$82,MATCH(HO$25,$N$28:$N$82,0)) -> -544.4804446 | HP47: =+INDEX($AC$28:$AC$82,MATCH(HO$25,$N$28:$N$82,0)) -> 8.166760716 | HQ47: 8.77827941 | HR47: =+HQ47-HP47 -> 0.611518694 | HS47: =1/(0.1+HP47^0.2) -> 0.6165290538 | HT47: =+(HR47/($T$20+HR47))^0.3 -> 0.1297684856 | HU47: =+SQRT(EXP($T$15*(1-SQRT(28/HP47)))) -> 0.8990166787 | HV47: =+$T$16*$T$17*HS47*HT47*HU47 -> 0.2448921721 | HW47: =+INDEX($AJ$28:$AJ$82,MATCH(HO$25,$N$28:$N$82,0)) -> 34378.057 | HX47: =+HO47*(1+HV47)/HW47 -> -0.01971663039
D48: =+N60 -> 33 | E48: 63.23413252 | F48: 0.9333777693 | G48: 14863.5572 | H48: 0.7954065603 | I48: 56.23413252 | J48: 68.04899584 | N48: 21 | O48: 8.77827941 | P48: 0.8216073615 | Q48: 46.22635789 | R48: 0.9064255962 | S48: 34661.3712 | T48: =+O48-Input!$F$11 -> 1.77827941 | U48: 0.1786370665 | V48: 0.3406241525 | X48: 4.77827941 | Y48: =+X48-Input!$F$12 -> 1.77827941 | Z48: =+SQRT(Y48/(350*(Input!$F$10/$Q$4)^2+Y48)) -> 0.03689920987 | AA48: -12.35070945 | AB48: 21 | AC48: 9.074826558 | AD48: 9.371373706 | AE48: 0.2965471478 | AF48: 0.6044423626 | AG48: 0.1044596837 | AH48: 0.9097654931 | AI48: 0.195576843 | AJ48: 34789.08759 | AK48: -603.2829626 | AL48: 24336.32042 | AM48: 0.7211542155 | AN48: 0.8924200428 | AP48: 21 | AQ48: 33746.34702 | AR48: 7 | AS48: 9.371373706 | AT48: 2.371373706 | AU48: 0.6346091077 | AV48: 0.1946848443 | AW48: 0.8824969026 | AX48: 0.3712239649 | AY48: 33746.34702 | AZ48: 1.371223965 | BA48: -2297.498035 | BB48: 7.005 | BC48: 9.371373706 | BD48: 2.366373706 | BE48: 0.6345242381 | BF48: 0.1945621328 | BG48: 0.8825756583 | BH48: 0.3709734682 | BI48: 33749.35861 | BJ48: -0.09332944323 | BK48: -189.1030035 | BL48: 7.011667607 | BM48: 9.371373706 | BN48: 2.359706099 | BO48: 0.6344111734 | BP48: 0.1943982094 | BQ48: 0.8826805605 | BR48: 0.3706389151 | BS48: 33753.37003 | BT48: -0.007678994284 | BU48: -204.5034576 | BV48: 7.015559004 | BW48: 9.371373706 | BX48: 2.355814701 | BY48: 0.634345244 | BZ48: 0.1943023881 | CA48: 0.8827417209 | CB48: 0.3704433901 | CC48: 33755.70879 | CD48: -0.008302607819 | CE48: -220.9563824 | CF48: 7.020748266 | CG48: 9.371373706 | CH48: 2.35062544 | CI48: 0.6342573927 | CJ48: 0.1941744345 | CK48: 0.8828232071 | CL48: 0.3701823418 | CM48: 33758.82479 | CN48: -0.008968041257 | CO48: -238.2345017 | CP48: 7.027668257 | CQ48: 9.371373706 | CR48: 2.343705449 | CS48: 0.6341403596 | CT48: 0.1940034953 | CU48: 0.8829317419 | CV48: 0.3698336721 | CW48: 33762.97512 | CX48: -0.009665666048 | CY48: -256.3844479 | CZ48: 7.036896213 | DA48: 9.371373706 | DB48: 2.334477492 | DC48: 0.6339845039 | DD48: 0.1937749892 | DE48: 0.8830762469 | DF48: 0.3693677192 | DG48: 33768.50093 | DH48: -0.01039680699 | DI48: -275.4496978 | DJ48: 7.049201891 | DK48: 9.371373706 | DL48: 2.322171814 | DM48: 0.6337770402 | DN48: 0.1934692778 | DO48: 0.8832685425 | DP48: 0.3687445806 | DQ48: 33775.85424 | DR48: -0.0111624203 | DS48: -295.4566903 | DT48: 7.065611777 | DU48: 9.371373706 | DV48: 2.305761929 | DW48: 0.6335010438 | DX48: 0.1930598219 | DY48: 0.8835242555 | DZ48: 0.3679104157 | EA48: 33785.63261 | EB48: -0.01196243056 | EC48: -316.4163428 | ED48: 7.08749471 | EE48: 9.371373706 | EF48: 2.283878995 | EG48: 0.633134166 | EH48: 0.1925105929 | EI48: 0.883863986 | EJ48: 0.3667922835 | EK48: 33798.62377 | EL48: -0.01279565164 | EM48: -338.3260835 | EN48: 7.116676072 | EO48: 9.371373706 | EP48: 2.254697634 | EQ48: 0.6326469916 | ER48: 0.1917723787 | ES48: 0.8843147851 | ET48: 0.3652908206 | EU48: 33815.86216 | EV48: -0.01365966936 | EW48: -361.1714439 | EX48: 7.155590042 | EY48: 9.371373706 | EZ48: 2.215783664 | FA48: 0.6320009728 | FB48: 0.1907773953 | FC48: 0.8849119932 | FD48: 0.3632696483 | FE48: 33838.69917 | FF48: -0.01455062042 | FG48: -384.9275818 | FH48: 7.207482656 | FI48: 9.371373706 | FJ48: 2.16389105 | FK48: 0.6311458854 | FL48: 0.1894312054 | FM48: 0.8857014635 | FN48: 0.3605396316 | FO48: 33868.88822 | FP48: -0.01546284091 | FQ48: -409.5611293 | FR48: 7.276682568 | FS48: 9.371373706 | FT48: 2.094691137 | FU48: 0.6300167942 | FV48: 0.1876001456 | FW48: 0.8867421453 | FX48: 0.356834649 | FY48: 33908.6835 | FZ48: -0.01638833107 | GA48: -435.0326346 | GB48: 7.368962135 | GC48: 9.371373706 | GD48: 2.002411571 | GE48: 0.6285306004 | GF48: 0.1850908168 | GG48: 0.8881088964 | GH48: 0.3517725033 | GI48: 33960.94754 | GJ48: -0.01731592303 | GK48: -461.299687 | GL48: 7.492018914 | GM48: 9.371373706 | GN48: 1.879354791 | GO48: 0.6265824014 | GP48: 0.1816144659 | GQ48: 0.8898952177 | GR48: 0.3447877871 | GS48: 34029.25579 | GT48: -0.0182299075 | GU48: -488.3205548 | GV48: 7.656117767 | GW48: 9.371373706 | GX48: 1.715255938 | GY48: 0.6240421511 | GZ48: 0.1767197478 | HA48: 0.8922153193 | HB48: 0.3350063618 | HC48: 34117.9756 | HD48: -0.0191075536 | HE48: -516.0577584 | HF48: 7.874947105 | HG48: 9.371373706 | HH48: 1.496426601 | HI48: 0.6207524864 | HJ48: 0.1696502558 | HK48: 0.8952045387 | HL48: 0.3209812267 | HM48: 34232.28221 | HN48: -0.01991402754 | HO48: -544.4804446 | HP48: 8.166760716 | HQ48: 9.371373706 | HR48: 1.20461299 | HS48: 0.6165290538 | HT48: 0.15898672 | HU48: 0.8990166787 | HV48: 0.3000312672 | HW48: 34378.057 | HX48: -0.02058992463 | HY48: =+INDEX($AK$28:$AK$82,MATCH(HY$25,$N$28:$N$82,0)) -> -573.5637696 | HZ48: =+INDEX($AC$28:$AC$82,MATCH(HY$25,$N$28:$N$82,0)) -> 8.555900421 | IA48: 9.371373706 | IB48: =+IA48-HZ48 -> 0.8154732846 | IC48: =1/(0.1+HZ48^0.2) -> 0.6111651153 | ID48: =+(IB48/($T$20+IB48))^0.3 -> 0.1414559337 | IE48: =+SQRT(EXP($T$15*(1-SQRT(28/HZ48)))) -> 0.9038164774 | IF48: =+$T$16*$T$17*IC48*ID48*IE48 -> 0.266038415 | IG48: =+INDEX($AJ$28:$AJ$82,MATCH(HY$25,$N$28:$N$82,0)) -> 34561.59948 | IH48: =+HY48*(1+IF48)/IG48 -> -0.0210104213
D49: 34 | E49: 81.98942093 | F49: 1.008326958 | G49: 13971.9674 | H49: 0.786132547 | I49: 74.98942093 | J49: 78.04565277 | N49: 22 | O49: 9.371373706 | P49: 0.8334905092 | Q49: 46.89494324 | R49: 0.9129570139 | S49: 34911.13013 | T49: =+O49-Input!$F$11 -> 2.371373706 | U49: 0.1946848443 | V49: 0.3712239649 | X49: 5.371373706 | Y49: =+X49-Input!$F$12 -> 2.371373706 | Z49: =+SQRT(Y49/(350*(Input!$F$10/$Q$4)^2+Y49)) -> 0.04260087123 | AA49: -14.25913955 | AB49: 22 | AC49: 9.766825683 | AD49: 10.16227766 | AE49: 0.3954519773 | AF49: 0.5961492997 | AG49: 0.1138742111 | AH49: 0.9170006533 | AI49: 0.2119504949 | AJ49: 35065.75737 | AK49: -633.5997339 | AL49: 23702.72068 | AM49: 0.7023788579 | AN49: 0.8879693247 | AP49: 22 | AQ49: 33746.34702 | AR49: 7 | AS49: 10.16227766 | AT49: 3.16227766 | AU49: 0.6346091077 | AV49: 0.2121516617 | AW49: 0.8824969026 | AX49: 0.4045295939 | AY49: 33746.34702 | AZ49: 1.404529594 | BA49: -2297.498035 | BB49: 7.005 | BC49: 10.16227766 | BD49: 3.15727766 | BE49: 0.6345242381 | BF49: 0.2120515464 | BG49: 0.8825756583 | BH49: 0.4043206995 | BI49: 33749.35861 | BJ49: -0.09559956632 | BK49: -189.1030035 | BL49: 7.011667607 | BM49: 10.16227766 | BN49: 3.150610053 | BO49: 0.6344111734 | BP49: 0.2119178659 | BQ49: 0.8826805605 | BR49: 0.4040418282 | BS49: 33753.37003 | BT49: -0.007866133855 | BU49: -204.5034576 | BV49: 7.015559004 | BW49: 10.16227766 | BX49: 3.146718656 | BY49: 0.634345244 | BZ49: 0.2118397538 | CA49: 0.8827417209 | CB49: 0.4038789091 | CC49: 33755.70879 | CD49: -0.008505171459 | CE49: -220.9563824 | CF49: 7.020748266 | CG49: 10.16227766 | CH49: 3.141529395 | CI49: 0.6342573927 | CJ49: 0.2117354832 | CK49: 0.8828232071 | CL49: 0.4036614666 | CM49: 33758.82479 | CN49: -0.009187166963 | CO49: -238.2345017 | CP49: 7.027668257 | CQ49: 10.16227766 | CR49: 3.134609403 | CS49: 0.6341403596 | CT49: 0.2115962465 | CU49: 0.8829317419 | CV49: 0.4033711699 | CW49: 33762.97512 | CX49: -0.009902309562 | CY49: -256.3844479 | CZ49: 7.036896213 | DA49: 10.16227766 | DB49: 3.125381447 | DC49: 0.6339845039 | DD49: 0.2114102326 | DE49: 0.8830762469 | DF49: 0.4029834592 | DG49: 33768.50093 | DH49: -0.01065203162 | DI49: -275.4496978 | DJ49: 7.049201891 | DK49: 10.16227766 | DL49: 3.113075769 | DM49: 0.6337770402 | DN49: 0.2111615738 | DO49: 0.8832685425 | DP49: 0.4024653776 | DQ49: 33775.85424 | DR49: -0.011437421 | DS49: -295.4566903 | DT49: 7.065611777 | DU49: 10.16227766 | DV49: 3.096665883 | DW49: 0.6335010438 | DX49: 0.2108288978 | DY49: 0.8835242555 | DZ49: 0.4017726044 | EA49: 33785.63261 | EB49: -0.01225855674 | EC49: -316.4163428 | ED49: 7.08749471 | EE49: 10.16227766 | EF49: 3.07478295 | EG49: 0.633134166 | EH49: 0.2103833218 | EI49: 0.883863986 | EJ49: 0.4008453657 | EK49: 33798.62377 | EL49: -0.01311445017 | EM49: -338.3260835 | EN49: 7.116676072 | EO49: 10.16227766 | EP49: 3.045601589 | EQ49: 0.6326469916 | ER49: 0.2097856337 | ES49: 0.8843147851 | ET49: 0.3996027311 | EU49: 33815.86216 | EV49: -0.01400295838 | EW49: -361.1714439 | EX49: 7.155590042 | EY49: 10.16227766 | EZ49: 3.006687618 | FA49: 0.6320009728 | FB49: 0.2089822701 | FC49: 0.8849119932 | FD49: 0.3979345437 | FE49: 33838.69917 | FF49: -0.01492061013 | FG49: -384.9275818 | FH49: 7.207482656 | FI49: 10.16227766 | FJ49: 2.954795004 | FK49: 0.6311458854 | FL49: 0.2078994481 | FM49: 0.8857014635 | FN49: 0.3956897719 | FO49: 33868.88822 | FP49: -0.01586233021 | FQ49: -409.5611293 | FR49: 7.276682568 | FS49: 10.16227766 | FT49: 2.885595092 | FU49: 0.6300167942 | FV49: 0.2064343626 | FW49: 0.8867421453 | FX49: 0.3926592545 | FY49: 33908.6835 | FZ49: -0.01682103338 | GA49: -435.0326346 | GB49: 7.368962135 | GC49: 10.16227766 | GD49: 2.793315525 | GE49: 0.6285306004 | GF49: 0.2044414896 | GG49: 0.8881088964 | GH49: 0.3885492312 | GI49: 33960.94754 | GJ49: -0.01778702522 | GK49: -461.299687 | GL49: 7.492018914 | GM49: 10.16227766 | GN49: 2.670258746 | GO49: 0.6265824014 | GP49: 0.2017102362 | GQ49: 0.8898952177 | GR49: 0.3829388017 | GS49: 34029.25579 | GT49: -0.01874708164 | GU49: -488.3205548 | GV49: 7.656117767 | GW49: 10.16227766 | GX49: 2.506159893 | GY49: 0.6240421511 | GZ49: 0.1979261194 | HA49: 0.8922153193 | HB49: 0.3752071289 | HC49: 34117.9756 | HD49: -0.01968293536 | HE49: -516.0577584 | HF49: 7.874947105 | HG49: 10.16227766 | HH49: 2.287330556 | HI49: 0.6207524864 | HJ49: 0.1925974677 | HK49: 0.8952045387 | HL49: 0.3643977496 | HM49: 34232.28221 | HN49: -0.02056853936 | HO49: -544.4804446 | HP49: 8.166760716 | HQ49: 10.16227766 | HR49: 1.995516944 | HS49: 0.6165290538 | HT49: 0.1849000869 | HU49: 0.8990166787 | HV49: 0.3489335925 | HW49: 34378.057 | HX49: -0.02136444076 | HY49: -573.5637696 | HZ49: 8.555900421 | IA49: 10.16227766 | IB49: 1.606377239 | IC49: 0.6111651153 | ID49: 0.1732871193 | IE49: 0.9038164774 | IF49: 0.3259038301 | IG49: 34561.59948 | IH49: -0.02200391215 | II49: =+INDEX($AK$28:$AK$82,MATCH(II$25,$N$28:$N$82,0)) -> -603.2829626 | IJ49: =+INDEX($AC$28:$AC$82,MATCH(II$25,$N$28:$N$82,0)) -> 9.074826558 | IK49: 10.16227766 | IL49: =+IK49-IJ49 -> 1.087451102 | IM49: =1/(0.1+IJ49^0.2) -> 0.6044423626 | IN49: =+(IL49/($T$20+IL49))^0.3 -> 0.1541903161 | IO49: =+SQRT(EXP($T$15*(1-SQRT(28/IJ49)))) -> 0.9097654931 | IP49: =+$T$16*$T$17*IM49*IN49*IO49 -> 0.2886860671 | IQ49: =+INDEX($AJ$28:$AJ$82,MATCH(II$25,$N$28:$N$82,0)) -> 34789.08759 | IR49: =+II49*(1+IP49)/IQ49 -> -0.02234730493
D50: 35 | E50: 107 | F50: 1.086440884 | G50: 13098.7772 | H50: 0.7773747454 | I50: 100 | J50: 89.31953303 | N50: 23 | O50: 10.16227766 | P50: 0.8479136359 | Q50: 47.70643623 | R50: 0.9208222608 | S50: 35211.89419 | T50: =+O50-Input!$F$11 -> 3.16227766 | U50: 0.2121516617 | V50: 0.4045295939 | X50: 6.16227766 | Y50: =+X50-Input!$F$12 -> 3.16227766 | Z50: =+SQRT(Y50/(350*(Input!$F$10/$Q$4)^2+Y50)) -> 0.04917983694 | AA50: -16.46121636 | AB50: 23 | AC50: 10.68962135 | AD50: 11.21696503 | AE50: 0.5273436871 | AF50: 0.586106854 | AG50: 0.12413501 | AH50: 0.9256069608 | AI50: 0.2292883907 | AJ50: 35394.85931 | AK50: -664.4396711 | AL50: 23038.28101 | AM50: 0.6826896255 | AN50: 0.8826847487 | AP50: 23 | AQ50: 33746.34702 | AR50: 7 | AS50: 11.21696503 | AT50: 4.216965034 | AU50: 0.6346091077 | AV50: 0.231152825 | AW50: 0.8824969026 | AX50: 0.4407609051 | AY50: 33746.34702 | AZ50: 1.440760905 | BA50: -2297.498035 | BB50: 7.005 | BC50: 11.21696503 | BD50: 4.211965034 | BE50: 0.6345242381 | BF50: 0.2310711914 | BG50: 0.8825756583 | BH50: 0.4405856374 | BI50: 33749.35861 | BJ50: -0.09806831319 | BK50: -189.1030035 | BL50: 7.011667607 | BM50: 11.21696503 | BN50: 4.205297427 | BO50: 0.6344111734 | BP50: 0.2309622241 | BQ50: 0.8826805605 | BR50: 0.440351732 | BS50: 33753.37003 | BT50: -0.00806955982 | BU50: -204.5034576 | BV50: 7.015559004 | BW50: 11.21696503 | BX50: 4.20140603 | BY50: 0.634345244 | BZ50: 0.2308985712 | CA50: 0.8827417209 | CB50: 0.440215122 | CC50: 33755.70879 | CD50: -0.00872530848 | CE50: -220.9563824 | CF50: 7.020748266 | CG50: 11.21696503 | CH50: 4.196216769 | CI50: 0.6342573927 | CJ50: 0.2308136235 | CK50: 0.8828232071 | CL50: 0.440032839 | CM50: 33758.82479 | CN50: -0.009425222846 | CO50: -238.2345017 | CP50: 7.027668257 | CQ50: 11.21696503 | CR50: 4.189296777 | CS50: 0.6341403596 | CT50: 0.2307002279 | CU50: 0.8829317419 | CV50: 0.4397895631 | CW50: 33762.97512 | CX50: -0.01015928093 | CY50: -256.3844479 | CZ50: 7.036896213 | DA50: 11.21696503 | DB50: 4.180068821 | DC50: 0.6339845039 | DD50: 0.2305488053 | DE50: 0.8830762469 | DF50: 0.4394647975 | DG50: 33768.50093 | DH50: -0.01092901305 | DI50: -275.4496978 | DJ50: 7.049201891 | DK50: 11.21696503 | DL50: 4.167763143 | DM50: 0.6337770402 | DN50: 0.2303465104 | DO50: 0.8832685425 | DP50: 0.4390310872 | DQ50: 33775.85424 | DR50: -0.01173562259 | DS50: -295.4566903 | DT50: 7.065611777 | DU50: 11.21696503 | DV50: 4.151353258 | DW50: 0.6335010438 | DX50: 0.2300760853 | DY50: 0.8835242555 | DZ50: 0.438451602 | EA50: 33785.63261 | EB50: -0.01257931602 | EC50: -316.4163428 | ED50: 7.08749471 | EE50: 11.21696503 | EF50: 4.129470324 | EG50: 0.633134166 | EH50: 0.2297142846 | EI50: 0.883863986 | EJ50: 0.437676835 | EK50: 33798.62377 | EL50: -0.01345925944 | EM50: -338.3260835 | EN50: 7.116676072 | EO50: 11.21696503 | EP50: 4.100288963 | EQ50: 0.6326469916 | ER50: 0.2292296926 | ES50: 0.8843147851 | ET50: 0.4366400577 | EU50: 33815.86216 | EV50: -0.01437351506 | EW50: -361.1714439 | EX50: 7.155590042 | EY50: 11.21696503 | EZ50: 4.061374992 | FA50: 0.6320009728 | FB50: 0.2285796563 | FC50: 0.8849119932 | FD50: 0.435250996 | FE50: 33838.69917 | FF50: -0.01531890076 | FG50: -384.9275818 | FH50: 7.207482656 | FI50: 11.21696503 | FJ50: 4.009482379 | FK50: 0.6311458854 | FL50: 0.2277059074 | FM50: 0.8857014635 | FN50: 0.4333869059 | FO50: 33868.88822 | FP50: -0.01629076667 | FQ50: -409.5611293 | FR50: 7.276682568 | FS50: 11.21696503 | FT50: 3.940282466 | FU50: 0.6300167942 | FV50: 0.2265281743 | FW50: 0.8867421453 | FX50: 0.4308797379 | FY50: 33908.6835 | FZ50: -0.01728267396 | GA50: -435.0326346 | GB50: 7.368962135 | GC50: 11.21696503 | GD50: 3.8480029 | GE50: 0.6285306004 | GF50: 0.2249345968 | GG50: 0.8881088964 | GH50: 0.4274972015 | GI50: 33960.94754 | GJ50: -0.01828594057 | GK50: -461.299687 | GL50: 7.492018914 | GM50: 11.21696503 | GN50: 3.72494612 | GO50: 0.6265824014 | GP50: 0.2227668076 | GQ50: 0.8898952177 | GR50: 0.4229138589 | GS50: 34029.25579 | GT50: -0.01928898245 | GU50: -488.3205548 | GV50: 7.656117767 | GW50: 11.21696503 | GX50: 3.560847267 | GY50: 0.6240421511 | GZ50: 0.219795581 | HA50: 0.8922153193 | HB50: 0.4166649106 | HC50: 34117.9756 | HD50: -0.0202763084 | HE50: -516.0577584 | HF50: 7.874947105 | HG50: 11.21696503 | HH50: 3.34201793 | HI50: 0.6207524864 | HJ50: 0.2156785245 | HK50: 0.8952045387 | HL50: 0.4080675094 | HM50: 34232.28221 | HN50: -0.02122686878 | HO50: -544.4804446 | HP50: 8.166760716 | HQ50: 11.21696503 | HR50: 3.050204318 | HS50: 0.6165290538 | HT50: 0.2098801743 | HU50: 0.8990166787 | HV50: 0.3960746827 | HW50: 34378.057 | HX50: -0.02211106241 | HY50: -573.5637696 | HZ50: 8.555900421 | IA50: 11.21696503 | IB50: 2.661064613 | IC50: 0.6111651153 | ID50: 0.2015026301 | IE50: 0.9038164774 | IF50: 0.3789691882 | IG50: 34561.59948 | IH50: -0.02288455331 | II50: -603.2829626 | IJ50: 9.074826558 | IK50: 11.21696503 | IL50: 2.142138476 | IM50: 0.6044423626 | IN50: 0.1888601287 | IO50: 0.9097654931 | IP50: 0.3535973539 | IQ50: 34789.08759 | IR50: -0.02347294162 | IS50: =+INDEX($AK$28:$AK$82,MATCH(IS$25,$N$28:$N$82,0)) -> -633.5997339 | IT50: =+INDEX($AC$28:$AC$82,MATCH(IS$25,$N$28:$N$82,0)) -> 9.766825683 | IU50: 11.21696503 | IV50: =+IU50-IT50 -> 1.450139351 | IW50: =1/(0.1+IT50^0.2) -> 0.5961492997 | IX50: =+(IV50/($T$20+IV50))^0.3 -> 0.1680628439 | IY50: =+SQRT(EXP($T$15*(1-SQRT(28/IT50)))) -> 0.9170006533 | IZ50: =+$T$16*$T$17*IW50*IX50*IY50 -> 0.3128100961 | JA50: =+INDEX($AJ$28:$AJ$82,MATCH(IS$25,$N$28:$N$82,0)) -> 35065.75737 | JB50: =+IS50*(1+IZ50)/JA50 -> -0.02372103699
D51: 36 | E51: 140.3521432 | F51: 1.166829469 | G51: 12256.50843 | H51: 0.7692461136 | I51: 133.3521432 | J51: 101.941131 | N51: 24 | O51: 11.21696503 | P51: 0.8650346878 | Q51: 48.66972345 | R51: 0.93007241 | S51: 35565.61639 | T51: =+O51-Input!$F$11 -> 4.216965034 | U51: 0.231152825 | V51: 0.4407609051 | X51: 7.216965034 | Y51: =+X51-Input!$F$12 -> 4.216965034 | Z51: =+SQRT(Y51/(350*(Input!$F$10/$Q$4)^2+Y51)) -> 0.05676909726 | AA51: -19.00145365 | AB51: 24 | AC51: 11.92018914 | AD51: 12.62341325 | AE51: 0.7032241088 | AF51: 0.5741980098 | AG51: 0.1353171449 | AH51: 0.9355891857 | AI51: 0.2475050544 | AJ51: 35776.57581 | AK51: -695.6614468 | AL51: 22342.61956 | AM51: 0.6620752032 | AN51: 0.8765422376 | AP51: 24 | AQ51: 33746.34702 | AR51: 7 | AS51: 12.62341325 | AT51: 5.623413252 | AU51: 0.6346091077 | AV51: 0.2518084177 | AW51: 0.8824969026 | AX51: 0.4801468729 | AY51: 33746.34702 | AZ51: 1.480146873 | BA51: -2297.498035 | BB51: 7.005 | BC51: 12.62341325 | BD51: 5.618413252 | BE51: 0.6345242381 | BF51: 0.2517419059 | BG51: 0.8825756583 | BH51: 0.4799986853 | BI51: 33749.35861 | BJ51: -0.1007513686 | BK51: -189.1030035 | BL51: 7.011667607 | BM51: 12.62341325 | BN51: 5.611745645 | BO51: 0.6344111734 | BP51: 0.2516531454 | BQ51: 0.8826805605 | BR51: 0.4798009668 | BS51: 33753.37003 | BT51: -0.008290573863 | BU51: -204.5034576 | BV51: 7.015559004 | BW51: 12.62341325 | BX51: 5.607854248 | BY51: 0.634345244 | BZ51: 0.2516013076 | CA51: 0.8827417209 | CB51: 0.4796855162 | CC51: 33755.70879 | CD51: -0.008964433428 | CE51: -220.9563824 | CF51: 7.020748266 | CG51: 12.62341325 | CH51: 5.602664986 | CI51: 0.6342573927 | CJ51: 0.2515321408 | CK51: 0.8828232071 | CL51: 0.4795314953 | CM51: 33758.82479 | CN51: -0.009683747255 | CO51: -238.2345017 | CP51: 7.027668257 | CQ51: 12.62341325 | CR51: 5.595744995 | CS51: 0.6341403596 | CT51: 0.2514398344 | CU51: 0.8829317419 | CV51: 0.4793259891 | CW51: 33762.97512 | CX51: -0.0104382534 | CY51: -256.3844479 | CZ51: 7.036896213 | DA51: 12.62341325 | DB51: 5.586517038 | DC51: 0.6339845039 | DD51: 0.251316615 | DE51: 0.8830762469 | DF51: 0.4790517356 | DG51: 33768.50093 | DH51: -0.01122957348 | DI51: -275.4496978 | DJ51: 7.049201891 | DK51: 12.62341325 | DL51: 5.57421136 | DM51: 0.6337770402 | DN51: 0.2511520733 | DO51: 0.8832685425 | DP51: 0.4786856445 | DQ51: 33775.85424 | DR51: -0.01205901444 | DS51: -295.4566903 | DT51: 7.065611777 | DU51: 12.62341325 | DV51: 5.557801475 | DW51: 0.6335010438 | DX51: 0.25093225 | DY51: 0.8835242555 | DZ51: 0.4781967968 | EA51: 33785.63261 | EB51: -0.01292688932 | EC51: -316.4163428 | ED51: 7.08749471 | EE51: 12.62341325 | EF51: 5.535918541 | EG51: 0.633134166 | EH51: 0.2506383897 | EI51: 0.883863986 | EJ51: 0.4775437337 | EK51: 33798.62377 | EL51: -0.01383248583 | EM51: -338.3260835 | EN51: 7.116676072 | EO51: 12.62341325 | EP51: 5.50673718 | EQ51: 0.6326469916 | ER51: 0.2502452295 | ES51: 0.8843147851 | ET51: 0.4766707586 | EU51: 33815.86216 | EV51: -0.01477402031 | EW51: -361.1714439 | EX51: 7.155590042 | EY51: 12.62341325 | EZ51: 5.46782321 | FA51: 0.6320009728 | FB51: 0.2497186245 | FC51: 0.8849119932 | FD51: 0.4755028589 | FE51: 33838.69917 | FF51: -0.01574852199 | FG51: -384.9275818 | FH51: 7.207482656 | FI51: 12.62341325 | FJ51: 5.415930596 | FK51: 0.6311458854 | FL51: 0.2490122131 | FM51: 0.8857014635 | FN51: 0.4739386597 | FO51: 33868.88822 | FP51: -0.01675164653 | FQ51: -409.5611293 | FR51: 7.276682568 | FS51: 12.62341325 | FT51: 5.346730684 | FU51: 0.6300167942 | FV51: 0.248062654 | FW51: 0.8867421453 | FX51: 0.471840519 | FY51: 33908.6835 | FZ51: -0.01777741283 | GA51: -435.0326346 | GB51: 7.368962135 | GC51: 12.62341325 | GD51: 5.254451117 | GE51: 0.6285306004 | GF51: 0.2467826758 | GG51: 0.8881088964 | GH51: 0.4690203498 | GI51: 33960.94754 | GJ51: -0.01881784342 | GK51: -461.299687 | GL51: 7.492018914 | GM51: 12.62341325 | GN51: 5.131394338 | GO51: 0.6265824014 | GP51: 0.2450506436 | GQ51: 0.8898952177 | GR51: 0.4652188289 | GS51: 34029.25579 | GT51: -0.0198624675 | GU51: -488.3205548 | GV51: 7.656117767 | GW51: 12.62341325 | GX51: 4.967295485 | GY51: 0.6240421511 | GZ51: 0.2426943142 | HA51: 0.8922153193 | HB51: 0.4600738755 | HC51: 34117.9756 | HD51: -0.02089760815 | HE51: -516.0577584 | HF51: 7.874947105 | HG51: 12.62341325 | HH51: 4.748466147 | HI51: 0.6207524864 | HJ51: 0.2394643106 | HK51: 0.8952045387 | HL51: 0.4530706293 | HM51: 34232.28221 | HN51: -0.02190529884 | HO51: -544.4804446 | HP51: 8.166760716 | HQ51: 12.62341325 | HR51: 4.456652536 | HS51: 0.6165290538 | HT51: 0.2349880176 | HU51: 0.8990166787 | HV51: 0.4434568669 | HW51: 34378.057 | HX51: -0.02286150252 | HY51: -573.5637696 | HZ51: 8.555900421 | IA51: 12.62341325 | IB51: 4.067512831 | IC51: 0.6111651153 | ID51: 0.2286824782 | IE51: 0.9038164774 | IF51: 0.4300867589 | IG51: 34561.59948 | IH51: -0.02373287014 | II51: -603.2829626 | IJ51: 9.074826558 | IK51: 12.62341325 | IL51: 3.548586694 | IM51: 0.6044423626 | IN51: 0.2195697227 | IO51: 0.9097654931 | IP51: 0.4110940381 | IQ51: 34789.08759 | IR51: -0.02447000053 | IS51: -633.5997339 | IT51: 9.766825683 | IU51: 12.62341325 | IV51: 2.856587569 | IW51: 0.5961492997 | IX51: 0.2058128307 | IY51: 0.9170006533 | IZ51: 0.3830729617 | JA51: 35065.75737 | JB51: -0.02499060982 | JC51: =+INDEX($AK$28:$AK$82,MATCH(JC$25,$N$28:$N$82,0)) -> -664.4396711 | JD51: =+INDEX($AC$28:$AC$82,MATCH(JC$25,$N$28:$N$82,0)) -> 10.68962135 | JE51: 12.62341325 | JF51: =+JE51-JD51 -> 1.933791905 | JG51: =1/(0.1+JD51^0.2) -> 0.586106854 | JH51: =+(JF51/($T$20+JF51))^0.3 -> 0.1831715097 | JI51: =+SQRT(EXP($T$15*(1-SQRT(28/JD51)))) -> 0.9256069608 | JJ51: =+$T$16*$T$17*JG51*JH51*JI51 -> 0.3383340498 | JK51: =+INDEX($AJ$28:$AJ$82,MATCH(JC$25,$N$28:$N$82,0)) -> 35394.85931 | JL51: =+JC51*(1+JJ51)/JK51 -> -0.02512348554
D52: 37 | E52: 184.827941 | F52: 1.24829358 | G52: 11457.85331 | H52: 0.761821841 | I52: 177.827941 | J52: 115.9400446 | N52: 25 | O52: 12.62341325 | P52: 0.8848543499 | Q52: 49.78484344 | R52: 0.9406669708 | S52: 35970.74838 | T52: =+O52-Input!$F$11 -> 5.623413252 | U52: 0.2518084177 | V52: 0.4801468729 | X52: 8.623413252 | Y52: =+X52-Input!$F$12 -> 5.623413252 | Z52: =+SQRT(Y52/(350*(Input!$F$10/$Q$4)^2+Y52)) -> 0.06552072779 | AA52: -21.93075339 | AB52: 25 | AC52: 13.56117767 | AD52: 14.49894209 | AE52: 0.9377644207 | AF52: 0.5603951081 | AG52: 0.1475018819 | AH52: 0.9468505065 | AI52: 0.2664757437 | AJ52: 36207.20444 | AK52: -727.0214322 | AL52: 21615.59813 | AM52: 0.6405314956 | AN52: 0.8695529249 | AP52: 25 | AQ52: 33746.34702 | AR52: 7 | AS52: 14.49894209 | AT52: 7.498942093 | AU52: 0.6346091077 | AV52: 0.2742412976 | AW52: 0.8824969026 | AX52: 0.5229217622 | AY52: 33746.34702 | AZ52: 1.522921762 | BA52: -2297.498035 | BB52: 7.005 | BC52: 14.49894209 | BD52: 7.493942093 | BE52: 0.6345242381 | BF52: 0.2741871638 | BG52: 0.8825756583 | BH52: 0.5227952719 | BI52: 33749.35861 | BJ52: -0.1036647595 | BK52: -189.1030035 | BL52: 7.011667607 | BM52: 14.49894209 | BN52: 7.487274486 | BO52: 0.6344111734 | BP52: 0.2741149348 | BQ52: 0.8826805605 | BR52: 0.5226265323 | BS52: 33753.37003 | BT52: -0.008530503774 | BU52: -204.5034576 | BV52: 7.015559004 | BW52: 14.49894209 | BX52: 7.483383089 | BY52: 0.634345244 | BZ52: 0.2740727586 | CA52: 0.8827417209 | CB52: 0.5225280185 | CC52: 33755.70879 | CD52: -0.009223987742 | CE52: -220.9563824 | CF52: 7.020748266 | CG52: 14.49894209 | CH52: 7.478193828 | CI52: 0.6342573927 | CJ52: 0.2740164914 | CK52: 0.8828232071 | CL52: 0.5223966106 | CM52: 33758.82479 | CN52: -0.009964305623 | CO52: -238.2345017 | CP52: 7.027668257 | CQ52: 14.49894209 | CR52: 7.471273836 | CS52: 0.6341403596 | CT52: 0.2739414142 | CU52: 0.8829317419 | CV52: 0.5222213084 | CW52: 33762.97512 | CX52: -0.01074092652 | CY52: -256.3844479 | CZ52: 7.036896213 | DA52: 14.49894209 | DB52: 7.46204588 | DC52: 0.6339845039 | DD52: 0.2738412194 | DE52: 0.8830762469 | DF52: 0.52198742 | DG52: 33768.50093 | DH52: -0.01155555898 | DI52: -275.4496978 | DJ52: 7.049201891 | DK52: 14.49894209 | DL52: 7.449740202 | DM52: 0.6337770402 | DN52: 0.2737074692 | DO52: 0.8832685425 | DP52: 0.5216753124 | DQ52: 33775.85424 | DR52: -0.01240960486 | DS52: -295.4566903 | DT52: 7.065611777 | DU52: 14.49894209 | DV52: 7.433330317 | DW52: 0.6335010438 | DX52: 0.2735288637 | DY52: 0.8835242555 | DZ52: 0.521258732 | EA52: 33785.63261 | EB52: -0.01330346764 | EC52: -316.4163428 | ED52: 7.08749471 | EE52: 14.49894209 | EF52: 7.411447383 | EG52: 0.633134166 | EH52: 0.2732902488 | EI52: 0.883863986 | EJ52: 0.5207025385 | EK52: 33798.62377 | EL52: -0.01423653043 | EM52: -338.3260835 | EN52: 7.116676072 | EO52: 14.49894209 | EP52: 7.382266022 | EQ52: 0.6326469916 | ER52: 0.2729712633 | ES52: 0.8843147851 | ET52: 0.5199596387 | EU52: 33815.86216 | EV52: -0.01520712348 | EW52: -361.1714439 | EX52: 7.155590042 | EY52: 14.49894209 | EZ52: 7.343352051 | FA52: 0.6320009728 | FB52: 0.2725444792 | FC52: 0.8849119932 | FD52: 0.5189668142 | FE52: 33838.69917 | FF52: -0.01621242692 | FG52: -384.9275818 | FH52: 7.207482656 | FI52: 14.49894209 | FJ52: 7.291459438 | FK52: 0.6311458854 | FL52: 0.2719728229 | FM52: 0.8857014635 | FN52: 0.5176390088 | FO52: 33868.88822 | FP52: -0.01724831089 | FQ52: -409.5611293 | FR52: 7.276682568 | FS52: 14.49894209 | FT52: 7.222259525 | FU52: 0.6300167942 | FV52: 0.2712059509 | FW52: 0.8867421453 | FX52: 0.5158614348 | FY52: 33908.6835 | FZ52: -0.0183091131 | GA52: -435.0326346 | GB52: 7.368962135 | GC52: 14.49894209 | GD52: 7.129979959 | GE52: 0.6285306004 | GF52: 0.2701750727 | GG52: 0.8881088964 | GH52: 0.5134785361 | GI52: 33960.94754 | GJ52: -0.01938734348 | GK52: -461.299687 | GL52: 7.492018914 | GM52: 14.49894209 | GN52: 7.006923179 | GO52: 0.6265824014 | GP52: 0.2687853926 | GQ52: 0.8898952177 | GR52: 0.5102782989 | GS52: 34029.25579 | GT52: -0.02047329248 | GU52: -488.3205548 | GV52: 7.656117767 | GW52: 14.49894209 | GX52: 6.842824326 | GY52: 0.6240421511 | GZ52: 0.266904759 | HA52: 0.8922153193 | HB52: 0.5059694426 | HC52: 34117.9756 | HD52: -0.02155449791 | HE52: -516.0577584 | HF52: 7.874947105 | HG52: 14.49894209 | HH52: 6.623994989 | HI52: 0.6207524864 | HJ52: 0.2643459834 | HK52: 0.8952045387 | HL52: 0.5001471858 | HM52: 34232.28221 | HN52: -0.02261498632 | HO52: -544.4804446 | HP52: 8.166760716 | HQ52: 14.49894209 | HR52: 6.332181377 | HS52: 0.6165290538 | HT52: 0.2608379538 | HU52: 0.8990166787 | HV52: 0.4922394891 | HW52: 34378.057 | HX52: -0.02363412279 | HY52: -573.5637696 | HZ52: 8.555900421 | IA52: 14.49894209 | IB52: 5.943041672 | IC52: 0.6111651153 | ID52: 0.2559754015 | IE52: 0.9038164774 | IF52: 0.481416992 | IG52: 34561.59948 | IH52: -0.02458471619 | II52: -603.2829626 | IJ52: 9.074826558 | IK52: 14.49894209 | IL52: 5.424115535 | IM52: 0.6044423626 | IN52: 0.2491239537 | IO52: 0.9097654931 | IP52: 0.4664275696 | IQ52: 34789.08759 | IR52: -0.02542954788 | IS52: -633.5997339 | IT52: 9.766825683 | IU52: 14.49894209 | IV52: 4.73211641 | IW52: 0.5961492997 | IX52: 0.2392187648 | IY52: 0.9170006533 | IZ52: 0.4452503783 | JA52: 35065.75737 | JB52: -0.02611408747 | JC52: -664.4396711 | JD52: 10.68962135 | JE52: 14.49894209 | JF52: 3.809320746 | JG52: 0.586106854 | JH52: 0.2242585292 | JI52: 0.9256069608 | JJ52: 0.4142254247 | JK52: 35394.85931 | JL52: -0.02654813423 | JM52: =+INDEX($AK$28:$AK$82,MATCH(JM$25,$N$28:$N$82,0)) -> -695.6614468 | JN52: =+INDEX($AC$28:$AC$82,MATCH(JM$25,$N$28:$N$82,0)) -> 11.92018914 | JO52: =+$AD52 -> 14.49894209 | JP52: =+JO52-JN52 -> 2.57875295 | JQ52: =1/(0.1+JN52^0.2) -> 0.5741980098 | JR52: =+(JP52/($T$20+JP52))^0.3 -> 0.1996210551 | JS52: =+SQRT(EXP($T$15*(1-SQRT(28/JN52)))) -> 0.9355891857 | JT52: =+$T$16*$T$17*JQ52*JR52*JS52 -> 0.3651216566 | JU52: =+INDEX($AJ$28:$AJ$82,MATCH(JM$25,$N$28:$N$82,0)) -> 35776.57581 | JV52: =+JM52*(1+JT52)/JU52 -> -0.02654425375
D53: 38 | E53: 244.1373706 | F53: 1.329347968 | G53: 10714.51337 | H53: 0.7551300997 | I53: 237.1373706 | J53: 131.2844568 | N53: 26 | O53: 14.49894209 | P53: 0.9071777787 | Q53: 51.04083366 | R53: 0.9524588068 | S53: 36421.66372 | T53: =+O53-Input!$F$11 -> 7.498942093 | U53: 0.2742412976 | V53: 0.5229217622 | X53: 10.49894209 | Y53: =+X53-Input!$F$12 -> 7.498942093 | Z53: =+SQRT(Y53/(350*(Input!$F$10/$Q$4)^2+Y53)) -> 0.07560804779 | AA53: -25.30712809 | AB53: 26 | AC53: 15.74947105 | AD53: 17 | AE53: 1.250528953 | AF53: 0.5447767839 | AG53: 0.1607769928 | AH53: 0.9591867726 | AI53: 0.2860421569 | AJ53: 36678.93858 | AK53: -758.1391994 | AL53: 20857.45893 | AM53: 0.6180656803 | AN53: 0.8617669092 | AP53: 26 | AQ53: 33746.34702 | AR53: 7 | AS53: 17 | AT53: 10 | AU53: 0.6346091077 | AV53: 0.2985739153 | AW53: 0.8824969026 | AX53: 0.5693190605 | AY53: 33746.34702 | AZ53: 1.569319061 | BA53: -2297.498035 | BB53: 7.005 | BC53: 17 | BD53: 9.995 | BE53: 0.6345242381 | BF53: 0.298529918 | BG53: 0.8825756583 | BH53: 0.5692098328 | BI53: 33749.35861 | BJ53: -0.1068244451 | BK53: -189.1030035 | BL53: 7.011667607 | BM53: 17 | BN53: 9.988332393 | BO53: 0.6344111734 | BP53: 0.2984712219 | BQ53: 0.8826805605 | BR53: 0.5690641402 | BS53: 33753.37003 | BT53: -0.008790670126 | BU53: -204.5034576 | BV53: 7.015559004 | BW53: 17 | BX53: 9.984440996 | BY53: 0.634345244 | BZ53: 0.2984369521 | CA53: 0.8827417209 | CB53: 0.5689790916 | CC53: 33755.70879 | CD53: -0.009505403994 | CE53: -220.9563824 | CF53: 7.020748266 | CG53: 17 | CH53: 9.979251734 | CI53: 0.6342573927 | CJ53: 0.2983912377 | CK53: 0.8828232071 | CL53: 0.5688656563 | CM53: 33758.82479 | CN53: -0.01026845224 | CO53: -238.2345017 | CP53: 7.027668257 | CQ53: 17 | CR53: 9.972331743 | CS53: 0.6341403596 | CT53: 0.2983302497 | CU53: 0.8829317419 | CV53: 0.5687143502 | CW53: 33762.97512 | CX53: -0.01106898549 | CY53: -256.3844479 | CZ53: 7.036896213 | DA53: 17 | DB53: 9.963103787 | DC53: 0.6339845039 | DD53: 0.2982488733 | DE53: 0.8830762469 | DF53: 0.5685125132 | DG53: 33768.50093 | DH53: -0.01190879676 | DI53: -275.4496978 | DJ53: 7.049201891 | DK53: 17 | DL53: 9.950798109 | DM53: 0.6337770402 | DN53: 0.2981402713 | DO53: 0.8832685425 | DP53: 0.5682432401 | DQ53: 33775.85424 | DR53: -0.0127893768 | DS53: -295.4566903 | DT53: 7.065611777 | DU53: 17 | DV53: 9.934388223 | DW53: 0.6335010438 | DX53: 0.297995297 | DY53: 0.8835242555 | DZ53: 0.5678839467 | EA53: 33785.63261 | EB53: -0.01371120698 | EC53: -316.4163428 | ED53: 7.08749471 | EE53: 17 | EF53: 9.91250529 | EG53: 0.633134166 | EH53: 0.297801701 | EI53: 0.883863986 | EJ53: 0.5674044441 | EK53: 33798.62377 | EL53: -0.01467374486 | EM53: -338.3260835 | EN53: 7.116676072 | EO53: 17 | EP53: 9.883323928 | EQ53: 0.6326469916 | ER53: 0.2975430553 | ES53: 0.8843147851 | ET53: 0.5667643462 | EU53: 33815.86216 | EV53: -0.01567540234 | EW53: -361.1714439 | EX53: 7.155590042 | EY53: 17 | EZ53: 9.844409958 | FA53: 0.6320009728 | FB53: 0.2971972855 | FC53: 0.8849119932 | FD53: 0.5659095679 | FE53: 33838.69917 | FF53: -0.0167134622 | FG53: -384.9275818 | FH53: 7.207482656 | FI53: 17 | FJ53: 9.792517344 | FK53: 0.6311458854 | FL53: 0.2967346536 | FM53: 0.8857014635 | FN53: 0.5647675761 | FO53: 33868.88822 | FP53: -0.01778393773 | FQ53: -409.5611293 | FR53: 7.276682568 | FS53: 17 | FT53: 9.723317432 | FU53: 0.6300167942 | FV53: 0.2961149595 | FW53: 0.8867421453 | FX53: 0.5632409148 | FY53: 33908.6835 | FZ53: -0.01888137929 | GA53: -435.0326346 | GB53: 7.368962135 | GC53: 17 | GD53: 9.631037865 | GE53: 0.6285306004 | GF53: 0.2952836068 | GG53: 0.8881088964 | GH53: 0.5611983097 | GI53: 33960.94754 | GJ53: -0.0199986238 | GK53: -461.299687 | GL53: 7.492018914 | GM53: 17 | GN53: 9.507981086 | GO53: 0.6265824014 | GP53: 0.2941659808 | GQ53: 0.8898952177 | GR53: 0.5584623285 | GS53: 34029.25579 | GT53: -0.0211264739 | GU53: -488.3205548 | GV53: 7.656117767 | GW53: 17 | GX53: 9.343882233 | GY53: 0.6240421511 | GZ53: 0.2926592361 | HA53: 0.8922153193 | HB53: 0.5547920206 | HC53: 34117.9756 | HD53: -0.02225328112 | HE53: -516.0577584 | HF53: 7.874947105 | HG53: 17 | HH53: 9.125052895 | HI53: 0.6207524864 | HJ53: 0.2906199574 | HK53: 0.8952045387 | HL53: 0.5498580003 | HM53: 34232.28221 | HN53: -0.02336438571 | HO53: -544.4804446 | HP53: 8.166760716 | HQ53: 17 | HR53: 8.833239284 | HS53: 0.6165290538 | HT53: 0.2878449246 | HU53: 0.8990166787 | HV53: 0.5432056055 | HW53: 34378.057 | HX53: -0.0244413253 | HY53: -573.5637696 | HZ53: 8.555900421 | IA53: 17 | IB53: 8.444099579 | IC53: 0.6111651153 | ID53: 0.2840396676 | IE53: 0.9038164774 | IF53: 0.5341979019 | IG53: 34561.59948 | IH53: -0.02546063681 | II53: -603.2829626 | IJ53: 9.074826558 | IK53: 17 | IL53: 7.925173442 | IM53: 0.6044423626 | IN53: 0.2787637459 | IO53: 0.9097654931 | IP53: 0.5219212948 | IQ53: 34789.08759 | IR53: -0.02639187318 | IS53: -633.5997339 | IT53: 9.766825683 | IU53: 17 | IV53: 7.233174317 | IW53: 0.5961492997 | IX53: 0.2713272572 | IY53: 0.9170006533 | IZ53: 0.5050129075 | JA53: 35065.75737 | JB53: -0.02719393075 | JC53: -664.4396711 | JD53: 10.68962135 | JE53: 17 | JF53: 6.310378653 | JG53: 0.586106854 | JH53: 0.2605712483 | JI53: 0.9256069608 | JJ53: 0.4812982426 | JK53: 35394.85931 | JL53: -0.02780723914 | JM53: -695.6614468 | JN53: 11.92018914 | JO53: 17 | JP53: 5.079810857 | JQ53: 0.5741980098 | JR53: 0.2443158001 | JS53: 0.9355891857 | JT53: 0.4468716471 | JU53: 35776.57581 | JV53: -0.02813385017 | JW53: =+INDEX($AK$28:$AK$82,MATCH(JW$25,$N$28:$N$82,0)) -> -727.0214322 | JX53: =+INDEX($AC$28:$AC$82,MATCH(JW$25,$N$28:$N$82,0)) -> 13.56117767 | JY53: 17 | JZ53: =+JY53-JX53 -> 3.438822327 | KA53: =1/(0.1+JX53^0.2) -> 0.5603951081 | KB53: =+(JZ53/($T$20+JZ53))^0.3 -> 0.2175226513 | KC53: =+SQRT(EXP($T$15*(1-SQRT(28/JX53)))) -> 0.9468505065 | KD53: =+$T$16*$T$17*KA53*KB53*KC53 -> 0.3929747169 | KE53: =+INDEX($AJ$28:$AJ$82,MATCH(JW$25,$N$28:$N$82,0)) -> 36207.20444 | KF53: =+JW53*(1+KD53)/KE53 -> -0.02797019238
D54: 39 | E54: 323.227766 | F54: 1.408303068 | G54: 10035.94832 | H54: 0.749149326 | I54: 316.227766 | J54: 147.8590618 | N54: 27 | O54: 17 | P54: 0.93160677 | Q54: 52.41528981 | R54: 0.965197788 | S54: 36908.79753 | T54: =+O54-Input!$F$11 -> 10 | U54: 0.2985739153 | V54: 0.5693190605 | X54: 13 | Y54: =+X54-Input!$F$12 -> 10 | Z54: =+SQRT(Y54/(350*(Input!$F$10/$Q$4)^2+Y54)) -> 0.08722769688 | AA54: -29.19639591 | AB54: 27 | AC54: 18.66760716 | AD54: 20.33521432 | AE54: 1.667607161 | AF54: 0.5275280962 | AG54: 0.1752369714 | AH54: 0.9723015827 | AI54: 0.3060248523 | AJ54: 37180.44395 | AK54: -788.468829 | AL54: 20068.9901 | AM54: 0.5947011121 | AN54: 0.8532721915 | AP54: 27 | AQ54: 33746.34702 | AR54: 7 | AS54: 20.33521432 | AT54: 13.33521432 | AU54: 0.6346091077 | AV54: 0.3249234884 | AW54: 0.8824969026 | AX54: 0.6195622781 | AY54: 33746.34702 | AZ54: 1.619562278 | BA54: -2297.498035 | BB54: 7.005 | BC54: 20.33521432 | BD54: 13.33021432 | BE54: 0.6345242381 | BF54: 0.3248877967 | BG54: 0.8825756583 | BH54: 0.6194666506 | BI54: 33749.35861 | BJ54: -0.1102456935 | BK54: -189.1030035 | BL54: 7.011667607 | BM54: 20.33521432 | BN54: 13.32354671 | BO54: 0.6344111734 | BP54: 0.3248401858 | BQ54: 0.8826805605 | BR54: 0.6193391104 | BS54: 33753.37003 | BT54: -0.00907233527 | BU54: -204.5034576 | BV54: 7.015559004 | BW54: 20.33521432 | BX54: 13.31965532 | BY54: 0.634345244 | BZ54: 0.3248123908 | CA54: 0.8827417209 | CB54: 0.6192646645 | CC54: 33755.70879 | CD54: -0.009810050938 | CE54: -220.9563824 | CF54: 7.020748266 | CG54: 20.33521432 | CH54: 13.31446606 | CI54: 0.6342573927 | CJ54: 0.3247753163 | CK54: 0.8828232071 | CL54: 0.6191653779 | CM54: 33758.82479 | CN54: -0.01059767118 | CO54: -238.2345017 | CP54: 7.027668257 | CQ54: 20.33521432 | CR54: 13.30754606 | CS54: 0.6341403596 | CT54: 0.3247258602 | CU54: 0.8829317419 | CV54: 0.6190329568 | CW54: 33762.97512 | CX54: -0.01142403797 | CY54: -256.3844479 | CZ54: 7.036896213 | DA54: 20.33521432 | DB54: 13.29831811 | DC54: 0.6339845039 | DD54: 0.3246598802 | DE54: 0.8830762469 | DF54: 0.6188563343 | DG54: 33768.50093 | DH54: -0.01229102791 | DI54: -275.4496978 | DJ54: 7.049201891 | DK54: 20.33521432 | DL54: 13.28601243 | DM54: 0.6337770402 | DN54: 0.3245718424 | DO54: 0.8832685425 | DP54: 0.6186207405 | DQ54: 33775.85424 | DR54: -0.01320021666 | DS54: -295.4566903 | DT54: 7.065611777 | DU54: 20.33521432 | DV54: 13.26960254 | DW54: 0.6335010438 | DX54: 0.3244543494 | DY54: 0.8835242555 | DZ54: 0.6183064576 | EA54: 33785.63261 | EB54: -0.01415215383 | EC54: -316.4163428 | ED54: 7.08749471 | EE54: 20.33521432 | EF54: 13.24771961 | EG54: 0.633134166 | EH54: 0.3242975047 | EI54: 0.883863986 | EJ54: 0.6178871536 | EK54: 33798.62377 | EL54: -0.01514635447 | EM54: -338.3260835 | EN54: 7.116676072 | EO54: 20.33521432 | EP54: 13.21853825 | EQ54: 0.6326469916 | ER54: 0.3240880542 | ES54: 0.8843147851 | ET54: 0.6173276468 | EU54: 33815.86216 | EV54: -0.01618128575 | EW54: -361.1714439 | EX54: 7.155590042 | EY54: 20.33521432 | EZ54: 13.17962428 | FA54: 0.6320009728 | FB54: 0.3238082214 | FC54: 0.8849119932 | FD54: 0.6165809029 | FE54: 33838.69917 | FF54: -0.01725429385 | FG54: -384.9275818 | FH54: 7.207482656 | FI54: 20.33521432 | FJ54: 13.12773167 | FK54: 0.6311458854 | FL54: 0.3234341179 | FM54: 0.8857014635 | FN54: 0.6155839927 | FO54: 33868.88822 | FP54: -0.01836147781 | FQ54: -409.5611293 | FR54: 7.276682568 | FS54: 20.33521432 | FT54: 13.05853175 | FU54: 0.6300167942 | FV54: 0.3229335592 | FW54: 0.8867421453 | FX54: 0.6142526322 | FY54: 33908.6835 | FZ54: -0.01949751695 | GA54: -435.0326346 | GB54: 7.368962135 | GC54: 20.33521432 | GD54: 12.96625219 | GE54: 0.6285306004 | GF54: 0.3222630316 | GG54: 0.8881088964 | GH54: 0.6124737861 | GI54: 33960.94754 | GJ54: -0.02065545193 | GK54: -461.299687 | GL54: 7.492018914 | GM54: 20.33521432 | GN54: 12.84319541 | GO54: 0.6265824014 | GP54: 0.3213634283 | GQ54: 0.8898952177 | GR54: 0.6100955929 | GS54: 34029.25579 | GT54: -0.02182641306 | GU54: -488.3205548 | GV54: 7.656117767 | GW54: 20.33521432 | GX54: 12.67909655 | GY54: 0.6240421511 | GZ54: 0.3201539515 | HA54: 0.8922153193 | HB54: 0.6069135559 | HC54: 34117.9756 | HD54: -0.02299928133 | HE54: -516.0577584 | HF54: 7.874947105 | HG54: 20.33521432 | HH54: 12.46026722 | HI54: 0.6207524864 | HJ54: 0.3185232001 | HK54: 0.8952045387 | HL54: 0.6026514195 | HM54: 34232.28221 | HN54: -0.02416025592 | HO54: -544.4804446 | HP54: 8.166760716 | HQ54: 20.33521432 | HR54: 12.16845361 | HS54: 0.6165290538 | HT54: 0.3163157671 | HU54: 0.8990166787 | HV54: 0.5969342625 | HW54: 34378.057 | HX54: -0.02529228098 | HY54: -573.5637696 | HZ54: 8.555900421 | IA54: 20.33521432 | IB54: 11.7793139 | IC54: 0.6111651153 | ID54: 0.3133113309 | IE54: 0.9038164774 | IF54: 0.5892495827 | IG54: 34561.59948 | IH54: -0.02637424179 | II54: -603.2829626 | IJ54: 9.074826558 | IK54: 20.33521432 | IL54: 11.26038776 | IM54: 0.6044423626 | IN54: 0.3091904418 | IO54: 0.9097654931 | IP54: 0.578888317 | IQ54: 34789.08759 | IR54: -0.02737974714 | IS54: -633.5997339 | IT54: 9.766825683 | IU54: 20.33521432 | IV54: 10.56838864 | IW54: 0.5961492997 | IX54: 0.3034749305 | IY54: 0.9170006533 | IZ54: 0.5648483626 | JA54: 35065.75737 | JB54: -0.02827509173 | JC54: -664.4396711 | JD54: 10.68962135 | JE54: 20.33521432 | JF54: 9.645592974 | JG54: 0.586106854 | JH54: 0.2954151158 | JI54: 0.9256069608 | JJ54: 0.5456579612 | JK54: 35394.85931 | JL54: -0.02901541319 | JM54: -695.6614468 | JN54: 11.92018914 | JO54: 20.33521432 | JP54: 8.415025179 | JQ54: 0.5741980098 | JR54: 0.2837503302 | JS54: 0.9355891857 | JT54: 0.5190003158 | JU54: 35776.57581 | JV54: -0.02953636377 | JW54: -727.0214322 | JX54: 13.56117767 | JY54: 20.33521432 | JZ54: 6.774036649 | KA54: 0.5603951081 | KB54: 0.2661068154 | KC54: 0.9468505065 | KD54: 0.480746487 | KE54: 36207.20444 | KF54: -0.0297326029 | KG54: =+INDEX($AK$28:$AK$82,MATCH(KG$25,$N$28:$N$82,0)) -> -758.1391994 | KH54: =+INDEX($AC$28:$AC$82,MATCH(KG$25,$N$28:$N$82,0)) -> 15.74947105 | KI54: 20.33521432 | KJ54: =+KI54-KH54 -> 4.585743275 | KK54: =1/(0.1+KH54^0.2) -> 0.5447767839 | KL54: =+(KJ54/($T$20+KJ54))^0.3 -> 0.2369931486 | KM54: =+SQRT(EXP($T$15*(1-SQRT(28/KH54)))) -> 0.9591867726 | KN54: =+$T$16*$T$17*KK54*KL54*KM54 -> 0.4216401255 | KO54: =+INDEX($AJ$28:$AJ$82,MATCH(KG$25,$N$28:$N$82,0)) -> 36678.93858 | KP54: =+KG54*(1+KN54)/KO54 -> -0.0293847409
D55: 40 | E55: 428.6965034 | F55: 1.483409491 | G55: 9428.360389 | H55: 0.7438159487 | I55: 421.6965034 | J55: 165.4459523 | N55: 28 | O55: 20.33521432 | P55: 0.9575706464 | Q55: 53.8761037 | R55: 0.9785553875 | S55: 37419.58707 | T55: =+O55-Input!$F$11 -> 13.33521432 | U55: 0.3249234884 | V55: 0.6195622781 | X55: 16.33521432 | Y55: =+X55-Input!$F$12 -> 13.33521432 | Z55: =+SQRT(Y55/(350*(Input!$F$10/$Q$4)^2+Y55)) -> 0.100601408 | AA55: -33.67277415 | AB55: 28 | AC55: 22.55900421 | AD55: 24.7827941 | AE55: 2.223789889 | AF55: 0.5089223695 | AG55: 0.190983106 | AH55: 0.9858403466 | AI55: 0.3262401823 | AJ55: 37698.16115 | AK55: -817.277886 | AL55: 19251.71222 | AM55: 0.5704828497 | AN55: 0.8441892231 | AP55: 28 | AQ55: 33746.34702 | AR55: 7 | AS55: 24.7827941 | AT55: 17.7827941 | AU55: 0.6346091077 | AV55: 0.3533949432 | AW55: 0.8824969026 | AX55: 0.6738514878 | AY55: 33746.34702 | AZ55: 1.673851488 | BA55: -2297.498035 | BB55: 7.005 | BC55: 24.7827941 | BD55: 17.7777941 | BE55: 0.6345242381 | BF55: 0.353366061 | BG55: 0.8825756583 | BH55: 0.673766428 | BI55: 33749.35861 | BJ55: -0.1139421677 | BK55: -189.1030035 | BL55: 7.011667607 | BM55: 24.7827941 | BN55: 17.77112649 | BO55: 0.6344111734 | BP55: 0.3533275367 | BQ55: 0.8826805605 | BR55: 0.6736529895 | BS55: 33753.37003 | BT55: -0.009376628372 | BU55: -204.5034576 | BV55: 7.015559004 | BW55: 24.7827941 | BX55: 17.7672351 | BY55: 0.634345244 | BZ55: 0.3533050479 | CA55: 0.8827417209 | CB55: 0.6735867787 | CC55: 33755.70879 | CD55: -0.01013915261 | CE55: -220.9563824 | CF55: 7.020748266 | CG55: 24.7827941 | CH55: 17.76204583 | CI55: 0.6342573927 | CJ55: 0.353275053 | CK55: 0.8828232071 | CL55: 0.6734984795 | CM55: 33758.82479 | CN55: -0.01095328917 | CO55: -238.2345017 | CP55: 7.027668257 | CQ55: 24.7827941 | CR55: 17.75512584 | CS55: 0.6341403596 | CT55: 0.353235044 | CU55: 0.8829317419 | CV55: 0.6733807205 | CW55: 33762.97512 | CX55: -0.01180752054 | CY55: -256.3844479 | CZ55: 7.036896213 | DA55: 24.7827941 | DB55: 17.74589789 | DC55: 0.6339845039 | DD55: 0.3531816731 | DE55: 0.8830762469 | DF55: 0.6732236685 | DG55: 33768.50093 | DH55: -0.01270380723 | DI55: -275.4496978 | DJ55: 7.049201891 | DK55: 24.7827941 | DL55: 17.73359221 | DM55: 0.6337770402 | DN55: 0.35311047 | DO55: 0.8832685425 | DP55: 0.6730142047 | DQ55: 33775.85424 | DR55: -0.01364380761 | DS55: -295.4566903 | DT55: 7.065611777 | DU55: 24.7827941 | DV55: 17.71718232 | DW55: 0.6335010438 | DX55: 0.3530154621 | DY55: 0.8835242555 | DZ55: 0.6727348246 | EA55: 33785.63261 | EB55: -0.01462813205 | EC55: -316.4163428 | ED55: 7.08749471 | EE55: 24.7827941 | EF55: 17.69529939 | EG55: 0.633134166 | EH55: 0.3528886656 | EI55: 0.883863986 | EJ55: 0.6723621673 | EK55: 33798.62377 | EL55: -0.01565633927 | EM55: -338.3260835 | EN55: 7.116676072 | EO55: 24.7827941 | EP55: 17.66611803 | EQ55: 0.6326469916 | ER55: 0.352719399 | ES55: 0.8843147851 | ET55: 0.6718650494 | EU55: 33815.86216 | EV55: -0.01672692985 | EW55: -361.1714439 | EX55: 7.155590042 | EY55: 24.7827941 | EZ55: 17.62720406 | FA55: 0.6320009728 | FB55: 0.3524933561 | FC55: 0.8849119932 | FD55: 0.6712018331 | FE55: 33838.69917 | FF55: -0.0178372808 | FG55: -384.9275818 | FH55: 7.207482656 | FI55: 24.7827941 | FJ55: 17.57531144 | FK55: 0.6311458854 | FL55: 0.3521913475 | FM55: 0.8857014635 | FN55: 0.6703169019 | FO55: 33868.88822 | FP55: -0.01898352971 | FQ55: -409.5611293 | FR55: 7.276682568 | FS55: 24.7827941 | FT55: 17.50611153 | FU55: 0.6300167942 | FV55: 0.3517875841 | FW55: 0.8867421453 | FX55: 0.6691359364 | FY55: 33908.6835 | FZ55: -0.020160417 | GA55: -435.0326346 | GB55: 7.368962135 | GC55: 24.7827941 | GD55: 17.41383197 | GE55: 0.6285306004 | GF55: 0.3512473154 | GG55: 0.8881088964 | GH55: 0.6675595772 | GI55: 33960.94754 | GJ55: -0.02136108939 | GK55: -461.299687 | GL55: 7.492018914 | GM55: 24.7827941 | GN55: 17.29077519 | GO55: 0.6265824014 | GP55: 0.3505235505 | GQ55: 0.8898952177 | GR55: 0.6654549166 | GS55: 34029.25579 | GT55: -0.02257686258 | GU55: -488.3205548 | GV55: 7.656117767 | GW55: 24.7827941 | GX55: 17.12667633 | GY55: 0.6240421511 | GZ55: 0.3495524443 | HA55: 0.8922153193 | HB55: 0.6626440683 | HC55: 34117.9756 | HD55: -0.02379693577 | HE55: -516.0577584 | HF55: 7.874947105 | HG55: 24.7827941 | HH55: 16.907847 | HI55: 0.6207524864 | HJ55: 0.3482466955 | HK55: 0.8952045387 | HL55: 0.6588887884 | HM55: 34232.28221 | HN55: -0.02500804428 | HO55: -544.4804446 | HP55: 8.166760716 | HQ55: 24.7827941 | HR55: 16.61603338 | HS55: 0.6165290538 | HT55: 0.3464858882 | HU55: 0.8990166787 | HV55: 0.6538697077 | HW55: 34378.057 | HX55: -0.02619402585 | HY55: -573.5637696 | HZ55: 8.555900421 | IA55: 24.7827941 | IB55: 16.22689368 | IC55: 0.6111651153 | ID55: 0.3441019535 | IE55: 0.9038164774 | IF55: 0.6471579944 | IG55: 34561.59948 | IH55: -0.02733525539 | II55: -603.2829626 | IJ55: 9.074826558 | IK55: 24.7827941 | IL55: 15.70796754 | IM55: 0.6044423626 | IN55: 0.3408564633 | IO55: 0.9097654931 | IP55: 0.6381756929 | IQ55: 34789.08759 | IR55: -0.02840785872 | IS55: -633.5997339 | IT55: 9.766825683 | IU55: 24.7827941 | IV55: 15.01596842 | IW55: 0.5961492997 | IX55: 0.3364034304 | IY55: 0.9170006533 | IZ55: 0.6261371461 | JA55: 35065.75737 | JB55: -0.02938251275 | JC55: -664.4396711 | JD55: 10.68962135 | JE55: 24.7827941 | JF55: 14.09317275 | JG55: 0.586106854 | JH55: 0.33022444 | JI55: 0.9256069608 | JJ55: 0.6099538751 | JK55: 35394.85931 | JL55: -0.03022238947 | JM55: -695.6614468 | JN55: 11.92018914 | JO55: 24.7827941 | JP55: 12.86260496 | JQ55: 0.5741980098 | JR55: 0.3215057378 | JS55: 0.9355891857 | JT55: 0.5880577455 | JU55: 35776.57581 | JV55: -0.03087915833 | JW55: -727.0214322 | JX55: 13.56117767 | JY55: 24.7827941 | JZ55: 11.22161643 | KA55: 0.5603951081 | KB55: 0.3088770555 | KC55: 0.9468505065 | KD55: 0.5580148675 | KE55: 36207.20444 | KF55: -0.03128411093 | KG55: -758.1391994 | KH55: 15.74947105 | KI55: 24.7827941 | KJ55: 9.033323054 | KK55: 0.5447767839 | KL55: 0.2897546247 | KM55: 0.9591867726 | KN55: 0.5155093176 | KO55: 36678.93858 | KP55: -0.03132498009 | KQ55: =+INDEX($AK$28:$AK$82,MATCH(KQ$25,$N$28:$N$82,0)) -> -788.468829 | KR55: =+INDEX($AC$28:$AC$82,MATCH(KQ$25,$N$28:$N$82,0)) -> 18.66760716 | KS55: 24.7827941 | KT55: =+KS55-KR55 -> 6.11518694 | KU55: =1/(0.1+KR55^0.2) -> 0.5275280962 | KV55: =+(KT55/($T$20+KT55))^0.3 -> 0.2581536902 | KW55: =+SQRT(EXP($T$15*(1-SQRT(28/KR55)))) -> 0.9723015827 | KX55: =+$T$16*$T$17*KU55*KV55*KW55 -> 0.4508263541 | KY55: =+INDEX($AJ$28:$AJ$82,MATCH(KQ$25,$N$28:$N$82,0)) -> 37180.44395 | KZ55: =+KQ55*(1+KX55)/KY55 -> -0.03076701715
D56: 41 | E56: 569.3413252 | F56: 1.553047182 | G56: 8894.221724 | H56: 0.7390425801 | I56: 562.3413252 | J56: 183.7154026 | N56: 29 | O56: 24.7827941 | P56: 0.9843910812 | Q56: 55.38511041 | R56: 0.9921648458 | S56: 37940.0076 | T56: =+O56-Input!$F$11 -> 17.7827941 | U56: 0.3533949432 | V56: 0.6738514878 | X56: 20.7827941 | Y56: =+X56-Input!$F$12 -> 17.7827941 | Z56: =+SQRT(Y56/(350*(Input!$F$10/$Q$4)^2+Y56)) -> 0.1159771209 | AA56: -38.81925191 | AB56: 29 | AC56: 27.74826558 | AD56: 30.71373706 | AE56: 2.965471478 | AF56: 0.4892893904 | AG56: 0.2081233219 | AH56: 0.9994344353 | AI56: 0.3465175436 | AJ56: 38217.99395 | AK56: -843.6325899 | AL56: 18408.07963 | AM56: 0.5454836227 | AN56: 0.8346627342 | AP56: 29 | AQ56: 33746.34702 | AR56: 7 | AS56: 30.71373706 | AT56: 23.71373706 | AU56: 0.6346091077 | AV56: 0.384070923 | AW56: 0.8824969026 | AX56: 0.7323442733 | AY56: 33746.34702 | AZ56: 1.732344273 | BA56: -2297.498035 | BB56: 7.005 | BC56: 30.71373706 | BD56: 23.70873706 | BE56: 0.6345242381 | BF56: 0.3840476274 | BG56: 0.8825756583 | BH56: 0.7322672623 | BI56: 33749.35861 | BJ56: -0.1179246301 | BK56: -189.1030035 | BL56: 7.011667607 | BM56: 30.71373706 | BN56: 23.70206945 | BO56: 0.6344111734 | BP56: 0.3840165565 | BQ56: 0.8826805605 | BR56: 0.7321645624 | BS56: 33753.37003 | BT56: -0.009704439022 | BU56: -204.5034576 | BV56: 7.015559004 | BW56: 30.71373706 | BX56: 23.69817805 | BY56: 0.634345244 | BZ56: 0.3839984196 | CA56: 0.8827417209 | CB56: 0.7321046218 | CC56: 33755.70879 | CD56: -0.01049367342 | CE56: -220.9563824 | CF56: 7.020748266 | CG56: 30.71373706 | CH56: 23.69298879 | CI56: 0.6342573927 | CJ56: 0.3839742302 | CK56: 0.8828232071 | CL56: 0.7320246874 | CM56: 33758.82479 | CN56: -0.01133635165 | CO56: -238.2345017 | CP56: 7.027668257 | CQ56: 30.71373706 | CR56: 23.6860688 | CS56: 0.6341403596 | CT56: 0.3839419669 | CU56: 0.8829317419 | CV56: 0.7319180889 | CW56: 33762.97512 | CX56: -0.01222056532 | CY56: -256.3844479 | CZ56: 7.036896213 | DA56: 30.71373706 | DB56: 23.67684084 | DC56: 0.6339845039 | DD56: 0.3838989321 | DE56: 0.8830762469 | DF56: 0.7317759302 | DG56: 33768.50093 | DH56: -0.01314836026 | DI56: -275.4496978 | DJ56: 7.049201891 | DK56: 30.71373706 | DL56: 23.66453517 | DM56: 0.6337770402 | DN56: 0.3838415245 | DO56: 0.8832685425 | DP56: 0.7315863457 | DQ56: 33775.85424 | DR56: -0.01412147661 | DS56: -295.4566903 | DT56: 7.065611777 | DU56: 30.71373706 | DV56: 23.64812528 | DW56: 0.6335010438 | DX56: 0.3837649353 | DY56: 0.8835242555 | DZ56: 0.7313335084 | EA56: 33785.63261 | EB56: -0.01514057985 | EC56: -316.4163428 | ED56: 7.08749471 | EE56: 30.71373706 | EF56: 23.62624235 | EG56: 0.633134166 | EH56: 0.3836627396 | EI56: 0.883863986 | EJ56: 0.7309963064 | EK56: 33798.62377 | EL56: -0.01620526103 | EM56: -338.3260835 | EN56: 7.116676072 | EO56: 30.71373706 | EP56: 23.59706099 | EQ56: 0.6326469916 | ER56: 0.3835263484 | ES56: 0.8843147851 | ET56: 0.7305465754 | EU56: 33815.86216 | EV56: -0.01731403571 | EW56: -361.1714439 | EX56: 7.155590042 | EY56: 30.71373706 | EZ56: 23.55814701 | FA56: 0.6320009728 | FB56: 0.3833442701 | FC56: 0.8849119932 | FD56: 0.7299467418 | FE56: 33838.69917 | FF56: -0.01846428432 | FG56: -384.9275818 | FH56: 7.207482656 | FI56: 30.71373706 | FJ56: 23.5062544 | FK56: 0.6311458854 | FL56: 0.3831011119 | FM56: 0.8857014635 | FN56: 0.7291466762 | FO56: 33868.88822 | FP56: -0.01965214342 | FQ56: -409.5611293 | FR56: 7.276682568 | FS56: 30.71373706 | FT56: 23.43705449 | FU56: 0.6300167942 | FV56: 0.3827762255 | FW56: 0.8867421453 | FX56: 0.7280794992 | FY56: 33908.6835 | FZ56: -0.0208723583 | GA56: -435.0326346 | GB56: 7.368962135 | GC56: 30.71373706 | GD56: 23.34477492 | GE56: 0.6285306004 | GF56: 0.3823418569 | GG56: 0.8881088964 | GH56: 0.7266559974 | GI56: 33960.94754 | GJ56: -0.02211810217 | GK56: -461.299687 | GL56: 7.492018914 | GM56: 30.71373706 | GN56: 23.22171814 | GO56: 0.6265824014 | GP56: 0.3817606016 | GQ56: 0.8898952177 | GR56: 0.7247572066 | GS56: 34029.25579 | GT56: -0.02338076285 | GU56: -488.3205548 | GV56: 7.656117767 | GW56: 30.71373706 | GX56: 23.05761929 | GY56: 0.6240421511 | GZ56: 0.3809818682 | HA56: 0.8922153193 | HB56: 0.7222246023 | HC56: 34117.9756 | HD56: -0.02464969444 | HE56: -516.0577584 | HF56: 7.874947105 | HG56: 30.71373706 | HH56: 22.83878995 | HI56: 0.6207524864 | HJ56: 0.3799368987 | HK56: 0.8952045387 | HL56: 0.7188472025 | HM56: 34232.28221 | HN56: -0.02591192807 | HO56: -544.4804446 | HP56: 8.166760716 | HQ56: 30.71373706 | HR56: 22.54697634 | HS56: 0.6165290538 | HT56: 0.3785316366 | HU56: 0.8990166787 | HV56: 0.7143447367 | HW56: 34378.057 | HX56: -0.02715183073 | HY56: -573.5637696 | HZ56: 8.555900421 | IA56: 30.71373706 | IB56: 22.15783664 | IC56: 0.6111651153 | ID56: 0.3766362807 | IE56: 0.9038164774 | IF56: 0.7083458188 | IG56: 34561.59948 | IH56: -0.02835069216 | II56: -603.2829626 | IJ56: 9.074826558 | IK56: 30.71373706 | IL56: 21.6389105 | IM56: 0.6044423626 | IN56: 0.3740695413 | IO56: 0.9097654931 | IP56: 0.7003595777 | IQ56: 34789.08759 | IR56: -0.02948619911 | IS56: -633.5997339 | IT56: 9.766825683 | IU56: 30.71373706 | IV56: 20.94691137 | IW56: 0.5961492997 | IX56: 0.3705740143 | IY56: 0.9170006533 | IZ56: 0.6897377814 | JA56: 35065.75737 | JB56: -0.0305317064 | JC56: -664.4396711 | JD56: 10.68962135 | JE56: 30.71373706 | JF56: 20.02411571 | JG56: 0.586106854 | JH56: 0.3657757737 | JI56: 0.9256069608 | JJ56: 0.6756203465 | JK56: 35394.85931 | JL56: -0.03145509415 | JM56: -695.6614468 | JN56: 11.92018914 | JO56: 30.71373706 | JP56: 18.79354791 | JQ56: 0.5741980098 | JR56: 0.3591137993 | JS56: 0.9355891857 | JT56: 0.6568456682 | JU56: 35776.57581 | JV56: -0.03221671243 | JW56: -727.0214322 | JX56: 13.56117767 | JY56: 30.71373706 | JZ56: 17.15255938 | KA56: 0.5603951081 | KB56: 0.3497060709 | KC56: 0.9468505065 | KD56: 0.6317762467 | KE56: 36207.20444 | KF56: -0.03276520025 | KG56: -758.1391994 | KH56: 15.74947105 | KI56: 30.71373706 | KJ56: 14.96426601 | KK56: 0.5447767839 | KL56: 0.3360647149 | KM56: 0.9591867726 | KN56: 0.5979006961 | KO56: 36678.93858 | KP56: -0.0330279774 | KQ56: -788.468829 | KR56: 18.66760716 | KS56: 30.71373706 | KT56: 12.0461299 | KU56: 0.5275280962 | KV56: 0.3153789712 | KW56: 0.9723015827 | KX56: 0.5507616476 | KY56: 37180.44395 | KZ56: -0.03288629964 | LA56: =+INDEX($AK$28:$AK$82,MATCH(LA$25,$N$28:$N$82,0)) -> -817.277886 | LB56: =+INDEX($AC$28:$AC$82,MATCH(LA$25,$N$28:$N$82,0)) -> 22.55900421 | LC56: 30.71373706 | LD56: =+LC56-LB56 -> 8.154732846 | LE56: =1/(0.1+LB56^0.2) -> 0.5089223695 | LF56: =+(LD56/($T$20+LD56))^0.3 -> 0.2811274068 | LG56: =+SQRT(EXP($T$15*(1-SQRT(28/LB56)))) -> 0.9858403466 | LH56: =+$T$16*$T$17*LE56*LF56*LG56 -> 0.4802260178 | LI56: =+INDEX($AJ$28:$AJ$82,MATCH(LA$25,$N$28:$N$82,0)) -> 37698.16115 | LJ56: =+LA56*(1+LH56)/LI56 -> -0.03209058357
D57: 42 | E57: 756.8942093 | F57: 1.615918272 | G57: 8432.465577 | H57: 0.7347411534 | I57: 749.8942093 | J57: 202.2344555 | N57: 30 | O57: 30.71373706 | P57: 1.011363934 | Q57: 56.90269264 | R57: 1.005665916 | S57: 38456.28339 | T57: =+O57-Input!$F$11 -> 23.71373706 | U57: 0.384070923 | V57: 0.7323442733 | X57: 26.71373706 | Y57: =+X57-Input!$F$12 -> 23.71373706 | Z57: =+SQRT(Y57/(350*(Input!$F$10/$Q$4)^2+Y57)) -> 0.1336288893 | AA57: -44.72755901 | AB57: 30 | AC57: 34.66825683 | AD57: 38.6227766 | AE57: 3.954519773 | AF57: 0.4689786183 | AG57: 0.2267716748 | AH57: 1.012743462 | AI57: 0.3667124619 | AJ57: 38726.92607 | AK57: -866.3873611 | AL57: 17541.69227 | AM57: 0.5198101073 | AN57: 0.824852966 | AP57: 30 | AQ57: 33746.34702 | AR57: 7 | AS57: 38.6227766 | AT57: 31.6227766 | AU57: 0.6346091077 | AV57: 0.4169981204 | AW57: 0.8824969026 | AX57: 0.7951296679 | AY57: 33746.34702 | AZ57: 1.795129668 | BA57: -2297.498035 | BB57: 7.005 | BC57: 38.6227766 | BD57: 31.6177766 | BE57: 0.6345242381 | BF57: 0.4169794108 | BG57: 0.8825756583 | BH57: 0.7950586068 | BI57: 33749.35861 | BJ57: -0.1221991703 | BK57: -189.1030035 | BL57: 7.011667607 | BM57: 38.6227766 | BN57: 31.61110899 | BO57: 0.6344111734 | BP57: 0.4169544576 | BQ57: 0.8826805605 | BR57: 0.7949638443 | BS57: 33753.37003 | BT57: -0.01005627153 | BU57: -204.5034576 | BV57: 7.015559004 | BW57: 38.6227766 | BX57: 31.6072176 | BY57: 0.634345244 | BZ57: 0.4169398924 | CA57: 0.8827417209 | CB57: 0.7949085378 | CC57: 33755.70879 | CD57: -0.0108741607 | CE57: -220.9563824 | CF57: 7.020748266 | CG57: 38.6227766 | CH57: 31.60202834 | CI57: 0.6342573927 | CJ57: 0.4169204673 | CK57: 0.8828232071 | CL57: 0.794834785 | CM57: 33758.82479 | CN57: -0.01174745281 | CO57: -238.2345017 | CP57: 7.027668257 | CQ57: 38.6227766 | CR57: 31.59510834 | CS57: 0.6341403596 | CT57: 0.4168945596 | CU57: 0.8829317419 | CV57: 0.7947364331 | CW57: 33762.97512 | CX57: -0.01266381705 | CY57: -256.3844479 | CZ57: 7.036896213 | DA57: 38.6227766 | DB57: 31.58588039 | DC57: 0.6339845039 | DD57: 0.4168600043 | DE57: 0.8830762469 | DF57: 0.7946052774 | DG57: 33768.50093 | DH57: -0.01362538669 | DI57: -275.4496978 | DJ57: 7.049201891 | DK57: 38.6227766 | DL57: 31.57357471 | DM57: 0.6337770402 | DN57: 0.416813912 | DO57: 0.8832685425 | DP57: 0.7944303761 | DQ57: 33775.85424 | DR57: -0.01463398383 | DS57: -295.4566903 | DT57: 7.065611777 | DU57: 38.6227766 | DV57: 31.55716482 | DW57: 0.6335010438 | DX57: 0.4167524253 | DY57: 0.8835242555 | DZ57: 0.7941971383 | EA57: 33785.63261 | EB57: -0.01569032477 | EC57: -316.4163428 | ED57: 7.08749471 | EE57: 38.6227766 | EF57: 31.53528189 | EG57: 0.633134166 | EH57: 0.4166703933 | EI57: 0.883863986 | EJ57: 0.7938861063 | EK57: 33798.62377 | EL57: -0.01679402348 | EM57: -338.3260835 | EN57: 7.116676072 | EO57: 38.6227766 | EP57: 31.50610053 | EQ57: 0.6326469916 | ER57: 0.4165609335 | ES57: 0.8843147851 | ET57: 0.7934713343 | EU57: 33815.86216 | EV57: -0.01794359492 | EW57: -361.1714439 | EX57: 7.155590042 | EY57: 38.6227766 | EZ57: 31.46718656 | FA57: 0.6320009728 | FB57: 0.416414845 | FC57: 0.8849119932 | FD57: 0.7929182281 | FE57: 33838.69917 | FF57: -0.01913639948 | FG57: -384.9275818 | FH57: 7.207482656 | FI57: 38.6227766 | FJ57: 31.41529395 | FK57: 0.6311458854 | FL57: 0.4162198162 | FM57: 0.8857014635 | FN57: 0.7921806702 | FO57: 33868.88822 | FP57: -0.02036853903 | FQ57: -409.5611293 | FR57: 7.276682568 | FS57: 38.6227766 | FT57: 31.34609403 | FU57: 0.6300167942 | FV57: 0.4159593549 | FW57: 0.8867421453 | FX57: 0.7911972026 | FY57: 33908.6835 | FZ57: -0.02163471635 | GA57: -435.0326346 | GB57: 7.368962135 | GC57: 38.6227766 | GD57: 31.25381447 | GE57: 0.6285306004 | GF57: 0.4156113345 | GG57: 0.8881088964 | GH57: 0.7898859709 | GI57: 33960.94754 | GJ57: -0.02292806491 | GK57: -461.299687 | GL57: 7.492018914 | GM57: 38.6227766 | GN57: 31.13075769 | GO57: 0.6265824014 | GP57: 0.4151460093 | GQ57: 0.8898952177 | GR57: 0.7881380656 | GS57: 34029.25579 | GT57: -0.02423995209 | GU57: -488.3205548 | GV57: 7.656117767 | GW57: 38.6227766 | GX57: 30.96665883 | GY57: 0.6240421511 | GZ57: 0.4145232813 | HA57: 0.8922153193 | HB57: 0.7858088192 | HC57: 34117.9756 | HD57: -0.02555975664 | HE57: -516.0577584 | HF57: 7.874947105 | HG57: 38.6227766 | HH57: 30.7478295 | HI57: 0.6207524864 | HJ57: 0.4136888994 | HK57: 0.8952045387 | HL57: 0.7827065733 | HM57: 34232.28221 | HN57: -0.02687461947 | HO57: -544.4804446 | HP57: 8.166760716 | HQ57: 38.6227766 | HR57: 30.45601589 | HS57: 0.6165290538 | HT57: 0.4125691032 | HU57: 0.8990166787 | HV57: 0.7785784302 | HW57: 34378.057 | HX57: -0.02816916542 | HY57: -573.5637696 | HZ57: 8.555900421 | IA57: 38.6227766 | IB57: 30.06687618 | IC57: 0.6111651153 | ID57: 0.41106294 | IE57: 0.9038164774 | IF57: 0.7730925823 | IG57: 34561.59948 | IH57: -0.02942519098 | II57: -603.2829626 | IJ57: 9.074826558 | IK57: 38.6227766 | IL57: 29.54795004 | IM57: 0.6044423626 | IN57: 0.4090309978 | IO57: 0.9097654931 | IP57: 0.765816901 | IQ57: 34789.08759 | IR57: -0.03062130471 | IS57: -633.5997339 | IT57: 9.766825683 | IU57: 38.6227766 | IV57: 28.85595092 | IW57: 0.5961492997 | IX57: 0.4062783934 | IY57: 0.9170006533 | IZ57: 0.7561932215 | JA57: 35065.75737 | JB57: -0.03173248323 | JC57: -664.4396711 | JD57: 10.68962135 | JE57: 38.6227766 | JF57: 27.93315525 | JG57: 0.586106854 | JH57: 0.4025281129 | JI57: 0.9256069608 | JJ57: 0.7435051819 | JK57: 35394.85931 | JL57: -0.03272944242 | JM57: -695.6614468 | JN57: 11.92018914 | JO57: 38.6227766 | JP57: 26.70258746 | JQ57: 0.5741980098 | JR57: 0.3973771775 | JS57: 0.9355891857 | JT57: 0.7268322136 | JU57: 35776.57581 | JV57: -0.03357757328 | JW57: -727.0214322 | JX57: 13.56117767 | JY57: 38.6227766 | JZ57: 25.06159893 | KA57: 0.5603951081 | KB57: 0.3902199322 | KC57: 0.9468505065 | KD57: 0.7049682709 | KE57: 36207.20444 | KF57: -0.03423485721 | KG57: -758.1391994 | KH57: 15.74947105 | KI57: 38.6227766 | KJ57: 22.87330556 | KK57: 0.5447767839 | KL57: 0.3801022187 | KM57: 0.9591867726 | KN57: 0.6762488625 | KO57: 36678.93858 | KP57: -0.03464740311 | KQ57: -788.468829 | KR57: 18.66760716 | KS57: 38.6227766 | KT57: 19.95516944 | KU57: 0.5275280962 | KV57: 0.3654107007 | KW57: 0.9723015827 | KX57: 0.6381344918 | KY57: 37180.44395 | KZ57: -0.03473917596 | LA57: -817.277886 | LB57: 22.55900421 | LC57: 38.6227766 | LD57: 16.06377239 | LE57: 0.5089223695 | LF57: 0.3430900974 | LG57: 0.9858403466 | LH57: 0.5860716075 | LI57: 37698.16115 | LJ57: -0.03438526472 | LK57: =+INDEX($AK$28:$AK$82,MATCH(LK$25,$N$28:$N$82,0)) -> -843.6325899 | LL57: =+INDEX($AC$28:$AC$82,MATCH(LK$25,$N$28:$N$82,0)) -> 27.74826558 | LM57: 38.6227766 | LN57: =+LM57-LL57 -> 10.87451102 | LO57: =1/(0.1+LL57^0.2) -> 0.4892893904 | LP57: =+(LN57/($T$20+LN57))^0.3 -> 0.3060358096 | LQ57: =+SQRT(EXP($T$15*(1-SQRT(28/LL57)))) -> 0.9994344353 | LR57: =+$T$16*$T$17*LO57*LP57*LQ57 -> 0.5095381721 | LS57: =+INDEX($AJ$28:$AJ$82,MATCH(LK$25,$N$28:$N$82,0)) -> 38217.99395 | LT57: =+LK57*(1+LR57)/LS57 -> -0.03332188496
D58: 43 | E58: 1007 | F58: 1.671192509 | G58: 8039.203887 | H58: 0.730842207 | I58: 1000 | J58: 220.4988228 | N58: 31 | O58: 38.6227766 | P58: 1.03783667 | Q58: 58.39213666 | R58: 1.018742691 | S58: 38956.33432 | T58: =+O58-Input!$F$11 -> 31.6227766 | U58: 0.4169981204 | V58: 0.7951296679 | X58: 34.6227766 | Y58: =+X58-Input!$F$12 -> 31.6227766 | Z58: =+SQRT(Y58/(350*(Input!$F$10/$Q$4)^2+Y58)) -> 0.1538547666 | AA58: -51.49745824 | AB58: 31 | AC58: 43.89621347 | AD58: 49.16965034 | AE58: 5.273436871 | AF58: 0.4483261517 | AG58: 0.2470473215 | AH58: 1.025486038 | AI58: 0.3867126194 | AJ58: 39214.19735 | AK58: -884.1814546 | AL58: 16657.51081 | AM58: 0.4936093024 | AN58: 0.8149279236 | AP58: 31 | AQ58: 33746.34702 | AR58: 7 | AS58: 49.16965034 | AT58: 42.16965034 | AU58: 0.6346091077 | AV58: 0.4521693215 | AW58: 0.8824969026 | AX58: 0.8621939163 | AY58: 33746.34702 | AZ58: 1.862193916 | BA58: -2297.498035 | BB58: 7.005 | BC58: 49.16965034 | BD58: 42.16465034 | BE58: 0.6345242381 | BF58: 0.4521543782 | BG58: 0.8825756583 | BH58: 0.8621270515 | BI58: 33749.35861 | BJ58: -0.1267648754 | BK58: -189.1030035 | BL58: 7.011667607 | BM58: 49.16965034 | BN58: 42.15798274 | BO58: 0.6344111734 | BP58: 0.4521344487 | BQ58: 0.8826805605 | BR58: 0.8620378866 | BS58: 33753.37003 | BT58: -0.01043205335 | BU58: -204.5034576 | BV58: 7.015559004 | BW58: 49.16965034 | BX58: 42.15409134 | BY58: 0.634345244 | BZ58: 0.4521228162 | CA58: 0.8827417209 | CB58: 0.861985848 | CC58: 33755.70879 | CD58: -0.01128053765 | CE58: -220.9563824 | CF58: 7.020748266 | CG58: 49.16965034 | CH58: 42.14890208 | CI58: 0.6342573927 | CJ58: 0.4521073027 | CK58: 0.8828232071 | CL58: 0.8619164539 | CM58: 33758.82479 | CN58: -0.01218651202 | CO58: -238.2345017 | CP58: 7.027668257 | CQ58: 49.16965034 | CR58: 42.14198209 | CS58: 0.6341403596 | CT58: 0.4520866126 | CU58: 0.8829317419 | CV58: 0.8618239163 | CW58: 33762.97512 | CX58: -0.01313719219 | CY58: -256.3844479 | CZ58: 7.036896213 | DA58: 49.16965034 | DB58: 42.13275413 | DC58: 0.6339845039 | DD58: 0.4520590179 | DE58: 0.8830762469 | DF58: 0.8617005172 | DG58: 33768.50093 | DH58: -0.01413480155 | DI58: -275.4496978 | DJ58: 7.049201891 | DK58: 49.16965034 | DL58: 42.12044845 | DM58: 0.6337770402 | DN58: 0.4520222122 | DO58: 0.8832685425 | DP58: 0.8615359656 | DQ58: 33775.85424 | DR58: -0.01518124503 | DS58: -295.4566903 | DT58: 7.065611777 | DU58: 49.16965034 | DV58: 42.10403857 | DW58: 0.6335010438 | DX58: 0.4519731179 | DY58: 0.8835242555 | DZ58: 0.8613165395 | EA58: 33785.63261 | EB58: -0.01627728658 | EC58: -316.4163428 | ED58: 7.08749471 | EE58: 49.16965034 | EF58: 42.08215563 | EG58: 0.633134166 | EH58: 0.4519076259 | EI58: 0.883863986 | EJ58: 0.8610239444 | EK58: 33798.62377 | EL58: -0.01742255526 | EM58: -338.3260835 | EN58: 7.116676072 | EO58: 49.16965034 | EP58: 42.05297427 | EQ58: 0.6326469916 | ER58: 0.4518202489 | ES58: 0.8843147851 | ET58: 0.860633792 | EU58: 33815.86216 | EV58: -0.01861555209 | EW58: -361.1714439 | EX58: 7.155590042 | EY58: 49.16965034 | EZ58: 42.0140603 | FA58: 0.6320009728 | FB58: 0.4517036551 | FC58: 0.8849119932 | FD58: 0.860113577 | FE58: 33838.69917 | FF58: -0.0198535973 | FG58: -384.9275818 | FH58: 7.207482656 | FI58: 49.16965034 | FJ58: 41.96216769 | FK58: 0.6311458854 | FL58: 0.4515480417 | FM58: 0.8857014635 | FN58: 0.8594199899 | FO58: 33868.88822 | FP58: -0.02113272912 | FQ58: -409.5611293 | FR58: 7.276682568 | FS58: 49.16965034 | FT58: 41.89296777 | FU58: 0.6300167942 | FV58: 0.4513402905 | FW58: 0.8867421453 | FX58: 0.858495358 | FY58: 33908.6835 | FZ58: -0.02244756738 | GA58: -435.0326346 | GB58: 7.368962135 | GC58: 49.16965034 | GD58: 41.80068821 | GE58: 0.6285306004 | GF58: 0.4510628268 | GG58: 0.8881088964 | GH58: 0.8572629506 | GI58: 33960.94754 | GJ58: -0.02379114992 | GK58: -461.299687 | GL58: 7.492018914 | GM58: 49.16965034 | GN58: 41.67763143 | GO58: 0.6265824014 | GP58: 0.4506920678 | GQ58: 0.8898952177 | GR58: 0.8556208334 | GS58: 34029.25579 | GT58: -0.0251547467 | GU58: -488.3205548 | GV58: 7.656117767 | GW58: 49.16965034 | GX58: 41.51353258 | GY58: 0.6240421511 | GZ58: 0.4501963026 | HA58: 0.8922153193 | HB58: 0.8534339105 | HC58: 34117.9756 | HD58: -0.02652765469 | HE58: -516.0577584 | HF58: 7.874947105 | HG58: 49.16965034 | HH58: 41.29470324 | HI58: 0.6207524864 | HJ58: 0.4495327719 | HK58: 0.8952045387 | HL58: 0.8505238017 | HM58: 34232.28221 | HN58: -0.02789697628 | HO58: -544.4804446 | HP58: 8.166760716 | HQ58: 49.16965034 | HR58: 41.00288963 | HS58: 0.6165290538 | HT58: 0.4486436016 | HU58: 0.8990166787 | HV58: 0.8466563015 | HW58: 34378.057 | HX58: -0.02924738429 | HY58: -573.5637696 | HZ58: 8.555900421 | IA58: 49.16965034 | IB58: 40.61374992 | IC58: 0.6111651153 | ID58: 0.4474500645 | IE58: 0.9038164774 | IF58: 0.8415264237 | IG58: 34561.59948 | IH58: -0.03056087835 | II58: -603.2829626 | IJ58: 9.074826558 | IK58: 49.16965034 | IL58: 40.09482379 | IM58: 0.6044423626 | IN58: 0.4458443381 | IO58: 0.9097654931 | IP58: 0.8347414529 | IQ58: 34789.08759 | IR58: -0.03181653605 | IS58: -633.5997339 | IT58: 9.766825683 | IU58: 49.16965034 | IV58: 39.40282466 | IW58: 0.5961492997 | IX58: 0.4436773933 | IY58: 0.9170006533 | IZ58: 0.8258028061 | JA58: 35065.75737 | JB58: -0.03299025199 | JC58: -664.4396711 | JD58: 10.68962135 | JE58: 49.16965034 | JF58: 38.480029 | JG58: 0.586106854 | JH58: 0.4407406672 | JI58: 0.9256069608 | JJ58: 0.8140871642 | JK58: 35394.85931 | JL58: -0.03405442209 | JM58: -695.6614468 | JN58: 11.92018914 | JO58: 49.16965034 | JP58: 37.2494612 | JQ58: 0.5741980098 | JR58: 0.4367372729 | JS58: 0.9355891857 | JT58: 0.7988247358 | JU58: 35776.57581 | JV58: -0.03497743957 | JW58: -727.0214322 | JX58: 13.56117767 | JY58: 49.16965034 | JZ58: 35.60847267 | KA58: 0.5603951081 | KB58: 0.4312345355 | KC58: 0.9468505065 | KD58: 0.7790649318 | KE58: 36207.20444 | KF58: -0.0357226788 | KG58: -758.1391994 | KH58: 15.74947105 | KI58: 49.16965034 | KJ58: 33.4201793 | KK58: 0.5447767839 | KL58: 0.4235807098 | KM58: 0.9591867726 | KN58: 0.7536024762 | KO58: 36678.93858 | KP58: -0.0362462718 | KQ58: -788.468829 | KR58: 18.66760716 | KS58: 49.16965034 | KT58: 30.50204318 | KU58: 0.5275280962 | KV58: 0.4127462728 | KW58: 0.9723015827 | KX58: 0.7207989054 | KY58: 37180.44395 | KZ58: -0.03649220272 | LA58: -817.277886 | LB58: 22.55900421 | LC58: 49.16965034 | LD58: 26.61064613 | LE58: 0.5089223695 | LF58: 0.3969851302 | LG58: 0.9858403466 | LH58: 0.6781359042 | LI58: 37698.16115 | LJ58: -0.0363811741 | LK58: -843.6325899 | LL58: 27.74826558 | LM58: 49.16965034 | LN58: 21.42138476 | LO58: 0.4892893904 | LP58: 0.3729798736 | LQ58: 0.9994344353 | LR58: 0.6209975339 | LS58: 38217.99395 | LT58: -0.03578226397 | LU58: =+INDEX($AK$28:$AK$82,MATCH(LU$25,$N$28:$N$82,0)) -> -866.3873611 | LV58: =+INDEX($AC$28:$AC$82,MATCH(LU$25,$N$28:$N$82,0)) -> 34.66825683 | LW58: 49.16965034 | LX58: =+LW58-LV58 -> 14.50139351 | LY58: =1/(0.1+LV58^0.2) -> 0.4689786183 | LZ58: =+(LX58/($T$20+LX58))^0.3 -> 0.332993381 | MA58: =+SQRT(EXP($T$15*(1-SQRT(28/LV58)))) -> 1.012743462 | MB58: =+$T$16*$T$17*LY58*LZ58*MA58 -> 0.5384835767 | MC58: =+INDEX($AJ$28:$AJ$82,MATCH(LU$25,$N$28:$N$82,0)) -> 38726.92607 | MD58: =+LU58*(1+MB58)/MC58 -> -0.03441850054
D59: 44 | E59: 1340.521432 | F59: 1.718566328 | G59: 7708.670906 | H59: 0.7273034851 | I59: 1333.521432 | J59: 237.9868546 | N59: 32 | O59: 49.16965034 | P59: 1.063264687 | Q59: 59.82280134 | R59: 1.031147267 | S59: 39430.68063 | T59: =+O59-Input!$F$11 -> 42.16965034 | U59: 0.4521693215 | V59: 0.8621939163 | X59: 45.16965034 | Y59: =+X59-Input!$F$12 -> 42.16965034 | Z59: =+SQRT(Y59/(350*(Input!$F$10/$Q$4)^2+Y59)) -> 0.1769715015 | AA59: -59.23497018 | AB59: 32 | AC59: 56.20189143 | AD59: 63.23413252 | AE59: 7.032241088 | AF59: 0.4276310609 | AG59: 0.2690727281 | AH59: 1.037454951 | AI59: 0.4064363502 | AJ59: 39671.88407 | AK59: -895.4540991 | AL59: 15762.05671 | AM59: 0.467074457 | AN59: 0.8050571718 | AP59: 32 | AQ59: 33746.34702 | AR59: 7 | AS59: 63.23413252 | AT59: 56.23413252 | AU59: 0.6346091077 | AV59: 0.4895010098 | AW59: 0.8824969026 | AX59: 0.9333777693 | AY59: 33746.34702 | AZ59: 1.933377769 | BA59: -2297.498035 | BB59: 7.005 | BC59: 63.23413252 | BD59: 56.22913252 | BE59: 0.6345242381 | BF59: 0.4894891593 | BG59: 0.8825756583 | BH59: 0.9333136336 | BI59: 33749.35861 | BJ59: -0.1316109241 | BK59: -189.1030035 | BL59: 7.011667607 | BM59: 63.23413252 | BN59: 56.22246491 | BO59: 0.6344111734 | BP59: 0.489473355 | BQ59: 0.8826805605 | BR59: 0.9332281089 | BS59: 33753.37003 | BT59: -0.01083089604 | BU59: -204.5034576 | BV59: 7.015559004 | BW59: 63.23413252 | BX59: 56.21857351 | BY59: 0.634345244 | BZ59: 0.4894641305 | CA59: 0.8827417209 | CB59: 0.9331781952 | CC59: 33755.70879 | CD59: -0.01171184488 | CE59: -220.9563824 | CF59: 7.020748266 | CG59: 63.23413252 | CH59: 56.21338425 | CI59: 0.6342573927 | CJ59: 0.4894518286 | CK59: 0.8828232071 | CL59: 0.9331116352 | CM59: 33758.82479 | CN59: -0.01265249476 | CO59: -238.2345017 | CP59: 7.027668257 | CQ59: 63.23413252 | CR59: 56.20646426 | CS59: 0.6341403596 | CT59: 0.4894354223 | CU59: 0.8829317419 | CV59: 0.933022878 | CW59: 33762.97512 | CX59: -0.01363957828 | CY59: -256.3844479 | CZ59: 7.036896213 | DA59: 63.23413252 | DB59: 56.19723631 | DC59: 0.6339845039 | DD59: 0.4894135416 | DE59: 0.8830762469 | DF59: 0.9329045219 | DG59: 33768.50093 | DH59: -0.01467541185 | DI59: -275.4496978 | DJ59: 7.049201891 | DK59: 63.23413252 | DL59: 56.18493063 | DM59: 0.6337770402 | DN59: 0.4893843586 | DO59: 0.8832685425 | DP59: 0.9327466981 | DQ59: 33775.85424 | DR59: -0.01576198459 | DS59: -295.4566903 | DT59: 7.065611777 | DU59: 63.23413252 | DV59: 56.16852074 | DW59: 0.6335010438 | DX59: 0.4893454343 | DY59: 0.8835242555 | DZ59: 0.9325362492 | EA59: 33785.63261 | EB59: -0.01690010576 | EC59: -316.4163428 | ED59: 7.08749471 | EE59: 63.23413252 | EF59: 56.14663781 | EG59: 0.633134166 | EH59: 0.4892935134 | EI59: 0.883863986 | EJ59: 0.9322556352 | EK59: 33798.62377 | EL59: -0.01808941291 | EM59: -338.3260835 | EN59: 7.116676072 | EO59: 63.23413252 | EP59: 56.11745645 | EQ59: 0.6326469916 | ER59: 0.4892242499 | ES59: 0.8843147851 | ET59: 0.9318814778 | EU59: 33815.86216 | EV59: -0.01932838178 | EW59: -361.1714439 | EX59: 7.155590042 | EY59: 63.23413252 | EZ59: 56.07854248 | FA59: 0.6320009728 | FB59: 0.4891318396 | FC59: 0.8849119932 | FD59: 0.9313826252 | FE59: 33838.69917 | FF59: -0.02061427503 | FG59: -384.9275818 | FH59: 7.207482656 | FI59: 63.23413252 | FJ59: 56.02664986 | FK59: 0.6311458854 | FL59: 0.4890085266 | FM59: 0.8857014635 | FN59: 0.9307175853 | FO59: 33868.88822 | FP59: -0.02194304243 | FQ59: -409.5611293 | FR59: 7.276682568 | FS59: 63.23413252 | FT59: 55.95744995 | FU59: 0.6300167942 | FV59: 0.4888439404 | FW59: 0.8867421453 | FX59: 0.9298311326 | FY59: 33908.6835 | FZ59: -0.02330918622 | GA59: -435.0326346 | GB59: 7.368962135 | GC59: 63.23413252 | GD59: 55.86517038 | GE59: 0.6285306004 | GF59: 0.4886242013 | GG59: 0.8881088964 | GH59: 0.9286498457 | GI59: 33960.94754 | GJ59: -0.02470560112 | GK59: -461.299687 | GL59: 7.492018914 | GM59: 63.23413252 | GN59: 55.7421136 | GO59: 0.6265824014 | GP59: 0.4883307114 | GQ59: 0.8898952177 | GR59: 0.9270762903 | GS59: 34029.25579 | GT59: -0.02612339497 | GU59: -488.3205548 | GV59: 7.656117767 | GW59: 63.23413252 | GX59: 55.57801475 | GY59: 0.6240421511 | GZ59: 0.4879385093 | HA59: 0.8922153193 | HB59: 0.9249815419 | HC59: 34117.9756 | HD59: -0.02755169491 | HE59: -516.0577584 | HF59: 7.874947105 | HG59: 63.23413252 | HH59: 55.35918541 | HI59: 0.6207524864 | HJ59: 0.4874140214 | HK59: 0.8952045387 | HL59: 0.9221957828 | HM59: 34232.28221 | HN59: -0.02897744418 | HO59: -544.4804446 | HP59: 8.166760716 | HQ59: 63.23413252 | HR59: 55.0673718 | HS59: 0.6165290538 | HT59: 0.4867119591 | HU59: 0.8990166787 | HV59: 0.9184968775 | HW59: 34378.057 | HX59: -0.03038519696 | HY59: -573.5637696 | HZ59: 8.555900421 | IA59: 63.23413252 | IB59: 54.6782321 | IC59: 0.6111651153 | ID59: 0.4857709945 | IE59: 0.9038164774 | IF59: 0.9135972037 | IG59: 34561.59948 | IH59: -0.03175692219 | II59: -603.2829626 | IJ59: 9.074826558 | IK59: 63.23413252 | IL59: 54.15930596 | IM59: 0.6044423626 | IN59: 0.4845076475 | IO59: 0.9097654931 | IP59: 0.9071296481 | IQ59: 34789.08759 | IR59: -0.03307183097 | IS59: -633.5997339 | IT59: 9.766825683 | IU59: 63.23413252 | IV59: 53.46730684 | IW59: 0.5961492997 | IX59: 0.4828074878 | IY59: 0.9170006533 | IZ59: 0.8986344227 | JA59: 35065.75737 | JB59: -0.03430623934 | JC59: -664.4396711 | JD59: 10.68962135 | JE59: 63.23413252 | JF59: 52.54451117 | JG59: 0.586106854 | JH59: 0.480512176 | JI59: 0.9256069608 | JJ59: 0.8875486738 | JK59: 35394.85931 | JL59: -0.03543345685 | JM59: -695.6614468 | JN59: 11.92018914 | JO59: 63.23413252 | JP59: 51.31394338 | JQ59: 0.5741980098 | JR59: 0.4773997988 | JS59: 0.9355891857 | JT59: 0.8731994996 | JU59: 35776.57581 | JV59: -0.0364236276 | JW59: -727.0214322 | JX59: 13.56117767 | JY59: 63.23413252 | JZ59: 49.67295485 | KA59: 0.5603951081 | KB59: 0.4731538796 | KC59: 0.9468505065 | KD59: 0.8547960904 | KE59: 36207.20444 | KF59: -0.03724332024 | KG59: -758.1391994 | KH59: 15.74947105 | KI59: 63.23413252 | KJ59: 47.48466147 | KK59: 0.5447767839 | KL59: 0.4673121173 | KM59: 0.9591867726 | KN59: 0.8314060592 | KO59: 36678.93858 | KP59: -0.03785444119 | KQ59: -788.468829 | KR59: 18.66760716 | KS59: 63.23413252 | KT59: 44.56652536 | KU59: 0.5275280962 | KV59: 0.4591761314 | KW59: 0.9723015827 | KX59: 0.8018816272 | KY59: 37180.44395 | KZ59: -0.03821168727 | LA59: -817.277886 | LB59: 22.55900421 | LC59: 63.23413252 | LD59: 40.67512831 | LE59: 0.5089223695 | LF59: 0.4476389171 | LG59: 0.9858403466 | LH59: 0.7646634565 | LI59: 37698.16115 | LJ59: -0.03825704955 | LK59: -843.6325899 | LL59: 27.74826558 | LM59: 63.23413252 | LN59: 35.48586694 | LO59: 0.4892893904 | LP59: 0.4308155183 | LQ59: 0.9994344353 | LR59: 0.7172917182 | LS59: 38217.99395 | LT59: -0.03790788344 | LU59: -866.3873611 | LV59: 34.66825683 | LW59: 63.23413252 | LX59: 28.56587569 | LY59: 0.4689786183 | LZ59: 0.4051095114 | MA59: 1.012743462 | MB59: 0.655102567 | MC59: 38726.92607 | MD59: -0.03702746618 | ME59: =+INDEX($AK$28:$AK$82,MATCH(ME$25,$N$28:$N$82,0)) -> -884.1814546 | MF59: =+INDEX($AC$28:$AC$82,MATCH(ME$25,$N$28:$N$82,0)) -> 43.89621347 | MG59: =+$AD59 -> 63.23413252 | MH59: =+MG59-MF59 -> 19.33791905 | MI59: =1/(0.1+MF59^0.2) -> 0.4483261517 | MJ59: =+(MH59/($T$20+MH59))^0.3 -> 0.3620997374 | MK59: =+SQRT(EXP($T$15*(1-SQRT(28/MF59)))) -> 1.025486038 | ML59: =+$T$16*$T$17*MI59*MJ59*MK59 -> 0.5668085657 | MM59: =+INDEX($AJ$28:$AJ$82,MATCH(ME$25,$N$28:$N$82,0)) -> 39214.19735 | MN59: =+ME59*(1+ML59)/MM59 -> -0.03532758976
D60: 45 | E60: 1785.27941 | F60: 1.758226781 | G60: 7434.110323 | H60: 0.7241069895 | I60: 1778.27941 | J60: 254.2250899 | N60: 33 | O60: 63.23413252 | P60: 1.087239779 | Q60: 61.17171962 | R60: =+SQRT(P60) -> 1.042707907 | S60: 39872.7551 | T60: =+O60-Input!$F$11 -> 56.23413252 | U60: 0.4895010098 | V60: 0.9333777693 | X60: 59.23413252 | Y60: =+X60-Input!$F$12 -> 56.23413252 | Z60: =+SQRT(Y60/(350*(Input!$F$10/$Q$4)^2+Y60)) -> 0.2033044489 | AA60: -68.04899584 | AB60: 33 | AC60: =+(O60+O61)/2 -> 72.61177673 | AD60: =+O61 -> 81.98942093 | AE60: 9.377644207 | AF60: 0.4071426272 | AG60: 0.2929707879 | AH60: 1.048518149 | AI60: 0.4258250599 | AJ60: 40094.93655 | AK60: -898.4995134 | AL60: 14863.5572 | AM60: 0.4404493674 | AN60: 0.7954065603 | AP60: 33 | AQ60: 33746.34702 | AR60: 7 | AS60: 81.98942093 | AT60: 74.98942093 | AU60: 0.6346091077 | AV60: 0.5288073921 | AW60: 0.8824969026 | AX60: 1.008326958 | AY60: 33746.34702 | AZ60: 2.008326958 | BA60: -2297.498035 | BB60: 7.005 | BC60: 81.98942093 | BD60: 74.98442093 | BE60: 0.6345242381 | BF60: 0.5287980791 | BG60: 0.8825756583 | BH60: 1.008264325 | BI60: 33749.35861 | BJ60: -0.1367132156 | BK60: -189.1030035 | BL60: 7.011667607 | BM60: 81.98942093 | BN60: 74.97775333 | BO60: 0.6344111734 | BP60: 0.5287856591 | BQ60: 0.8826805605 | BR60: 1.008180804 | BS60: 33753.37003 | BT60: -0.01125081795 | BU60: -204.5034576 | BV60: 7.015559004 | BW60: 81.98942093 | BX60: 74.97386193 | BY60: 0.634345244 | BZ60: 0.52877841 | CA60: 0.8827417209 | CB60: 1.00813206 | CC60: 33755.70879 | CD60: -0.01216594065 | CE60: -220.9563824 | CF60: 7.020748266 | CG60: 81.98942093 | CH60: 74.96867267 | CI60: 0.6342573927 | CJ60: 0.5287687428 | CK60: 0.8828232071 | CL60: 1.008067061 | CM60: 33758.82479 | CN60: -0.01314308884 | CO60: -238.2345017 | CP60: 7.027668257 | CQ60: 81.98942093 | CR60: 74.96175268 | CS60: 0.6341403596 | CT60: 0.5287558504 | CU60: 0.8829317419 | CV60: 1.007980385 | CW60: 33762.97512 | CX60: -0.014168485 | CY60: -256.3844479 | CZ60: 7.036896213 | DA60: 81.98942093 | DB60: 74.95252472 | DC60: 0.6339845039 | DD60: 0.5287386565 | DE60: 0.8830762469 | DF60: 1.007864805 | DG60: 33768.50093 | DH60: -0.01524454137 | DI60: -275.4496978 | DJ60: 7.049201891 | DK60: 81.98942093 | DL60: 74.94021904 | DM60: 0.6337770402 | DN60: 0.5287157252 | DO60: 0.8832685425 | DP60: 1.007710684 | DQ60: 33775.85424 | DR60: -0.01637333278 | DS60: -295.4566903 | DT60: 7.065611777 | DU60: 81.98942093 | DV60: 74.92380916 | DW60: 0.6335010438 | DX60: 0.5286851409 | DY60: 0.8835242555 | DZ60: 1.007505177 | EA60: 33785.63261 | EB60: -0.01755571199 | EC60: -316.4163428 | ED60: 7.08749471 | EE60: 81.98942093 | EF60: 74.90192622 | EG60: 0.633134166 | EH60: 0.5286443472 | EI60: 0.883863986 | EJ60: 1.007231157 | EK60: 33798.62377 | EL60: -0.01879131961 | EM60: -338.3260835 | EN60: 7.116676072 | EO60: 81.98942093 | EP60: 74.87274486 | EQ60: 0.6326469916 | ER60: 0.5285899319 | ES60: 0.8843147851 | ET60: 1.006865803 | EU60: 33815.86216 | EV60: -0.02007859636 | EW60: -361.1714439 | EX60: 7.155590042 | EY60: 81.98942093 | EZ60: 74.83383089 | FA60: 0.6320009728 | FB60: 0.5285173399 | FC60: 0.8849119932 | FD60: 1.006378705 | FE60: 33838.69917 | FF60: -0.02141473259 | FG60: -384.9275818 | FH60: 7.207482656 | FI60: 81.98942093 | FJ60: 74.78193828 | FK60: 0.6311458854 | FL60: 0.5284204865 | FM60: 0.8857014635 | FN60: 1.005729374 | FO60: 33868.88822 | FP60: -0.02279556839 | FQ60: -409.5611293 | FR60: 7.276682568 | FS60: 81.98942093 | FT60: 74.71273836 | FU60: 0.6300167942 | FV60: 0.5282912411 | FW60: 0.8867421453 | FX60: 1.00486393 | FY60: 33908.6835 | FZ60: -0.02421545901 | GA60: -435.0326346 | GB60: 7.368962135 | GC60: 81.98942093 | GD60: 74.6204588 | GE60: 0.6285306004 | GF60: 0.5281187302 | GG60: 0.8881088964 | GH60: 1.003710778 | GI60: 33960.94754 | GJ60: -0.02566711596 | GK60: -461.299687 | GL60: 7.492018914 | GM60: 81.98942093 | GN60: 74.49740202 | GO60: 0.6265824014 | GP60: 0.5278883993 | GQ60: 0.8898952177 | GR60: 1.002174976 | GS60: 34029.25579 | GT60: -0.02714143076 | GU60: -488.3205548 | GV60: 7.656117767 | GW60: 81.98942093 | GX60: 74.33330317 | GY60: 0.6240421511 | GZ60: 0.5275807417 | HA60: 0.8922153193 | HB60: 1.000131038 | HC60: 34117.9756 | HD60: -0.02862728756 | HE60: -516.0577584 | HF60: 7.874947105 | HG60: 81.98942093 | HH60: 74.11447383 | HI60: 0.6207524864 | HJ60: 0.5271695697 | HK60: 0.8952045387 | HL60: 0.9974139698 | HM60: 34232.28221 | HN60: -0.03011137176 | HO60: -544.4804446 | HP60: 8.166760716 | HQ60: 81.98942093 | HR60: 73.82266022 | HS60: 0.6165290538 | HT60: 0.5266196473 | HU60: 0.8990166787 | HV60: 0.9938085404 | HW60: 34378.057 | HX60: -0.03157798478 | HY60: -573.5637696 | HZ60: 8.555900421 | IA60: 81.98942093 | IB60: 73.43352051 | IC60: 0.6111651153 | ID60: 0.5258834208 | IE60: 0.9038164774 | IF60: 0.9890372792 | IG60: 34561.59948 | IH60: -0.03300888086 | II60: -603.2829626 | IJ60: 9.074826558 | IK60: 81.98942093 | IL60: 72.91459438 | IM60: 0.6044423626 | IN60: 0.5248964546 | IO60: 0.9097654931 | IP60: 0.9827484429 | IQ60: 34789.08759 | IR60: -0.03438314821 | IS60: -633.5997339 | IT60: 9.766825683 | IU60: 81.98942093 | IV60: 72.22259525 | IW60: 0.5961492997 | IX60: 0.5235709654 | IY60: 0.9170006533 | IZ60: 0.9745062041 | JA60: 35065.75737 | JB60: -0.03567715912 | JC60: -664.4396711 | JD60: 10.68962135 | JE60: 81.98942093 | JF60: 71.29979959 | JG60: 0.586106854 | JH60: 0.5217864938 | JI60: 0.9256069608 | JJ60: 0.9637860053 | JK60: 35394.85931 | JL60: -0.03686459992 | JM60: -695.6614468 | JN60: 11.92018914 | JO60: 81.98942093 | JP60: 70.06923179 | JQ60: 0.5741980098 | JR60: 0.5193761213 | JS60: 0.9355891857 | JT60: 0.9499772944 | JU60: 35776.57581 | JV60: -0.03791654162 | JW60: -727.0214322 | JX60: 13.56117767 | JY60: 81.98942093 | JZ60: 68.42824326 | KA60: 0.5603951081 | KB60: 0.5161054824 | KC60: 0.9468505065 | KD60: 0.9323921193 | KE60: 36207.20444 | KF60: -0.03880140728 | KG60: -758.1391994 | KH60: 15.74947105 | KI60: 81.98942093 | KJ60: 66.23994989 | KK60: 0.5447767839 | KL60: 0.5116395577 | KM60: 0.9591867726 | KN60: 0.9102700587 | KO60: 36678.93858 | KP60: -0.03948452897 | KQ60: -788.468829 | KR60: 18.66760716 | KS60: 81.98942093 | KT60: 63.32181377 | KU60: 0.5275280962 | KV60: 0.5054875096 | KW60: 0.9723015827 | KX60: 0.882757441 | KY60: 37180.44395 | KZ60: -0.03992678401 | LA60: -817.277886 | LB60: 22.55900421 | LC60: 81.98942093 | LD60: 59.43041672 | LE60: 0.5089223695 | LF60: 0.4969051305 | LG60: 0.9858403466 | LH60: 0.8488207349 | LI60: 37698.16115 | LJ60: -0.04008153861 | LK60: -843.6325899 | LL60: 27.74826558 | LM60: 81.98942093 | LN60: 54.24115535 | LO60: 0.4892893904 | LP60: 0.4847075679 | LQ60: 0.9994344353 | LR60: 0.8070199643 | LS60: 38217.99395 | LT60: -0.03988856491 | LU60: -866.3873611 | LV60: 34.66825683 | LW60: 81.98942093 | LX60: 47.3211641 | LY60: 0.4689786183 | LZ60: 0.4668670198 | MA60: 1.012743462 | MB60: 0.7549706301 | MC60: 38726.92607 | MD60: -0.03926168501 | ME60: -884.1814546 | MF60: 43.89621347 | MG60: 81.98942093 | MH60: 38.09320746 | MI60: 0.4483261517 | MJ60: 0.4394931724 | MK60: 1.025486038 | ML60: 0.6879554691 | MM60: 39214.19735 | MN60: -0.03805914752 | MO60: =+INDEX($AK$28:$AK$82,MATCH(MO$25,$N$28:$N$82,0)) -> -895.4540991 | MP60: =+INDEX($AC$28:$AC$82,MATCH(MO$25,$N$28:$N$82,0)) -> 56.20189143 | MQ60: 81.98942093 | MR60: =+MQ60-MP60 -> 25.7875295 | MS60: =1/(0.1+MP60^0.2) -> 0.4276310609 | MT60: =+(MR60/($T$20+MR60))^0.3 -> 0.3934286424 | MU60: =+SQRT(EXP($T$15*(1-SQRT(28/MP60)))) -> 1.037454951 | MV60: =+$T$16*$T$17*MS60*MT60*MU60 -> 0.5942768805 | MW60: =+INDEX($AJ$28:$AJ$82,MATCH(MO$25,$N$28:$N$82,0)) -> 39671.88407 | MX60: =+MO60*(1+MV60)/MW60 -> -0.03598522735
D61: 46 | E61: 2378.373706 | F61: 1.790743248 | G61: 7208.457694 | H61: 0.7212489921 | I61: 2371.373706 | J61: 268.8480905 | N61: 34 | O61: 81.98942093 | P61: 1.109493271 | Q61: 62.42377492 | R61: 1.053324865 | S61: 40278.74354 | T61: =+O61-Input!$F$11 -> 74.98942093 | U61: 0.5288073921 | V61: 1.008326958 | X61: 77.98942093 | Y61: =+X61-Input!$F$12 -> 74.98942093 | Z61: =+SQRT(Y61/(350*(Input!$F$10/$Q$4)^2+Y61)) -> 0.2331706476 | AA61: -78.04565277 | AB61: 34 | AC61: 94.49471047 | AD61: 107 | AE61: 12.50528953 | AF61: 0.3870569497 | AG61: 0.3188604095 | AH61: 1.058609986 | AI61: 0.4448317997 | AJ61: 40480.84459 | AK61: =+AJ61/(1+AI61)*(1-(AZ61+BJ61+BT61+CD61+CN61+CX61+DH61+DR61+EB61+EL61+EV61+FF61+FP61+FZ61+GJ61+GT61+HD61+HN61+HX61+IH61+IR61+JB61+JL61+JV61+KF61+KP61+KZ61+LJ61+LT61+MD61+MN61+MX61+NH61+NR61+OB61+OL61+OV61+PF61+PP61+PZ61+QJ61+QT61+RD61+RN61+RX61+SH61+SR61+TB61+TL61+TV61+UF61+UP61+UZ61)) -> -891.589799 | AL61: 13971.9674 | AM61: 0.4140290322 | AN61: 0.786132547 | AP61: 34 | AQ61: =+INDEX($AK$28:$AK$82,MATCH(AQ$25,$N$28:$N$82,0)) -> 33746.34702 | AR61: =+INDEX($AC$28:$AC$82,MATCH(AQ$25,$N$28:$N$82,0)) -> 7 | AS61: 107 | AT61: 100 | AU61: 0.6346091077 | AV61: 0.5697734905 | AW61: 0.8824969026 | AX61: 1.086440884 | AY61: =+INDEX($AJ$28:$AJ$82,MATCH(AQ$25,$N$28:$N$82,0)) -> 33746.34702 | AZ61: 2.086440884 | BA61: -2297.498035 | BB61: 7.005 | BC61: 107 | BD61: 99.995 | BE61: 0.6345242381 | BF61: 0.5697662544 | BG61: 0.8825756583 | BH61: 1.086378734 | BI61: 33749.35861 | BJ61: -0.1420308781 | BK61: -189.1030035 | BL61: 7.011667607 | BM61: 107 | BN61: 99.98833239 | BO61: 0.6344111734 | BP61: 0.5697566043 | BQ61: 0.8826805605 | BR61: 1.086295858 | BS61: 33753.37003 | BT61: -0.01168845696 | BU61: -204.5034576 | BV61: 7.015559004 | BW61: 107 | BX61: 99.984441 | BY61: 0.634345244 | BZ61: 0.569750972 | CA61: 0.8827417209 | CB61: 1.086247491 | CC61: 33755.70879 | CD61: -0.01263919025 | CE61: -220.9563824 | CF61: 7.020748266 | CG61: 107 | CH61: 99.97925173 | CI61: 0.6342573927 | CJ61: 0.5697434608 | CK61: 0.8828232071 | CL61: 1.086182993 | CM61: 33758.82479 | CN61: -0.0136543689 | CO61: -238.2345017 | CP61: 7.027668257 | CQ61: 107 | CR61: 99.97233174 | CS61: 0.6341403596 | CT61: 0.569733444 | CU61: 0.8829317419 | CV61: 1.086096987 | CW61: 33762.97512 | CX61: -0.01471968257 | CY61: -256.3844479 | CZ61: 7.036896213 | DA61: 107 | DB61: 99.96310379 | DC61: 0.6339845039 | DD61: 0.5697200854 | DE61: 0.8830762469 | DF61: 1.085982301 | DG61: 33768.50093 | DH61: -0.01583764176 | DI61: -275.4496978 | DJ61: 7.049201891 | DK61: 107 | DL61: 99.95079811 | DM61: 0.6337770402 | DN61: 0.5697022697 | DO61: 0.8832685425 | DP61: 1.085829372 | DQ61: 33775.85424 | DR61: -0.01701040827 | DS61: -295.4566903 | DT61: 7.065611777 | DU61: 107 | DV61: 99.93438822 | DW61: 0.6335010438 | DX61: 0.569678509 | DY61: 0.8835242555 | DZ61: 1.085625456 | EA61: 33785.63261 | EB61: -0.01823887691 | EC61: -316.4163428 | ED61: 7.08749471 | EE61: 107 | EF61: 99.91250529 | EG61: 0.633134166 | EH61: 0.5696468182 | EI61: 0.883863986 | EJ61: 1.085353559 | EK61: 33798.62377 | EL61: -0.01952268681 | EM61: -338.3260835 | EN61: 7.116676072 | EO61: 107 | EP61: 99.88332393 | EQ61: 0.6326469916 | ER61: 0.5696045481 | ES61: 0.8843147851 | ET61: 1.084991041 | EU61: 33815.86216 | EV61: -0.02086023564 | EW61: -361.1714439 | EX61: 7.155590042 | EY61: 107 | EZ61: 99.84440996 | FA61: 0.6320009728 | FB61: 0.5695481626 | FC61: 0.8849119932 | FD61: 1.084507734 | FE61: 33838.69917 | FF61: -0.02224862913 | FG61: -384.9275818 | FH61: 7.207482656 | FI61: 107 | FJ61: 99.79251734 | FK61: 0.6311458854 | FL61: 0.5694729408 | FM61: 0.8857014635 | FN61: 1.083863474 | FO61: 33868.88822 | FP61: -0.02368358012 | FQ61: -409.5611293 | FR61: 7.276682568 | FS61: 107 | FT61: 99.72331743 | FU61: 0.6300167942 | FV61: 0.569372576 | FW61: 0.8867421453 | FX61: 1.083004827 | FY61: 33908.6835 | FZ61: -0.02515927254 | GA61: -435.0326346 | GB61: 7.368962135 | GC61: 107 | GD61: 99.63103787 | GE61: 0.6285306004 | GF61: 0.56923864 | GG61: 0.8881088964 | GH61: 1.081860812 | GI61: 33960.94754 | GJ61: -0.02666820155 | GK61: -461.299687 | GL61: 7.492018914 | GM61: 107 | GN61: 99.50798109 | GO61: 0.6265824014 | GP61: 0.56905986 | GQ61: 0.8898952177 | GR61: 1.080337344 | GS61: 34029.25579 | GT61: -0.02820099775 | GU61: -488.3205548 | GV61: 7.656117767 | GW61: 107 | GX61: 99.34388223 | GY61: 0.6240421511 | GZ61: 0.5688211436 | HA61: 0.8922153193 | HB61: 1.078310173 | HC61: 34117.9756 | HD61: -0.02974624253 | HE61: -516.0577584 | HF61: 7.874947105 | HG61: 107 | HH61: 99.1250529 | HI61: 0.6207524864 | HJ61: 0.5685022585 | HK61: 0.8952045387 | HL61: 1.075616134 | HM61: 34232.28221 | HN61: -0.03129028332 | HO61: -544.4804446 | HP61: 8.166760716 | HQ61: 107 | HR61: 98.83323928 | HS61: 0.6165290538 | HT61: 0.5680760335 | HU61: 0.8990166787 | HV61: 1.072042824 | HW61: 34378.057 | HX61: -0.03281706113 | HY61: -573.5637696 | HZ61: 8.555900421 | IA61: 107 | IB61: 98.44409958 | IC61: 0.6111651153 | ID61: 0.567505893 | IE61: 0.9038164774 | IF61: 1.067317322 | IG61: 34561.59948 | IH61: -0.03430796994 | II61: -603.2829626 | IJ61: 9.074826558 | IK61: 107 | IL61: 97.92517344 | IM61: 0.6044423626 | IN61: 0.566742446 | IO61: 0.9097654931 | IP61: 1.061095482 | IQ61: 34789.08759 | IR61: -0.03574177636 | IS61: -633.5997339 | IT61: 9.766825683 | IU61: 107 | IV61: 97.23317432 | IW61: 0.5961492997 | IX61: 0.565718715 | IY61: 0.9170006533 | IZ61: 1.052954488 | JA61: 35065.75737 | JB61: -0.03709463347 | JC61: -664.4396711 | JD61: 10.68962135 | JE61: 107 | JF61: 96.31037865 | JG61: 0.586106854 | JH61: 0.5643433595 | JI61: 0.9256069608 | JJ61: 1.042392317 | JK61: 35394.85931 | JL61: -0.03834021397 | JM61: -695.6614468 | JN61: 11.92018914 | JO61: 107 | JP61: 95.07981086 | JQ61: 0.5741980098 | JR61: 0.5624908694 | JS61: 0.9355891857 | JT61: 1.028837354 | JU61: 35776.57581 | JV61: -0.03944994447 | JW61: -727.0214322 | JX61: 13.56117767 | JY61: 107 | JZ61: 93.43882233 | KA61: 0.5603951081 | KB61: 0.5599870204 | KC61: 0.9468505065 | KD61: 1.011668162 | KE61: 36207.20444 | KF61: -0.04039322811 | KG61: -758.1391994 | KH61: 15.74947105 | KI61: 107 | KJ61: 91.25052895 | KK61: 0.5447767839 | KL61: 0.5565866306 | KM61: 0.9591867726 | KN61: 0.9902364609 | KO61: 36678.93858 | KP61: -0.04113740297 | KQ61: -788.468829 | KR61: 18.66760716 | KS61: 107 | KT61: 88.33239284 | KU61: 0.5275280962 | KV61: 0.5519381925 | KW61: 0.9723015827 | KX61: 0.9638765295 | KY61: 37180.44395 | KZ61: -0.04164703976 | LA61: -817.277886 | LB61: 22.55900421 | LC61: 107 | LD61: 84.44099579 | LE61: 0.5089223695 | LF61: 0.5455248064 | LG61: 0.9858403466 | LH61: 0.9318735884 | LI61: 37698.16115 | LJ61: -0.04188208428 | LK61: -843.6325899 | LL61: 27.74826558 | LM61: 107 | LN61: 79.25173442 | LO61: 0.4892893904 | LP61: 0.5365591478 | LQ61: 0.9994344353 | LR61: 0.8933509048 | LS61: 38217.99395 | LT61: -0.0417942535 | LU61: -866.3873611 | LV61: 34.66825683 | LW61: 107 | LX61: 72.33174317 | LY61: 0.4689786183 | LZ61: 0.5237807485 | MA61: 1.012743462 | MB61: 0.8470058175 | MC61: 38726.92607 | MD61: -0.04132066906 | ME61: -884.1814546 | MF61: 43.89621347 | MG61: 107 | MH61: 63.10378653 | MI61: 0.4483261517 | MJ61: 0.505018416 | MK61: 1.025486038 | ML61: 0.7905246385 | MM61: 39214.19735 | MN61: -0.04037182414 | MO61: -895.4540991 | MP61: 56.20189143 | MQ61: 107 | MR61: 50.79810857 | MS61: 0.4276310609 | MT61: 0.4760771088 | MU61: 1.037454951 | MV61: 0.7191180015 | MW61: 39671.88407 | MX61: -0.03880307924 | MY61: =+INDEX($AK$28:$AK$82,MATCH(MY$25,$N$28:$N$82,0)) -> -898.4995134 | MZ61: =+INDEX($AC$28:$AC$82,MATCH(MY$25,$N$28:$N$82,0)) -> 72.61177673 | NA61: 107 | NB61: =+NA61-MZ61 -> 34.38822327 | NC61: =1/(0.1+MZ61^0.2) -> 0.4071426272 | ND61: =+(NB61/($T$20+NB61))^0.3 -> 0.427013141 | NE61: =+SQRT(EXP($T$15*(1-SQRT(28/MZ61)))) -> 1.048518149 | NF61: =+$T$16*$T$17*NC61*ND61*NE61 -> 0.6206519689 | NG61: =+INDEX($AJ$28:$AJ$82,MATCH(MY$25,$N$28:$N$82,0)) -> 40094.93655 | NH61: =+MY61*(1+NF61)/NG61 -> -0.03631767826
D62: 47 | E62: 3169.27766 | F62: 1.81692679 | G62: 7024.800222 | H62: 0.7187290106 | I62: 3162.27766 | J62: 281.6358149 | N62: 35 | O62: 107 | P62: 1.129881526 | Q62: 63.57088588 | R62: 1.062958855 | S62: 40647.14366 | T62: =+O62-Input!$F$11 -> 100 | U62: 0.5697734905 | V62: 1.086440884 | X62: 103 | Y62: =+X62-Input!$F$12 -> 100 | Z62: =+SQRT(Y62/(350*(Input!$F$10/$Q$4)^2+Y62)) -> 0.2668527025 | AA62: -89.31953303 | AB62: 35 | AC62: 123.6760716 | AD62: 140.3521432 | AE62: 16.67607161 | AF62: 0.3675200014 | AG62: 0.3468500143 | AH62: 1.067717714 | AI62: 0.4634079867 | AJ62: 40829.12063 | AK62: -873.190201 | AL62: 13098.7772 | AM62: 0.3881539294 | AN62: 0.7773747454 | AP62: 35 | AQ62: 33746.34702 | AR62: 7 | AS62: 140.3521432 | AT62: 133.3521432 | AU62: 0.6346091077 | AV62: 0.6119325122 | AW62: 0.8824969026 | AX62: 1.166829469 | AY62: 33746.34702 | AZ62: 2.166829469 | BA62: =+INDEX($AK$28:$AK$82,MATCH(BA$25,$N$28:$N$82,0)) -> -2297.498035 | BB62: =+INDEX($AC$28:$AC$82,MATCH(BA$25,$N$28:$N$82,0)) -> 7.005 | BC62: 140.3521432 | BD62: 133.3471432 | BE62: 0.6345242381 | BF62: 0.6119269679 | BG62: 0.8825756583 | BH62: 1.166766967 | BI62: =+INDEX($AJ$28:$AJ$82,MATCH(BA$25,$N$28:$N$82,0)) -> 33749.35861 | BJ62: -0.147503332 | BK62: -189.1030035 | BL62: 7.011667607 | BM62: 140.3521432 | BN62: 133.3404756 | BO62: 0.6344111734 | BP62: 0.6119195742 | BQ62: 0.8826805605 | BR62: 1.166683623 | BS62: 33753.37003 | BT62: -0.01213882881 | BU62: -204.5034576 | BV62: 7.015559004 | BW62: 140.3521432 | BX62: 133.3365842 | BY62: 0.634345244 | BZ62: 0.6119152588 | CA62: 0.8827417209 | CB62: 1.166634981 | CC62: 33755.70879 | CD62: -0.01312620475 | CE62: -220.9563824 | CF62: 7.020748266 | CG62: 140.3521432 | CH62: 133.331395 | CI62: 0.6342573927 | CJ62: 0.611909504 | CK62: 0.8828232071 | CL62: 1.166570119 | CM62: 33758.82479 | CN62: -0.01418051424 | CO62: -238.2345017 | CP62: 7.027668257 | CQ62: 140.3521432 | CR62: 133.324475 | CS62: 0.6341403596 | CT62: 0.6119018296 | CU62: 0.8829317419 | CV62: 1.166483626 | CW62: 33762.97512 | CX62: -0.01528689771 | CY62: -256.3844479 | CZ62: 7.036896213 | DA62: 140.3521432 | DB62: 133.315247 | DC62: 0.6339845039 | DD62: 0.6118915949 | DE62: 0.8830762469 | DF62: 1.16636829 | DG62: 33768.50093 | DH62: -0.01644796549 | DI62: -275.4496978 | DJ62: 7.049201891 | DK62: 140.3521432 | DL62: 133.3029413 | DM62: 0.6337770402 | DN62: 0.6118779457 | DO62: 0.8832685425 | DP62: 1.166214497 | DQ62: 33775.85424 | DR62: -0.01766596706 | DS62: -295.4566903 | DT62: 7.065611777 | DU62: 140.3521432 | DV62: 133.2865314 | DW62: 0.6335010438 | DX62: 0.6118597423 | DY62: 0.8835242555 | DZ62: 1.166009426 | EA62: 33785.63261 | EB62: -0.0189418379 | EC62: -316.4163428 | ED62: 7.08749471 | EE62: 140.3521432 | EF62: 133.2646485 | EG62: 0.633134166 | EH62: 0.6118354644 | EI62: 0.883863986 | EJ62: 1.165735993 | EK62: 33798.62377 | EL62: -0.020275212 | EM62: -338.3260835 | EN62: 7.116676072 | EO62: 140.3521432 | EP62: 133.2354671 | EQ62: 0.6326469916 | ER62: 0.6118030834 | ES62: 0.8843147851 | ET62: 1.165371426 | EU62: 33815.86216 | EV62: -0.02166443754 | EW62: -361.1714439 | EX62: 7.155590042 | EY62: 140.3521432 | EZ62: 133.1965532 | FA62: 0.6320009728 | FB62: 0.6117598921 | FC62: 0.8849119932 | FD62: 1.164885391 | FE62: 33838.69917 | FF62: -0.02310652601 | FG62: -384.9275818 | FH62: 7.207482656 | FI62: 140.3521432 | FJ62: 133.1446606 | FK62: 0.6311458854 | FL62: 0.6117022769 | FM62: 0.8857014635 | FN62: 1.164237503 | FO62: 33868.88822 | FP62: -0.02459704916 | FQ62: -409.5611293 | FR62: 7.276682568 | FS62: 140.3521432 | FT62: 133.0754606 | FU62: 0.6300167942 | FV62: 0.6116254124 | FW62: 0.8867421453 | FX62: 1.16337404 | FY62: 33908.6835 | FZ62: -0.02613000045 | GA62: -435.0326346 | GB62: 7.368962135 | GC62: 140.3521432 | GD62: 132.9831811 | GE62: 0.6285306004 | GF62: 0.6115228528 | GG62: 0.8881088964 | GH62: 1.16222365 | GI62: 33960.94754 | GJ62: -0.0276976327 | GK62: -461.299687 | GL62: 7.492018914 | GM62: 140.3521432 | GN62: 132.8601243 | GO62: 0.6265824014 | GP62: 0.6113859819 | GQ62: 0.8898952177 | GR62: 1.160691791 | GS62: 34029.25579 | GT62: -0.02929028049 | GU62: -488.3205548 | GV62: 7.656117767 | GW62: 140.3521432 | GX62: 132.6960254 | GY62: 0.6240421511 | GZ62: 0.6112032736 | HA62: 0.8922153193 | HB62: 1.158653674 | HC62: 34117.9756 | HD62: -0.03089617544 | HE62: -516.0577584 | HF62: 7.874947105 | HG62: 140.3521432 | HH62: 132.4771961 | HI62: 0.6207524864 | HJ62: 0.6109592932 | HK62: 0.8952045387 | HL62: 1.15594558 | HM62: 34232.28221 | HN62: -0.03250126405 | HO62: -544.4804446 | HP62: 8.166760716 | HQ62: 140.3521432 | HR62: 132.1853825 | HS62: 0.6165290538 | HT62: 0.6106333429 | HU62: 0.8990166787 | HV62: 1.152354711 | HW62: 34378.057 | HX62: -0.03408904261 | HY62: -573.5637696 | HZ62: 8.555900421 | IA62: 140.3521432 | IB62: 131.7962428 | IC62: 0.6111651153 | ID62: 0.6101976147 | IE62: 0.9038164774 | IF62: 1.147608319 | IG62: 34561.59948 | IH62: -0.03564043163 | II62: -603.2829626 | IJ62: 9.074826558 | IK62: 140.3521432 | IL62: 131.2773167 | IM62: 0.6044423626 | IN62: 0.6096146554 | IO62: 0.9097654931 | IP62: 1.141363879 | IQ62: 34789.08759 | IR62: -0.03713372309 | IS62: -633.5997339 | IT62: 9.766825683 | IU62: 140.3521432 | IV62: 130.5853175 | IW62: 0.5961492997 | IX62: 0.6088338526 | IY62: 0.9170006533 | IZ62: 1.13320334 | JA62: 35065.75737 | JB62: -0.03854464212 | JC62: -664.4396711 | JD62: 10.68962135 | JE62: 140.3521432 | JF62: 129.6625219 | JG62: 0.586106854 | JH62: 0.6077865062 | JI62: 0.9256069608 | JJ62: 1.122635668 | JK62: 35394.85931 | JL62: -0.03984655887 | JM62: -695.6614468 | JN62: 11.92018914 | JO62: 140.3521432 | JP62: 128.4319541 | JQ62: 0.5741980098 | JR62: 0.6063788095 | JS62: 0.9355891857 | JT62: 1.109111638 | JU62: 35776.57581 | JV62: -0.04101084636 | JW62: -727.0214322 | JX62: 13.56117767 | JY62: 140.3521432 | JZ62: 126.7909655 | KA62: 0.5603951081 | KB62: 0.6044816496 | KC62: 0.9468505065 | KD62: 1.09205181 | KE62: 36207.20444 | KF62: -0.04200728907 | KG62: -758.1391994 | KH62: 15.74947105 | KI62: 140.3521432 | KJ62: 124.6026722 | KK62: 0.5447767839 | KL62: 0.6019154154 | KM62: 0.9591867726 | KN62: 1.070881976 | KO62: 36678.93858 | KP62: -0.04280431397 | KQ62: -788.468829 | KR62: 18.66760716 | KS62: 140.3521432 | KT62: 121.6845361 | KU62: 0.5275280962 | KV62: 0.5984266382 | KW62: 0.9723015827 | KX62: 1.045061565 | KY62: 37180.44395 | KZ62: -0.04336869403 | LA62: -817.277886 | LB62: 22.55900421 | LC62: 140.3521432 | LD62: 117.793139 | LE62: 0.5089223695 | LF62: 0.5936506285 | LG62: 0.9858403466 | LH62: 1.014082834 | LI62: 37698.16115 | LJ62: -0.04366434092 | LK62: -843.6325899 | LL62: 27.74826558 | LM62: 140.3521432 | LN62: 112.6038776 | LO62: 0.4892893904 | LP62: 0.5870486665 | LQ62: 0.9994344353 | LR62: 0.9774140642 | LS62: 38217.99395 | LT62: -0.04364988258 | LU62: -866.3873611 | LV62: 34.66825683 | LW62: 140.3521432 | LX62: 105.6838864 | LY62: 0.4689786183 | LZ62: 0.5777955505 | MA62: 1.012743462 | MB62: 0.9343531505 | MC62: 38726.92607 | MD62: -0.04327477782 | ME62: -884.1814546 | MF62: 43.89621347 | MG62: 140.3521432 | MH62: 96.45592974 | MI62: 0.4483261517 | MJ62: 0.5645610723 | MK62: 1.025486038 | ML62: 0.8837290354 | MM62: 39214.19735 | MN62: -0.04247334871 | MO62: -895.4540991 | MP62: 56.20189143 | MQ62: 140.3521432 | MR62: 84.15025179 | MS62: 0.4276310609 | MT62: 0.5450353213 | MU62: 1.037454951 | MV62: 0.8232798927 | MW62: 39671.88407 | MX62: -0.04115416981 | MY62: -898.4995134 | MZ62: 72.61177673 | NA62: 140.3521432 | NB62: 67.74036649 | NC62: 0.4071426272 | ND62: 0.5147147608 | NE62: 1.048518149 | NF62: 0.7481238844 | NG62: 40094.93655 | NH62: -0.03917423482 | NI62: =+INDEX($AK$28:$AK$82,MATCH(NI$25,$N$28:$N$82,0)) -> -891.589799 | NJ62: =+INDEX($AC$28:$AC$82,MATCH(NI$25,$N$28:$N$82,0)) -> 94.49471047 | NK62: 140.3521432 | NL62: =+NK62-NJ62 -> 45.85743275 | NM62: =1/(0.1+NJ62^0.2) -> 0.3870569497 | NN62: =+(NL62/($T$20+NL62))^0.3 -> 0.462826293 | NO62: =+SQRT(EXP($T$15*(1-SQRT(28/NJ62)))) -> 1.058609986 | NP62: =+$T$16*$T$17*NM62*NN62*NO62 -> 0.6456739274 | NQ62: =+INDEX($AJ$28:$AJ$82,MATCH(NI$25,$N$28:$N$82,0)) -> 40480.84459 | NR62: =+NI62*(1+NP62)/NQ62 -> -0.03624593561
D63: 48 | E63: 4223.965034 | F63: 1.837694894 | G63: 6876.659415 | H63: 0.7165418329 | I63: 4216.965034 | J63: 292.5202502 | N63: 36 | O63: =MIN(30000,$O$28+(O62-$O$28)*10^(1/8)) -> 140.3521432 | P63: 1.148362422 | Q63: 64.61068241 | R63: 1.071616733 | S63: 40978.21764 | T63: =+O63-Input!$F$11 -> 133.3521432 | U63: 0.6119325122 | V63: 1.166829469 | X63: 136.3521432 | Y63: =+X63-Input!$F$12 -> 133.3521432 | Z63: =+SQRT(Y63/(350*(Input!$F$10/$Q$4)^2+Y63)) -> 0.304561224 | AA63: -101.941131 | AB63: 36 | AC63: 162.5900421 | AD63: 184.827941 | AE63: 22.23789889 | AF63: 0.3486341998 | AG63: 0.3770282639 | AH63: 1.075867075 | AI63: 0.4814895689 | AJ63: 41140.7491 | AK63: -842.2687698 | AL63: 12256.50843 | AM63: 0.3631951162 | AN63: 0.7692461136 | AP63: 36 | AQ63: 33746.34702 | AR63: 7 | AS63: 184.827941 | AT63: 177.827941 | AU63: 0.6346091077 | AV63: 0.6546555832 | AW63: 0.8824969026 | AX63: 1.24829358 | AY63: 33746.34702 | AZ63: 2.24829358 | BA63: -2297.498035 | BB63: 7.005 | BC63: 184.827941 | BD63: 177.822941 | BE63: 0.6345242381 | BF63: 0.6546514063 | BG63: 0.8825756583 | BH63: 1.24823006 | BI63: 33749.35861 | BJ63: -0.1530489573 | BK63: =+INDEX($AK$28:$AK$82,MATCH(BK$25,$N$28:$N$82,0)) -> -189.1030035 | BL63: =+INDEX($AC$28:$AC$82,MATCH(BK$25,$N$28:$N$82,0)) -> 7.011667607 | BM63: 184.827941 | BN63: 177.8162734 | BO63: 0.6344111734 | BP63: 0.6546458361 | BQ63: 0.8826805605 | BR63: 1.248145357 | BS63: =+INDEX($AJ$28:$AJ$82,MATCH(BK$25,$N$28:$N$82,0)) -> 33753.37003 | BT63: -0.01259521757 | BU63: -204.5034576 | BV63: 7.015559004 | BW63: 184.827941 | BX63: 177.812382 | BY63: 0.634345244 | BZ63: 0.6546425852 | CA63: 0.8827417209 | CB63: 1.248095924 | CC63: 33755.70879 | CD63: -0.01361972259 | CE63: -220.9563824 | CF63: 7.020748266 | CG63: 184.827941 | CH63: 177.8071927 | CI63: 0.6342573927 | CJ63: 0.6546382498 | CK63: 0.8828232071 | CL63: 1.248030004 | CM63: 33758.82479 | CN63: -0.01471368095 | CO63: -238.2345017 | CP63: 7.027668257 | CQ63: 184.827941 | CR63: 177.8002727 | CS63: 0.6341403596 | CT63: 0.6546324683 | CU63: 0.8829317419 | CV63: 1.247942102 | CW63: 33762.97512 | CX63: -0.01586167583 | CY63: -256.3844479 | CZ63: 7.036896213 | DA63: 184.827941 | DB63: 177.7910448 | DC63: 0.6339845039 | DD63: 0.6546247582 | DE63: 0.8830762469 | DF63: 1.247824887 | DG63: 33768.50093 | DH63: -0.01706641771 | DI63: -275.4496978 | DJ63: 7.049201891 | DK63: 184.827941 | DL63: 177.7787391 | DM63: 0.6337770402 | DN63: 0.6546144759 | DO63: 0.8832685425 | DP63: 1.247668586 | DQ63: 33775.85424 | DR63: -0.01833024351 | DS63: -295.4566903 | DT63: 7.065611777 | DU63: 184.827941 | DV63: 177.7623292 | DW63: 0.6335010438 | DX63: 0.6546007632 | DY63: 0.8835242555 | DZ63: 1.247460174 | EA63: 33785.63261 | EB63: -0.0196541279 | EC63: -316.4163428 | ED63: 7.08749471 | EE63: 184.827941 | EF63: 177.7404463 | EG63: 0.633134166 | EH63: 0.654582475 | EI63: 0.883863986 | EJ63: 1.247182283 | EK63: 33798.62377 | EL63: -0.02103769681 | EM63: -338.3260835 | EN63: 7.116676072 | EO63: 184.827941 | EP63: 177.7112649 | EQ63: 0.6326469916 | ER63: 0.6545580838 | ES63: 0.8843147851 | ET63: 1.246811773 | EU63: 33815.86216 | EV63: -0.02247924432 | EW63: -361.1714439 | EX63: 7.155590042 | EY63: 184.827941 | EZ63: 177.672351 | FA63: 0.6320009728 | FB63: 0.6545255511 | FC63: 0.8849119932 | FD63: 1.246317816 | FE63: 33838.69917 | FF63: -0.02397568077 | FG63: -384.9275818 | FH63: 7.207482656 | FI63: 184.827941 | FJ63: 177.6204583 | FK63: 0.6311458854 | FL63: 0.6544821569 | FM63: 0.8857014635 | FN63: 1.245659369 | FO63: 33868.88822 | FP63: -0.0255224271 | FQ63: -409.5611293 | FR63: 7.276682568 | FS63: 184.827941 | FT63: 177.5512584 | FU63: 0.6300167942 | FV63: 0.6544242698 | FW63: 0.8867421453 | FX63: 1.244781841 | FY63: 33908.6835 | FZ63: -0.0271132728 | GA63: -435.0326346 | GB63: 7.368962135 | GC63: 184.827941 | GD63: 177.4589789 | GE63: 0.6285306004 | GF63: 0.6543470403 | GG63: 0.8881088964 | GH63: 1.243612732 | GI63: 33960.94754 | GJ63: -0.02874020982 | GK63: -461.299687 | GL63: 7.492018914 | GM63: 184.827941 | GN63: 177.3359221 | GO63: 0.6265824014 | GP63: 0.6542439897 | GQ63: 0.8898952177 | GR63: 1.242056002 | GS63: 34029.25579 | GT63: -0.03039325157 | GU63: -488.3205548 | GV63: 7.656117767 | GW63: 184.827941 | GX63: 177.1718232 | GY63: 0.6240421511 | GZ63: 0.6541064564 | HA63: 0.8922153193 | HB63: 1.23998493 | HC63: 34117.9756 | HD63: -0.03206024581 | HE63: -516.0577584 | HF63: 7.874947105 | HG63: 184.827941 | HH63: 176.9529939 | HI63: 0.6207524864 | HJ63: 0.6539228512 | HK63: 0.8952045387 | HL63: 1.237233377 | HM63: 34232.28221 | HN63: -0.03372669208 | HO63: -544.4804446 | HP63: 8.166760716 | HQ63: 184.827941 | HR63: 176.6611803 | HS63: 0.6165290538 | HT63: 0.6536776508 | HU63: 0.8990166787 | HV63: 1.233585635 | HW63: 34378.057 | HX63: -0.03537557983 | HY63: -573.5637696 | HZ63: 8.555900421 | IA63: 184.827941 | IB63: 176.2720406 | IC63: 0.6111651153 | ID63: 0.6533500303 | IE63: 0.9038164774 | IF63: 1.228765751 | IG63: 34561.59948 | IH63: -0.03698727214 | II63: -603.2829626 | IJ63: 9.074826558 | IK63: 184.827941 | IL63: 175.7531144 | IM63: 0.6044423626 | IN63: 0.6529119978 | IO63: 0.9097654931 | IP63: 1.22242824 | IQ63: 34789.08759 | IR63: -0.03853947274 | IS63: -633.5997339 | IT63: 9.766825683 | IU63: 184.827941 | IV63: 175.0611153 | IW63: 0.5961492997 | IX63: 0.6523258275 | IY63: 0.9170006533 | IZ63: 1.214153588 | JA63: 35065.75737 | JB63: -0.04000732421 | JC63: -664.4396711 | JD63: 10.68962135 | JE63: 184.827941 | JF63: 174.1383197 | JG63: 0.586106854 | JH63: 0.6515404948 | JI63: 0.9256069608 | JJ63: 1.203453172 | JK63: 35394.85931 | JL63: -0.04136368188 | JM63: -695.6614468 | JN63: 11.92018914 | JO63: 184.827941 | JP63: 172.9077519 | JQ63: 0.5741980098 | JR63: 0.6504866614 | JS63: 0.9355891857 | JT63: 1.189788158 | JU63: 35776.57581 | JV63: -0.04257956956 | JW63: -727.0214322 | JX63: 13.56117767 | JY63: 184.827941 | JZ63: 171.2667633 | KA63: 0.5603951081 | KB63: 0.6490695064 | KC63: 0.9468505065 | KD63: 1.172603883 | KE63: 36207.20444 | KF63: -0.04362473189 | KG63: -758.1391994 | KH63: 15.74947105 | KI63: 184.827941 | KJ63: 169.07847 | KK63: 0.5447767839 | KL63: 0.6471582643 | KM63: 0.9591867726 | KN63: 1.1513746 | KO63: 36678.93858 | KP63: -0.04446806478 | KQ63: -788.468829 | KR63: 18.66760716 | KS63: 184.827941 | KT63: 166.1603338 | KU63: 0.5275280962 | KV63: 0.644570557 | KW63: 0.9723015827 | KX63: 1.125644936 | KY63: 37180.44395 | KZ63: -0.04507758907 | LA63: -817.277886 | LB63: 22.55900421 | LC63: 184.827941 | LD63: 162.2689368 | LE63: 0.5089223695 | LF63: 0.6410481529 | LG63: 0.9858403466 | LH63: 1.09504799 | LI63: 37698.16115 | LJ63: -0.04541962631 | LK63: -843.6325899 | LL63: 27.74826558 | LM63: 184.827941 | LN63: 157.0796754 | LO63: 0.4892893904 | LP63: 0.6362179171 | LQ63: 0.9994344353 | LR63: 1.059279027 | LS63: 38217.99395 | LT63: -0.04545698817 | LU63: -866.3873611 | LV63: 34.66825683 | LW63: 184.827941 | LX63: 150.1596842 | LY63: 0.4689786183 | LZ63: 0.629525653 | MA63: 1.012743462 | MB63: 1.018005896 | MC63: 38726.92607 | MD63: -0.04514623236 | ME63: -884.1814546 | MF63: 43.89621347 | MG63: 184.827941 | MH63: 140.9317275 | MI63: 0.4483261517 | MJ63: 0.6201166661 | MK63: 1.025486038 | ML63: 0.9706923308 | MM63: 39214.19735 | MN63: -0.04443415215 | MO63: -895.4540991 | MP63: 56.20189143 | MQ63: 184.827941 | MR63: 128.6260496 | MS63: 0.4276310609 | MT63: 0.6066016886 | MU63: 1.037454951 | MV63: 0.9162763468 | MW63: 39671.88407 | MX63: -0.04325323967 | MY63: -898.4995134 | MZ63: 72.61177673 | NA63: 184.827941 | NB63: 112.2161643 | NC63: 0.4071426272 | ND63: 0.5865441986 | NE63: 1.048518149 | NF63: 0.8525260157 | NG63: 40094.93655 | NH63: -0.04151381364 | NI63: -891.589799 | NJ63: 94.49471047 | NK63: 184.827941 | NL63: 90.33323054 | NM63: 0.3870569497 | NN63: 0.5551397303 | NO63: 1.058609986 | NP63: 0.7744574051 | NQ63: 40480.84459 | NR63: -0.03908238915 | NS63: =+INDEX($AK$28:$AK$82,MATCH(NS$25,$N$28:$N$82,0)) -> -873.190201 | NT63: =+INDEX($AC$28:$AC$82,MATCH(NS$25,$N$28:$N$82,0)) -> 123.6760716 | NU63: 184.827941 | NV63: =+NU63-NT63 -> 61.1518694 | NW63: =1/(0.1+NT63^0.2) -> 0.3675200014 | NX63: =+(NV63/($T$20+NV63))^0.3 -> 0.5007575831 | NY63: =+SQRT(EXP($T$15*(1-SQRT(28/NT63)))) -> 1.067717714 | NZ63: =+$T$16*$T$17*NW63*NX63*NY63 -> 0.6690357615 | OA63: =+INDEX($AJ$28:$AJ$82,MATCH(NS$25,$N$28:$N$82,0)) -> 40829.12063 | OB63: =+NS63*(1+NZ63)/OA63 -> -0.03569476025
D64: 49 | E64: 5630.413252 | F64: 1.853965182 | G64: 6758.150402 | H64: 0.7146738307 | I64: 5623.413252 | J64: 301.5644906 | N64: 37 | O64: 184.827941 | P64: 1.164969595 | Q64: 65.5450571 | R64: 1.079337572 | S64: 41273.45961 | T64: =+O64-Input!$F$11 -> 177.827941 | U64: 0.6546555832 | V64: 1.24829358 | X64: 180.827941 | Y64: =+X64-Input!$F$12 -> 177.827941 | Z64: =+SQRT(Y64/(350*(Input!$F$10/$Q$4)^2+Y64)) -> 0.3463846391 | AA64: -115.9400446 | AB64: 37 | AC64: 214.4826558 | AD64: 244.1373706 | AE64: 29.65471478 | AF64: 0.3304662394 | AG64: 0.4094512751 | AH64: 1.083109362 | AI64: 0.498983295 | AJ64: 41417.69144 | AK64: -798.655117 | AL64: 11457.85331 | AM64: 0.3395286993 | AN64: 0.761821841 | AP64: 37 | AQ64: 33746.34702 | AR64: 7 | AS64: 244.1373706 | AT64: 237.1373706 | AU64: 0.6346091077 | AV64: 0.6971637789 | AW64: 0.8824969026 | AX64: 1.329347968 | AY64: 33746.34702 | AZ64: 2.329347968 | BA64: -2297.498035 | BB64: 7.005 | BC64: 244.1373706 | BD64: 237.1323706 | BE64: 0.6345242381 | BF64: 0.697160694 | BG64: 0.8825756583 | BH64: 1.329282923 | BI64: 33749.35861 | BJ64: -0.158566656 | BK64: -189.1030035 | BL64: 7.011667607 | BM64: 244.1373706 | BN64: 237.125703 | BO64: 0.6344111734 | BP64: 0.69715658 | BQ64: 0.8826805605 | BR64: 1.329196186 | BS64: 33753.37003 | BT64: -0.01304930424 | BU64: =+INDEX($AK$28:$AK$82,MATCH(BU$25,$N$28:$N$82,0)) -> -204.5034576 | BV64: =+INDEX($AC$28:$AC$82,MATCH(BU$25,$N$28:$N$82,0)) -> 7.015559004 | BW64: 244.1373706 | BX64: 237.1218116 | BY64: 0.634345244 | BZ64: 0.697154179 | CA64: 0.8827417209 | CB64: 1.329145565 | CC64: =+INDEX($AJ$28:$AJ$82,MATCH(BU$25,$N$28:$N$82,0)) -> 33755.70879 | CD64: -0.01411074863 | CE64: -220.9563824 | CF64: 7.020748266 | CG64: 244.1373706 | CH64: 237.1166223 | CI64: 0.6342573927 | CJ64: 0.6971509771 | CK64: 0.8828232071 | CL64: 1.329078063 | CM64: 33758.82479 | CN64: -0.0152441522 | CO64: -238.2345017 | CP64: 7.027668257 | CQ64: 244.1373706 | CR64: 237.1097023 | CS64: 0.6341403596 | CT64: 0.6971467071 | CU64: 0.8829317419 | CV64: 1.328988049 | CW64: 33762.97512 | CX64: -0.01643354312 | CY64: -256.3844479 | CZ64: 7.036896213 | DA64: 244.1373706 | DB64: 237.1004744 | DC64: 0.6339845039 | DD64: 0.6971410128 | DE64: 0.8830762469 | DF64: 1.328868018 | DG64: 33768.50093 | DH64: -0.01768173074 | DI64: -275.4496978 | DJ64: 7.049201891 | DK64: 244.1373706 | DL64: 237.0881687 | DM64: 0.6337770402 | DN64: 0.6971334189 | DO64: 0.8832685425 | DP64: 1.328707964 | DQ64: 33775.85424 | DR64: -0.01899113788 | DS64: -295.4566903 | DT64: 7.065611777 | DU64: 244.1373706 | DV64: 237.0717588 | DW64: 0.6335010438 | DX64: 0.6971232917 | DY64: 0.8835242555 | DZ64: 1.328494544 | EA64: 33785.63261 | EB64: -0.02036277667 | EC64: -316.4163428 | ED64: 7.08749471 | EE64: 244.1373706 | EF64: 237.0498759 | EG64: 0.633134166 | EH64: 0.6971097857 | EI64: 0.883863986 | EJ64: 1.328209977 | EK64: 33798.62377 | EL64: -0.0217962628 | EM64: -338.3260835 | EN64: 7.116676072 | EO64: 244.1373706 | EP64: 237.0206945 | EQ64: 0.6326469916 | ER64: 0.6970917729 | ES64: 0.8843147851 | ET64: 1.327830564 | EU64: 33815.86216 | EV64: -0.02328983345 | EW64: -361.1714439 | EX64: 7.155590042 | EY64: 244.1373706 | EZ64: 236.9817805 | FA64: 0.6320009728 | FB64: 0.6970677488 | FC64: 0.8849119932 | FD64: 1.327324736 | FE64: 33838.69917 | FF64: -0.02484029398 | FG64: -384.9275818 | FH64: 7.207482656 | FI64: 244.1373706 | FJ64: 236.9298879 | FK64: 0.6311458854 | FL64: 0.6970357054 | FM64: 0.8857014635 | FN64: 1.326650464 | FO64: 33868.88822 | FP64: -0.02644290922 | FQ64: -409.5611293 | FR64: 7.276682568 | FS64: 244.1373706 | FT64: 236.860688 | FU64: 0.6300167942 | FV64: 0.6969929629 | FW64: 0.8867421453 | FX64: 1.325751846 | FY64: 33908.6835 | FZ64: -0.02809125729 | GA64: -435.0326346 | GB64: 7.368962135 | GC64: 244.1373706 | GD64: 236.7684084 | GE64: 0.6285306004 | GF64: 0.6969359437 | GG64: 0.8881088964 | GH64: 1.324554647 | GI64: 33960.94754 | GJ64: -0.02977705882 | GK64: -461.299687 | GL64: 7.492018914 | GM64: 244.1373706 | GN64: 236.6453517 | GO64: 0.6265824014 | GP64: 0.6968598697 | GQ64: 0.8898952177 | GR64: 1.322960543 | GS64: 34029.25579 | GT64: -0.03148999137 | GU64: -488.3205548 | GV64: 7.656117767 | GW64: 244.1373706 | GX64: 236.4812528 | GY64: 0.6240421511 | GZ64: 0.6967583563 | HA64: 0.8922153193 | HB64: 1.320839832 | HC64: 34117.9756 | HD64: -0.03321749824 | HE64: -516.0577584 | HF64: 7.874947105 | HG64: 244.1373706 | HH64: 236.2624235 | HI64: 0.6207524864 | HJ64: 0.6966228664 | HK64: 0.8952045387 | HL64: 1.318022546 | HM64: 34232.28221 | HN64: -0.03494460322 | HO64: -544.4804446 | HP64: 8.166760716 | HQ64: 244.1373706 | HR64: 235.9706099 | HS64: 0.6165290538 | HT64: 0.6964419749 | HU64: 0.8990166787 | HV64: 1.314288189 | HW64: 34378.057 | HX64: -0.0366537487 | HY64: -573.5637696 | HZ64: 8.555900421 | IA64: 244.1373706 | IB64: 235.5814701 | IC64: 0.6111651153 | ID64: 0.6962003728 | IE64: 0.9038164774 | IF64: 1.309355068 | IG64: 34561.59948 | IH64: -0.03832468457 | II64: -603.2829626 | IJ64: 9.074826558 | IK64: 244.1373706 | IL64: 235.062544 | IM64: 0.6044423626 | IN64: 0.6958775142 | IO64: 0.9097654931 | IP64: 1.302871333 | IQ64: 34789.08759 | IR64: -0.03993444889 | IS64: -633.5997339 | IT64: 9.766825683 | IU64: 244.1373706 | IV64: 234.3705449 | IW64: 0.5961492997 | IX64: 0.6954457665 | IY64: 0.9170006533 | IZ64: 1.294411377 | JA64: 35065.75737 | JB64: -0.04145749434 | JC64: -664.4396711 | JD64: 10.68962135 | JE64: 244.1373706 | JF64: 233.4477492 | JG64: 0.586106854 | JH64: 0.6948678603 | JI64: 0.9256069608 | JJ64: 1.283482664 | JK64: 35394.85931 | JL64: -0.04286601219 | JM64: -695.6614468 | JN64: 11.92018914 | JO64: 244.1373706 | JP64: 232.2171814 | JQ64: 0.5741980098 | JR64: 0.6940933374 | JS64: 0.9355891857 | JT64: 1.26954799 | JU64: 35776.57581 | JV64: -0.04413046812 | JW64: -727.0214322 | JX64: 13.56117767 | JY64: 244.1373706 | JZ64: 230.5761929 | KA64: 0.5603951081 | KB64: 0.6930535388 | KC64: 0.9468505065 | KD64: 1.252065091 | KE64: 36207.20444 | KF64: -0.04522027075 | KG64: -758.1391994 | KH64: 15.74947105 | KI64: 244.1373706 | KJ64: 228.3878995 | KK64: 0.5447767839 | KL64: 0.6916544094 | KM64: 0.9591867726 | KN64: 1.230538746 | KO64: 36678.93858 | KP64: -0.04610435647 | KQ64: -788.468829 | KR64: 18.66760716 | KS64: 244.1373706 | KT64: 225.4697634 | KU64: 0.5275280962 | KV64: 0.6897659434 | KW64: 0.9723015827 | KX64: 1.204571839 | KY64: 37180.44395 | KZ64: -0.04675135614 | LA64: -817.277886 | LB64: 22.55900421 | LC64: 244.1373706 | LD64: 221.5783664 | LE64: 0.5089223695 | LF64: 0.687206281 | LG64: 0.9858403466 | LH64: 1.173895991 | LI64: 37698.16115 | LJ64: -0.04712901281 | LK64: -843.6325899 | LL64: 27.74826558 | LM64: 244.1373706 | LN64: 216.389105 | LO64: 0.4892893904 | LP64: 0.6837169274 | LQ64: 0.9994344353 | LR64: 1.138363102 | LS64: 38217.99395 | LT64: -0.04720270781 | LU64: -866.3873611 | LV64: 34.66825683 | LW64: 244.1373706 | LX64: 209.4691137 | LY64: 0.4689786183 | LZ64: 0.678922504 | MA64: 1.012743462 | MB64: 1.097885541 | MC64: 38726.92607 | MD64: -0.0469332762 | ME64: -884.1814546 | MF64: 43.89621347 | MG64: 244.1373706 | MH64: 200.2411571 | MI64: 0.4483261517 | MJ64: 0.6722619384 | MK64: 1.025486038 | ML64: 1.05231732 | MM64: 39214.19735 | MN64: -0.04627459021 | MO64: -895.4540991 | MP64: 56.20189143 | MQ64: 244.1373706 | MR64: 187.9354791 | MS64: 0.4276310609 | MT64: 0.6628630114 | MU64: 1.037454951 | MV64: 1.001259492 | MW64: 39671.88407 | MX64: -0.04517143709 | MY64: -898.4995134 | MZ64: 72.61177673 | NA64: 244.1373706 | NB64: 171.5255938 | NC64: 0.4071426272 | ND64: 0.6492939394 | NE64: 1.048518149 | NF64: 0.9437310546 | NG64: 40094.93655 | NH64: -0.04355765484 | NI64: -891.589799 | NJ64: 94.49471047 | NK64: 244.1373706 | NL64: 149.6426601 | NM64: 0.3870569497 | NN64: 0.629013562 | NO64: 1.058609986 | NP64: 0.8775163881 | NQ64: 40480.84459 | NR64: -0.0413522612 | NS64: -873.190201 | NT64: 123.6760716 | NU64: 244.1373706 | NV64: 120.461299 | NW64: 0.3675200014 | NX64: 0.5969408593 | NY64: 1.067717714 | NZ64: 0.7975411573 | OA64: 40829.12063 | OB64: -0.03844303527 | OC64: =+INDEX($AK$28:$AK$82,MATCH(OC$25,$N$28:$N$82,0)) -> -842.2687698 | OD64: =+INDEX($AC$28:$AC$82,MATCH(OC$25,$N$28:$N$82,0)) -> 162.5900421 | OE64: 244.1373706 | OF64: =+OE64-OD64 -> 81.54732846 | OG64: =1/(0.1+OD64^0.2) -> 0.3486341998 | OH64: =+(OF64/($T$20+OF64))^0.3 -> 0.5405863013 | OI64: =+SQRT(EXP($T$15*(1-SQRT(28/OD64)))) -> 1.075867075 | OJ64: =+$T$16*$T$17*OG64*OH64*OI64 -> 0.6903638006 | OK64: =+INDEX($AJ$28:$AJ$82,MATCH(OC$25,$N$28:$N$82,0)) -> 41140.7491 | OL64: =+OC64*(1+OJ64)/OK64 -> -0.03460658034
D65: 50 | E65: 7505.942093 | F65: 1.866585759 | G65: 6664.058348 | H65: 0.713102846 | I65: 7498.942093 | J65: 308.9255038 | N65: 38 | O65: 244.1373706 | P65: 1.179788746 | Q65: 66.37883176 | R65: 1.086180807 | S65: 41535.14233 | T65: =+O65-Input!$F$11 -> 237.1373706 | U65: 0.6971637789 | V65: 1.329347968 | X65: 240.1373706 | Y65: =+X65-Input!$F$12 -> 237.1373706 | Z65: =+SQRT(Y65/(350*(Input!$F$10/$Q$4)^2+Y65)) -> 0.3922278914 | AA65: -131.2844568 | AB65: 38 | AC65: 283.6825683 | AD65: 323.227766 | AE65: 39.54519773 | AF65: 0.3130547621 | AG65: 0.444125658 | AH65: 1.089510958 | AI65: 0.5157534613 | AJ65: 41662.48601 | AK65: -743.3399388 | AL65: 10714.51337 | AM65: 0.3175014281 | AN65: 0.7551300997 | AP65: 38 | AQ65: 33746.34702 | AR65: 7 | AS65: 323.227766 | AT65: 316.227766 | AU65: 0.6346091077 | AV65: 0.7385710229 | AW65: 0.8824969026 | AX65: 1.408303068 | AY65: 33746.34702 | AZ65: 2.408303068 | BA65: -2297.498035 | BB65: 7.005 | BC65: 323.227766 | BD65: 316.222766 | BE65: 0.6345242381 | BF65: 0.7385687953 | BG65: 0.8825756583 | BH65: 1.408236144 | BI65: 33749.35861 | BJ65: -0.1639414209 | BK65: -189.1030035 | BL65: 7.011667607 | BM65: 323.227766 | BN65: 316.2160984 | BO65: 0.6344111734 | BP65: 0.7385658248 | BQ65: 0.8826805605 | BR65: 1.408146901 | BS65: 33753.37003 | BT65: -0.01349162502 | BU65: -204.5034576 | BV65: 7.015559004 | BW65: 323.227766 | BX65: 316.212207 | BY65: 0.634345244 | BZ65: 0.738564091 | CA65: 0.8827417209 | CB65: 1.408094817 | CC65: 33755.70879 | CD65: -0.0145890498 | CE65: =+INDEX($AK$28:$AK$82,MATCH(CE$25,$N$28:$N$82,0)) -> -220.9563824 | CF65: =+INDEX($AC$28:$AC$82,MATCH(CE$25,$N$28:$N$82,0)) -> 7.020748266 | CG65: 323.227766 | CH65: 316.2070178 | CI65: 0.6342573927 | CJ65: 0.738561779 | CK65: 0.8828232071 | CL65: 1.408025364 | CM65: =+INDEX($AJ$28:$AJ$82,MATCH(CE$25,$N$28:$N$82,0)) -> 33758.82479 | CN65: -0.01576087369 | CO65: -238.2345017 | CP65: 7.027668257 | CQ65: 323.227766 | CR65: 316.2000978 | CS65: 0.6341403596 | CT65: 0.7385586959 | CU65: 0.8829317419 | CV65: 1.40793275 | CW65: 33762.97512 | CX65: -0.01699058382 | CY65: -256.3844479 | CZ65: 7.036896213 | DA65: 323.227766 | DB65: 316.1908698 | DC65: 0.6339845039 | DD65: 0.7385545843 | DE65: 0.8830762469 | DF65: 1.407809251 | DG65: 33768.50093 | DH65: -0.01828108528 | DI65: -275.4496978 | DJ65: 7.049201891 | DK65: 323.227766 | DL65: 316.1785641 | DM65: 0.6337770402 | DN65: 0.7385491012 | DO65: 0.8832685425 | DP65: 1.407644571 | DQ65: 33775.85424 | DR65: -0.01963488369 | DS65: -295.4566903 | DT65: 7.065611777 | DU65: 323.227766 | DV65: 316.1621542 | DW65: 0.6335010438 | DX65: 0.7385417889 | DY65: 0.8835242555 | DZ65: 1.407424983 | EA65: 33785.63261 | EB65: -0.02105302647 | EC65: -316.4163428 | ED65: 7.08749471 | EE65: 323.227766 | EF65: 316.1402713 | EG65: 0.633134166 | EH65: 0.7385320372 | EI65: 0.883863986 | EJ65: 1.407132191 | EK65: 33798.62377 | EL65: -0.02253511769 | EM65: -338.3260835 | EN65: 7.116676072 | EO65: 323.227766 | EP65: 316.1110899 | EQ65: 0.6326469916 | ER65: 0.7385190318 | ES65: 0.8843147851 | ET65: 1.40674181 | EU65: 33815.86216 | EV65: -0.02407933669 | EW65: -361.1714439 | EX65: 7.155590042 | EY65: 323.227766 | EZ65: 316.072176 | FA65: 0.6320009728 | FB65: 0.7385016867 | FC65: 0.8849119932 | FD65: 1.406221358 | FE65: 33838.69917 | FF65: -0.02568238329 | FG65: -384.9275818 | FH65: 7.207482656 | FI65: 323.227766 | FJ65: 316.0202834 | FK65: 0.6311458854 | FL65: 0.7384785527 | FM65: 0.8857014635 | FN65: 1.405527589 | FO65: 33868.88822 | FP65: -0.02733936561 | FQ65: -409.5611293 | FR65: 7.276682568 | FS65: 323.227766 | FT65: 315.9510834 | FU65: 0.6300167942 | FV65: 0.7384476961 | FW65: 0.8867421453 | FX65: 1.404602985 | FY65: 33908.6835 | FZ65: -0.02904364937 | GA65: -435.0326346 | GB65: 7.368962135 | GC65: 323.227766 | GD65: 315.8588039 | GE65: 0.6285306004 | GF65: 0.7384065358 | GG65: 0.8881088964 | GH65: 1.403371167 | GI65: 33960.94754 | GJ65: -0.03078668195 | GK65: -461.299687 | GL65: 7.492018914 | GM65: 323.227766 | GN65: 315.7357471 | GO65: 0.6265824014 | GP65: 0.7383516257 | GQ65: 0.8898952177 | GR65: 1.401730979 | GS65: 34029.25579 | GT65: -0.03255780131 | GU65: -488.3205548 | GV65: 7.656117767 | GW65: 323.227766 | GX65: 315.5716482 | GY65: 0.6240421511 | GZ65: 0.7382783628 | HA65: 0.8922153193 | HB65: 1.399549011 | HC65: 34117.9756 | HD65: -0.03434403959 | HE65: -516.0577584 | HF65: 7.874947105 | HG65: 323.227766 | HH65: 315.3528189 | HI65: 0.6207524864 | HJ65: 0.7381805956 | HK65: 0.8952045387 | HL65: 1.396650491 | HM65: 34232.28221 | HN65: -0.0361299335 | HO65: -544.4804446 | HP65: 8.166760716 | HQ65: 323.227766 | HR65: 315.0610053 | HS65: 0.6165290538 | HT65: 0.7380500972 | HU65: 0.8990166787 | HV65: 1.392808821 | HW65: 34378.057 | HX65: -0.03789736024 | HY65: -573.5637696 | HZ65: 8.555900421 | IA65: 323.227766 | IB65: 314.6718656 | IC65: 0.6111651153 | ID65: 0.7378758541 | IE65: 0.9038164774 | IF65: 1.387734806 | IG65: 34561.59948 | IH65: -0.03962542813 | II65: -603.2829626 | IJ65: 9.074826558 | IK65: 323.227766 | IL65: 314.1529395 | IM65: 0.6044423626 | IN65: 0.7376431039 | IO65: 0.9097654931 | IP65: 1.381067838 | IQ65: 34789.08759 | IR65: -0.04129046662 | IS65: -633.5997339 | IT65: 9.766825683 | IU65: 323.227766 | IV65: 313.4609403 | IW65: 0.5961492997 | IX65: 0.7373320249 | IY65: 0.9170006533 | IZ65: 1.372372955 | JA65: 35065.75737 | JB65: -0.04286617445 | JC65: -664.4396711 | JD65: 10.68962135 | JE65: 323.227766 | JF65: 312.5381447 | JG65: 0.586106854 | JH65: 0.7369159412 | JI65: 0.9256069608 | JJ65: 1.361149205 | JK65: 35394.85931 | JL65: -0.04432398467 | JM65: -695.6614468 | JN65: 11.92018914 | JO65: 323.227766 | JP65: 311.3075769 | JQ65: 0.5741980098 | JR65: 0.7363588431 | JS65: 0.9355891857 | JT65: 1.346854722 | JU65: 35776.57581 | JV65: -0.04563366713 | JW65: -727.0214322 | JX65: 13.56117767 | JY65: 323.227766 | JZ65: 309.6665883 | KA65: 0.5603951081 | KB65: 0.7356119238 | KC65: 0.9468505065 | KD65: 1.328950736 | KE65: 36207.20444 | KF65: -0.04676409365 | KG65: -758.1391994 | KH65: 15.74947105 | KI65: 323.227766 | KJ65: 307.478295 | KK65: 0.5447767839 | KL65: 0.7346086728 | KM65: 0.9591867726 | KN65: 1.306959694 | KO65: 36678.93858 | KP65: -0.04768394733 | KQ65: -788.468829 | KR65: 18.66760716 | KS65: 323.227766 | KT65: 304.5601589 | KU65: 0.5275280962 | KV65: 0.7332578001 | KW65: 0.9723015827 | KX65: 1.280523785 | KY65: 37180.44395 | KZ65: -0.04836203465 | LA65: -817.277886 | LB65: 22.55900421 | LC65: 323.227766 | LD65: 300.6687618 | LE65: 0.5089223695 | LF65: 0.7314327986 | LG65: 0.9858403466 | LH65: 1.249444386 | LI65: 37698.16115 | LJ65: -0.04876686545 | LK65: -843.6325899 | LL65: 27.74826558 | LM65: 323.227766 | LN65: 295.4795004 | LO65: 0.4892893904 | LP65: 0.7289561095 | LQ65: 0.9994344353 | LR65: 1.213684647 | LS65: 38217.99395 | LT65: -0.04886537254 | LU65: -866.3873611 | LV65: 34.66825683 | LW65: 323.227766 | LX65: 288.5595092 | LY65: 0.4689786183 | LZ65: 0.7255742519 | MA65: 1.012743462 | MB65: 1.17332608 | MC65: 38726.92607 | MD65: -0.04862100967 | ME65: -884.1814546 | MF65: 43.89621347 | MG65: 323.227766 | MH65: 279.3315525 | MI65: 0.4483261517 | MJ65: 0.7209170591 | MK65: 1.025486038 | ML65: 1.128479041 | MM65: 39214.19735 | MN65: -0.04799184533 | MO65: -895.4540991 | MP65: 56.20189143 | MQ65: 323.227766 | MR65: 267.0258746 | MS65: 0.4276310609 | MT65: 0.7144272703 | MU65: 1.037454951 | MV65: 1.079147687 | MW65: 39671.88407 | MX65: -0.04692949081 | MY65: -898.4995134 | MZ65: 72.61177673 | NA65: 323.227766 | NB65: 250.6159893 | NC65: 0.4071426272 | ND65: 0.7052307081 | NE65: 1.048518149 | NF65: 1.025033624 | NG65: 40094.93655 | NH65: -0.04537958862 | NI65: -891.589799 | NJ65: 94.49471047 | NK65: 323.227766 | NL65: 228.7330556 | NM65: 0.3870569497 | NN65: 0.6918760524 | NO65: 1.058609986 | NP65: 0.9652138065 | NQ65: 40480.84459 | NR65: -0.04328379511 | NS65: -873.190201 | NT65: 123.6760716 | NU65: 323.227766 | NV65: 199.5516944 | NW65: 0.3675200014 | NX65: 0.6717514254 | NY65: 1.067717714 | NZ65: 0.8974916038 | OA65: 40829.12063 | OB65: -0.04058062112 | OC65: -842.2687698 | OD65: 162.5900421 | OE65: 323.227766 | OF65: 160.6377239 | OG65: 0.3486341998 | OH65: 0.6395465139 | OI65: 1.075867075 | OJ65: 0.8167424164 | OK65: 41140.7491 | OL65: -0.03719391196 | OM65: =+INDEX($AK$28:$AK$82,MATCH(OM$25,$N$28:$N$82,0)) -> -798.655117 | ON65: =+INDEX($AC$28:$AC$82,MATCH(OM$25,$N$28:$N$82,0)) -> 214.4826558 | OO65: 323.227766 | OP65: =+OO65-ON65 -> 108.7451102 | OQ65: =1/(0.1+ON65^0.2) -> 0.3304662394 | OR65: =+(OP65/($T$20+OP65))^0.3 -> 0.5819552129 | OS65: =+SQRT(EXP($T$15*(1-SQRT(28/ON65)))) -> 1.083109362 | OT65: =+$T$16*$T$17*OQ65*OR65*OS65 -> 0.7092075353 | OU65: =+INDEX($AJ$28:$AJ$82,MATCH(OM$25,$N$28:$N$82,0)) -> 41417.69144 | OV65: =+OM65*(1+OT65)/OU65 -> -0.032958557
D66: 51 | E66: 10007 | F66: 1.876298688 | G66: 6589.858538 | H66: 0.7118002188 | I66: 10000 | J66: 314.8133887 | N66: 39 | O66: 323.227766 | P66: 1.192937995 | Q66: 67.11865217 | R66: 1.092217009 | S66: 41765.96441 | T66: =+O66-Input!$F$11 -> 316.227766 | U66: 0.7385710229 | V66: 1.408303068 | X66: 319.227766 | Y66: =+X66-Input!$F$12 -> 316.227766 | Z66: =+SQRT(Y66/(350*(Input!$F$10/$Q$4)^2+Y66)) -> 0.4417464903 | AA66: -147.8590618 | AB66: 39 | AC66: 375.9621347 | AD66: 428.6965034 | AE66: 52.73436871 | AF66: 0.2964171299 | AG66: 0.4809870822 | AH66: 1.0951455 | AI66: 0.5316097087 | AJ66: 41877.94877 | AK66: -678.5650555 | AL66: 10035.94832 | AM66: 0.2973936204 | AN66: 0.749149326 | AP66: 39 | AQ66: 33746.34702 | AR66: 7 | AS66: 428.6965034 | AT66: 421.6965034 | AU66: 0.6346091077 | AV66: 0.7779598654 | AW66: 0.8824969026 | AX66: 1.483409491 | AY66: 33746.34702 | AZ66: 2.483409491 | BA66: -2297.498035 | BB66: 7.005 | BC66: 428.6965034 | BD66: 421.6915034 | BE66: 0.6345242381 | BF66: 0.7779582965 | BG66: 0.8825756583 | BH66: 1.48334048 | BI66: 33749.35861 | BJ66: -0.1690541719 | BK66: -189.1030035 | BL66: 7.011667607 | BM66: 428.6965034 | BN66: 421.6848358 | BO66: 0.6344111734 | BP66: 0.7779562042 | BQ66: 0.8826805605 | BR66: 1.483248454 | BS66: 33753.37003 | BT66: -0.01391238092 | BU66: -204.5034576 | BV66: 7.015559004 | BW66: 428.6965034 | BX66: 421.6809444 | BY66: 0.634345244 | BZ66: 0.7779549831 | CA66: 0.8827417209 | CB66: 1.483194747 | CC66: 33755.70879 | CD66: -0.01504403047 | CE66: -220.9563824 | CF66: 7.020748266 | CG66: 428.6965034 | CH66: 421.6757552 | CI66: 0.6342573927 | CJ66: 0.7779533547 | CK66: 0.8828232071 | CL66: 1.483123128 | CM66: 33758.82479 | CN66: -0.01625239939 | CO66: -238.2345017 | CP66: 7.027668257 | CQ66: 428.6965034 | CR66: 421.6688352 | CS66: 0.6341403596 | CT66: 0.7779511832 | CU66: 0.8829317419 | CV66: 1.483027625 | CW66: 33762.97512 | CX66: -0.01752045982 | CY66: -256.3844479 | CZ66: 7.036896213 | DA66: 428.6965034 | DB66: 421.6596072 | DC66: 0.6339845039 | DD66: 0.7779482873 | DE66: 0.8830762469 | DF66: 1.482900274 | DG66: 33768.50093 | DH66: -0.01885120743 | DI66: -275.4496978 | DJ66: 7.049201891 | DK66: 428.6965034 | DL66: 421.6473015 | DM66: 0.6337770402 | DN66: 0.7779444254 | DO66: 0.8832685425 | DP66: 1.482730458 | DQ66: 33775.85424 | DR66: -0.02024722601 | DS66: -295.4566903 | DT66: 7.065611777 | DU66: 428.6965034 | DV66: 421.6308917 | DW66: 0.6335010438 | DX66: 0.7779392753 | DY66: 0.8835242555 | DZ66: 1.482504021 | EA66: 33785.63261 | EB66: -0.02170959562 | EC66: -316.4163428 | ED66: 7.08749471 | EE66: 428.6965034 | EF66: 421.6090087 | EG66: 0.633134166 | EH66: 0.7779324072 | EI66: 0.883863986 | EJ66: 1.482202095 | EK66: 33798.62377 | EL66: -0.02323790797 | EM66: -338.3260835 | EN66: 7.116676072 | EO66: 428.6965034 | EP66: 421.5798274 | EQ66: 0.6326469916 | ER66: 0.7779232477 | ES66: 0.8843147851 | ET66: 1.481799534 | EU66: 33815.86216 | EV66: -0.02483028563 | EW66: -361.1714439 | EX66: 7.155590042 | EY66: 428.6965034 | EZ66: 421.5409134 | FA66: 0.6320009728 | FB66: 0.777911032 | FC66: 0.8849119932 | FD66: 1.481262843 | FE66: 33838.69917 | FF66: -0.02648332547 | FG66: -384.9275818 | FH66: 7.207482656 | FI66: 428.6965034 | FJ66: 421.4890208 | FK66: 0.6311458854 | FL66: 0.77789474 | FM66: 0.8857014635 | FN66: 1.480547423 | FO66: 33868.88822 | FP66: -0.02819198301 | FQ66: -409.5611293 | FR66: 7.276682568 | FS66: 428.6965034 | FT66: 421.4198209 | FU66: 0.6300167942 | FV66: 0.7778730103 | FW66: 0.8867421453 | FX66: 1.479593961 | FY66: 33908.6835 | FZ66: -0.02994941703 | GA66: -435.0326346 | GB66: 7.368962135 | GC66: 428.6965034 | GD66: 421.3275413 | GE66: 0.6285306004 | GF66: 0.7778440262 | GG66: 0.8881088964 | GH66: 1.478323695 | GI66: 33960.94754 | GJ66: -0.03174680816 | GK66: -461.299687 | GL66: 7.492018914 | GM66: 428.6965034 | GN66: 421.2044845 | GO66: 0.6265824014 | GP66: 0.7778053628 | GQ66: 0.8898952177 | GR66: 1.476632318 | GS66: 34029.25579 | GT66: -0.03357316188 | GU66: -488.3205548 | GV66: 7.656117767 | GW66: 428.6965034 | GX66: 421.0403857 | GY66: 0.6240421511 | GZ66: 0.7777537822 | HA66: 0.8922153193 | HB66: 1.474382282 | HC66: 34117.9756 | HD66: -0.03541510619 | HE66: -516.0577584 | HF66: 7.874947105 | HG66: 428.6965034 | HH66: 420.8215563 | HI66: 0.6207524864 | HJ66: 0.7776849588 | HK66: 0.8952045387 | HL66: 1.471393431 | HM66: 34232.28221 | HN66: -0.03725669666 | HO66: -544.4804446 | HP66: 8.166760716 | HQ66: 428.6965034 | HR66: 420.5297427 | HS66: 0.6165290538 | HT66: 0.7775931111 | HU66: 0.8990166787 | HV66: 1.46743229 | HW66: 34378.057 | HX66: -0.03907924843 | HY66: -573.5637696 | HZ66: 8.555900421 | IA66: 428.6965034 | IB66: 420.140603 | IC66: 0.6111651153 | ID66: 0.7774705049 | IE66: 0.9038164774 | IF66: 1.462201093 | IG66: 34561.59948 | IH66: -0.04086122638 | II66: -603.2829626 | IJ66: 9.074826558 | IK66: 428.6965034 | IL66: 419.6216769 | IM66: 0.6044423626 | IN66: 0.7773067838 | IO66: 0.9097654931 | IP66: 1.455328998 | IQ66: 34789.08759 | IR66: -0.04257824091 | IS66: -633.5997339 | IT66: 9.766825683 | IU66: 428.6965034 | IV66: 418.9296777 | IW66: 0.5961492997 | IX66: 0.7770880605 | IY66: 0.9170006533 | IZ66: 1.446369616 | JA66: 35065.75737 | JB66: -0.04420321287 | JC66: -664.4396711 | JD66: 10.68962135 | JE66: 428.6965034 | JF66: 418.0068821 | JG66: 0.586106854 | JH66: 0.7767956785 | JI66: 0.9256069608 | JJ66: 1.434810622 | JK66: 35394.85931 | JL66: -0.04570677214 | JM66: -695.6614468 | JN66: 11.92018914 | JO66: 428.6965034 | JP66: 416.7763143 | JQ66: 0.5741980098 | JR66: 0.7764045129 | JS66: 0.9355891857 | JT66: 1.42010121 | JU66: 35776.57581 | JV66: -0.04705791629 | JW66: -727.0214322 | JX66: 13.56117767 | JY66: 428.6965034 | JZ66: 415.1353258 | KA66: 0.5603951081 | KB66: 0.7758806167 | KC66: 0.9468505065 | KD66: 1.401699841 | KE66: 36207.20444 | KF66: -0.04822485703 | KG66: -758.1391994 | KH66: 15.74947105 | KI66: 428.6965034 | KJ66: 412.9470324 | KK66: 0.5447767839 | KL66: 0.7751779229 | KM66: 0.9591867726 | KN66: 1.379137408 | KO66: 36678.93858 | KP66: -0.04917583222 | KQ66: -788.468829 | KR66: 18.66760716 | KS66: 428.6965034 | KT66: 410.0288963 | KU66: 0.5275280962 | KV66: 0.7742335542 | KW66: 0.9723015827 | KX66: 1.352081739 | KY66: 37180.44395 | KZ66: -0.04987953175 | LA66: -817.277886 | LB66: 22.55900421 | LC66: 428.6965034 | LD66: 406.1374992 | LE66: 0.5089223695 | LF66: 0.7729610251 | LG66: 0.9858403466 | LH66: 1.32038352 | LI66: 37698.16115 | LJ66: -0.05030479154 | LK66: -843.6325899 | LL66: 27.74826558 | LM66: 428.6965034 | LN66: 400.9482379 | LO66: 0.4892893904 | LP66: 0.771240154 | LQ66: 0.9994344353 | LR66: 1.284085999 | LS66: 38217.99395 | LT66: -0.05041942781 | LU66: -866.3873611 | LV66: 34.66825683 | LW66: 428.6965034 | LX66: 394.0282466 | LY66: 0.4689786183 | LZ66: 0.7689016476 | MA66: 1.012743462 | MB66: 1.243390809 | MC66: 38726.92607 | MD66: -0.05018847711 | ME66: -884.1814546 | MF66: 43.89621347 | MG66: 428.6965034 | MH66: 384.80029 | MI66: 0.4483261517 | MJ66: 0.7657026826 | MK66: 1.025486038 | ML66: 1.19858369 | MM66: 39214.19735 | MN66: -0.04957252873 | MO66: -895.4540991 | MP66: 56.20189143 | MQ66: 428.6965034 | MR66: 372.494612 | MS66: 0.4276310609 | MT66: 0.7612864889 | MU66: 1.037454951 | MV66: 1.149928884 | MW66: 39671.88407 | MX66: -0.0485271289 | MY66: -898.4995134 | MZ66: 72.61177673 | NA66: 428.6965034 | NB66: 356.0847267 | NC66: 0.4071426272 | ND66: 0.7551117567 | NE66: 1.048518149 | NF66: 1.09753437 | NG66: 40094.93655 | NH66: -0.04700427967 | NI66: -891.589799 | NJ66: 94.49471047 | NK66: 428.6965034 | NL66: 334.201793 | NM66: 0.3870569497 | NN66: 0.7463208396 | NO66: 1.058609986 | NP66: 1.041167961 | NQ66: 40480.84459 | NR66: -0.04495668384 | NS66: -873.190201 | NT66: 123.6760716 | NU66: 428.6965034 | NV66: 305.0204318 | NW66: 0.3675200014 | NX66: 0.7334718688 | NY66: 1.067717714 | NZ66: 0.9799530287 | OA66: 40829.12063 | OB66: -0.04234417877 | OC66: -842.2687698 | OD66: 162.5900421 | OE66: 428.6965034 | OF66: 266.1064613 | OG66: 0.3486341998 | OH66: 0.713928903 | OI66: 1.075867075 | OJ66: 0.9117335561 | OK66: 41140.7491 | OL66: -0.0391386522 | OM66: -798.655117 | ON66: 214.4826558 | OO66: 428.6965034 | OP66: 214.2138476 | OQ66: 0.3304662394 | OR66: 0.6822275945 | OS66: 1.083109362 | OT66: 0.8314058197 | OU66: 41417.69144 | OV66: -0.03531489995 | OW66: =+INDEX($AK$28:$AK$82,MATCH(OW$25,$N$28:$N$82,0)) -> -743.3399388 | OX66: =+INDEX($AC$28:$AC$82,MATCH(OW$25,$N$28:$N$82,0)) -> 283.6825683 | OY66: =+$AD66 -> 428.6965034 | OZ66: =+OY66-OX66 -> 145.0139351 | PA66: =1/(0.1+OX66^0.2) -> 0.3130547621 | PB66: =+(OZ66/($T$20+OZ66))^0.3 -> 0.624350577 | PC66: =+SQRT(EXP($T$15*(1-SQRT(28/OX66)))) -> 1.089510958 | PD66: =+$T$16*$T$17*PA66*PB66*PC66 -> 0.7250447377 | PE66: =+INDEX($AJ$28:$AJ$82,MATCH(OW$25,$N$28:$N$82,0)) -> 41662.48601 | PF66: =+OW66*(1+PD66)/PE66 -> -0.03077815974
D67: 52 | E67: 13342.21432 | F67: 1.883728102 | G67: 6531.697669 | H67: 0.7107336254 | I67: 13335.21432 | J67: 319.456444 | N67: 40 | O67: 428.6965034 | P67: 1.204552775 | Q67: 67.77213826 | R67: 1.097521196 | S67: 41968.79449 | T67: =+O67-Input!$F$11 -> 421.6965034 | U67: 0.7779598654 | V67: 1.483409491 | X67: 424.6965034 | Y67: =+X67-Input!$F$12 -> 421.6965034 | Z67: =+SQRT(Y67/(350*(Input!$F$10/$Q$4)^2+Y67)) -> 0.4942894123 | AA67: -165.4459523 | AB67: 40 | AC67: 499.0189143 | AD67: 569.3413252 | AE67: 70.32241088 | AF67: 0.2805550327 | AG67: 0.5198749497 | AH67: 1.100088397 | AI67: 0.5462971181 | AJ67: 42066.96328 | AK67: -607.5879298 | AL67: 9428.360389 | AM67: 0.2793890664 | AN67: 0.7438159487 | AP67: 40 | AQ67: 33746.34702 | AR67: 7 | AS67: 569.3413252 | AT67: 562.3413252 | AU67: 0.6346091077 | AV67: 0.8144806841 | AW67: 0.8824969026 | AX67: 1.553047182 | AY67: 33746.34702 | AZ67: 2.553047182 | BA67: -2297.498035 | BB67: 7.005 | BC67: 569.3413252 | BD67: 562.3363252 | BE67: 0.6345242381 | BF67: 0.8144796078 | BG67: 0.8825756583 | BH67: 1.552976011 | BI67: 33749.35861 | BJ67: -0.1737946322 | BK67: -189.1030035 | BL67: 7.011667607 | BM67: =+$AD67 -> 569.3413252 | BN67: 562.3296576 | BO67: 0.6344111734 | BP67: 0.8144781725 | BQ67: 0.8826805605 | BR67: 1.552881105 | BS67: 33753.37003 | BT67: -0.01430249732 | BU67: -204.5034576 | BV67: 7.015559004 | BW67: 569.3413252 | BX67: 562.3257662 | BY67: 0.634345244 | BZ67: 0.8144773348 | CA67: 0.8827417209 | CB67: 1.552825717 | CC67: 33755.70879 | CD67: -0.01546587835 | CE67: -220.9563824 | CF67: 7.020748266 | CG67: 569.3413252 | CH67: 562.3205769 | CI67: 0.6342573927 | CJ67: 0.8144762176 | CK67: 0.8828232071 | CL67: 1.552751856 | CM67: 33758.82479 | CN67: -0.01670812947 | CO67: -238.2345017 | CP67: 7.027668257 | CQ67: 569.3413252 | CR67: 562.3136569 | CS67: 0.6341403596 | CT67: 0.8144747279 | CU67: 0.8829317419 | CV67: 1.552653364 | CW67: 33762.97512 | CX67: -0.01801174511 | CY67: -256.3844479 | CZ67: 7.036896213 | DA67: 569.3413252 | DB67: 562.304429 | DC67: 0.6339845039 | DD67: 0.8144727414 | DE67: 0.8830762469 | DF67: 1.552522026 | DG67: 33768.50093 | DH67: -0.01937980462 | DI67: -275.4496978 | DJ67: 7.049201891 | DK67: 569.3413252 | DL67: 562.2921233 | DM67: 0.6337770402 | DN67: 0.8144700921 | DO67: 0.8832685425 | DP67: 1.552346894 | DQ67: 33775.85424 | DR67: -0.02081496372 | DS67: -295.4566903 | DT67: 7.065611777 | DU67: 569.3413252 | DV67: 562.2757134 | DW67: 0.6335010438 | DX67: 0.8144665592 | DY67: 0.8835242555 | DZ67: 1.552113368 | EA67: 33785.63261 | EB67: -0.02231833211 | EC67: -316.4163428 | ED67: 7.08749471 | EE67: =+$AD67 -> 569.3413252 | EF67: 562.2538305 | EG67: 0.633134166 | EH67: 0.8144618477 | EI67: 0.883863986 | EJ67: 1.551801989 | EK67: 33798.62377 | EL67: -0.02388948906 | EM67: -338.3260835 | EN67: 7.116676072 | EO67: 569.3413252 | EP67: 562.2246491 | EQ67: 0.6326469916 | ER67: 0.8144555645 | ES67: 0.8843147851 | ET67: 1.551386824 | EU67: 33815.86216 | EV67: -0.02552650314 | EW67: -361.1714439 | EX67: 7.155590042 | EY67: 569.3413252 | EZ67: 562.1857351 | FA67: 0.6320009728 | FB67: 0.814447185 | FC67: 0.8849119932 | FD67: 1.550833325 | FE67: 33838.69917 | FF67: -0.02722587386 | FG67: -384.9275818 | FH67: 7.207482656 | FI67: =+$AD67 -> 569.3413252 | FJ67: 562.1338425 | FK67: 0.6311458854 | FL67: 0.8144360096 | FM67: 0.8857014635 | FN67: 1.550095499 | FO67: 33868.88822 | FP67: -0.02898241263 | FQ67: -409.5611293 | FR67: 7.276682568 | FS67: 569.3413252 | FT67: 562.0646426 | FU67: 0.6300167942 | FV67: 0.8144211047 | FW67: 0.8867421453 | FX67: 1.549112172 | FY67: 33908.6835 | FZ67: -0.03078908269 | GA67: -435.0326346 | GB67: 7.368962135 | GC67: 569.3413252 | GD67: 561.9723631 | GE67: 0.6285306004 | GF67: 0.8144012248 | GG67: 0.8881088964 | GH67: 1.547802114 | GI67: 33960.94754 | GJ67: -0.03263681217 | GK67: -461.299687 | GL67: 7.492018914 | GM67: 569.3413252 | GN67: 561.8493063 | GO67: 0.6265824014 | GP67: 0.8143747077 | GQ67: 0.8898952177 | GR67: 1.546057754 | GS67: 34029.25579 | GT67: -0.03451429124 | GU67: -488.3205548 | GV67: 7.656117767 | GW67: 569.3413252 | GX67: 561.6852074 | GY67: 0.6240421511 | GZ67: 0.8143393344 | HA67: 0.8922153193 | HB67: 1.543737251 | HC67: 34117.9756 | HD67: -0.03640776348 | HE67: -516.0577584 | HF67: 7.874947105 | HG67: 569.3413252 | HH67: 561.4663781 | HI67: 0.6207524864 | HJ67: 0.8142921414 | HK67: 0.8952045387 | HL67: 1.540654856 | HM67: 34232.28221 | HN67: -0.03830082498 | HO67: -544.4804446 | HP67: 8.166760716 | HQ67: 569.3413252 | HR67: 561.1745645 | HS67: 0.6165290538 | HT67: 0.8142291698 | HU67: 0.8990166787 | HV67: 1.536569908 | HW67: 34378.057 | HX67: -0.04017425159 | HY67: -573.5637696 | HZ67: 8.555900421 | IA67: 569.3413252 | IB67: 560.7854248 | IC67: 0.6111651153 | ID67: 0.8141451267 | IE67: 0.9038164774 | IF67: 1.531175635 | IG67: 34561.59948 | IH67: -0.0420058869 | II67: -603.2829626 | IJ67: 9.074826558 | IK67: 569.3413252 | IL67: 560.2664986 | IM67: 0.6044423626 | IN67: 0.8140329304 | IO67: 0.9097654931 | IP67: 1.5240903 | IQ67: 34789.08759 | IR67: -0.0437706413 | IS67: -633.5997339 | IT67: 9.766825683 | IU67: 569.3413252 | IV67: 559.5744995 | IW67: 0.5961492997 | IX67: 0.813883095 | IY67: 0.9170006533 | IZ67: 1.514855059 | JA67: 35065.75737 | JB67: -0.04544066963 | JC67: -664.4396711 | JD67: 10.68962135 | JE67: 569.3413252 | JF67: 558.6517038 | JG67: 0.586106854 | JH67: 0.8136828954 | JI67: 0.9256069608 | JJ67: 1.502944589 | JK67: 35394.85931 | JL67: -0.04698579715 | JM67: -695.6614468 | JN67: 11.92018914 | JO67: 569.3413252 | JP67: 557.421136 | JQ67: 0.5741980098 | JR67: 0.8134152273 | JS67: 0.9355891857 | JT67: 1.487796541 | JU67: 35776.57581 | JV67: -0.04837422537 | JW67: -727.0214322 | JX67: 13.56117767 | JY67: 569.3413252 | JZ67: 555.7801475 | KA67: 0.5603951081 | KB67: 0.8130570396 | KC67: 0.9468505065 | KD67: 1.468862475 | KE67: 36207.20444 | KF67: -0.04957344705 | KG67: -758.1391994 | KH67: 15.74947105 | KI67: 569.3413252 | KJ67: 553.5918541 | KK67: 0.5447767839 | KL67: 0.8125771576 | KM67: 0.9591867726 | KN67: 1.445675272 | KO67: 36678.93858 | KP67: -0.05055114365 | KQ67: -788.468829 | KR67: 18.66760716 | KS67: 569.3413252 | KT67: 550.673718 | KU67: 0.5275280962 | KV67: 0.8119332234 | KW67: 0.9723015827 | KX67: 1.417918506 | KY67: 37180.44395 | KZ67: -0.05127570225 | LA67: -817.277886 | LB67: 22.55900421 | LC67: 569.3413252 | LD67: 546.782321 | LE67: 0.5089223695 | LF67: 0.8110673256 | LG67: 0.9858403466 | LH67: 1.38547727 | LI67: 37698.16115 | LJ67: -0.05171599252 | LK67: -843.6325899 | LL67: 27.74826558 | LM67: 569.3413252 | LN67: 541.5930596 | LO67: 0.4892893904 | LP67: 0.8098996346 | LQ67: 0.9994344353 | LR67: 1.348452588 | LS67: 38217.99395 | LT67: -0.05184027036 | LU67: -866.3873611 | LV67: 34.66825683 | LW67: 569.3413252 | LX67: 534.6730684 | LY67: 0.4689786183 | LZ67: 0.8083188971 | MA67: 1.012743462 | MB67: 1.307132441 | MC67: 38726.92607 | MD67: -0.05161448608 | ME67: -884.1814546 | MF67: 43.89621347 | MG67: 569.3413252 | MH67: 525.4451117 | MI67: 0.4483261517 | MJ67: 0.8061678045 | MK67: 1.025486038 | ML67: 1.261925292 | MM67: 39214.19735 | MN67: -0.05100072245 | MO67: -895.4540991 | MP67: 56.20189143 | MQ67: 569.3413252 | MR67: 513.1394338 | MS67: 0.4276310609 | MT67: 0.8032196114 | MU67: 1.037454951 | MV67: 1.213269177 | MW67: 39671.88407 | MX67: -0.04995681458 | MY67: -898.4995134 | MZ67: 72.61177673 | NA67: 569.3413252 | NB67: 496.7295485 | NC67: 0.4071426272 | ND67: 0.7991390404 | NE67: 1.048518149 | NF67: 1.161526827 | NG67: 40094.93655 | NH67: -0.04843830593 | NI67: -891.589799 | NJ67: 94.49471047 | NK67: 569.3413252 | NL67: 474.8466147 | NM67: 0.3870569497 | NN67: 0.7934131984 | NO67: 1.058609986 | NP67: 1.106864981 | NQ67: 40480.84459 | NR67: -0.04640365941 | NS67: -873.190201 | NT67: 123.6760716 | NU67: 569.3413252 | NV67: 445.6652536 | NW67: 0.3675200014 | NX67: 0.7852208664 | NY67: 1.067717714 | NZ67: 1.049092131 | OA67: 40829.12063 | OB67: -0.04382281916 | OC67: -842.2687698 | OD67: 162.5900421 | OE67: 569.3413252 | OF67: 406.7512831 | OG67: 0.3486341998 | OH67: 0.7731627509 | OI67: 1.075867075 | OJ67: 0.9873790251 | OK67: 41140.7491 | OL67: -0.04068733125 | OM67: -798.655117 | ON67: 214.4826558 | OO67: 569.3413252 | OP67: 354.8586694 | OQ67: 0.3304662394 | OR67: 0.7546365918 | OS67: 1.083109362 | OT67: 0.9196480166 | OU67: 41417.69144 | OV67: -0.03701646949 | OW67: -743.3399388 | OX67: 283.6825683 | OY67: 569.3413252 | OZ67: 285.6587569 | PA67: 0.3130547621 | PB67: 0.7241288405 | PC67: 1.089510958 | PD67: 0.8409150637 | PE67: 41662.48601 | PF67: -0.03284551215 | PG67: =+INDEX($AK$28:$AK$82,MATCH(PG$25,$N$28:$N$82,0)) -> -678.5650555 | PH67: =+INDEX($AC$28:$AC$82,MATCH(PG$25,$N$28:$N$82,0)) -> 375.9621347 | PI67: 569.3413252 | PJ67: =+PI67-PH67 -> 193.3791905 | PK67: =1/(0.1+PH67^0.2) -> 0.2964171299 | PL67: =+(PJ67/($T$20+PJ67))^0.3 -> 0.6670973289 | PM67: =+SQRT(EXP($T$15*(1-SQRT(28/PH67)))) -> 1.0951455 | PN67: =+$T$16*$T$17*PK67*PL67*PM67 -> 0.7373075697 | PO67: =+INDEX($AJ$28:$AJ$82,MATCH(PG$25,$N$28:$N$82,0)) -> 41877.94877 | PP67: =+PG67*(1+PN67)/PO67 -> -0.02815028535
D68: 53 | E68: 17789.7941 | F68: 1.889383918 | G68: 6486.34894 | H68: 0.7098698139 | I68: 17782.7941 | J68: 323.0762591 | N68: 41 | O68: 569.3413252 | P68: 1.214774902 | Q68: 68.34726904 | R68: 1.102168273 | S68: 42146.49696 | T68: =+O68-Input!$F$11 -> 562.3413252 | U68: 0.8144806841 | V68: 1.553047182 | X68: 565.3413252 | Y68: =+X68-Input!$F$12 -> 562.3413252 | Z68: =+SQRT(Y68/(350*(Input!$F$10/$Q$4)^2+Y68)) -> 0.5488715627 | AA68: -183.7154026 | AB68: 41 | AC68: 663.1177673 | AD68: 756.8942093 | AE68: 93.77644207 | AF68: 0.2654589356 | AG68: 0.5605053441 | AH68: 1.104413213 | AI68: 0.5594909556 | AJ68: 42232.34259 | AK68: -534.1386646 | AL68: 8894.221724 | AM68: 0.2635610224 | AN68: 0.7390425801 | AP68: 41 | AQ68: 33746.34702 | AR68: 7 | AS68: 756.8942093 | AT68: 749.8942093 | AU68: 0.6346091077 | AV68: 0.8474528233 | AW68: 0.8824969026 | AX68: 1.615918272 | AY68: 33746.34702 | AZ68: 2.615918272 | BA68: -2297.498035 | BB68: 7.005 | BC68: 756.8942093 | BD68: 749.8892093 | BE68: 0.6345242381 | BF68: 0.8474521044 | BG68: 0.8825756583 | BH68: 1.615844984 | BI68: 33749.35861 | BJ68: -0.178074457 | BK68: -189.1030035 | BL68: 7.011667607 | BM68: 756.8942093 | BN68: 749.8825417 | BO68: 0.6344111734 | BP68: 0.8474511459 | BQ68: 0.8826805605 | BR68: 1.615747256 | BS68: 33753.37003 | BT68: -0.01465470446 | BU68: -204.5034576 | BV68: 7.015559004 | BW68: 756.8942093 | BX68: 749.8786503 | BY68: 0.634345244 | BZ68: 0.8474505864 | CA68: 0.8827417209 | CB68: 1.61569022 | CC68: 33755.70879 | CD68: -0.01584673269 | CE68: -220.9563824 | CF68: 7.020748266 | CG68: 756.8942093 | CH68: 749.8734611 | CI68: 0.6342573927 | CJ68: 0.8474498403 | CK68: 0.8828232071 | CL68: 1.615614163 | CM68: 33758.82479 | CN68: -0.01711957234 | CO68: -238.2345017 | CP68: 7.027668257 | CQ68: 756.8942093 | CR68: 749.8665411 | CS68: 0.6341403596 | CT68: 0.8474488454 | CU68: 0.8829317419 | CV68: 1.615512741 | CW68: 33762.97512 | CX68: -0.01845528637 | CY68: -256.3844479 | CZ68: 7.036896213 | DA68: 756.8942093 | DB68: 749.8573131 | DC68: 0.6339845039 | DD68: 0.8474475187 | DE68: 0.8830762469 | DF68: 1.615377498 | DG68: 33768.50093 | DH68: -0.0198570294 | DI68: -275.4496978 | DJ68: 7.049201891 | DK68: 756.8942093 | DL68: 749.8450074 | DM68: 0.6337770402 | DN68: 0.8474457494 | DO68: 0.8832685425 | DP68: 1.615197157 | DQ68: 33775.85424 | DR68: -0.02132752177 | DS68: -295.4566903 | DT68: 7.065611777 | DU68: 756.8942093 | DV68: 749.8285976 | DW68: 0.6335010438 | DX68: 0.84744339 | DY68: 0.8835242555 | DZ68: 1.614956685 | EA68: 33785.63261 | EB68: -0.02286789939 | EC68: -316.4163428 | ED68: 7.08749471 | EE68: 756.8942093 | EF68: 749.8067146 | EG68: 0.633134166 | EH68: 0.8474402435 | EI68: 0.883863986 | EJ68: 1.614636044 | EK68: 33798.62377 | EL68: -0.02447772963 | EM68: -338.3260835 | EN68: 7.116676072 | EO68: 756.8942093 | EP68: 749.7775333 | EQ68: 0.6326469916 | ER68: 0.8474360474 | ES68: 0.8843147851 | ET68: 1.614208528 | EU68: 33815.86216 | EV68: -0.02615503128 | EW68: -361.1714439 | EX68: 7.155590042 | EY68: 756.8942093 | EZ68: 749.7386193 | FA68: 0.6320009728 | FB68: 0.8474304515 | FC68: 0.8849119932 | FD68: 1.613638563 | FE68: 33838.69917 | FF68: -0.02789621459 | FG68: -384.9275818 | FH68: 7.207482656 | FI68: 756.8942093 | FJ68: 749.6867267 | FK68: 0.6311458854 | FL68: 0.8474229885 | FM68: 0.8857014635 | FN68: 1.612878784 | FO68: 33868.88822 | FP68: -0.02969595888 | FQ68: -409.5611293 | FR68: 7.276682568 | FS68: 756.8942093 | FT68: 749.6175268 | FU68: 0.6300167942 | FV68: 0.8474130354 | FW68: 0.8867421453 | FX68: 1.611866196 | FY68: 33908.6835 | FZ68: -0.03154704809 | GA68: -435.0326346 | GB68: 7.368962135 | GC68: 756.8942093 | GD68: 749.5252472 | GE68: 0.6285306004 | GF68: 0.8473997605 | GG68: 0.8881088964 | GH68: 1.610517151 | GI68: 33960.94754 | GJ68: -0.03344017868 | GK68: -461.299687 | GL68: 7.492018914 | GM68: 756.8942093 | GN68: 749.4021904 | GO68: 0.6265824014 | GP68: 0.8473820545 | GQ68: 0.8898952177 | GR68: 1.60872088 | GS68: 34029.25579 | GT68: -0.03536375091 | GU68: -488.3205548 | GV68: 7.656117767 | GW68: 756.8942093 | GX68: 749.2380916 | GY68: 0.6240421511 | GZ68: 0.8473584366 | HA68: 0.8922153193 | HB68: 1.606331327 | HC68: 34117.9756 | HD68: -0.03730365408 | HE68: -516.0577584 | HF68: 7.874947105 | HG68: 756.8942093 | HH68: 749.0192622 | HI68: 0.6207524864 | HJ68: 0.84732693 | HK68: 0.8952045387 | HL68: 1.603157249 | HM68: 34232.28221 | HN68: -0.0392430597 | HO68: -544.4804446 | HP68: 8.166760716 | HQ68: 756.8942093 | HR68: 748.7274486 | HS68: 0.6165290538 | HT68: 0.8472848946 | HU68: 0.8990166787 | HV68: 1.59895091 | HW68: 34378.057 | HX68: -0.04116224332 | HY68: -573.5637696 | HZ68: 8.555900421 | IA68: 756.8942093 | IB68: 748.3383089 | IC68: 0.6111651153 | ID68: 0.8472288024 | IE68: 0.9038164774 | IF68: 1.593396628 | IG68: 34561.59948 | IH68: -0.04303846953 | II68: -603.2829626 | IJ68: 9.074826558 | IK68: 756.8942093 | IL68: 747.8193828 | IM68: 0.6044423626 | IN68: 0.8471539366 | IO68: 0.9097654931 | IP68: 1.586101801 | IQ68: 34789.08759 | IR68: -0.04484599236 | IS68: -633.5997339 | IT68: 9.766825683 | IU68: 756.8942093 | IV68: 747.1273836 | IW68: 0.5961492997 | IX68: 0.8470539843 | IY68: 0.9170006533 | IZ68: 1.576594994 | JA68: 35065.75737 | JB68: -0.04655624247 | JC68: -664.4396711 | JD68: 10.68962135 | JE68: 756.8942093 | JF68: 746.204588 | JG68: 0.586106854 | JH68: 0.8469204871 | JI68: 0.9256069608 | JJ68: 1.564337373 | JK68: 35394.85931 | JL68: -0.04813827528 | JM68: -695.6614468 | JN68: 11.92018914 | JO68: =+$AD68 -> 756.8942093 | JP68: 744.9740202 | JQ68: 0.5741980098 | JR68: 0.8467420936 | JS68: 0.9355891857 | JT68: 1.548753842 | JU68: 35776.57581 | JV68: -0.04955951611 | JW68: -727.0214322 | JX68: 13.56117767 | JY68: 756.8942093 | JZ68: 743.3330317 | KA68: 0.5603951081 | KB68: 0.8465035376 | KC68: 0.9468505065 | KD68: 1.529286656 | KE68: 36207.20444 | KF68: -0.05078673252 | KG68: -758.1391994 | KH68: 15.74947105 | KI68: 756.8942093 | KJ68: 741.1447383 | KK68: 0.5447767839 | KL68: 0.8461842308 | KM68: 0.9591867726 | KN68: 1.505466413 | KO68: 36678.93858 | KP68: -0.05178700294 | KQ68: -788.468829 | KR68: 18.66760716 | KS68: 756.8942093 | KT68: 738.2266022 | KU68: 0.5275280962 | KV68: 0.8457563026 | KW68: 0.9723015827 | KX68: 1.476985396 | KY68: 37180.44395 | KZ68: -0.05252830701 | LA68: -817.277886 | LB68: 22.55900421 | LC68: 756.8942093 | LD68: 734.3352051 | LE68: 0.5089223695 | LF68: 0.8451818367 | LG68: 0.9858403466 | LH68: 1.443752185 | LI68: 37698.16115 | LJ68: -0.05297936447 | LK68: -843.6325899 | LL68: 27.74826558 | LM68: 756.8942093 | LN68: 729.1459438 | LO68: 0.4892893904 | LP68: 0.8444089086 | LQ68: 0.9994344353 | LR68: 1.405909238 | LS68: 38217.99395 | LT68: -0.05310858137 | LU68: -866.3873611 | LV68: 34.66825683 | LW68: 756.8942093 | LX68: 722.2259525 | LY68: 0.4689786183 | LZ68: 0.8433657839 | MA68: 1.012743462 | MB68: 1.363806759 | MC68: 38726.92607 | MD68: -0.05288238722 | ME68: -884.1814546 | MF68: 43.89621347 | MG68: 756.8942093 | MH68: 712.9979959 | MI68: 0.4483261517 | MJ68: 0.8419522037 | MK68: 1.025486038 | ML68: 1.317939981 | MM68: 39214.19735 | MN68: -0.05226371269 | MO68: -895.4540991 | MP68: 56.20189143 | MQ68: 756.8942093 | MR68: 700.6923179 | MS68: 0.4276310609 | MT68: 0.8400258682 | MU68: 1.037454951 | MV68: 1.2688653 | MW68: 39671.88407 | MX68: -0.05121170272 | MY68: -898.4995134 | MZ68: 72.61177673 | NA68: 756.8942093 | NB68: 684.2824326 | NC68: 0.4071426272 | ND68: 0.8373806539 | NE68: 1.048518149 | NF68: 1.217109971 | NG68: 40094.93655 | NH68: -0.04968388534 | NI68: -891.589799 | NJ68: 94.49471047 | NK68: 756.8942093 | NL68: 662.3994989 | NM68: 0.3870569497 | NN68: 0.83370982 | NO68: 1.058609986 | NP68: 1.163081489 | NQ68: 40480.84459 | NR68: -0.04764182688 | NS68: -873.190201 | NT68: 123.6760716 | NU68: 756.8942093 | NV68: 633.2181377 | NW68: 0.3675200014 | NX68: 0.8285402269 | NY68: 1.067717714 | NZ68: 1.106968841 | OA68: 40829.12063 | OB68: -0.04506059689 | OC68: -842.2687698 | OD68: 162.5900421 | OE68: 756.8942093 | OF68: 594.3041672 | OG68: 0.3486341998 | OH68: 0.8211061681 | OI68: 1.075867075 | OJ68: 1.048605881 | OK68: 41140.7491 | OL68: -0.04194082007 | OM68: -798.655117 | ON68: 214.4826558 | OO68: 756.8942093 | OP68: 542.4115535 | OQ68: 0.3304662394 | OR68: 0.8100848099 | OS68: 1.083109362 | OT68: 0.9872207323 | OU68: 41417.69144 | OV68: -0.03831947053 | OW68: -743.3399388 | OX68: 283.6825683 | OY68: 756.8942093 | OZ68: 473.211641 | PA68: 0.3130547621 | PB68: 0.7929715991 | PC68: 1.089510958 | PD68: 0.9208606611 | PE68: 41662.48601 | PF68: -0.0342718974 | PG68: -678.5650555 | PH68: 375.9621347 | PI68: 756.8942093 | PJ68: 380.9320746 | PK68: 0.2964171299 | PL68: 0.7643334105 | PM68: 1.0951455 | PN68: 0.8447774934 | PO68: 41877.94877 | PP68: -0.02989166325 | PQ68: =+INDEX($AK$28:$AK$82,MATCH(PQ$25,$N$28:$N$82,0)) -> -607.5879298 | PR68: =+INDEX($AC$28:$AC$82,MATCH(PQ$25,$N$28:$N$82,0)) -> 499.0189143 | PS68: 756.8942093 | PT68: =+PS68-PR68 -> 257.875295 | PU68: =1/(0.1+PR68^0.2) -> 0.2805550327 | PV68: =+(PT68/($T$20+PT68))^0.3 -> 0.7093793976 | PW68: =+SQRT(EXP($T$15*(1-SQRT(28/PR68)))) -> 1.100088397 | PX68: =+$T$16*$T$17*PU68*PV68*PW68 -> 0.745432956 | PY68: =+INDEX($AJ$28:$AJ$82,MATCH(PQ$25,$N$28:$N$82,0)) -> 42066.96328 | PZ68: =+PQ68*(1+PX68)/PY68 -> -0.02520990139
D69: 54 | E69: 23720.73706 | F69: 1.893673857 | G69: 6456.951809 | H69: 0.7092921588 | I69: 23713.73706 | J69: 325.8729484 | N69: 42 | O69: 756.8942093 | P69: 1.223745095 | Q69: 68.85196187 | R69: 1.106230127 | S69: 42301.82073 | T69: =+O69-Input!$F$11 -> 749.8942093 | U69: 0.8474528233 | V69: 1.615918272 | X69: 752.8942093 | Y69: =+X69-Input!$F$12 -> 749.8942093 | Z69: =+SQRT(Y69/(350*(Input!$F$10/$Q$4)^2+Y69)) -> 0.6041994304 | AA69: -202.2344555 | AB69: 42 | AC69: 881.9471047 | AD69: 1007 | AE69: 125.0528953 | AF69: 0.2511114962 | AG69: 0.6024468422 | AH69: 1.108189455 | AI69: 0.5707996678 | AJ69: 42376.74467 | AK69: -461.7561466 | AL69: 8432.465577 | AM69: 0.2498778778 | AN69: 0.7347411534 | AP69: 42 | AQ69: 33746.34702 | AR69: 7 | AS69: 1007 | AT69: 1000 | AU69: 0.6346091077 | AV69: 0.8764408665 | AW69: 0.8824969026 | AX69: 1.671192509 | AY69: 33746.34702 | AZ69: 2.671192509 | BA69: -2297.498035 | BB69: 7.005 | BC69: 1007 | BD69: 999.995 | BE69: 0.6345242381 | BF69: 0.8764403988 | BG69: 0.8825756583 | BH69: 1.671117241 | BI69: 33749.35861 | BJ69: -0.181837133 | BK69: -189.1030035 | BL69: 7.011667607 | BM69: 1007 | BN69: 999.9883324 | BO69: 0.6344111734 | BP69: 0.8764397752 | BQ69: 0.8826805605 | BR69: 1.67101687 | BS69: 33753.37003 | BT69: -0.01496435207 | BU69: -204.5034576 | BV69: 7.015559004 | BW69: 1007 | BX69: 999.984441 | BY69: 0.634345244 | BZ69: 0.8764394112 | CA69: 0.8827417209 | CB69: 1.670958293 | CC69: 33755.70879 | CD69: -0.0161815653 | CE69: -220.9563824 | CF69: 7.020748266 | CG69: 1007 | CH69: 999.9792517 | CI69: 0.6342573927 | CJ69: 0.8764389259 | CK69: 0.8828232071 | CL69: 1.670880179 | CM69: 33758.82479 | CN69: -0.0174812964 | CO69: -238.2345017 | CP69: 7.027668257 | CQ69: 1007 | CR69: 999.9723317 | CS69: 0.6341403596 | CT69: 0.8764382786 | CU69: 0.8829317419 | CV69: 1.670776016 | CW69: 33762.97512 | CX69: -0.01884522887 | CY69: -256.3844479 | CZ69: 7.036896213 | DA69: 1007 | DB69: 999.9631038 | DC69: 0.6339845039 | DD69: 0.8764374155 | DE69: 0.8830762469 | DF69: 1.670637117 | DG69: 33768.50093 | DH69: -0.02027658332 | DI69: -275.4496978 | DJ69: 7.049201891 | DK69: 1007 | DL69: 999.9507981 | DM69: 0.6337770402 | DN69: 0.8764362644 | DO69: 0.8832685425 | DP69: 1.6704519 | DQ69: 33775.85424 | DR69: -0.02177813664 | DS69: -295.4566903 | DT69: 7.065611777 | DU69: 1007 | DV69: 999.9343882 | DW69: 0.6335010438 | DX69: 0.8764347295 | DY69: 0.8835242555 | DZ69: 1.670204927 | EA69: 33785.63261 | EB69: -0.02335104745 | EC69: -316.4163428 | ED69: 7.08749471 | EE69: 1007 | EF69: 999.9125053 | EG69: 0.633134166 | EH69: 0.8764326825 | EI69: 0.883863986 | EJ69: 1.669875616 | EK69: 33798.62377 | EL69: -0.02499487209 | EM69: -338.3260835 | EN69: 7.116676072 | EO69: 1007 | EP69: 999.8833239 | EQ69: 0.6326469916 | ER69: 0.8764299528 | ES69: 0.8843147851 | ET69: 1.669436541 | EU69: 33815.86216 | EV69: -0.02670758491 | EW69: -361.1714439 | EX69: 7.155590042 | EY69: 1007 | EZ69: 999.84441 | FA69: 0.6320009728 | FB69: 0.8764263124 | FC69: 0.8849119932 | FD69: 1.668851164 | FE69: 33838.69917 | FF69: -0.02848551664 | FG69: -384.9275818 | FH69: 7.207482656 | FI69: 1007 | FJ69: 999.7925173 | FK69: 0.6311458854 | FL69: 0.8764214575 | FM69: 0.8857014635 | FN69: 1.668070838 | FO69: 33868.88822 | FP69: -0.03032322906 | FQ69: -409.5611293 | FR69: 7.276682568 | FS69: 1007 | FT69: 999.7233174 | FU69: 0.6300167942 | FV69: 0.8764149829 | FW69: 0.8867421453 | FX69: 1.667030864 | FY69: 33908.6835 | FZ69: -0.03221334655 | GA69: -435.0326346 | GB69: 7.368962135 | GC69: 1007 | GD69: 999.6310379 | GE69: 0.6285306004 | GF69: 0.8764063477 | GG69: 0.8881088964 | GH69: 1.665645331 | GI69: 33960.94754 | GJ69: -0.03414635913 | GK69: -461.299687 | GL69: 7.492018914 | GM69: 1007 | GN69: 999.5079811 | GO69: 0.6265824014 | GP69: 0.8763948305 | GQ69: 0.8898952177 | GR69: 1.663800472 | GS69: 34029.25579 | GT69: -0.0361104084 | GU69: -488.3205548 | GV69: 7.656117767 | GW69: 1007 | GX69: 999.3438822 | GY69: 0.6240421511 | GZ69: 0.8763794688 | HA69: 0.8922153193 | HB69: 1.66134629 | HC69: 34117.9756 | HD69: -0.03809106708 | HE69: -516.0577584 | HF69: 7.874947105 | HG69: 1007 | HH69: 999.1250529 | HI69: 0.6207524864 | HJ69: 0.8763589776 | HK69: 0.8952045387 | HL69: 1.658086386 | HM69: 34232.28221 | HN69: -0.04007112624 | HO69: -544.4804446 | HP69: 8.166760716 | HQ69: 1007 | HR69: 998.8332393 | HS69: 0.6165290538 | HT69: 0.8763316414 | HU69: 0.8990166787 | HV69: 1.653766383 | HW69: 34378.057 | HX69: -0.04203041202 | HY69: -573.5637696 | HZ69: 8.555900421 | IA69: =+$AD69 -> 1007 | IB69: 998.4440996 | IC69: 0.6111651153 | ID69: 0.8762951689 | IE69: 0.9038164774 | IF69: 1.648062204 | IG69: 34561.59948 | IH69: -0.04394566695 | II69: -603.2829626 | IJ69: 9.074826558 | IK69: 1007 | IL69: 997.9251734 | IM69: 0.6044423626 | IN69: 0.876246498 | IO69: 0.9097654931 | IP69: 1.640570962 | IQ69: 34789.08759 | IR69: -0.04579055053 | IS69: -633.5997339 | IT69: 9.766825683 | IU69: 1007 | IV69: 997.2331743 | IW69: 0.5961492997 | IX69: 0.8761815337 | IY69: 0.9170006533 | IZ69: 1.630809187 | JA69: 35065.75737 | JB69: -0.04753583341 | JC69: -664.4396711 | JD69: 10.68962135 | JE69: =+$AD69 -> 1007 | JF69: 996.3103787 | JG69: 0.586106854 | JH69: 0.8760947946 | JI69: 0.9256069608 | JJ69: 1.618224911 | JK69: 35394.85931 | JL69: -0.04914986336 | JM69: -695.6614468 | JN69: 11.92018914 | JO69: 1007 | JP69: 995.0798109 | JQ69: 0.5741980098 | JR69: 0.8759789339 | JS69: 0.9355891857 | JT69: 1.602230183 | JU69: 35776.57581 | JV69: -0.05059934252 | JW69: -727.0214322 | JX69: 13.56117767 | JY69: 1007 | JZ69: 993.4388223 | KA69: 0.5603951081 | KB69: 0.8758240884 | KC69: 0.9468505065 | KD69: 1.582256933 | KE69: 36207.20444 | KF69: -0.05185034754 | KG69: -758.1391994 | KH69: 15.74947105 | KI69: 1007 | KJ69: 991.250529 | KK69: 0.5447767839 | KL69: 0.8756169863 | KM69: 0.9591867726 | KN69: 1.557830925 | KO69: 36678.93858 | KP69: -0.05286935677 | KQ69: -788.468829 | KR69: 18.66760716 | KS69: 1007 | KT69: 988.3323928 | KU69: 0.5275280962 | KV69: 0.8753397169 | KW69: 0.9723015827 | KX69: 1.528648352 | KY69: 37180.44395 | KZ69: -0.05362389992 | LA69: -817.277886 | LB69: 22.55900421 | LC69: 1007 | LD69: 984.4409958 | LE69: 0.5089223695 | LF69: 0.8749680122 | LG69: 0.9858403466 | LH69: 1.494633373 | LI69: 37698.16115 | LJ69: -0.054082444 | LK69: -843.6325899 | LL69: 27.74826558 | LM69: 1007 | LN69: 979.2517344 | LO69: 0.4892893904 | LP69: 0.8744688175 | LQ69: 0.9994344353 | LR69: 1.455957861 | LS69: 38217.99395 | LT69: -0.05421336594 | LU69: -866.3873611 | LV69: 34.66825683 | LW69: 1007 | LX69: 972.3317432 | LY69: 0.4689786183 | LZ69: 0.8737967936 | MA69: 1.012743462 | MB69: 1.413016743 | MC69: 38726.92607 | MD69: -0.05398329845 | ME69: -884.1814546 | MF69: 43.89621347 | MG69: 1007 | MH69: 963.1037865 | MI69: 0.4483261517 | MJ69: 0.8728891724 | MK69: 1.025486038 | ML69: 1.366366801 | MM69: 39214.19735 | MN69: -0.05335561561 | MO69: -895.4540991 | MP69: 56.20189143 | MQ69: 1007 | MR69: 950.7981086 | MS69: 0.4276310609 | MT69: 0.8716579839 | MU69: 1.037454951 | MV69: 1.316645846 | MW69: 39671.88407 | MX69: -0.0522901815 | MY69: -898.4995134 | MZ69: 72.61177673 | NA69: 1007 | NB69: 934.3882233 | NC69: 0.4071426272 | ND69: 0.8699779178 | NE69: 1.048518149 | NF69: 1.264489206 | NG69: 40094.93655 | NH69: -0.05074562089 | NI69: -891.589799 | NJ69: 94.49471047 | NK69: 1007 | NL69: 912.5052895 | NM69: 0.3870569497 | NN69: 0.8676665981 | NO69: 1.058609986 | NP69: 1.210453487 | NQ69: 40480.84459 | NR69: -0.04868519419 | NS69: -873.190201 | NT69: 123.6760716 | NU69: 1007 | NV69: 883.3239284 | NW69: 0.3675200014 | NX69: 0.8644509457 | NY69: 1.067717714 | NZ69: 1.154947256 | OA69: 40829.12063 | OB69: -0.04608668516 | OC69: -842.2687698 | OD69: 162.5900421 | OE69: 1007 | OF69: 844.4099579 | OG69: 0.3486341998 | OH69: 0.8599063542 | OI69: 1.075867075 | OJ69: 1.098156238 | OK69: 41140.7491 | OL69: -0.04295525755 | OM69: -798.655117 | ON69: 214.4826558 | OO69: 1007 | OP69: 792.5173442 | OQ69: 0.3304662394 | OR69: 0.8533384649 | OS69: 1.083109362 | OT69: 1.03993238 | OU69: 41417.69144 | OV69: -0.0393359064 | OW69: -743.3399388 | OX69: 283.6825683 | OY69: 1007 | OZ69: 723.3174317 | PA69: 0.3130547621 | PB69: 0.843531267 | PC69: 1.089510958 | PD69: 0.979574503 | PE69: 41662.48601 | PF69: -0.03531946676 | PG69: -678.5650555 | PH69: 375.9621347 | PI69: 1007 | PJ69: 631.0378653 | PK69: 0.2964171299 | PL69: 0.8281406261 | PM69: 1.0951455 | PN69: 0.9153002508 | PO69: 41877.94877 | PP69: -0.03103437153 | PQ69: -607.5879298 | PR69: 499.0189143 | PS69: 1007 | PT69: 507.9810857 | PU69: 0.2805550327 | PV69: 0.801955709 | PW69: 1.100088397 | PX69: 0.8427143737 | PY69: 42066.96328 | PZ69: -0.02661497109 | QA69: =+INDEX($AK$28:$AK$82,MATCH(QA$25,$N$28:$N$82,0)) -> -534.1386646 | QB69: =+INDEX($AC$28:$AC$82,MATCH(QA$25,$N$28:$N$82,0)) -> 663.1177673 | QC69: 1007 | QD69: =+QC69-QB69 -> 343.8822327 | QE69: =1/(0.1+QB69^0.2) -> 0.2654589356 | QF69: =+(QD69/($T$20+QD69))^0.3 -> 0.7502924119 | QG69: =+SQRT(EXP($T$15*(1-SQRT(28/QB69)))) -> 1.104413213 | QH69: =+$T$16*$T$17*QE69*QF69*QG69 -> 0.7489345515 | QI69: =+INDEX($AJ$28:$AJ$82,MATCH(QA$25,$N$28:$N$82,0)) -> 42232.34259 | QJ69: =+QA69*(1+QH69)/QI69 -> -0.02211986142
D70: =+N82 -> 55 | E70: =+O82 -> 30000 | F70: =+V82 -> 1.896388412 | G70: =+AL82 -> 6285.87086 | H70: =+AN82 -> 0.7044657139 | I70: =+Y82 -> 29997 | J70: =-AA82 -> 327.6669452 | N70: 43 | O70: 1007 | P70: 1.231598168 | Q70: 69.29380186 | R70: 1.109773927 | S70: 42437.33427 | T70: =+O70-Input!$F$11 -> 1000 | U70: 0.8764408665 | V70: 1.671192509 | X70: 1003 | Y70: =+X70-Input!$F$12 -> 1000 | Z70: =+SQRT(Y70/(350*(Input!$F$10/$Q$4)^2+Y70)) -> 0.6587663948 | AA70: -220.4988228 | AB70: 43 | AC70: 1173.760716 | AD70: 1340.521432 | AE70: 166.7607161 | AF70: 0.2374901336 | AG70: 0.6451066585 | AH70: 1.111481368 | AI70: 0.5797805656 | AJ70: 42502.62618 | AK70: -393.2616905 | AL70: 8039.203887 | AM70: 0.2382244182 | AN70: 0.730842207 | AP70: 43 | AQ70: 33746.34702 | AR70: 7 | AS70: 1340.521432 | AT70: 1333.521432 | AU70: 0.6346091077 | AV70: 0.901285611 | AW70: 0.8824969026 | AX70: 1.718566328 | AY70: 33746.34702 | AZ70: 2.718566328 | BA70: -2297.498035 | BB70: 7.005 | BC70: 1340.521432 | BD70: 1333.516432 | BE70: 0.6345242381 | BF70: 0.9012853142 | BG70: 0.8825756583 | BH70: 1.718489277 | BI70: 33749.35861 | BJ70: -0.185061999 | BK70: -189.1030035 | BL70: 7.011667607 | BM70: 1340.521432 | BN70: 1333.509765 | BO70: 0.6344111734 | BP70: 0.9012849183 | BQ70: 0.8826805605 | BR70: 1.71838653 | BS70: 33753.37003 | BT70: -0.01522974023 | BU70: -204.5034576 | BV70: 7.015559004 | BW70: 1340.521432 | BX70: 1333.505873 | BY70: 0.634345244 | BZ70: 0.9012846873 | CA70: 0.8827417209 | CB70: 1.718326564 | CC70: 33755.70879 | CD70: -0.01646853825 | CE70: -220.9563824 | CF70: 7.020748266 | CG70: 1340.521432 | CH70: 1333.500684 | CI70: 0.6342573927 | CJ70: 0.9012843792 | CK70: 0.8828232071 | CL70: 1.718246601 | CM70: 33758.82479 | CN70: -0.01779131647 | CO70: -238.2345017 | CP70: 7.027668257 | CQ70: 1340.521432 | CR70: 1333.493764 | CS70: 0.6341403596 | CT70: 0.9012839684 | CU70: 0.8829317419 | CV70: 1.71813997 | CW70: 33762.97512 | CX70: -0.01917943307 | CY70: -256.3844479 | CZ70: 7.036896213 | DA70: 1340.521432 | DB70: 1333.484536 | DC70: 0.6339845039 | DD70: 0.9012834205 | DE70: 0.8830762469 | DF70: 1.717997781 | DG70: 33768.50093 | DH70: -0.0206361651 | DI70: -275.4496978 | DJ70: 7.049201891 | DK70: 1340.521432 | DL70: 1333.47223 | DM70: 0.6337770402 | DN70: 0.9012826899 | DO70: 0.8832685425 | DP70: 1.717808177 | DQ70: 33775.85424 | DR70: -0.02216433775 | DS70: -295.4566903 | DT70: 7.065611777 | DU70: 1340.521432 | DV70: 1333.45582 | DW70: 0.6335010438 | DX70: 0.9012817156 | DY70: 0.8835242555 | DZ70: 1.717555354 | EA70: 33785.63261 | EB70: -0.0237651288 | EC70: -316.4163428 | ED70: 7.08749471 | EE70: 1340.521432 | EF70: 1333.433937 | EG70: 0.633134166 | EH70: 0.9012804163 | EI70: 0.883863986 | EJ70: 1.717218242 | EK70: 33798.62377 | EL70: -0.02543808483 | EM70: -338.3260835 | EN70: 7.116676072 | EO70: 1340.521432 | EP70: 1333.404756 | EQ70: 0.6326469916 | ER70: 0.9012786836 | ES70: 0.8843147851 | ET70: 1.716768766 | EU70: 33815.86216 | EV70: -0.02718114156 | EW70: -361.1714439 | EX70: 7.155590042 | EY70: 1340.521432 | EZ70: 1333.365842 | FA70: 0.6320009728 | FB70: 0.901276373 | FC70: 0.8849119932 | FD70: 1.71616952 | FE70: 33838.69917 | FF70: -0.02899056085 | FG70: -384.9275818 | FH70: 7.207482656 | FI70: 1340.521432 | FJ70: 1333.31395 | FK70: 0.6311458854 | FL70: 0.9012732915 | FM70: 0.8857014635 | FN70: 1.715370706 | FO70: 33868.88822 | FP70: -0.03086080277 | FQ70: -409.5611293 | FR70: 7.276682568 | FS70: 1340.521432 | FT70: 1333.24475 | FU70: 0.6300167942 | FV70: 0.901269182 | FW70: 0.8867421453 | FX70: 1.714306091 | FY70: 33908.6835 | FZ70: -0.03278435354 | GA70: -435.0326346 | GB70: 7.368962135 | GC70: 1340.521432 | GD70: 1333.15247 | GE70: 0.6285306004 | GF70: 0.9012637013 | GG70: 0.8881088964 | GH70: 1.712887726 | GI70: 33960.94754 | GJ70: -0.03475152433 | GK70: -461.299687 | GL70: 7.492018914 | GM70: 1340.521432 | GN70: 1333.029413 | GO70: 0.6265824014 | GP70: 0.9012563918 | GQ70: 0.8898952177 | GR70: 1.71099915 | GS70: 34029.25579 | GT70: -0.03675023243 | GU70: -488.3205548 | GV70: 7.656117767 | GW70: 1340.521432 | GX70: 1332.865314 | GY70: 0.6240421511 | GZ70: 0.9012466427 | HA70: 0.8922153193 | HB70: 1.708486814 | HC70: 34117.9756 | HD70: -0.03876577554 | HE70: -516.0577584 | HF70: 7.874947105 | HG70: 1340.521432 | HH70: 1332.646485 | HI70: 0.6207524864 | HJ70: 0.901233639 | HK70: 0.8952045387 | HL70: 1.705149677 | HM70: 34232.28221 | HN70: -0.04078061374 | HO70: -544.4804446 | HP70: 8.166760716 | HQ70: 1340.521432 | HR70: 1332.354671 | HS70: 0.6165290538 | HT70: 0.901216293 | HU70: 0.8990166787 | HV70: 1.700727372 | HW70: 34378.057 | HX70: -0.04277418122 | HY70: -573.5637696 | HZ70: 8.555900421 | IA70: 1340.521432 | IB70: 1331.965532 | IC70: 0.6111651153 | ID70: 0.9011931521 | IE70: 0.9038164774 | IF70: 1.694888235 | IG70: 34561.59948 | IH70: -0.04472276394 | II70: -603.2829626 | IJ70: 9.074826558 | IK70: 1340.521432 | IL70: 1331.446606 | IM70: 0.6044423626 | IN70: 0.9011622761 | IO70: 0.9097654931 | IP70: 1.687220053 | IQ70: 34789.08759 | IR70: -0.04659949964 | IS70: -633.5997339 | IT70: 9.766825683 | IU70: 1340.521432 | IV70: 1330.754606 | IW70: 0.5961492997 | IX70: 0.9011210721 | IY70: 0.9170006533 | IZ70: 1.677228367 | JA70: 35065.75737 | JB70: -0.04837457703 | JC70: -664.4396711 | JD70: 10.68962135 | JE70: 1340.521432 | JF70: 1329.831811 | JG70: 0.586106854 | JH70: 0.9010660716 | JI70: 0.9256069608 | JJ70: 1.664349078 | JK70: 35394.85931 | JL70: -0.05001571583 | JM70: -695.6614468 | JN70: 11.92018914 | JO70: 1340.521432 | JP70: 1328.601243 | JQ70: 0.5741980098 | JR70: 0.9009926311 | JS70: 0.9355891857 | JT70: 1.647982082 | JU70: 35776.57581 | JV70: -0.05148897022 | JW70: -727.0214322 | JX70: 13.56117767 | JY70: 1340.521432 | JZ70: 1326.960254 | KA70: 0.5603951081 | KB70: 0.9008945251 | KC70: 0.9468505065 | KD70: 1.627548988 | KE70: 36207.20444 | KF70: -0.05275978794 | KG70: -758.1391994 | KH70: 15.74947105 | KI70: 1340.521432 | KJ70: 1324.771961 | KK70: 0.5447767839 | KL70: 0.9007633929 | KM70: 0.9591867726 | KN70: 1.602569493 | KO70: 36678.93858 | KP70: -0.05379408533 | KQ70: -788.468829 | KR70: 18.66760716 | KS70: 1340.521432 | KT70: 1321.853825 | KU70: 0.5275280962 | KV70: 0.9005879791 | KW70: 0.9723015827 | KX70: 1.572740621 | KY70: 37180.44395 | KZ70: -0.05455894469 | LA70: -817.277886 | LB70: 22.55900421 | LC70: 1340.521432 | LD70: 1317.962428 | LE70: 0.5089223695 | LF70: 0.9003530845 | LG70: 0.9858403466 | LH70: 1.537996531 | LI70: 37698.16115 | LJ70: -0.05502253628 | LK70: -843.6325899 | LL70: 27.74826558 | LM70: 1340.521432 | LN70: 1312.773167 | LO70: 0.4892893904 | LP70: 0.900038098 | LQ70: 0.9994344353 | LR70: 1.498529757 | LS70: 38217.99395 | LT70: -0.05515310752 | LU70: -866.3873611 | LV70: 34.66825683 | LW70: 1340.521432 | LX70: 1305.853175 | LY70: 0.4689786183 | LZ70: 0.8996149143 | MA70: 1.012743462 | MB70: 1.454767225 | MC70: 38726.92607 | MD70: -0.0549173279 | ME70: -884.1814546 | MF70: 43.89621347 | MG70: 1340.521432 | MH70: 1296.625219 | MI70: 0.4483261517 | MJ70: 0.899044927 | MK70: 1.025486038 | ML70: 1.407309404 | MM70: 39214.19735 | MN70: -0.05427876825 | MO70: -895.4540991 | MP70: 56.20189143 | MQ70: 1340.521432 | MR70: 1284.319541 | MS70: 0.4276310609 | MT70: 0.8982745853 | MU70: 1.037454951 | MV70: 1.356850419 | MW70: 39671.88407 | MX70: -0.0531976592 | MY70: -898.4995134 | MZ70: 72.61177673 | NA70: 1340.521432 | NB70: 1267.909655 | NC70: 0.4071426272 | ND70: 0.8972286458 | NE70: 1.048518149 | NF70: 1.304097397 | NG70: 40094.93655 | NH70: -0.05163321278 | NI70: -891.589799 | NJ70: 94.49471047 | NK70: 1340.521432 | NL70: 1246.026722 | NM70: 0.3870569497 | NN70: 0.8957995682 | NO70: 1.058609986 | NP70: 1.249700879 | NQ70: 40480.84459 | NR70: -0.04954961724 | NS70: -873.190201 | NT70: 123.6760716 | NU70: 1340.521432 | NV70: 1216.845361 | NW70: 0.3675200014 | NX70: 0.8938301526 | NY70: 1.067717714 | NZ70: 1.194199263 | OA70: 40829.12063 | OB70: -0.04692614648 | OC70: -842.2687698 | OD70: 162.5900421 | OE70: 1340.521432 | OF70: 1177.93139 | OG70: 0.3486341998 | OH70: 0.8910836685 | OI70: 1.075867075 | OJ70: 1.137971692 | OK70: 41140.7491 | OL70: -0.04377039374 | OM70: -798.655117 | ON70: 214.4826558 | OO70: 1340.521432 | OP70: 1126.038776 | OQ70: 0.3304662394 | OR70: 0.8871892722 | OS70: 1.083109362 | OT70: 1.081185121 | OU70: 41417.69144 | OV70: -0.04013138078 | OW70: -743.3399388 | OX70: 283.6825683 | OY70: 1340.521432 | OZ70: 1056.838864 | PA70: 0.3130547621 | PB70: 0.8815345762 | PC70: 1.089510958 | PD70: 1.023706919 | PE70: 41662.48601 | PF70: -0.03610687506 | PG70: -678.5650555 | PH70: 375.9621347 | PI70: 1340.521432 | PJ70: 964.5592974 | PK70: 0.2964171299 | PL70: 0.8730332106 | PM70: 1.0951455 | PN70: 0.9649176618 | PO70: 41877.94877 | PP70: -0.03183834217 | PQ70: -607.5879298 | PR70: 499.0189143 | PS70: 1340.521432 | PT70: 841.5025179 | PU70: 0.2805550327 | PV70: 0.859554288 | PW70: 1.100088397 | PX70: 0.9032403477 | PY70: 42066.96328 | PZ70: -0.02748916899 | QA70: -534.1386646 | QB70: 663.1177673 | QC70: 1340.521432 | QD70: 677.4036649 | QE70: 0.2654589356 | QF70: 0.8362448527 | QG70: 1.104413213 | QH70: 0.8347314377 | QI70: 42232.34259 | QJ70: -0.02320498793 | QK70: =+INDEX($AK$28:$AK$82,MATCH(QK$25,$N$28:$N$82,0)) -> -461.7561466 | QL70: =+INDEX($AC$28:$AC$82,MATCH(QK$25,$N$28:$N$82,0)) -> 881.9471047 | QM70: 1340.521432 | QN70: =+QM70-QL70 -> 458.5743275 | QO70: =1/(0.1+QL70^0.2) -> 0.2511114962 | QP70: =+(QN70/($T$20+QN70))^0.3 -> 0.7889278591 | QQ70: =+SQRT(EXP($T$15*(1-SQRT(28/QL70)))) -> 1.108189455 | QR70: =+$T$16*$T$17*QO70*QP70*QQ70 -> 0.7474846383 | QS70: =+INDEX($AJ$28:$AJ$82,MATCH(QK$25,$N$28:$N$82,0)) -> 42376.74467 | QT70: =+QK70*(1+QR70)/QS70 -> -0.01904138175
D71: 56 | E71: =+O83 -> ∞ | F71: =+V83 -> 1.906794369 | I71: =+Y83 -> ∞ | J71: =-AA83 -> 334.7147404 | N71: 44 | O71: 1340.521432 | P71: 1.238460183 | Q71: 69.67988159 | R71: 1.11286126 | S71: 42555.39271 | T71: =+O71-Input!$F$11 -> 1333.521432 | U71: 0.901285611 | V71: 1.718566328 | X71: 1336.521432 | Y71: =+X71-Input!$F$12 -> 1333.521432 | Z71: =+SQRT(Y71/(350*(Input!$F$10/$Q$4)^2+Y71)) -> 0.7110139648 | AA71: -237.9868546 | AB71: 44 | AC71: 1562.900421 | AD71: 1785.27941 | AE71: 222.3789889 | AF71: 0.2245689231 | AG71: 0.6877368353 | AH71: 1.114347401 | AI71: 0.5859720714 | AJ71: 42612.2222 | AK71: -330.5329805 | AL71: 7708.670906 | AM71: 0.2284297883 | AN71: 0.7273034851 | AP71: 44 | AQ71: 33746.34702 | AR71: 7 | AS71: 1785.27941 | AT71: 1778.27941 | AU71: 0.6346091077 | AV71: 0.9220851547 | AW71: 0.8824969026 | AX71: 1.758226781 | AY71: 33746.34702 | AZ71: 2.758226781 | BA71: -2297.498035 | BB71: 7.005 | BC71: 1785.27941 | BD71: 1778.27441 | BE71: 0.6345242381 | BF71: 0.9220849704 | BG71: 0.8825756583 | BH71: 1.758148179 | BI71: 33749.35861 | BJ71: -0.1877617911 | BK71: -189.1030035 | BL71: 7.011667607 | BM71: 1785.27941 | BN71: 1778.267742 | BO71: 0.6344111734 | BP71: 0.9220847247 | BQ71: 0.8826805605 | BR71: 1.758043364 | BS71: 33753.37003 | BT71: -0.01545191735 | BU71: -204.5034576 | BV71: 7.015559004 | BW71: 1785.27941 | BX71: 1778.263851 | BY71: 0.634345244 | BZ71: 0.9220845813 | CA71: 0.8827417209 | CB71: 1.757982193 | CC71: 33755.70879 | CD71: -0.01670878541 | CE71: -220.9563824 | CF71: 7.020748266 | CG71: 1785.27941 | CH71: 1778.258662 | CI71: 0.6342573927 | CJ71: 0.92208439 | CK71: 0.8828232071 | CL71: 1.75790062 | CM71: 33758.82479 | CN71: -0.01805085775 | CO71: -238.2345017 | CP71: 7.027668257 | CQ71: 1785.27941 | CR71: 1778.251742 | CS71: 0.6341403596 | CT71: 0.922084135 | CU71: 0.8829317419 | CV71: 1.757791844 | CW71: 33762.97512 | CX71: -0.01945922015 | CY71: -256.3844479 | CZ71: 7.036896213 | DA71: 1785.27941 | DB71: 1778.242514 | DC71: 0.6339845039 | DD71: 0.9220837949 | DE71: 0.8830762469 | DF71: 1.757646793 | DG71: 33768.50093 | DH71: -0.02093719682 | DI71: -275.4496978 | DJ71: 7.049201891 | DK71: 1785.27941 | DL71: 1778.230208 | DM71: 0.6337770402 | DN71: 0.9220833414 | DO71: 0.8832685425 | DP71: 1.757453374 | DQ71: 33775.85424 | DR71: -0.02248765325 | DS71: -295.4566903 | DT71: 7.065611777 | DU71: 1785.27941 | DV71: 1778.213798 | DW71: 0.6335010438 | DX71: 0.9220827365 | DY71: 0.8835242555 | DZ71: 1.757195462 | EA71: 33785.63261 | EB71: -0.02411178311 | EC71: -316.4163428 | ED71: 7.08749471 | EE71: 1785.27941 | EF71: 1778.191915 | EG71: 0.633134166 | EH71: 0.92208193 | EI71: 0.883863986 | EJ71: 1.756851566 | EK71: 33798.62377 | EL71: -0.02580912454 | EM71: -338.3260835 | EN71: 7.116676072 | EO71: 1785.27941 | EP71: 1778.162734 | EQ71: 0.6326469916 | ER71: 0.9220808544 | ES71: 0.8843147851 | ET71: 1.756393044 | EU71: 33815.86216 | EV71: -0.02757758056 | EW71: -361.1714439 | EX71: 7.155590042 | EY71: 1785.27941 | EZ71: 1778.12382 | FA71: 0.6320009728 | FB71: 0.9220794201 | FC71: 0.8849119932 | FD71: 1.755781737 | FE71: 33838.69917 | FF71: -0.02941335493 | FG71: -384.9275818 | FH71: 7.207482656 | FI71: 1785.27941 | FJ71: 1778.071927 | FK71: 0.6311458854 | FL71: 0.9220775072 | FM71: 0.8857014635 | FN71: 1.754966845 | FO71: 33868.88822 | FP71: -0.03131082185 | FQ71: -409.5611293 | FR71: 7.276682568 | FS71: 1785.27941 | FT71: 1778.002727 | FU71: 0.6300167942 | FV71: 0.9220749563 | FW71: 0.8867421453 | FX71: 1.7538808 | FY71: 33908.6835 | FZ71: -0.03326235094 | GA71: -435.0326346 | GB71: 7.368962135 | GC71: 1785.27941 | GD71: 1777.910448 | GE71: 0.6285306004 | GF71: 0.9220715543 | GG71: 0.8881088964 | GH71: 1.752433883 | GI71: 33960.94754 | GJ71: -0.03525810234 | GK71: -461.299687 | GL71: 7.492018914 | GM71: 1785.27941 | GN71: 1777.787391 | GO71: 0.6265824014 | GP71: 0.9220670172 | GQ71: 0.8898952177 | GR71: 1.750507289 | GS71: 34029.25579 | GT71: -0.03728580371 | GU71: -488.3205548 | GV71: 7.656117767 | GW71: 1785.27941 | GX71: 1777.623292 | GY71: 0.6240421511 | GZ71: 0.9220609661 | HA71: 0.8922153193 | HB71: 1.747944378 | HC71: 34117.9756 | HD71: -0.03933052005 | HE71: -516.0577584 | HF71: 7.874947105 | HG71: 1785.27941 | HH71: 1777.404463 | HI71: 0.6207524864 | HJ71: 0.9220528953 | HK71: 0.8952045387 | HL71: 1.744540071 | HM71: 34232.28221 | HN71: -0.04137443096 | HO71: -544.4804446 | HP71: 8.166760716 | HQ71: 1785.27941 | HR71: 1777.112649 | HS71: 0.6165290538 | HT71: 0.9220421301 | HU71: 0.8990166787 | HV71: 1.740028782 | HW71: 34378.057 | HX71: -0.04339663785 | HY71: -573.5637696 | HZ71: 8.555900421 | IA71: 1785.27941 | IB71: 1776.72351 | IC71: 0.6111651153 | ID71: 0.9220277699 | IE71: 0.9038164774 | IF71: 1.734072231 | IG71: 34561.59948 | IH71: -0.04537303825 | II71: -603.2829626 | IJ71: 9.074826558 | IK71: 1785.27941 | IL71: 1776.204583 | IM71: 0.6044423626 | IN71: 0.9220086119 | IO71: 0.9097654931 | IP71: 1.726250044 | IQ71: 34789.08759 | IR71: -0.04727632477 | IS71: -633.5997339 | IT71: 9.766825683 | IU71: 1785.27941 | IV71: 1775.512584 | IW71: 0.5961492997 | IX71: 0.9219830495 | IY71: 0.9170006533 | IZ71: 1.716058111 | JA71: 35065.75737 | JB71: -0.04907618787 | JC71: -664.4396711 | JD71: 10.68962135 | JE71: 1785.27941 | JF71: 1774.589789 | JG71: 0.586106854 | JH71: 0.9219489354 | JI71: 0.9256069608 | JJ71: 1.702921582 | JK71: 35394.85931 | JL71: -0.05073980692 | JM71: -695.6614468 | JN71: 11.92018914 | JO71: 1785.27941 | JP71: 1773.359221 | JQ71: 0.5741980098 | JR71: 0.9219033967 | JS71: 0.9355891857 | JT71: 1.686229418 | JU71: 35776.57581 | JV71: -0.05223267462 | JW71: -727.0214322 | JX71: 13.56117767 | JY71: 1785.27941 | JZ71: 1771.718232 | KA71: 0.5603951081 | KB71: 0.9218425867 | KC71: 0.9468505065 | KD71: 1.665393592 | KE71: 36207.20444 | KF71: -0.05351968748 | KG71: -758.1391994 | KH71: 15.74947105 | KI71: 1785.27941 | KJ71: 1769.529939 | KK71: 0.5447767839 | KL71: 0.9217613469 | KM71: 0.9591867726 | KN71: 1.63992745 | KO71: 36678.93858 | KP71: -0.05456625958 | KQ71: -788.468829 | KR71: 18.66760716 | KS71: 1785.27941 | KT71: 1766.611803 | KU71: 0.5275280962 | KV71: 0.9216527473 | KW71: 0.9723015827 | KX71: 1.609527051 | KY71: 37180.44395 | KZ71: -0.05533905784 | LA71: -817.277886 | LB71: 22.55900421 | LC71: 1785.27941 | LD71: 1762.720406 | LE71: 0.5089223695 | LF71: 0.9215074546 | LG71: 0.9858403466 | LH71: 1.57413274 | LI71: 37698.16115 | LJ71: -0.05580595181 | LK71: -843.6325899 | LL71: 27.74826558 | LM71: 1785.27941 | LN71: 1757.531144 | LO71: 0.4892893904 | LP71: 0.9213128581 | LQ71: 0.9994344353 | LR71: 1.533951436 | LS71: 38217.99395 | LT71: -0.05593501364 | LU71: -866.3873611 | LV71: 34.66825683 | LW71: 1785.27941 | LX71: 1750.611153 | LY71: 0.4689786183 | LZ71: 0.9210518445 | MA71: 1.012743462 | MB71: 1.489432883 | MC71: 38726.92607 | MD71: -0.05569285779 | ME71: -884.1814546 | MF71: 43.89621347 | MG71: 1785.27941 | MH71: 1741.383197 | MI71: 0.4483261517 | MJ71: 0.9207010548 | MK71: 1.025486038 | ML71: 1.441208569 | MM71: 39214.19735 | MN71: -0.05504310911 | MO71: -895.4540991 | MP71: 56.20189143 | MQ71: 1785.27941 | MR71: 1729.077519 | MS71: 0.4276310609 | MT71: 0.9202283605 | MU71: 1.037454951 | MV71: 1.390011759 | MW71: 39671.88407 | MX71: -0.05394616054 | MY71: -898.4995134 | MZ71: 72.61177673 | NA71: 1785.27941 | NB71: 1712.667633 | NC71: 0.4071426272 | ND71: 0.9195891198 | NE71: 1.048518149 | NF71: 1.336597737 | NG71: 40094.93655 | NH71: -0.05236152268 | NI71: -891.589799 | NJ71: 94.49471047 | NK71: 1785.27941 | NL71: 1690.7847 | NM71: 0.3870569497 | NN71: 0.9187204646 | NO71: 1.058609986 | NP71: 1.281677077 | NQ71: 40480.84459 | NR71: -0.05025389237 | NS71: -873.190201 | NT71: 123.6760716 | NU71: 1785.27941 | NV71: 1661.603338 | NW71: 0.3675200014 | NX71: 0.9175322744 | NY71: 1.067717714 | NZ71: 1.225866416 | OA71: 40829.12063 | OB71: -0.04760339467 | OC71: -842.2687698 | OD71: 162.5900421 | OE71: 1785.27941 | OF71: 1622.689368 | OG71: 0.3486341998 | OH71: 0.9158922985 | OI71: 1.075867075 | OJ71: 1.169653923 | OK71: 41140.7491 | OL71: -0.0444190196 | OM71: -798.655117 | ON71: 214.4826558 | OO71: 1785.27941 | OP71: 1570.796754 | OQ71: 0.3304662394 | OR71: 0.9136003585 | OS71: 1.083109362 | OT71: 1.113371346 | OU71: 41417.69144 | OV71: -0.04075202603 | OW71: -743.3399388 | OX71: 283.6825683 | OY71: 1785.27941 | OZ71: 1501.596842 | PA71: 0.3130547621 | PB71: 0.9103407668 | PC71: 1.089510958 | PD71: 1.057158921 | PE71: 41662.48601 | PF71: -0.03670372397 | PG71: -678.5650555 | PH71: 375.9621347 | PI71: 1785.27941 | PJ71: 1409.317275 | PK71: 0.2964171299 | PL71: 0.9055876058 | PM71: 1.0951455 | PN71: 1.000898322 | PO71: 41877.94877 | PP71: -0.03242135111 | PQ71: -607.5879298 | PR71: 499.0189143 | PS71: 1785.27941 | PT71: 1286.260496 | PU71: 0.2805550327 | PV71: 0.8983968779 | PW71: 1.100088397 | PX71: 0.9440570767 | PY71: 42066.96328 | PZ71: -0.02807869935 | QA71: -534.1386646 | QB71: 663.1177673 | QC71: 1785.27941 | QD71: 1122.161643 | QE71: 0.2654589356 | QF71: 0.8868869491 | QG71: 1.104413213 | QH71: 0.8852818833 | QI71: 42232.34259 | QJ71: -0.02384433081 | QK71: -461.7561466 | QL71: 881.9471047 | QM71: 1785.27941 | QN71: 903.3323054 | QO71: 0.2511114962 | QP71: 0.8666726488 | QQ71: 1.108189455 | QR71: 0.8211454114 | QS71: 42376.74467 | QT71: -0.0198440228 | QU71: =+INDEX($AK$28:$AK$82,MATCH(QU$25,$N$28:$N$82,0)) -> -393.2616905 | QV71: =+INDEX($AC$28:$AC$82,MATCH(QU$25,$N$28:$N$82,0)) -> 1173.760716 | QW71: 1785.27941 | QX71: =+QW71-QV71 -> 611.518694 | QY71: =1/(0.1+QV71^0.2) -> 0.2374901336 | QZ71: =+(QX71/($T$20+QX71))^0.3 -> 0.824475496 | RA71: =+SQRT(EXP($T$15*(1-SQRT(28/QV71)))) -> 1.111481368 | RB71: =+$T$16*$T$17*QY71*QZ71*RA71 -> 0.7409857937 | RC71: =+INDEX($AJ$28:$AJ$82,MATCH(QU$25,$N$28:$N$82,0)) -> 42502.62618 | RD71: =+QU71*(1+RB71)/RC71 -> -0.01610872263
N72: 45 | O72: 1785.27941 | P72: 1.244446977 | Q72: 70.01671847 | R72: 1.115547837 | S72: 42658.12641 | T72: =+O72-Input!$F$11 -> 1778.27941 | U72: 0.9220851547 | V72: 1.758226781 | X72: 1781.27941 | Y72: =+X72-Input!$F$12 -> 1778.27941 | Z72: =+SQRT(Y72/(350*(Input!$F$10/$Q$4)^2+Y72)) -> 0.7595276192 | AA72: -254.2250899 | AB72: 45 | AC72: 2081.826558 | AD72: 2378.373706 | AE72: 296.5471478 | AF72: 0.2123199749 | AG72: 0.7294697527 | AH72: 1.116840124 | AI72: 0.5889433488 | AJ72: 42707.54297 | AK72: -274.5605837 | AL72: 7434.110323 | AM72: 0.2202937793 | AN72: 0.7241069895 | AP72: 45 | AQ72: 33746.34702 | AR72: 7 | AS72: 2378.373706 | AT72: 2371.373706 | AU72: 0.6346091077 | AV72: 0.9391381036 | AW72: 0.8824969026 | AX72: 1.790743248 | AY72: 33746.34702 | AZ72: 2.790743248 | BA72: -2297.498035 | BB72: 7.005 | BC72: 2378.373706 | BD72: 2371.368706 | BE72: 0.6345242381 | BF72: 0.9391379914 | BG72: 0.8825756583 | BH72: 1.790663337 | BI72: 33749.35861 | BJ72: -0.1899752705 | BK72: -189.1030035 | BL72: 7.011667607 | BM72: 2378.373706 | BN72: 2371.362038 | BO72: 0.6344111734 | BP72: 0.9391378418 | BQ72: 0.8826805605 | BR72: 1.790556775 | BS72: 33753.37003 | BT72: -0.01563407349 | BU72: -204.5034576 | BV72: 7.015559004 | BW72: 2378.373706 | BX72: 2371.358147 | BY72: 0.634345244 | BZ72: 0.9391377545 | CA72: 0.8827417209 | CB72: 1.790494584 | CC72: 33755.70879 | CD72: -0.01690575643 | CE72: -220.9563824 | CF72: 7.020748266 | CG72: 2378.373706 | CH72: 2371.352957 | CI72: 0.6342573927 | CJ72: 0.9391376381 | CK72: 0.8828232071 | CL72: 1.790411652 | CM72: 33758.82479 | CN72: -0.01826364715 | CO72: -238.2345017 | CP72: 7.027668257 | CQ72: 2378.373706 | CR72: 2371.346037 | CS72: 0.6341403596 | CT72: 0.9391374828 | CU72: 0.8829317419 | CV72: 1.790301063 | CW72: 33762.97512 | CX72: -0.01968860804 | CY72: -256.3844479 | CZ72: 7.036896213 | DA72: 2378.373706 | DB72: 2371.336809 | DC72: 0.6339845039 | DD72: 0.9391372758 | DE72: 0.8830762469 | DF72: 1.790153596 | DG72: 33768.50093 | DH72: -0.02118400193 | DI72: -275.4496978 | DJ72: 7.049201891 | DK72: 2378.373706 | DL72: 2371.324504 | DM72: 0.6337770402 | DN72: 0.9391369996 | DO72: 0.8832685425 | DP72: 1.789956953 | DQ72: 33775.85424 | DR72: -0.02275272726 | DS72: -295.4566903 | DT72: 7.065611777 | DU72: 2378.373706 | DV72: 2371.308094 | DW72: 0.6335010438 | DX72: 0.9391366314 | DY72: 0.8835242555 | DZ72: 1.789694744 | EA72: 33785.63261 | EB72: -0.02439599062 | EC72: -316.4163428 | ED72: 7.08749471 | EE72: 2378.373706 | EF72: 2371.286211 | EG72: 0.633134166 | EH72: 0.9391361404 | EI72: 0.883863986 | EJ72: 1.789345117 | EK72: 33798.62377 | EL72: -0.02611332304 | EM72: -338.3260835 | EN72: 7.116676072 | EO72: 2378.373706 | EP72: 2371.25703 | EQ72: 0.6326469916 | ER72: 0.9391354856 | ES72: 0.8843147851 | ET72: 1.788878954 | EU72: 33815.86216 | EV72: -0.02790260054 | EW72: -361.1714439 | EX72: 7.155590042 | EY72: 2378.373706 | EZ72: 2371.218116 | FA72: 0.6320009728 | FB72: 0.9391346123 | FC72: 0.8849119932 | FD72: 1.788257459 | FE72: 33838.69917 | FF72: -0.02975997887 | FG72: -384.9275818 | FH72: 7.207482656 | FI72: 2378.373706 | FJ72: 2371.166223 | FK72: 0.6311458854 | FL72: 0.9391334478 | FM72: 0.8857014635 | FN72: 1.787428986 | FO72: 33868.88822 | FP72: -0.03167976144 | FQ72: -409.5611293 | FR72: 7.276682568 | FS72: 2378.373706 | FT72: 2371.097023 | FU72: 0.6300167942 | FV72: 0.9391318948 | FW72: 0.8867421453 | FX72: 1.78632484 | FY72: 33908.6835 | FZ72: -0.03365422159 | GA72: -435.0326346 | GB72: 7.368962135 | GC72: 2378.373706 | GD72: 2371.004744 | GE72: 0.6285306004 | GF72: 0.9391298238 | GG72: 0.8881088964 | GH72: 1.784853807 | GI72: 33960.94754 | GJ72: -0.03567339478 | GK72: -461.299687 | GL72: 7.492018914 | GM72: 2378.373706 | GN72: 2370.881687 | GO72: 0.6265824014 | GP72: 0.9391270618 | GQ72: 0.8898952177 | GR72: 1.7828951 | GS72: 34029.25579 | GT72: -0.03772485201 | GU72: -488.3205548 | GV72: 7.656117767 | GW72: 2378.373706 | GX72: 2370.717588 | GY72: 0.6240421511 | GZ72: 0.9391233782 | HA72: 0.8922153193 | HB72: 1.780289471 | HC72: 34117.9756 | HD72: -0.03979346585 | HE72: -516.0577584 | HF72: 7.874947105 | HG72: 2378.373706 | HH72: 2370.498759 | HI72: 0.6207524864 | HJ72: 0.9391184654 | HK72: 0.8952045387 | HL72: 1.776828426 | HM72: 34232.28221 | HN72: -0.04186118366 | HO72: -544.4804446 | HP72: 8.166760716 | HQ72: 2378.373706 | HR72: 2370.206945 | HS72: 0.6165290538 | HT72: 0.9391119128 | HU72: 0.8990166787 | HV72: 1.772241966 | HW72: 34378.057 | HX72: -0.04390683099 | HY72: -573.5637696 | HZ72: 8.555900421 | IA72: 2378.373706 | IB72: 2369.817805 | IC72: 0.6111651153 | ID72: 0.9391031725 | IE72: 0.9038164774 | IF72: 1.766186211 | IG72: 34561.59948 | IH72: -0.04590598279 | II72: -603.2829626 | IJ72: 9.074826558 | IK72: 2378.373706 | IL72: 2369.298879 | IM72: 0.6044423626 | IN72: 0.9390915133 | IO72: 0.9097654931 | IP72: 1.758233866 | IQ72: 34789.08759 | IR72: -0.04783096119 | IS72: -633.5997339 | IT72: 9.766825683 | IU72: 2378.373706 | IV72: 2368.60688 | IW72: 0.5961492997 | IX72: 0.9390759585 | IY72: 0.9170006533 | IZ72: 1.747872606 | JA72: 35065.75737 | JB72: -0.04965104086 | JC72: -664.4396711 | JD72: 10.68962135 | JE72: 2378.373706 | JF72: 2367.684084 | JG72: 0.586106854 | JH72: 0.9390552035 | JI72: 0.9256069608 | JJ72: 1.734518379 | JK72: 35394.85931 | JL72: -0.05133294857 | JM72: -695.6614468 | JN72: 11.92018914 | JO72: 2378.373706 | JP72: 2366.453517 | JQ72: 0.5741980098 | JR72: 0.9390275041 | JS72: 0.9355891857 | JT72: 1.717550675 | JU72: 35776.57581 | JV72: -0.05284170415 | JW72: -727.0214322 | JX72: 13.56117767 | JY72: 2378.373706 | JZ72: 2364.812528 | KA72: 0.5603951081 | KB72: 0.938990527 | KC72: 0.9468505065 | KD72: 1.696372926 | KE72: 36207.20444 | KF72: -0.05414173606 | KG72: -758.1391994 | KH72: 15.74947105 | KI72: 2378.373706 | KJ72: 2362.624235 | KK72: 0.5447767839 | KL72: 0.9389411472 | KM72: 0.9591867726 | KN72: 1.67049244 | KO72: 36678.93858 | KP72: -0.05519802586 | KQ72: -788.468829 | KR72: 18.66760716 | KS72: 2378.373706 | KT72: 2359.706099 | KU72: 0.5275280962 | KV72: 0.9388751732 | KW72: 0.9723015827 | KX72: 1.639603412 | KY72: 37180.44395 | KZ72: -0.0559768736 | LA72: -817.277886 | LB72: 22.55900421 | LC72: 2378.373706 | LD72: 2355.814701 | LE72: 0.5089223695 | LF72: 0.9387869726 | LG72: 0.9858403466 | LH72: 1.60364987 | LI72: 37698.16115 | LJ72: -0.05644586889 | LK72: -843.6325899 | LL72: 27.74826558 | LM72: 2378.373706 | LN72: 2350.62544 | LO72: 0.4892893904 | LP72: 0.938668957 | LQ72: 0.9994344353 | LR72: 1.562848691 | LS72: 38217.99395 | LT72: -0.05657289815 | LU72: -866.3873611 | LV72: 34.66825683 | LW72: 2378.373706 | LX72: 2343.705449 | LY72: 0.4689786183 | LZ72: 0.9385108684 | MA72: 1.012743462 | MB72: 1.51766587 | MC72: 38726.92607 | MD72: -0.05632447783 | ME72: -884.1814546 | MF72: 43.89621347 | MG72: 2378.373706 | MH72: 2334.477492 | MI72: 0.4483261517 | MJ72: 0.9382987769 | MK72: 1.025486038 | ML72: 1.468754956 | MM72: 39214.19735 | MN72: -0.05566421081 | MO72: -895.4540991 | MP72: 56.20189143 | MQ72: 2378.373706 | MR72: 2322.171814 | MS72: 0.4276310609 | MT72: 0.9380136532 | MU72: 1.037454951 | MV72: 1.416876576 | MW72: 39671.88407 | MX72: -0.05455253985 | MY72: -898.4995134 | MZ72: 72.61177673 | NA72: 2378.373706 | NB72: 2305.761929 | NC72: 0.4071426272 | ND72: 0.9376292944 | NE72: 1.048518149 | NF72: 1.362818639 | NG72: 40094.93655 | NH72: -0.05294911478 | NI72: -891.589799 | NJ72: 94.49471047 | NK72: 2378.373706 | NL72: 2283.878995 | NM72: 0.3870569497 | NN72: 0.937109238 | NO72: 1.058609986 | NP72: 1.307330658 | NQ72: 40480.84459 | NR72: -0.05081891197 | NS72: -873.190201 | NT72: 123.6760716 | NU72: 2378.373706 | NV72: 2254.697634 | NW72: 0.3675200014 | NX72: 0.9364020351 | NY72: 1.067717714 | NZ72: 1.251077307 | OA72: 40829.12063 | OB72: -0.04814256628 | OC72: -842.2687698 | OD72: 162.5900421 | OE72: 2378.373706 | OF72: 2215.783664 | OG72: 0.3486341998 | OH72: 0.9354337443 | OI72: 1.075867075 | OJ72: 1.194609618 | OK72: 41140.7491 | OL72: -0.04492993404 | OM72: -798.655117 | ON72: 214.4826558 | OO72: 2378.373706 | OP72: 2163.89105 | OQ72: 0.3304662394 | OR72: 0.9340954924 | OS72: 1.083109362 | OT72: 1.138348016 | OU72: 41417.69144 | OV72: -0.04123364981 | OW72: -743.3399388 | OX72: 283.6825683 | OY72: 2378.373706 | OZ72: 2094.691137 | PA72: 0.3130547621 | PB72: 0.9322217568 | PC72: 1.089510958 | PD72: 1.082568839 | PE72: 41662.48601 | PF72: -0.03715708641 | PG72: -678.5650555 | PH72: 375.9621347 | PI72: 2378.373706 | PJ72: 2002.411571 | PK72: 0.2964171299 | PL72: 0.9295499845 | PM72: 1.0951455 | PN72: 1.027382678 | PO72: 41877.94877 | PP72: -0.03285048766 | PQ72: -607.5879298 | PR72: 499.0189143 | PS72: 2378.373706 | PT72: 1879.354791 | PU72: 0.2805550327 | PV72: 0.9256394041 | PW72: 1.100088397 | PX72: 0.9726841793 | PY72: 42066.96328 | PZ72: -0.02849217065 | QA72: -534.1386646 | QB72: 663.1177673 | QC72: 2378.373706 | QD72: 1715.255938 | QE72: 0.2654589356 | QF72: 0.91969063 | QG72: 1.104413213 | QH72: 0.9180261969 | QI72: 42232.34259 | QJ72: -0.02425846847 | QK72: -461.7561466 | QL72: 881.9471047 | QM72: 2378.373706 | QN72: 1496.426601 | QO72: 0.2511114962 | QP72: 0.9100872481 | QQ72: 1.108189455 | QR72: 0.8622793955 | QS72: 42376.74467 | QT72: -0.02029223727 | QU72: -393.2616905 | QV72: 1173.760716 | QW72: 2378.373706 | QX72: 1204.61299 | QY72: 0.2374901336 | QZ72: 0.8929820298 | RA72: 1.111481368 | RB72: 0.8025550806 | RC72: 42502.62618 | RD72: -0.01667840136 | RE72: =+INDEX($AK$28:$AK$82,MATCH(RE$25,$N$28:$N$82,0)) -> -330.5329805 | RF72: =+INDEX($AC$28:$AC$82,MATCH(RE$25,$N$28:$N$82,0)) -> 1562.900421 | RG72: =+$AD72 -> 2378.373706 | RH72: =+RG72-RF72 -> 815.4732846 | RI72: =1/(0.1+RF72^0.2) -> 0.2245689231 | RJ72: =+(RH72/($T$20+RH72))^0.3 -> 0.8563199649 | RK72: =+SQRT(EXP($T$15*(1-SQRT(28/RF72)))) -> 1.114347401 | RL72: =+$T$16*$T$17*RI72*RJ72*RK72 -> 0.7296098709 | RM72: =+INDEX($AJ$28:$AJ$82,MATCH(RE$25,$N$28:$N$82,0)) -> 42612.2222 | RN72: =+RE72*(1+RL72)/RM72 -> -0.01341617677
N73: 46 | O73: 2378.373706 | P73: 1.249663636 | Q73: 70.31022502 | R73: 1.117883552 | S73: 42747.44326 | T73: =+O73-Input!$F$11 -> 2371.373706 | U73: 0.9391381036 | V73: 1.790743248 | X73: 2374.373706 | Y73: =+X73-Input!$F$12 -> 2371.373706 | Z73: =+SQRT(Y73/(350*(Input!$F$10/$Q$4)^2+Y73)) -> 0.8032155685 | AA73: -268.8480905 | AB73: 46 | AC73: 2773.825683 | AD73: 3169.27766 | AE73: 395.4519773 | AF73: 0.200714423 | AG73: 0.7693869285 | AH73: 1.119006415 | AI73: 0.5883561964 | AJ73: 42790.38114 | AK73: -225.6526286 | AL73: 7208.457694 | AM73: 0.2136070517 | AN73: 0.7212489921 | AP73: 46 | AQ73: 33746.34702 | AR73: 7 | AS73: 3169.27766 | AT73: 3162.27766 | AU73: 0.6346091077 | AV73: 0.9528698111 | AW73: 0.8824969026 | AX73: 1.81692679 | AY73: 33746.34702 | AZ73: 2.81692679 | BA73: -2297.498035 | BB73: 7.005 | BC73: 3169.27766 | BD73: 3162.27266 | BE73: 0.6345242381 | BF73: 0.9528697439 | BG73: 0.8825756583 | BH73: 1.8168458 | BI73: 33749.35861 | BJ73: -0.1917576498 | BK73: -189.1030035 | BL73: 7.011667607 | BM73: 3169.27766 | BN73: 3162.265993 | BO73: 0.6344111734 | BP73: 0.9528696543 | BQ73: 0.8826805605 | BR73: 1.816737799 | BS73: 33753.37003 | BT73: -0.01578075248 | BU73: -204.5034576 | BV73: 7.015559004 | BW73: 3169.27766 | BX73: 3162.262101 | BY73: 0.634345244 | BZ73: 0.9528696021 | CA73: 0.8827417209 | CB73: 1.816674767 | CC73: 33755.70879 | CD73: -0.0170643648 | CE73: -220.9563824 | CF73: 7.020748266 | CG73: 3169.27766 | CH73: 3162.256912 | CI73: 0.6342573927 | CJ73: 0.9528695323 | CK73: 0.8828232071 | CL73: 1.816590715 | CM73: 33758.82479 | CN73: -0.0184349929 | CO73: -238.2345017 | CP73: 7.027668257 | CQ73: 3169.27766 | CR73: 3162.249992 | CS73: 0.6341403596 | CT73: 0.9528694393 | CU73: 0.8829317419 | CV73: 1.816478632 | CW73: 33762.97512 | CX73: -0.01987331926 | CY73: -256.3844479 | CZ73: 7.036896213 | DA73: 3169.27766 | DB73: 3162.240764 | DC73: 0.6339845039 | DD73: 0.9528693153 | DE73: 0.8830762469 | DF73: 1.816329173 | DG73: 33768.50093 | DH73: -0.02138273776 | DI73: -275.4496978 | DJ73: 7.049201891 | DK73: 3169.27766 | DL73: 3162.228458 | DM73: 0.6337770402 | DN73: 0.95286915 | DO73: 0.8832685425 | DP73: 1.816129874 | DQ73: 33775.85424 | DR73: -0.02296617332 | DS73: -295.4566903 | DT73: 7.065611777 | DU73: 3169.27766 | DV73: 3162.212048 | DW73: 0.6335010438 | DX73: 0.9528689295 | DY73: 0.8835242555 | DZ73: 1.815864122 | EA73: 33785.63261 | EB73: -0.02462484286 | EC73: -316.4163428 | ED73: 7.08749471 | EE73: 3169.27766 | EF73: 3162.190165 | EG73: 0.633134166 | EH73: 0.9528686354 | EI73: 0.883863986 | EJ73: 1.815509772 | EK73: 33798.62377 | EL73: -0.0263582716 | EM73: -338.3260835 | EN73: 7.116676072 | EO73: 3169.27766 | EP73: 3162.160984 | EQ73: 0.6326469916 | ER73: 0.9528682433 | ES73: 0.8843147851 | ET73: 1.815037311 | EU73: 33815.86216 | EV73: -0.02816431365 | EW73: -361.1714439 | EX73: 7.155590042 | EY73: 3169.27766 | EZ73: 3162.12207 | FA73: 0.6320009728 | FB73: 0.9528677204 | FC73: 0.8849119932 | FD73: 1.81440742 | FE73: 33838.69917 | FF73: -0.03003908591 | FG73: -384.9275818 | FH73: 7.207482656 | FI73: 3169.27766 | FJ73: 3162.070178 | FK73: 0.6311458854 | FL73: 0.952867023 | FM73: 0.8857014635 | FN73: 1.813567753 | FO73: 33868.88822 | FP73: -0.03197683444 | FQ73: -409.5611293 | FR73: 7.276682568 | FS73: 3169.27766 | FT73: 3162.000978 | FU73: 0.6300167942 | FV73: 0.9528660931 | FW73: 0.8867421453 | FX73: 1.812448688 | FY73: 33908.6835 | FZ73: -0.03396975471 | GA73: -435.0326346 | GB73: 7.368962135 | GC73: 3169.27766 | GD73: 3161.908698 | GE73: 0.6285306004 | GF73: 0.9528648529 | GG73: 0.8881088964 | GH73: 1.810957779 | GI73: 33960.94754 | GJ73: -0.0360077812 | GK73: -461.299687 | GL73: 7.492018914 | GM73: 3169.27766 | GN73: 3161.785641 | GO73: 0.6265824014 | GP73: 0.952863199 | GQ73: 0.8898952177 | GR73: 1.808972606 | GS73: 34029.25579 | GT73: -0.03807835799 | GU73: -488.3205548 | GV73: 7.656117767 | GW73: 3169.27766 | GX73: 3161.621542 | GY73: 0.6240421511 | GZ73: 0.9528609933 | HA73: 0.8922153193 | HB73: 1.806331769 | HC73: 34117.9756 | HD73: -0.04016620162 | HE73: -516.0577584 | HF73: 7.874947105 | HG73: 3169.27766 | HH73: 3161.402713 | HI73: 0.6207524864 | HJ73: 0.9528580516 | HK73: 0.8952045387 | HL73: 1.802823961 | HM73: 34232.28221 | HN73: -0.04225307099 | HO73: -544.4804446 | HP73: 8.166760716 | HQ73: 3169.27766 | HR73: 3161.110899 | HS73: 0.6165290538 | HT73: 0.9528541283 | HU73: 0.8990166787 | HV73: 1.798175543 | HW73: 34378.057 | HX73: -0.04431756757 | HY73: -573.5637696 | HZ73: 8.555900421 | IA73: 3169.27766 | IB73: 3160.72176 | IC73: 0.6111651153 | ID73: 0.9528488954 | IE73: 0.9038164774 | IF73: 1.79203801 | IG73: 34561.59948 | IH73: -0.04633500388 | II73: -603.2829626 | IJ73: 9.074826558 | IK73: 3169.27766 | IL73: 3160.202834 | IM73: 0.6044423626 | IN73: 0.9528419154 | IO73: 0.9097654931 | IP73: 1.783978346 | IQ73: 34789.08759 | IR73: -0.0482774002 | IS73: -633.5997339 | IT73: 9.766825683 | IU73: 3169.27766 | IV73: 3159.510834 | IW73: 0.5961492997 | IX73: 0.9528326042 | IY73: 0.9170006533 | IZ73: 1.773477419 | JA73: 35065.75737 | JB73: -0.05011369171 | JC73: -664.4396711 | JD73: 10.68962135 | JE73: 3169.27766 | JF73: 3158.588039 | JG73: 0.586106854 | JH73: 0.9528201818 | JI73: 0.9256069608 | JJ73: 1.759943517 | JK73: 35394.85931 | JL73: -0.05181023455 | JM73: -695.6614468 | JN73: 11.92018914 | JO73: 3169.27766 | JP73: 3157.357471 | JQ73: 0.5741980098 | JR73: 0.9528036061 | JS73: 0.9355891857 | JT73: 1.742748183 | JU73: 35776.57581 | JV73: -0.05333165979 | JW73: -727.0214322 | JX73: 13.56117767 | JY73: 3169.27766 | JZ73: 3155.716482 | KA73: 0.5603951081 | KB73: 0.9527814838 | KC73: 0.9468505065 | KD73: 1.721287561 | KE73: 36207.20444 | KF73: -0.05464200869 | KG73: -758.1391994 | KH73: 15.74947105 | KI73: 3169.27766 | KJ73: 3153.528189 | KK73: 0.5447767839 | KL73: 0.952751951 | KM73: 0.9591867726 | KN73: 1.695063568 | KO73: 36678.93858 | KP73: -0.0557059014 | KQ73: -788.468829 | KR73: 18.66760716 | KS73: 3169.27766 | KT73: 3150.610053 | KU73: 0.5275280962 | KV73: 0.9527125106 | KW73: 0.9723015827 | KX73: 1.663768228 | KY73: 37180.44395 | KZ73: -0.0564893259 | LA73: -817.277886 | LB73: 22.55900421 | LC73: 3169.27766 | LD73: 3146.718656 | LE73: 0.5089223695 | LF73: 0.9526598133 | LG73: 0.9858403466 | LH73: 1.627347663 | LI73: 37698.16115 | LJ73: -0.05695962557 | LK73: -843.6325899 | LL73: 27.74826558 | LM73: 3169.27766 | LN73: 3141.529395 | LO73: 0.4892893904 | LP73: 0.9525893569 | LQ73: 0.9994344353 | LR73: 1.586025636 | LS73: 38217.99395 | LT73: -0.05708451124 | LU73: -866.3873611 | LV73: 34.66825683 | LW73: 3169.27766 | LX73: 3134.609403 | LY73: 0.4689786183 | LZ73: 0.9524950742 | MA73: 1.012743462 | MB73: 1.540279728 | MC73: 38726.92607 | MD73: -0.05683038839 | ME73: -884.1814546 | MF73: 43.89621347 | MG73: 3169.27766 | MH73: 3125.381447 | MI73: 0.4483261517 | MJ73: 0.95236876 | MK73: 1.025486038 | ML73: 1.490779239 | MM73: 39214.19735 | MN73: -0.05616080295 | MO73: -895.4540991 | MP73: 56.20189143 | MQ73: 3169.27766 | MR73: 3113.075769 | MS73: 0.4276310609 | MT73: 0.9521992662 | MU73: 1.037454951 | MV73: 1.438304049 | MW73: 39671.88407 | MX73: -0.05503619016 | MY73: -898.4995134 | MZ73: 72.61177673 | NA73: 3169.27766 | NB73: 3096.665883 | NC73: 0.4071426272 | ND73: 0.9519713529 | NE73: 1.048518149 | NF73: 1.38366443 | NG73: 40094.93655 | NH73: -0.05341625441 | NI73: -891.589799 | NJ73: 94.49471047 | NK73: 3169.27766 | NL73: 3074.78295 | NM73: 0.3870569497 | NN73: 0.9516640152 | NO73: 1.058609986 | NP73: 1.327635555 | NQ73: 40480.84459 | NR73: -0.05126612692 | NS73: -873.190201 | NT73: 123.6760716 | NU73: 3169.27766 | NV73: 3045.601589 | NW73: 0.3675200014 | NX73: 0.951247988 | NY73: 1.067717714 | NZ73: 1.270912201 | OA73: 40829.12063 | OB73: -0.04856676436 | OC73: -842.2687698 | OD73: 162.5900421 | OE73: 3169.27766 | OF73: 3006.687618 | OG73: 0.3486341998 | OH73: 0.9506819099 | OI73: 1.075867075 | OJ73: 1.214082515 | OK73: 41140.7491 | OL73: -0.04532859992 | OM73: -798.655117 | ON73: 214.4826558 | OO73: 3169.27766 | OP73: 2954.795004 | OQ73: 0.3304662394 | OR73: 0.94990621 | OS73: 1.083109362 | OT73: 1.157615959 | OU73: 41417.69144 | OV73: -0.04160519253 | OW73: -743.3399388 | OX73: 283.6825683 | OY73: 3169.27766 | OZ73: 2885.595092 | PA73: 0.3130547621 | PB73: 0.9488329258 | PC73: 1.089510958 | PD73: 1.101859028 | PE73: 41662.48601 | PF73: -0.03750126098 | PG73: -678.5650555 | PH73: 375.9621347 | PI73: 3169.27766 | PJ73: 2793.315525 | PK73: 0.2964171299 | PL73: 0.9473278297 | PM73: 1.0951455 | PN73: 1.047031594 | PO73: 41877.94877 | PP73: -0.03316886687 | PQ73: -607.5879298 | PR73: 499.0189143 | PS73: 3169.27766 | PT73: 2670.258746 | PU73: 0.2805550327 | PV73: 0.9451769648 | PW73: 1.100088397 | PX73: 0.9932147187 | PY73: 42066.96328 | PZ73: -0.02878870044 | QA73: -534.1386646 | QB73: 663.1177673 | QC73: 3169.27766 | QD73: 2506.159893 | QE73: 0.2654589356 | QF73: 0.9420187984 | QG73: 1.104413213 | QH73: 0.9403139564 | QI73: 42232.34259 | QJ73: -0.02454035561 | QK73: -461.7561466 | QL73: 881.9471047 | QM73: 3169.27766 | QN73: 2287.330556 | QO73: 0.2511114962 | QP73: 0.9371918431 | QQ73: 1.108189455 | QR73: 0.8879601573 | QS73: 42376.74467 | QT73: -0.02057206645 | QU73: -393.2616905 | QV73: 1173.760716 | QW73: 3169.27766 | QX73: 1995.516944 | QY73: 0.2374901336 | QZ73: 0.9293418427 | RA73: 1.111481368 | RB73: 0.8352329527 | RC73: 42502.62618 | RD73: -0.01698075809 | RE73: -330.5329805 | RF73: 1562.900421 | RG73: 3169.27766 | RH73: 1606.377239 | RI73: 0.2245689231 | RJ73: 0.9151851466 | RK73: 1.114347401 | RL73: 0.7797647422 | RM73: 42612.2222 | RN73: -0.01380521631 | RO73: =+INDEX($AK$28:$AK$82,MATCH(RO$25,$N$28:$N$82,0)) -> -274.5605837 | RP73: =+INDEX($AC$28:$AC$82,MATCH(RO$25,$N$28:$N$82,0)) -> 2081.826558 | RQ73: 3169.27766 | RR73: =+RQ73-RP73 -> 1087.451102 | RS73: =1/(0.1+RP73^0.2) -> 0.2123199749 | RT73: =+(RR73/($T$20+RR73))^0.3 -> 0.8841053971 | RU73: =+SQRT(EXP($T$15*(1-SQRT(28/RP73)))) -> 1.116840124 | RV73: =+$T$16*$T$17*RS73*RT73*RU73 -> 0.7137896963 | RW73: =+INDEX($AJ$28:$AJ$82,MATCH(RO$25,$N$28:$N$82,0)) -> 42707.54297 | RX73: =+RO73*(1+RV73)/RW73 -> -0.01101770475
N74: 47 | O74: 3169.27766 | P74: 1.254204577 | Q74: 70.56571344 | R74: 1.119912754 | S74: 42825.03919 | T74: =+O74-Input!$F$11 -> 3162.27766 | U74: 0.9528698111 | V74: 1.81692679 | X74: 3165.27766 | Y74: =+X74-Input!$F$12 -> 3162.27766 | Z74: =+SQRT(Y74/(350*(Input!$F$10/$Q$4)^2+Y74)) -> 0.8414204125 | AA74: -281.6358149 | AB74: 47 | AC74: 3696.621347 | AD74: 4223.965034 | AE74: 527.3436871 | AF74: 0.1897231257 | AG74: 0.8066144788 | AH74: 1.120887812 | AI74: 0.5840268341 | AJ74: 42862.32505 | AK74: -183.6574723 | AL74: 7024.800222 | AM74: 0.2081647598 | AN74: 0.7187290106 | AP74: 47 | AQ74: 33746.34702 | AR74: 7 | AS74: 4223.965034 | AT74: 4216.965034 | AU74: 0.6346091077 | AV74: 0.9637614437 | AW74: 0.8824969026 | AX74: 1.837694894 | AY74: 33746.34702 | AZ74: 2.837694894 | BA74: -2297.498035 | BB74: 7.005 | BC74: 4223.965034 | BD74: 4216.960034 | BE74: 0.6345242381 | BF74: 0.963761404 | BG74: 0.8825756583 | BH74: 1.837613031 | BI74: 33749.35861 | BJ74: -0.1931713855 | BK74: -189.1030035 | BL74: 7.011667607 | BM74: 4223.965034 | BN74: 4216.953367 | BO74: 0.6344111734 | BP74: 0.963761351 | BQ74: 0.8826805605 | BR74: 1.837503868 | BS74: 33753.37003 | BT74: -0.01589709422 | BU74: -204.5034576 | BV74: 7.015559004 | BW74: 4223.965034 | BX74: 4216.949475 | BY74: 0.634345244 | BZ74: 0.9637613202 | CA74: 0.8827417209 | CB74: 1.837440158 | CC74: 33755.70879 | CD74: -0.01719016853 | CE74: -220.9563824 | CF74: 7.020748266 | CG74: 4223.965034 | CH74: 4216.944286 | CI74: 0.6342573927 | CJ74: 0.963761279 | CK74: 0.8828232071 | CL74: 1.837355201 | CM74: 33758.82479 | CN74: -0.01857089945 | CO74: -238.2345017 | CP74: 7.027668257 | CQ74: 4223.965034 | CR74: 4216.937366 | CS74: 0.6341403596 | CT74: 0.963761224 | CU74: 0.8829317419 | CV74: 1.837241912 | CW74: 33762.97512 | CX74: -0.02001982677 | CY74: -256.3844479 | CZ74: 7.036896213 | DA74: 4223.965034 | DB74: 4216.928138 | DC74: 0.6339845039 | DD74: 0.9637611508 | DE74: 0.8830762469 | DF74: 1.837090843 | DG74: 33768.50093 | DH74: -0.02154036896 | DI74: -275.4496978 | DJ74: 7.049201891 | DK74: 4223.965034 | DL74: 4216.915832 | DM74: 0.6337770402 | DN74: 0.9637610531 | DO74: 0.8832685425 | DP74: 1.836889398 | DQ74: 33775.85424 | DR74: -0.02313547192 | DS74: -295.4566903 | DT74: 7.065611777 | DU74: 4223.965034 | DV74: 4216.899423 | DW74: 0.6335010438 | DX74: 0.9637609229 | DY74: 0.8835242555 | DZ74: 1.836620786 | EA74: 33785.63261 | EB74: -0.0248063607 | EC74: -316.4163428 | ED74: 7.08749471 | EE74: 4223.965034 | EF74: 4216.87754 | EG74: 0.633134166 | EH74: 0.9637607492 | EI74: 0.883863986 | EJ74: 1.836262621 | EK74: 33798.62377 | EL74: -0.02655255586 | EM74: -338.3260835 | EN74: 7.116676072 | EO74: 4223.965034 | EP74: 4216.848358 | EQ74: 0.6326469916 | ER74: 0.9637605175 | ES74: 0.8843147851 | ET74: 1.835785073 | EU74: 33815.86216 | EV74: -0.02837189402 | EW74: -361.1714439 | EX74: 7.155590042 | EY74: 4223.965034 | EZ74: 4216.809444 | FA74: 0.6320009728 | FB74: 0.9637602086 | FC74: 0.8849119932 | FD74: 1.835148401 | FE74: 33838.69917 | FF74: -0.03026046115 | FG74: -384.9275818 | FH74: 7.207482656 | FI74: 4223.965034 | FJ74: 4216.757552 | FK74: 0.6311458854 | FL74: 0.9637597967 | FM74: 0.8857014635 | FN74: 1.834299694 | FO74: 33868.88822 | FP74: -0.03221245765 | FQ74: -409.5611293 | FR74: 7.276682568 | FS74: 4223.965034 | FT74: 4216.688352 | FU74: 0.6300167942 | FV74: 0.9637592473 | FW74: 0.8867421453 | FX74: 1.833168581 | FY74: 33908.6835 | FZ74: -0.03422001694 | GA74: -435.0326346 | GB74: 7.368962135 | GC74: 4223.965034 | GD74: 4216.596072 | GE74: 0.6285306004 | GF74: 0.9637585148 | GG74: 0.8881088964 | GH74: 1.83166162 | GI74: 33960.94754 | GJ74: -0.03627299307 | GK74: -461.299687 | GL74: 7.492018914 | GM74: 4223.965034 | GN74: 4216.473015 | GO74: 0.6265824014 | GP74: 0.9637575378 | GQ74: 0.8898952177 | GR74: 1.829655072 | GS74: 34029.25579 | GT74: -0.03835872895 | GU74: -488.3205548 | GV74: 7.656117767 | GW74: 4223.965034 | GX74: 4216.308917 | GY74: 0.6240421511 | GZ74: 0.9637562349 | HA74: 0.8922153193 | HB74: 1.826985801 | HC74: 34117.9756 | HD74: -0.0404618167 | HE74: -516.0577584 | HF74: 7.874947105 | HG74: 4223.965034 | HH74: 4216.090087 | HI74: 0.6207524864 | HJ74: 0.9637544974 | HK74: 0.8952045387 | HL74: 1.823440226 | HM74: 34232.28221 | HN74: -0.04256386485 | HO74: -544.4804446 | HP74: 8.166760716 | HQ74: 4223.965034 | HR74: 4215.798274 | HS74: 0.6165290538 | HT74: 0.96375218 | HU74: 0.8990166787 | HV74: 1.818741766 | HW74: 34378.057 | HX74: -0.04464329587 | HY74: -573.5637696 | HZ74: 8.555900421 | IA74: 4223.965034 | IB74: 4215.409134 | IC74: 0.6111651153 | ID74: 0.9637490894 | IE74: 0.9038164774 | IF74: 1.812538178 | IG74: 34561.59948 | IH74: -0.04667521248 | II74: -603.2829626 | IJ74: 9.074826558 | IK74: 4223.965034 | IL74: 4214.890208 | IM74: 0.6044423626 | IN74: 0.9637449671 | IO74: 0.9097654931 | IP74: 1.804391814 | IQ74: 34789.08759 | IR74: -0.04863139332 | IS74: -633.5997339 | IT74: 9.766825683 | IU74: 4223.965034 | IV74: 4214.198209 | IW74: 0.5961492997 | IX74: 0.9637394685 | IY74: 0.9170006533 | IZ74: 1.793778023 | JA74: 35065.75737 | JB74: -0.05048050134 | JC74: -664.4396711 | JD74: 10.68962135 | JE74: 4223.965034 | JF74: 4213.275413 | JG74: 0.586106854 | JH74: 0.9637321333 | JI74: 0.9256069608 | JJ74: 1.78009886 | JK74: 35394.85931 | JL74: -0.05218859486 | JM74: -695.6614468 | JN74: 11.92018914 | JO74: 4223.965034 | JP74: 4212.044845 | JQ74: 0.5741980098 | JR74: 0.9637223471 | JS74: 0.9355891857 | JT74: 1.762719367 | JU74: 35776.57581 | JV74: -0.05371999161 | JW74: -727.0214322 | JX74: 13.56117767 | JY74: 4223.965034 | JZ74: 4210.403857 | KA74: 0.5603951081 | KB74: 0.9637092888 | KC74: 0.9468505065 | KD74: 1.741029648 | KE74: 36207.20444 | KF74: -0.05503841931 | KG74: -758.1391994 | KH74: 15.74947105 | KI74: 4223.965034 | KJ74: 4208.215563 | KK74: 0.5447767839 | KL74: 0.9636918606 | KM74: 0.9591867726 | KN74: 1.714527021 | KO74: 36678.93858 | KP74: -0.05610820329 | KQ74: -788.468829 | KR74: 18.66760716 | KS74: 4223.965034 | KT74: 4205.297427 | KU74: 0.5275280962 | KV74: 0.9636685937 | KW74: 0.9723015827 | KX74: 1.682901369 | KY74: 37180.44395 | KZ74: -0.05689507375 | LA74: -817.277886 | LB74: 22.55900421 | LC74: 4223.965034 | LD74: 4201.40603 | LE74: 0.5089223695 | LF74: 0.9636375202 | LG74: 0.9858403466 | LH74: 1.646099945 | LI74: 37698.16115 | LJ74: -0.05736616597 | LK74: -843.6325899 | LL74: 27.74826558 | LM74: 4223.965034 | LN74: 4196.216769 | LO74: 0.4892893904 | LP74: 0.9635960001 | LQ74: 0.9994344353 | LR74: 1.604351285 | LS74: 38217.99395 | LT74: -0.05748903574 | LU74: -866.3873611 | LV74: 34.66825683 | LW74: 4223.965034 | LX74: 4189.296777 | LY74: 0.4689786183 | LZ74: 0.9635404843 | MA74: 1.012743462 | MB74: 1.55814126 | MC74: 38726.92607 | MD74: -0.05722998132 | ME74: -884.1814546 | MF74: 43.89621347 | MG74: 4223.965034 | MH74: 4180.068821 | MI74: 0.4483261517 | MJ74: 0.9634661885 | MK74: 1.025486038 | ML74: 1.508150468 | MM74: 39214.19735 | MN74: -0.05655248045 | MO74: -895.4540991 | MP74: 56.20189143 | MQ74: 4223.965034 | MR74: 4167.763143 | MS74: 0.4276310609 | MT74: 0.9633666404 | MU74: 1.037454951 | MV74: 1.455172451 | MW74: 39671.88407 | MX74: -0.05541693536 | MY74: -898.4995134 | MZ74: 72.61177673 | NA74: 4223.965034 | NB74: 4151.353258 | NC74: 0.4071426272 | ND74: 0.9632330428 | NE74: 1.048518149 | NF74: 1.40003299 | NG74: 40094.93655 | NH74: -0.05378306239 | NI74: -891.589799 | NJ74: 94.49471047 | NK74: 4223.965034 | NL74: 4129.470324 | NM74: 0.3870569497 | NN74: 0.9630533622 | NO74: 1.058609986 | NP74: 1.343524463 | NQ74: 40480.84459 | NR74: -0.0516160798 | NS74: -873.190201 | NT74: 123.6760716 | NU74: 4223.965034 | NV74: 4100.288963 | NW74: 0.3675200014 | NX74: 0.9628110003 | NY74: 1.067717714 | NZ74: 1.286360931 | OA74: 40829.12063 | OB74: -0.04889715795 | OC74: -842.2687698 | OD74: 162.5900421 | OE74: 4223.965034 | OF74: 4061.374992 | OG74: 0.3486341998 | OH74: 0.9624828085 | OI74: 1.075867075 | OJ74: 1.229153029 | OK74: 41140.7491 | OL74: -0.04563713643 | OM74: -798.655117 | ON74: 214.4826558 | OO74: 4223.965034 | OP74: 4009.482379 | OQ74: 0.3304662394 | OR74: 0.9620360259 | OS74: 1.083109362 | OT74: 1.172398122 | OU74: 41417.69144 | OV74: -0.04189023618 | OW74: -743.3399388 | OX74: 283.6825683 | OY74: 4223.965034 | OZ74: 3940.282466 | PA74: 0.3130547621 | PB74: 0.9614233855 | PC74: 1.089510958 | PD74: 1.116480055 | PE74: 41662.48601 | PF74: -0.03776212859 | PG74: -678.5650555 | PH74: 375.9621347 | PI74: 4223.965034 | PJ74: 3848.0029 | PK74: 0.2964171299 | PL74: 0.9605749315 | PM74: 1.0951455 | PN74: 1.061672919 | PO74: 41877.94877 | PP74: -0.03340610607 | PQ74: -607.5879298 | PR74: 499.0189143 | PS74: 4223.965034 | PT74: 3724.94612 | PU74: 0.2805550327 | PV74: 0.9593835881 | PW74: 1.100088397 | PX74: 1.008143381 | PY74: 42066.96328 | PZ74: -0.02900432035 | QA74: -534.1386646 | QB74: 663.1177673 | QC74: 4223.965034 | QD74: 3560.847267 | QE74: 0.2654589356 | QF74: 0.9576779903 | QG74: 1.104413213 | QH74: 0.9559448086 | QI74: 42232.34259 | QJ74: -0.02473804871 | QK74: -461.7561466 | QL74: 881.9471047 | QM74: 4223.965034 | QN74: 3342.01793 | QO74: 0.2511114962 | QP74: 0.9551670152 | QQ74: 1.108189455 | QR74: 0.9049910744 | QS74: 42376.74467 | QT74: -0.02075764301 | QU74: -393.2616905 | QV74: 1173.760716 | QW74: 4223.965034 | QX74: 3050.204318 | QY74: 0.2374901336 | QZ74: 0.9513140834 | RA74: 1.111481368 | RB74: 0.854980196 | RC74: 42502.62618 | RD74: -0.01716347231 | RE74: -330.5329805 | RF74: 1562.900421 | RG74: 4223.965034 | RH74: 2661.064613 | RI74: 0.2245689231 | RJ74: 0.9450091702 | RK74: 1.114347401 | RL74: 0.8051756901 | RM74: 42612.2222 | RN74: -0.01400232305 | RO74: -274.5605837 | RP74: 2081.826558 | RQ74: 4223.965034 | RR74: 2142.138476 | RS74: 0.2123199749 | RT74: 0.9335178037 | RU74: 1.116840124 | RV74: 0.7536832054 | RW74: 42707.54297 | RX74: -0.01127417432 | RY74: =+INDEX($AK$28:$AK$82,MATCH(RY$25,$N$28:$N$82,0)) -> -225.6526286 | RZ74: =+INDEX($AC$28:$AC$82,MATCH(RY$25,$N$28:$N$82,0)) -> 2773.825683 | SA74: 4223.965034 | SB74: =+SA74-RZ74 -> 1450.139351 | SC74: =1/(0.1+RZ74^0.2) -> 0.200714423 | SD74: =+(SB74/($T$20+SB74))^0.3 -> 0.9077515172 | SE74: =+SQRT(EXP($T$15*(1-SQRT(28/RZ74)))) -> 1.119006415 | SF74: =+$T$16*$T$17*SC74*SD74*SE74 -> 0.6941646785 | SG74: =+INDEX($AJ$28:$AJ$82,MATCH(RY$25,$N$28:$N$82,0)) -> 42790.38114 | SH74: =+RY74*(1+SF74)/SG74 -> -0.008934080578
N75: 48 | O75: 4223.965034 | P75: 1.258154008 | Q75: 70.78792156 | R75: 1.121674644 | S75: 42892.41321 | T75: =+O75-Input!$F$11 -> 4216.965034 | U75: 0.9637614437 | V75: 1.837694894 | X75: 4219.965034 | Y75: =+X75-Input!$F$12 -> 4216.965034 | Z75: =+SQRT(Y75/(350*(Input!$F$10/$Q$4)^2+Y75)) -> 0.8739389542 | AA75: -292.5202502 | AB75: 48 | AC75: 4927.189143 | AD75: 5630.413252 | AE75: 703.2241088 | AF75: 0.1793171547 | AG75: 0.8404261286 | AH75: 1.12252094 | AI75: 0.5759704554 | AJ75: 42924.77523 | AK75: -148.1408067 | AL75: 6876.659415 | AM75: 0.2037749274 | AN75: 0.7165418329 | AP75: 48 | AQ75: 33746.34702 | AR75: 7 | AS75: 5630.413252 | AT75: 5623.413252 | AU75: 0.6346091077 | AV75: 0.97229424 | AW75: 0.8824969026 | AX75: 1.853965182 | AY75: 33746.34702 | AZ75: 2.853965182 | BA75: -2297.498035 | BB75: 7.005 | BC75: 5630.413252 | BD75: 5623.408252 | BE75: 0.6345242381 | BF75: 0.9722942168 | BG75: 0.8825756583 | BH75: 1.853882627 | BI75: 33749.35861 | BJ75: -0.1942789432 | BK75: -189.1030035 | BL75: 7.011667607 | BM75: 5630.413252 | BN75: 5623.401584 | BO75: 0.6344111734 | BP75: 0.9722941859 | BQ75: 0.8826805605 | BR75: 1.853772539 | BS75: 33753.37003 | BT75: -0.01598823934 | BU75: -204.5034576 | BV75: 7.015559004 | BW75: 5630.413252 | BX75: 5623.397693 | BY75: 0.634345244 | BZ75: 0.9722941679 | CA75: 0.8827417209 | CB75: 1.853708291 | CC75: 33755.70879 | CD75: -0.01728872636 | CE75: -220.9563824 | CF75: 7.020748266 | CG75: 5630.413252 | CH75: 5623.392504 | CI75: 0.6342573927 | CJ75: 0.9722941438 | CK75: 0.8828232071 | CL75: 1.853622615 | CM75: 33758.82479 | CN75: -0.01867737203 | CO75: -238.2345017 | CP75: 7.027668257 | CQ75: 5630.413252 | CR75: 5623.385584 | CS75: 0.6341403596 | CT75: 0.9722941117 | CU75: 0.8829317419 | CV75: 1.853508367 | CW75: 33762.97512 | CX75: -0.0201346043 | CY75: -256.3844479 | CZ75: 7.036896213 | DA75: 5630.413252 | DB75: 5623.376356 | DC75: 0.6339845039 | DD75: 0.9722940689 | DE75: 0.8830762469 | DF75: 1.85335602 | DG75: 33768.50093 | DH75: -0.02166386092 | DI75: -275.4496978 | DJ75: 7.049201891 | DK75: 5630.413252 | DL75: 5623.36405 | DM75: 0.6337770402 | DN75: 0.9722940118 | DO75: 0.8832685425 | DP75: 1.853152871 | DQ75: 33775.85424 | DR75: -0.02326810421 | DS75: -295.4566903 | DT75: 7.065611777 | DU75: 5630.413252 | DV75: 5623.34764 | DW75: 0.6335010438 | DX75: 0.9722939357 | DY75: 0.8835242555 | DZ75: 1.852881986 | EA75: 33785.63261 | EB75: -0.02494856554 | EC75: -316.4163428 | ED75: 7.08749471 | EE75: 5630.413252 | EF75: 5623.325757 | EG75: 0.633134166 | EH75: 0.9722938343 | EI75: 0.883863986 | EJ75: 1.85252079 | EK75: 33798.62377 | EL75: -0.02670476177 | EM75: -338.3260835 | EN75: 7.116676072 | EO75: 5630.413252 | EP75: 5623.296576 | EQ75: 0.6326469916 | ER75: 0.9722936989 | ES75: 0.8843147851 | ET75: 1.852039201 | EU75: 33815.86216 | EV75: -0.02853451579 | EW75: -361.1714439 | EX75: 7.155590042 | EY75: 5630.413252 | EZ75: 5623.257662 | FA75: 0.6320009728 | FB75: 0.9722935185 | FC75: 0.8849119932 | FD75: 1.851397142 | FE75: 33838.69917 | FF75: -0.03043388925 | FG75: -384.9275818 | FH75: 7.207482656 | FI75: 5630.413252 | FJ75: 5623.205769 | FK75: 0.6311458854 | FL75: 0.9722932778 | FM75: 0.8857014635 | FN75: 1.850541253 | FO75: 33868.88822 | FP75: -0.03239704664 | FQ75: -409.5611293 | FR75: 7.276682568 | FS75: 5630.413252 | FT75: 5623.136569 | FU75: 0.6300167942 | FV75: 0.9722929569 | FW75: 0.8867421453 | FX75: 1.849400569 | FY75: 33908.6835 | FZ75: -0.03441607266 | GA75: -435.0326346 | GB75: 7.368962135 | GC75: 5630.413252 | GD75: 5623.04429 | GE75: 0.6285306004 | GF75: 0.9722925289 | GG75: 0.8881088964 | GH75: 1.847880855 | GI75: 33960.94754 | GJ75: -0.03648075808 | GK75: -461.299687 | GL75: 7.492018914 | GM75: 5630.413252 | GN75: 5622.921233 | GO75: 0.6265824014 | GP75: 0.9722919581 | GQ75: 0.8898952177 | GR75: 1.845857327 | GS75: 34029.25579 | GT75: -0.03857836629 | GU75: -488.3205548 | GV75: 7.656117767 | GW75: 5630.413252 | GX75: 5622.757134 | GY75: 0.6240421511 | GZ75: 0.972291197 | HA75: 0.8922153193 | HB75: 1.843165467 | HC75: 34117.9756 | HD75: -0.04069339151 | HE75: -516.0577584 | HF75: 7.874947105 | HG75: 5630.413252 | HH75: 5622.538305 | HI75: 0.6207524864 | HJ75: 0.9722901819 | HK75: 0.8952045387 | HL75: 1.839589889 | HM75: 34232.28221 | HN75: -0.04280732391 | HO75: -544.4804446 | HP75: 8.166760716 | HQ75: 5630.413252 | HR75: 5622.246491 | HS75: 0.6165290538 | HT75: 0.9722888282 | HU75: 0.8990166787 | HV75: 1.834851674 | HW75: 34378.057 | HX75: -0.04489844495 | HY75: -573.5637696 | HZ75: 8.555900421 | IA75: 5630.413252 | IB75: 5621.857351 | IC75: 0.6111651153 | ID75: 0.9722870228 | IE75: 0.9038164774 | IF75: 1.828595604 | IG75: 34561.59948 | IH75: -0.04694169199 | II75: -603.2829626 | IJ75: 9.074826558 | IK75: 5630.413252 | IL75: 5621.338425 | IM75: 0.6044423626 | IN75: 0.9722846148 | IO75: 0.9097654931 | IP75: 1.820380349 | IQ75: 34789.08759 | IR75: -0.04890865299 | IS75: -633.5997339 | IT75: 9.766825683 | IU75: 5630.413252 | IV75: 5620.646426 | IW75: 0.5961492997 | IX75: 0.9722814031 | IY75: 0.9170006533 | IZ75: 1.809676858 | JA75: 35065.75737 | JB75: -0.05076777583 | JC75: -664.4396711 | JD75: 10.68962135 | JE75: 5630.413252 | JF75: 5619.723631 | JG75: 0.586106854 | JH75: 0.9722771191 | JI75: 0.9256069608 | JJ75: 1.795882208 | JK75: 35394.85931 | JL75: -0.05248488315 | JM75: -695.6614468 | JN75: 11.92018914 | JO75: 5630.413252 | JP75: 5618.493063 | JQ75: 0.5741980098 | JR75: 0.9722714042 | JS75: 0.9355891857 | JT75: 1.778356224 | JU75: 35776.57581 | JV75: -0.05402404414 | JW75: -727.0214322 | JX75: 13.56117767 | JY75: 5630.413252 | JZ75: 5616.852074 | KA75: 0.5603951081 | KB75: 0.9722637796 | KC75: 0.9468505065 | KD75: 1.756484124 | KE75: 36207.20444 | KF75: -0.05534873698 | KG75: -758.1391994 | KH75: 15.74947105 | KI75: 5630.413252 | KJ75: 5614.663781 | KK75: 0.5447767839 | KL75: 0.9722536055 | KM75: 0.9591867726 | KN75: 1.729759424 | KO75: 36678.93858 | KP75: -0.05642305105 | KQ75: -788.468829 | KR75: 18.66760716 | KS75: 5630.413252 | KT75: 5611.745645 | KU75: 0.5275280962 | KV75: 0.9722400265 | KW75: 0.9723015827 | KX75: 1.697870079 | KY75: 37180.44395 | KZ75: -0.05721250841 | LA75: -817.277886 | LB75: 22.55900421 | LC75: 5630.413252 | LD75: 5607.854248 | LE75: 0.5089223695 | LF75: 0.9722218979 | LG75: 0.9858403466 | LH75: 1.660763907 | LI75: 37698.16115 | LJ75: -0.05768407356 | LK75: -843.6325899 | LL75: 27.74826558 | LM75: 5630.413252 | LN75: 5602.664986 | LO75: 0.4892893904 | LP75: 0.9721976861 | LQ75: 0.9994344353 | LR75: 1.618672771 | LS75: 38217.99395 | LT75: -0.05780517143 | LU75: -866.3873611 | LV75: 34.66825683 | LW75: 5630.413252 | LX75: 5595.744995 | LY75: 0.4689786183 | LZ75: 0.9721653334 | MA75: 1.012743462 | MB75: 1.572088503 | MC75: 38726.92607 | MD75: -0.05754200492 | ME75: -884.1814546 | MF75: 43.89621347 | MG75: =+$AD75 -> 5630.413252 | MH75: 5586.517038 | MI75: 0.4483261517 | MJ75: 0.9721220729 | MK75: 1.025486038 | ML75: 1.521699855 | MM75: 39214.19735 | MN75: -0.05685798502 | MO75: -895.4540991 | MP75: 56.20189143 | MQ75: 5630.413252 | MR75: 5574.21136 | MS75: 0.4276310609 | MT75: 0.9720641743 | MU75: 1.037454951 | MV75: 1.46831014 | MW75: 39671.88407 | MX75: -0.05571347277 | MY75: -898.4995134 | MZ75: 72.61177673 | NA75: 5630.413252 | NB75: 5557.801475 | NC75: 0.4071426272 | ND75: 0.9719865898 | NE75: 1.048518149 | NF75: 1.412756032 | NG75: 40094.93655 | NH75: -0.05406817687 | NI75: -891.589799 | NJ75: 94.49471047 | NK75: =+$AD75 -> 5630.413252 | NL75: 5535.918541 | NM75: 0.3870569497 | NN75: 0.9718824558 | NO75: 1.058609986 | NP75: 1.355841644 | NQ75: 40480.84459 | NR75: -0.05188736549 | NS75: -873.190201 | NT75: 123.6760716 | NU75: 5630.413252 | NV75: 5506.73718 | NW75: 0.3675200014 | NX75: 0.9717423794 | NY75: 1.067717714 | NZ75: 1.298293675 | OA75: 40829.12063 | OB75: -0.04915235706 | OC75: -842.2687698 | OD75: 162.5900421 | OE75: 5630.413252 | OF75: 5467.82321 | OG75: 0.3486341998 | OH75: 0.971553397 | OI75: 1.075867075 | OJ75: 1.240736759 | OK75: 41140.7491 | OL75: -0.04587428851 | OM75: -798.655117 | ON75: 214.4826558 | OO75: 5630.413252 | OP75: 5415.930596 | OQ75: 0.3304662394 | OR75: 0.9712974136 | OS75: 1.083109362 | OT75: 1.183684637 | OU75: 41417.69144 | OV75: -0.04210787344 | OW75: -743.3399388 | OX75: 283.6825683 | OY75: 5630.413252 | OZ75: 5346.730684 | PA75: 0.3130547621 | PB75: 0.9709487938 | PC75: 1.089510958 | PD75: 1.127541704 | PE75: 41662.48601 | PF75: -0.03795948997 | PG75: -678.5650555 | PH75: 375.9621347 | PI75: 5630.413252 | PJ75: 5254.451117 | PK75: 0.2964171299 | PL75: 0.9704704982 | PM75: 1.0951455 | PN75: 1.072609968 | PO75: 41877.94877 | PP75: -0.03358332343 | PQ75: -607.5879298 | PR75: 499.0189143 | PS75: 5630.413252 | PT75: 5131.394338 | PU75: 0.2805550327 | PV75: 0.9698076064 | PW75: 1.100088397 | PX75: 1.01909719 | PY75: 42066.96328 | PZ75: -0.02916253007 | QA75: -534.1386646 | QB75: 663.1177673 | QC75: 5630.413252 | QD75: 4967.295485 | QE75: 0.2654589356 | QF75: 0.9688758497 | QG75: 1.104413213 | QH75: 0.9671224025 | QI75: 42232.34259 | QJ75: -0.02487941868 | QK75: -461.7561466 | QL75: 881.9471047 | QM75: 5630.413252 | QN75: 4748.466147 | QO75: 0.2511114962 | QP75: 0.9675399264 | QQ75: 1.108189455 | QR75: 0.9167140234 | QS75: 42376.74467 | QT75: -0.02088538156 | QU75: -393.2616905 | QV75: 1173.760716 | QW75: 5630.413252 | QX75: 4456.652536 | QY75: 0.2374901336 | QZ75: 0.9655689782 | RA75: 1.111481368 | RB75: 0.8677915829 | RC75: 42502.62618 | RD75: -0.01728201152 | RE75: -330.5329805 | RF75: 1562.900421 | RG75: 5630.413252 | RH75: 4067.512831 | RI75: 0.2245689231 | RJ75: 0.9625349584 | RK75: 1.114347401 | RL75: 0.8201081786 | RM75: 42612.2222 | RN75: -0.01411815085 | RO75: -274.5605837 | RP75: 2081.826558 | RQ75: 5630.413252 | RR75: 3548.586694 | RS75: 0.2123199749 | RT75: 0.9575447788 | RU75: 1.116840124 | RV75: 0.7730815795 | RW75: 42707.54297 | RX75: -0.01139888365 | RY75: -225.6526286 | RZ75: 2773.825683 | SA75: 5630.413252 | SB75: 2856.587569 | SC75: 0.200714423 | SD75: 0.9483691843 | SE75: 1.119006415 | SF75: 0.725225326 | SG75: 42790.38114 | SH75: -0.009097877126 | SI75: =+INDEX($AK$28:$AK$82,MATCH(SI$25,$N$28:$N$82,0)) -> -183.6574723 | SJ75: =+INDEX($AC$28:$AC$82,MATCH(SI$25,$N$28:$N$82,0)) -> 3696.621347 | SK75: 5630.413252 | SL75: =+SK75-SJ75 -> 1933.791905 | SM75: =1/(0.1+SJ75^0.2) -> 0.1897231257 | SN75: =+(SL75/($T$20+SL75))^0.3 -> 0.9274218658 | SO75: =+SQRT(EXP($T$15*(1-SQRT(28/SJ75)))) -> 1.120887812 | SP75: =+$T$16*$T$17*SM75*SN75*SO75 -> 0.6714970663 | SQ75: =+INDEX($AJ$28:$AJ$82,MATCH(SI$25,$N$28:$N$82,0)) -> 42862.32505 | SR75: =+SI75*(1+SP75)/SQ75 -> -0.007162068923
